Workbook

Sheet Config (hidden)
A2: ColumnVlookup | B2: ListCycle | C2: CycleFR | D2: CycleNL | E2: ColumnVlookup | G2: rngCycle | H2: rngYear | I2: rngInstance | J2: rngLanguage | L2: ListTable | M2: rngVLK | O2: rngLastUpdate
A3: 1 | B3: INI2010 | C3: =VLOOKUP(LEFT($B3,LEN($B3)-4),rngTranslations,3,FALSE)&" "&RIGHT($B3,4) -> Initial 2010 | D3: =VLOOKUP(LEFT($B3,LEN($B3)-4),rngTranslations,2,FALSE)&" "&RIGHT($B3,4) -> Initieel 2010 | E3: 1 | I3: =VLOOKUP(rngInstanceID,ListInstances,4,FALSE) -> 47 | J3: =IF(rngLanguageID="FR",1,IF(rngLanguageID="NL",2,NA())) -> 2 | L3: Part I | O3: 2021-03-18T16:28:19.410
A4: 2 | B4: PCLO2010 | C4: Préclôture 2010 | D4: Voorlopige afsluiting 2010 | E4: 2 | I4: CLO2021 | J4: NL | L4: Part II | O4: 2021-03-18T16:28:19.410
A5: 3 | B5: CLO2010 | C5: Clôture 2010 | D5: Afsluiting 2010 | E5: 3 | G5: CLO | H5: 2021 | I5: =rngCycleSelect&rngYearSelect -> CLO2021 | J5: NL | L5: Part IIIa - Eco EXP | M5: =HLOOKUP(rngInstanceID,ListCycleP3aEXP,2,FALSE) -> 53
A6: 4 | B6: REA2010 | C6: Réalisations 2010 | D6: Verwezenlijkingen 2010 | E6: 4 | L6: Part IIIa - Eco INC | M6: =HLOOKUP(rngInstanceID,ListCycleP3aINC,2,FALSE) -> 53
A7: 5 | B7: INI2011 | C7: Initial 2011 | D7: Initieel 2011 | E7: 5 | L7: Part IIIb - Funct | M7: =HLOOKUP(rngInstanceID,ListCycleP3b,2,FALSE) -> 27
A8: 6 | B8: PCLO2011 | C8: Préclôture 2011 | D8: Voorlopige afsluiting 2011 | E8: 6 | L8: Part IV
A9: 7 | B9: CLO2011 | C9: Clôture 2011 | D9: Afsluiting 2011 | E9: 7
A10: 8 | B10: REA2011 | C10: Réalisations 2011 | D10: Verwezenlijkingen 2011 | E10: 8
A11: 9 | B11: INI2012 | C11: Initial 2012 | D11: Initieel 2012 | E11: 9
A12: 10 | B12: PCLO2012 | C12: Préclôture 2012 | D12: Voorlopige afsluiting 2012 | E12: 10
A13: 11 | B13: CLO2012 | C13: Clôture 2012 | D13: Afsluiting 2012 | E13: 11
A14: 12 | B14: REA2012 | C14: Réalisations 2012 | D14: Verwezenlijkingen 2012 | E14: 12
A15: 13 | B15: INI2013 | C15: Initial 2013 | D15: Initieel 2013 | E15: 13 | G15: CS | H15: 3
A16: 14 | B16: PCLO2013 | C16: Préclôture 2013 | D16: Voorlopige afsluiting 2013 | E16: 14 | G16: FlC | H16: 4
A17: 15 | B17: CLO2013 | C17: Clôture 2013 | D17: Afsluiting 2013 | E17: 15 | G17: FrC | H17: 5
A18: 16 | B18: REA2013 | C18: Réalisations 2013 | D18: Verwezenlijkingen 2013 | E18: 16 | G18: GC | H18: 6
A19: 17 | B19: INI2014 | C19: Initial 2014 | D19: Initieel 2014 | E19: 17 | G19: WR | H19: 7
A20: 18 | B20: PCLO2014 | C20: Préclôture 2014 | D20: Voorlopige afsluiting 2014 | E20: 18 | G20: BCR | H20: 8
A21: 19 | B21: CLO2014 | C21: Clôture 2014 | D21: Afsluiting 2014 | E21: 19 | G21: FrCC | H21: 9
A22: 20 | B22: REA2014 | C22: Réalisations 2014 | D22: Verwezenlijkingen 2014 | E22: 20 | G22: FlCC | H22: 10
A23: 21 | B23: INI2015 | C23: Initial 2015 | D23: Initieel 2015 | E23: 21 | G23: CCC | H23: 11
A24: 22 | B24: PCLO2015 | C24: Préclôture 2015 | D24: Voorlopige afsluiting 2015 | E24: 22
A25: 23 | B25: CLO2015 | C25: Clôture 2015 | D25: Afsluiting 2015 | E25: 23
A26: 24 | B26: REA2015 | C26: Réalisations 2015 | D26: Verwezenlijkingen 2015 | E26: 24
A27: 25 | B27: INI2016 | C27: Initial 2016 | D27: Initieel 2016 | E27: 25
A28: 26 | B28: PCLO2016 | C28: Préclôture 2016 | D28: Voorlopige afsluiting 2016 | E28: 26
A29: 27 | B29: CLO2016 | C29: Clôture 2016 | D29: Afsluiting 2016 | E29: 27
A30: 28 | B30: REA2016 | C30: Réalisations 2016 | D30: Verwezenlijkingen 2016 | E30: 28
A31: 29 | B31: INI2017 | C31: Initial 2017 | D31: Initieel 2017 | E31: 29
A32: 30 | B32: PCLO2017 | C32: Préclôture 2017 | D32: Voorlopige afsluiting 2017 | E32: 30
A33: 31 | B33: CLO2017 | C33: Clôture 2017 | D33: Afsluiting 2017 | E33: 31
A34: 32 | B34: REA2017 | C34: Réalisations 2017 | D34: Verwezenlijkingen 2017 | E34: 32
A35: 33 | B35: INI2018 | C35: =VLOOKUP(LEFT($B35,LEN($B35)-4),rngTranslations,3,FALSE)&" "&RIGHT($B35,4) -> Initial 2018 | D35: =VLOOKUP(LEFT($B35,LEN($B35)-4),rngTranslations,2,FALSE)&" "&RIGHT($B35,4) -> Initieel 2018 | E35: 33
A36: 34 | B36: PCLO2018 | C36: Préclôture 2018 | D36: Voorlopige afsluiting 2018 | E36: 34
A37: 35 | B37: CLO2018 | C37: Clôture 2018 | D37: Afsluiting 2018 | E37: 35
A38: 36 | B38: REA2018 | C38: Réalisations 2018 | D38: Verwezenlijkingen 2018 | E38: 36
A39: 37 | B39: INI2019 | C39: Initial 2019 | D39: Initieel 2019 | E39: 37
A40: 38 | B40: PCLO2019 | C40: Préclôture 2019 | D40: Voorlopige afsluiting 2019 | E40: 38
A41: 39 | B41: CLO2019 | C41: Clôture 2019 | D41: Afsluiting 2019 | E41: 39
A42: 40 | B42: REA2019 | C42: Réalisations 2019 | D42: Verwezenlijkingen 2019 | E42: 40
A43: 41 | B43: INI2020 | C43: Initial 2020 | D43: Initieel 2020 | E43: 41
A44: 42 | B44: PCLO2020 | C44: Préclôture 2020 | D44: Voorlopige afsluiting 2020 | E44: 42
A45: 43 | B45: CLO2020 | C45: Clôture 2020 | D45: Afsluiting 2020 | E45: 43
A46: 44 | B46: REA2020 | C46: Réalisations 2020 | D46: Verwezenlijkingen 2020 | E46: 44
A47: 45 | B47: INI2021 | C47: Initial 2021 | D47: Initieel 2021 | E47: 45
A48: 46 | B48: PCLO2021 | C48: Préclôture 2021 | D48: Voorlopige afsluiting 2021 | E48: 46
A49: 47 | B49: CLO2021 | C49: Clôture 2021 | D49: Afsluiting 2021 | E49: 47
A50: 48 | B50: REA2021 | C50: Réalisations 2021 | D50: Verwezenlijkingen 2021 | E50: 48
A51: 49 | B51: INI2022 | C51: Initial 2022 | D51: Initieel 2022 | E51: 49
A52: 50 | B52: PCLO2022 | C52: Préclôture 2022 | D52: Voorlopige afsluiting 2022 | E52: 50
A53: 51 | B53: CLO2022 | C53: Clôture 2022 | D53: Afsluiting 2022 | E53: 51
A54: 52 | B54: REA2022 | C54: Réalisations 2022 | D54: Verwezenlijkingen 2022 | E54: 52
A55: 53 | B55: INI2023 | C55: Initial 2023 | D55: Initieel 2023 | E55: 53
A56: 54 | B56: PCLO2023 | C56: Préclôture 2023 | D56: Voorlopige afsluiting 2023 | E56: 54
A57: 55 | B57: CLO2023 | C57: Clôture 2023 | D57: Afsluiting 2023 | E57: 55
A58: 56 | B58: REA2023 | C58: Réalisations 2023 | D58: Verwezenlijkingen 2023 | E58: 56
A59: 57 | B59: INI2024 | C59: Initial 2024 | D59: Initieel 2024 | E59: 57
A60: 58 | B60: PCLO2024 | C60: Préclôture 2024 | D60: Voorlopige afsluiting 2024 | E60: 58
A61: 59 | B61: CLO2024 | C61: Clôture 2024 | D61: Afsluiting 2024 | E61: 59
A62: 60 | B62: REA2024 | C62: Réalisations 2024 | D62: Verwezenlijkingen 2024 | E62: 60
A63: 61 | B63: INI2025 | C63: Initial 2025 | D63: Initieel 2025 | E63: 61
A64: 62 | B64: PCLO2025 | C64: Préclôture 2025 | D64: Voorlopige afsluiting 2025 | E64: 62
A65: 63 | B65: CLO2025 | C65: Clôture 2025 | D65: Afsluiting 2025 | E65: 63
A66: 64 | B66: REA2025 | C66: Réalisations 2025 | D66: Verwezenlijkingen 2025 | E66: 64

Sheet Translations (hidden)
B1: ID | C1: Selection | D1: FR | E1: NL
B2: INI | C2: =OFFSET(C2,0,rngLanguageIndex) -> Initieel | D2: Initial | E2: Initieel
B3: PCLO | C3: Voorlopige afsluiting | D3: Préclôture | E3: Voorlopige afsluiting
B4: CLO | C4: Afsluiting | D4: Clôture | E4: Afsluiting
B5: REA | C5: Verwezenlijkingen | D5: Réalisations | E5: Verwezenlijkingen
B6: CS | C6: Federale overheid | D6: Pouvoir fédéral | E6: Federale overheid
B7: FlC | C7: Vlaamse Gemeenschap | D7: Communauté flamande | E7: Vlaamse Gemeenschap
B8: FrC | C8: Franse Gemeenschap | D8: Communauté française | E8: Franse Gemeenschap
B9: GC | C9: Duitstalige Gemeenschap | D9: Communauté germanophone | E9: Duitstalige Gemeenschap
B10: WR | C10: Waals Gewest | D10: Région wallonne | E10: Waals Gewest
B11: BCR | C11: Brussels Hoofdstedelijk Gewest | D11: Région de Bruxelles-Capitale | E11: Brussels Hoofdstedelijk Gewest
B12: FrCC | C12: Franse Gemeenschaps- commissie | D12: Commission communautaire française | E12: Franse Gemeenschaps- commissie
B13: FlCC | C13: Vlaamse Gemeenschaps- commissie | D13: Commission communautaire flamande | E13: Vlaamse Gemeenschaps- commissie
B14: CCC | C14: Gemeenschappelijke Gemeenschaps- commissie | D14: Commission communautaire commune | E14: Gemeenschappelijke Gemeenschaps- commissie
B15: d-001 | C15: Tabel | D15: Tableau | E15: Tabel
B16: d-002 | C16: Economische hergroepering | D16: Regroupement économique | E16: Economische hergroepering
B17: d-003 | C17: Uitgaven | D17: Dépenses | E17: Uitgaven
B18: d-004 | C18: Ontvangsten | D18: Recettes | E18: Ontvangsten
B19: d-005 | C19: (duizend EUR) | D19: (milliers EUR) | E19: (duizend EUR)
B20: d-006 | C20: Libellé | D20: Description | E20: Libellé
B21: d-007 | C21: Eco. code | D21: Code éco. | E21: Eco. code
B22: d-008 | C22: Totaal | D22: Total | E22: Totaal
B23: d-009 | C23: Totaal van de lopende uitgaven | D23: Total des dépenses courantes | E23: Totaal van de lopende uitgaven
B24: d-010 | C24: Totaal van de kapitaaluitgaven | D24: Total des dépenses de capital | E24: Totaal van de kapitaaluitgaven
B25: d-011 | C25: =OFFSET(C25,0,rngLanguageIndex) -> Totaal van de uitgaven | D25: Total des dépenses | E25: Totaal van de uitgaven
B26: d-012 | C26: Algemeen totaal van de uitgaven | D26: Total général des dépenses | E26: Algemeen totaal van de uitgaven
B27: d-013 | C27: (excl. overheidsschuld) | D27: (excl. dette publique) | E27: (excl. overheidsschuld)
B28: d-014 | C28: (incl. overheidsschuld) | D28: (incl. dette publique) | E28: (incl. overheidsschuld)
B29: d-015 | C29: (groepen 1-4) | D29: (groupes 1-4) | E29: (groepen 1-4)
B30: d-016 | C30: (groepen 5-8) | D30: (groupes 5-8) | E30: (groepen 5-8)
B31: d-017 | C31: Totaal van de lopende ontvangsten | D31: Total des recettes courantes | E31: Totaal van de lopende ontvangsten
B32: d-018 | C32: Totaal van de kapitaalontvangsten | D32: Total des recettes de capital | E32: Totaal van de kapitaalontvangsten
B33: d-019 | C33: Totaal van de ontvangsten | D33: Total des recettes | E33: Totaal van de ontvangsten
B34: d-020 | C34: Algemeen totaal van de ontvangsten | D34: Total général des recettes | E34: Algemeen totaal van de ontvangsten
B35: d-021 | C35: Geen functionële hergroepering voor het initiële begroting | D35: Pas de regroupement fonctionnel pour le budget initial | E35: Geen functionële hergroepering voor het initiële begroting
B36: d-022 | C36: Functionele hergroepering | D36: Regroupement fonctionnel | E36: Functionele hergroepering
B37: d-023 | C37: Geen economische hergroepering beschikbaar voor de voorlopige afsluitingen 2010-2015. | D37: Pas de regroupement économique disponible pour les préclôtures 2010-2015. | E37: Geen economische hergroepering beschikbaar voor de voorlopige afsluitingen 2010-2015.
B38: d-025 | C38: Fout | D38: Erreur | E38: Fout
B39: d-024 | C39: 0
B40: CE-0EXP | C40: NIET-VERDEELDE UITGAVEN | D40: DÉPENSES NON VENTILÉES | E40: NIET-VERDEELDE UITGAVEN
B41: CE-0INC | C41: NIET-VERDEELDE ONTVANGSTEN | D41: RECETTES NON VENTILÉES | E41: NIET-VERDEELDE ONTVANGSTEN
B42: CE-1EXP | C42: LOPENDE UITGAVEN VOOR GOEDEREN EN DIENSTEN | D42: DÉPENSES COURANTES POUR BIENS ET SERVICES | E42: LOPENDE UITGAVEN VOOR GOEDEREN EN DIENSTEN
B43: CE-1INC | C43: LOPENDE ONTVANGSTEN VAN GOEDEREN EN DIENSTEN | D43: RECETTES COURANTES POUR BIENS ET SERVICES | E43: LOPENDE ONTVANGSTEN VAN GOEDEREN EN DIENSTEN
B44: CE-2EXP | C44: RENTEN | D44: INTÉRÊTS | E44: RENTEN
B45: CE-2INC | C45: RENTEN EN INKOMSTEN UIT EIGENDOM | D45: INTÉRÊTS ET REVENUS DE LA PROPRIÉTÉ | E45: RENTEN EN INKOMSTEN UIT EIGENDOM
B46: CE-3EXP | C46: INKOMENSOVERDRACHTEN AAN ANDERE SECTOREN | D46: TRANSFERTS DE REVENUS À DESTINATION D'AUTRES SECTEURS | E46: INKOMENSOVERDRACHTEN AAN ANDERE SECTOREN
B47: CE-3INC | C47: INKOMENSOVERDRACHTEN VAN ANDERE SECTOREN | D47: TRANSFERTS DE REVENUS EN PROVENANCE D'AUTRES SECTEURS | E47: INKOMENSOVERDRACHTEN VAN ANDERE SECTOREN
B48: CE-4EXP | C48: INKOMENSOVERDRACHTEN BINNEN DE OVERHEIDSSECTOR | D48: TRANSFERTS DE REVENUS À L'INTÉRIEUR DU SECTEUR DES ADMINISTRATIONS PUBLIQUES | E48: INKOMENSOVERDRACHTEN BINNEN DE OVERHEIDSSECTOR
B49: CE-4INC | C49: INKOMENSOVERDRACHTEN BINNEN DE OVERHEIDSSECTOR | D49: TRANSFERTS DE REVENUS À L'INTÉRIEUR DU SECTEUR DES ADMINISTRATIONS PUBLIQUES | E49: INKOMENSOVERDRACHTEN BINNEN DE OVERHEIDSSECTOR
B50: CE-5EXP | C50: KAPITAALOVERDRACHTEN AAN ANDERE SECTOREN | D50: TRANSFERTS EN CAPITAL À DESTINATION D'AUTRES SECTEURS | E50: KAPITAALOVERDRACHTEN AAN ANDERE SECTOREN
B51: CE-5INC | C51: KAPITAALOVERDRACHTEN VAN ANDERE SECTOREN | D51: TRANSFERTS EN CAPITAL EN PROVENANCE D'AUTRES SECTEURS | E51: KAPITAALOVERDRACHTEN VAN ANDERE SECTOREN
B52: CE-6EXP | C52: KAPITAALOVERDRACHTEN BINNEN DE OVERHEIDSSECTOR | D52: TRANSFERTS EN CAPITAL À L'INTÉRIEUR DU SECTEUR DES ADMINISTRATIONS PUBLIQUES | E52: KAPITAALOVERDRACHTEN BINNEN DE OVERHEIDSSECTOR
B53: CE-6INC | C53: KAPITAALOVERDRACHTEN BINNEN DE OVERHEIDSSECTOR | D53: TRANSFERTS EN CAPITAL À L'INTÉRIEUR DU SECTEUR DES ADMINISTRATIONS PUBLIQUES | E53: KAPITAALOVERDRACHTEN BINNEN DE OVERHEIDSSECTOR
B54: CE-7EXP | C54: INVESTERINGEN | D54: INVESTISSEMENTS | E54: INVESTERINGEN
B55: CE-7INC | C55: DESINVESTERINGEN | D55: DÉSINVESTISSEMENTS | E55: DESINVESTERINGEN
B56: CE-8EXP | C56: KREDIETVERLENINGEN EN DEELNEMINGEN; ANDERE FINANCIËLE PRODUCTEN | D56: OCTROIS DE CRÉDITS ET PARTICIPATIONS; AUTRES PRODUITS FINANCIERS | E56: KREDIETVERLENINGEN EN DEELNEMINGEN; ANDERE FINANCIËLE PRODUCTEN
B57: CE-8INC | C57: KREDIETAFLOSSINGEN EN VEREFFENINGEN VAN DEELNEMINGEN; ANDERE FINANCIËLE PRODUCTEN | D57: REMBOURSEMENTS DE CRÉDITS ET LIQUIDATIONS DE PARTICIPATIONS; AUTRES PRODUITS FINANCIERS | E57: KREDIETAFLOSSINGEN EN VEREFFENINGEN VAN DEELNEMINGEN; ANDERE FINANCIËLE PRODUCTEN
B58: CE-9EXP | C58: OVERHEIDSSCHULD | D58: DETTE PUBLIQUE | E58: OVERHEIDSSCHULD
B59: CE-9INC | C59: OVERHEIDSSCHULD | D59: DETTE PUBLIQUE | E59: OVERHEIDSSCHULD
B60: CE-01 | C60: Uitgaven te verdelen over de hoofdgroepen 1 tot en met 9 | D60: Dépenses à ventiler entre les groupes principaux 1 à 9 | E60: Uitgaven te verdelen over de hoofdgroepen 1 tot en met 9
B61: CE-02 | C61: Niet gebruikt | D61: Non utilisé | E61: Niet gebruikt
B62: CE-04 | C62: Annuïteiten met betrekking tot financiële leasings | D62: Annuités en matière de leasings financiers | E62: Annuïteiten met betrekking tot financiële leasings
B63: CE-06 | C63: Ontvangsten te verdelen over de hoofdgroepen 1 tot en met 9 | D63: Recettes à ventiler entre les groupes principaux 1 à 9 | E63: Ontvangsten te verdelen over de hoofdgroepen 1 tot en met 9
B64: CE-07 | C64: Niet gebruikt | D64: Non utilisé | E64: Niet gebruikt
B65: CE-11 | C65: Lonen en sociale lasten | D65: Salaires et charges sociales | E65: Lonen en sociale lasten
B66: CE-12 | C66: Aankoop van niet-duurzame goederen en diensten | D66: Achats de biens non durables et de services | E66: Aankoop van niet-duurzame goederen en diensten
B67: CE-13 | C67: Aankoop van duurzame militaire goederen die niet behoren tot de bruto-investeringen in vaste activa (oorlogswapens en gelijkaardige) | D67: Achats de biens militaires durables ne participant pas à la formation brute de capital fixe (armes de guerre et assimilées) | E67: Aankoop van duurzame militaire goederen die niet behoren tot de bruto-investeringen in vaste activa (oorlogswapens en gelijkaardige)
B68: CE-14 | C68: Herstel en niet-waardevermeerderend onderhoud van wegen- en waterbouwkundige werken | D68: Réparations et entretien d'ouvrages en matière de travaux routiers et hydrauliques n'augmentant pas la valeur | E68: Herstel en niet-waardevermeerderend onderhoud van wegen- en waterbouwkundige werken
B69: CE-16 | C69: Verkoop van niet-duurzame goederen en diensten | D69: Ventes de biens non durables et de services | E69: Verkoop van niet-duurzame goederen en diensten
B70: CE-17 | C70: Verkoop van duurzame militaire goederen die niet behoren tot de bruto-investeringen in vaste activa (oorlogswapens en gelijkaardige) | D70: Ventes de biens militaires durables ne participant pas à la formation brute de capital fixe (armes de guerre et assimilées) | E70: Verkoop van duurzame militaire goederen die niet behoren tot de bruto-investeringen in vaste activa (oorlogswapens en gelijkaardige)
B71: CE-18 | C71: Opbrengsten afkomstig van wegen- en waterbouwkundige werken | D71: Recettes en matière de travaux routiers et hydrauliques | E71: Opbrengsten afkomstig van wegen- en waterbouwkundige werken
B72: CE-19 | C72: Productie van investeringsgoederen in eigen beheer | D72: Production de biens d'investissement en régie propre | E72: Productie van investeringsgoederen in eigen beheer
B73: CE-21 | C73: Interestlasten | D73: Charges d'intérêt | E73: Interestlasten
B74: CE-22 | C74: Niet gebruikt | D74: Non utilisé | E74: Niet gebruikt
B75: CE-24 | C75: Huurgelden van gronden | D75: Locations de terres | E75: Huurgelden van gronden
B76: CE-25 | C76: Uitbetaalde dividenden | D76: Dividendes distribués | E76: Uitbetaalde dividenden
B77: CE-26 | C77: Rente van overheidsvorderingen | D77: Intérêts de créances des pouvoirs publics | E77: Rente van overheidsvorderingen
B78: CE-27 | C78: Exploitatiewinsten van overheidsbedrijven | D78: Bénéfices d'exploitation d'entreprises publiques | E78: Exploitatiewinsten van overheidsbedrijven
B79: CE-28 | C79: Overige opbrengsten uit vermogen | D79: Autres produits du patrimoine | E79: Overige opbrengsten uit vermogen
B80: CE-31 | C80: Exploitatiesubsidies | D80: Subventions d'exploitation | E80: Exploitatiesubsidies
B81: CE-32 | C81: Inkomensoverdrachten, die geen exploitatiesubsidies zijn, aan bedrijven en financiële instellingen | D81: Transferts de revenus, autres que des subventions d'exploitation, aux entreprises et institutions financières | E81: Inkomensoverdrachten, die geen exploitatiesubsidies zijn, aan bedrijven en financiële instellingen
B82: CE-33 | C82: Inkomensoverdrachten aan vzw's ten behoeve van de gezinnen | D82: Transferts de revenus aux ASBL au service des ménages | E82: Inkomensoverdrachten aan vzw's ten behoeve van de gezinnen
B83: CE-34 | C83: Inkomensoverdrachten aan gezinnen | D83: Transferts de revenus aux ménages | E83: Inkomensoverdrachten aan gezinnen
B84: CE-35 | C84: Inkomensoverdrachten aan het buitenland | D84: Transferts de revenus à l'étranger | E84: Inkomensoverdrachten aan het buitenland
B85: CE-36 | C85: Indirecte belastingen en heffingen | D85: Impôts indirects et taxes | E85: Indirecte belastingen en heffingen
B86: CE-37 | C86: Directe belastingen en bijdragen gestort aan de socialezekerheidsinstellingen | D86: Impôts directs et cotisations versées aux administrations de sécurité sociale | E86: Directe belastingen en bijdragen gestort aan de socialezekerheidsinstellingen
B87: CE-38 | C87: Overige inkomensoverdrachten van bedrijven, financiële instellingen, vzw's ten behoeve van de gezinnen en van gezinnen | D87: Autres transferts de revenus des entreprises, institutions financières, ASBL au service des ménages et des ménages et subsides reçus | E87: Overige inkomensoverdrachten van bedrijven, financiële instellingen, vzw's ten behoeve van de gezinnen en van gezinnen
B88: CE-39 | C88: Inkomensoverdrachten van het buitenland | D88: Transferts de revenus de l'étranger | E88: Inkomensoverdrachten van het buitenland
B89: CE-41 | C89: Inkomensoverdrachten binnen een institutionele groep | D89: Transferts de revenus à l'intérieur d'un groupe institutionnel | E89: Inkomensoverdrachten binnen een institutionele groep
B90: CE-42 | C90: =OFFSET(C90,0,rngLanguageIndex) -> Inkomensoverdrachten aan de socialezekerheidsinstellingen | D90: Transferts de revenus aux administrations de sécurité sociale | E90: Inkomensoverdrachten aan de socialezekerheidsinstellingen
B91: CE-43 | C91: Inkomensoverdrachten aan lokale overheden | D91: Transferts de revenus aux administrations publiques locales | E91: Inkomensoverdrachten aan lokale overheden
B92: CE-44 | C92: Inkomensoverdrachten aan het gesubsidieerd autonoom onderwijs | D92: Transferts de revenus à l'enseignement autonome subsidié | E92: Inkomensoverdrachten aan het gesubsidieerd autonoom onderwijs
B93: CE-45 | C93: Inkomensoverdrachten aan andere institutionele groepen (federale overheid, gemeenschappen, gewesten, gemeenschapscommissies) | D93: Transferts de revenus à d'autres groupes institutionnels (pouvoir fédéral, communautés, régions, commissions communautaires) | E93: Inkomensoverdrachten aan andere institutionele groepen (federale overheid, gemeenschappen, gewesten, gemeenschapscommissies)
B94: CE-46 | C94: Inkomensoverdrachten binnen een institutionele groep | D94: Transferts de revenus à l'intérieur d'un groupe institutionnel | E94: Inkomensoverdrachten binnen een institutionele groep
B95: CE-47 | C95: Inkomensoverdrachten van de socialezekerheidsinstellingen | D95: Transferts de revenus des administrations de sécurité sociale | E95: Inkomensoverdrachten van de socialezekerheidsinstellingen
B96: CE-48 | C96: Inkomensoverdrachten van lokale overheden | D96: Transferts de revenus des administrations publiques locales | E96: Inkomensoverdrachten van lokale overheden
B97: CE-49 | C97: Inkomensoverdrachten van andere institutionele groepen (federale overheid, gemeenschappen, gewesten, gemeenschapscommissies) | D97: Transferts de revenus d'autres groupes institutionnels (pouvoir fédéral, communautés, régions, commissions communautaires) | E97: Inkomensoverdrachten van andere institutionele groepen (federale overheid, gemeenschappen, gewesten, gemeenschapscommissies)
B98: CE-51 | C98: Kapitaaloverdrachten aan bedrijven en financiële instellingen | D98: Transferts en capital aux entreprises et institutions financières | E98: Kapitaaloverdrachten aan bedrijven en financiële instellingen
B99: CE-52 | C99: Kapitaaloverdrachten aan vzw's ten behoeve van de gezinnen | D99: Transferts en capital aux ASBL au service des ménages | E99: Kapitaaloverdrachten aan vzw's ten behoeve van de gezinnen
B100: CE-53 | C100: Kapitaaloverdrachten aan gezinnen | D100: Transferts en capital aux ménages | E100: Kapitaaloverdrachten aan gezinnen
B101: CE-54 | C101: Kapitaaloverdrachten aan het buitenland | D101: Transferts en capital à l'étranger | E101: Kapitaaloverdrachten aan het buitenland
B102: CE-56 | C102: Vermogensheffingen | D102: Impôts en capital | E102: Vermogensheffingen
B103: CE-57 | C103: Kapitaaloverdrachten van bedrijven en financiële instellingen (exclusief vermogensheffingen) | D103: Transferts en capital des entreprises et institutions financières (à l'exclusion des impôts en capital) | E103: Kapitaaloverdrachten van bedrijven en financiële instellingen (exclusief vermogensheffingen)
B104: CE-58 | C104: Kapitaaloverdrachten van vzw's ten beheove van de gezinnen en van gezinnen (exclusief vermogensheffingen) | D104: Transferts en capital des ASBL au service des ménages et des ménages (à l'exclusion des impôts en capital) | E104: Kapitaaloverdrachten van vzw's ten beheove van de gezinnen en van gezinnen (exclusief vermogensheffingen)
B105: CE-59 | C105: Kapitaaloverdrachten van het buitenland | D105: Transferts en capital de l'étranger | E105: Kapitaaloverdrachten van het buitenland
B106: CE-61 | C106: Kapitaaloverdrachten binnen een institutionele groep | D106: Transferts en capital à l'intérieur d'un groupe institutionnel | E106: Kapitaaloverdrachten binnen een institutionele groep
B107: CE-62 | C107: Kapitaaloverdrachten aan de socialezekerheidsinstellingen | D107: Transferts en capital aux administrations de sécurité sociale | E107: Kapitaaloverdrachten aan de socialezekerheidsinstellingen
B108: CE-63 | C108: Kapitaaloverdrachten aan lokale overheden | D108: Transferts en capital aux administrations publiques locales | E108: Kapitaaloverdrachten aan lokale overheden
B109: CE-64 | C109: Kapitaaloverdrachten aan het gesubsidieerd autonoom onderwijs | D109: Transferts en capital à l'enseignement autonome subsidié | E109: Kapitaaloverdrachten aan het gesubsidieerd autonoom onderwijs
B110: CE-65 | C110: Kapitaaloverdrachten aan andere institutionele groepen (federale overheid, gemeenschappen, gewesten, gemeenschapscommissies) | D110: Transferts en capital à d'autres groupes institutionnels (pouvoir fédéral, communautés, régions, commissions communautaires) | E110: Kapitaaloverdrachten aan andere institutionele groepen (federale overheid, gemeenschappen, gewesten, gemeenschapscommissies)
B111: CE-66 | C111: Kapitaaloverdrachten binnen een institutionele groep | D111: Transferts en capital à l'intérieur d'un groupe institutionnel | E111: Kapitaaloverdrachten binnen een institutionele groep
B112: CE-67 | C112: Kapitaaloverdrachten van de socialezekerheidsinstellingen | D112: Transferts en capital des administrations de sécurité sociale | E112: Kapitaaloverdrachten van de socialezekerheidsinstellingen
B113: CE-68 | C113: Kapitaaloverdrachten van lokale overheden | D113: Transferts en capital des administrations publiques locales | E113: Kapitaaloverdrachten van lokale overheden
B114: CE-69 | C114: Kapitaaloverdrachten van andere institutionele groepen (federale overheid, gemeenschappen en gewesten, gemeenschapscommissies) | D114: Transferts en capital d'autres groupes institutionnels (pouvoir fédéral, communautés, régions, commissions communautaires) | E114: Kapitaaloverdrachten van andere institutionele groepen (federale overheid, gemeenschappen en gewesten, gemeenschapscommissies)
B115: CE-71 | C115: Aankoop van gronden en gebouwen in het binnenland | D115: Achats de terrains et de bâtiments dans le pays | E115: Aankoop van gronden en gebouwen in het binnenland
B116: CE-72 | C116: Nieuwbouw van gebouwen | D116: Constructions de bâtiments | E116: Nieuwbouw van gebouwen
B117: CE-73 | C117: Wegen- en waterbouwkundige werken | D117: Travaux routiers et hydrauliques | E117: Wegen- en waterbouwkundige werken
B118: CE-74 | C118: Verwerving van overige investeringsgoederen, waaronder immateriële goederen | D118: Acquisitions d'autres biens d'investissement, y compris les biens incorporels | E118: Verwerving van overige investeringsgoederen, waaronder immateriële goederen
B119: CE-75 | C119: Voorraadtoename | D119: Constitution de stocks | E119: Voorraadtoename
B120: CE-76 | C120: Verkoop van onroerende goederen in het binnenland | D120: Ventes de biens immobiliers dans le pays | E120: Verkoop van onroerende goederen in het binnenland
B121: CE-77 | C121: Verkoop van overige investeringsgoederen, waaronder immateriële goederen | D121: Ventes d'autres biens d'investissement, y compris les biens incorporels | E121: Verkoop van overige investeringsgoederen, waaronder immateriële goederen
B122: CE-78 | C122: Voorraadverminderingen | D122: Réduction des stocks | E122: Voorraadverminderingen
B123: CE-81 | C123: Kredietverleningen aan en deelnemingen in bedrijven en financiële instellingen en andere financiële producten | D123: Octrois de crédits aux et participations dans les entreprises et institutions financières et autres produits financiers | E123: Kredietverleningen aan en deelnemingen in bedrijven en financiële instellingen en andere financiële producten
B124: CE-82 | C124: Kredietverleningen aan vzw's ten behoeve van de gezinnen | D124: Octrois de crédits aux ASBL au service des ménages | E124: Kredietverleningen aan vzw's ten behoeve van de gezinnen
B125: CE-83 | C125: Kredietverleningen aan gezinnen | D125: Octrois de crédits aux ménages | E125: Kredietverleningen aan gezinnen
B126: CE-84 | C126: Kredietverleningen aan en deelnemingen in het buitenland | D126: Octrois de crédits et participations à l'étranger | E126: Kredietverleningen aan en deelnemingen in het buitenland
B127: CE-85 | C127: Kredietverleningen binnen de overheidssector | D127: Octrois de crédits et prises de participations à l'intérieur du secteur des administrations publiques | E127: Kredietverleningen binnen de overheidssector
B128: CE-86 | C128: Kredietaflossingen door en vereffeningen van deelnemingen in bedrijven en financiële instellingen en andere financiële producten | D128: Remboursements de crédits par et liquidations de participations dans les entreprises et institutions financières et autres produits financiers | E128: Kredietaflossingen door en vereffeningen van deelnemingen in bedrijven en financiële instellingen en andere financiële producten
B129: CE-87 | C129: Kredietaflossingen door vzw's ten behoeve van de gezinnen en door gezinnen | D129: Remboursements de crédits par les ASBL au service des ménages et par les ménages | E129: Kredietaflossingen door vzw's ten behoeve van de gezinnen en door gezinnen
B130: CE-88 | C130: Kredietaflossingen door en vereffeningen van deelnemingen in het buitenland | D130: Remboursements de crédits par et liquidations de participations à l'étranger | E130: Kredietaflossingen door en vereffeningen van deelnemingen in het buitenland
B131: CE-89 | C131: Kredietaflossingen en vereffeningen van deelnemingen binnen de overheidssector | D131: Remboursements de crédits et liquidations de participations à l'intérieur du secteur des administrations publiques | E131: Kredietaflossingen en vereffeningen van deelnemingen binnen de overheidssector
B132: CE-91 | C132: Aflossingen van leningen met een looptijd van meer dan één jaar | D132: Remboursements d'emprunts émis à plus d'un an | E132: Aflossingen van leningen met een looptijd van meer dan één jaar
B133: CE-92 | C133: Ontmuntingen | D133: Démonétisations | E133: Ontmuntingen
B134: CE-93 | C134: Verlaging van het eigen vermogen | D134: Réduction de fonds propres | E134: Verlaging van het eigen vermogen
B135: CE-94 | C135: Terugbetaling van voorschotten | D135: Remboursements d'avances | E135: Terugbetaling van voorschotten
B136: CE-96 | C136: Opbrengst van leningen met een looptijd van meer dan één jaar | D136: Produits des emprunts émis à plus d'un an | E136: Opbrengst van leningen met een looptijd van meer dan één jaar
B137: CE-97 | C137: Aanmuntingen | D137: Monétisations | E137: Aanmuntingen
B138: CE-98 | C138: Verhoging van het eigen vermogen | D138: Apport de fonds propres | E138: Verhoging van het eigen vermogen
B139: CE-99 | C139: Opbrengst van voorschotten | D139: Produit des avances | E139: Opbrengst van voorschotten
B140: CE-0100 | C140: Uitgaven te verdelen over de hoofdgroepen 1 tot en met 9 | D140: Dépenses à ventiler entre les groupes principaux 1 à 9 | E140: Uitgaven te verdelen over de hoofdgroepen 1 tot en met 9
B141: CE-0200 | C141: Niet gebruikt | D141: Non utilisé | E141: Niet gebruikt
B142: CE-0400 | C142: Annuïteiten met betrekking tot financiële leasings | D142: Annuités en matière de leasings financiers | E142: Annuïteiten met betrekking tot financiële leasings
B143: CE-0600 | C143: Ontvangsten te verdelen over de hoofdgroepen 1 tot en met 9 | D143: Recettes à ventiler entre les groupes principaux 1 à 9 | E143: Ontvangsten te verdelen over de hoofdgroepen 1 tot en met 9
B144: CE-0700 | C144: Niet gebruikt | D144: Non utilisé | E144: Niet gebruikt
B145: CE-1111 | C145: Bezoldiging volgens weddeschalen | D145: Rémunération suivant les barèmes | E145: Bezoldiging volgens weddeschalen
B146: CE-1112 | C146: Overige bezoldigingselementen | D146: Autres éléments de la rémunération | E146: Overige bezoldigingselementen
B147: CE-1120 | C147: Sociale bijdragen ten laste van de werkgevers, afgedragen aan instellingen of fondsen | D147: Cotisations sociales à charge des employeurs, versées à des institutions ou fonds | E147: Sociale bijdragen ten laste van de werkgevers, afgedragen aan instellingen of fondsen
B148: CE-1131 | C148: Directe toelagen | D148: Allocations directes | E148: Directe toelagen
B149: CE-1132 | C149: Doorbetaling van loon | D149: Paiement maintenu du salaire | E149: Doorbetaling van loon
B150: CE-1133 | C150: Pensioenen van het overheidspersoneel | D150: Pensions du personnel des administrations publiques | E150: Pensioenen van het overheidspersoneel
B151: CE-1140 | C151: Lonen in natura | D151: Salaire en nature | E151: Lonen in natura
B152: CE-1211 | C152: Algemene werkingskosten vergoed aan andere sectoren dan de overheidssector | D152: Frais généraux de fonctionnement payés à des secteurs autres que le secteur des administrations publiques | E152: Algemene werkingskosten vergoed aan andere sectoren dan de overheidssector
B153: CE-1212 | C153: Huurgelden van gebouwen vergoed aan andere sectoren dan de overheidssector | D153: Locations de bâtiments payées à des secteurs autres que le secteur des administrations publiques | E153: Huurgelden van gebouwen vergoed aan andere sectoren dan de overheidssector
B154: CE-1221 | C154: Algemene werkingskosten vergoed binnen de overheidssector | D154: Frais généraux de fonctionnement payés à l'intérieur du secteur des administrations publiques | E154: Algemene werkingskosten vergoed binnen de overheidssector
B155: CE-1222 | C155: Huurgelden van gebouwen vergoed binnen de overheidssector | D155: Locations de bâtiments payées à l'intérieur du secteur des administrations publiques | E155: Huurgelden van gebouwen vergoed binnen de overheidssector
B156: CE-1250 | C156: =OFFSET(C156,0,rngLanguageIndex) -> Belastingen betaald aan subsectoren van de overheidssector | D156: Impôts payés à des sous-secteurs du secteur des administrations publiques | E156: Belastingen betaald aan subsectoren van de overheidssector
B157: CE-1300 | C157: Aankoop van duurzame militaire goederen die niet behoren tot de bruto-investeringen in vaste activa (oorlogswapens en gelijkaardige) | D157: Achats de biens militaires durables ne participant pas à la formation brute de capital fixe (armes de guerre et assimilées) | E157: Aankoop van duurzame militaire goederen die niet behoren tot de bruto-investeringen in vaste activa (oorlogswapens en gelijkaardige)
B158: CE-1410 | C158: Kosten vergoed aan andere sectoren dan de overheidssector | D158: Frais payés à des secteurs autres que le secteur des administrations publiques | E158: Kosten vergoed aan andere sectoren dan de overheidssector
B159: CE-1420 | C159: Kosten vergoed binnen de overheidssector | D159: Frais payés à l'intérieur du secteur des administrations publiques | E159: Kosten vergoed binnen de overheidssector
B160: CE-1611 | C160: Verkoop van niet-duurzame goederen en diensten aan bedrijven | D160: Ventes de biens non durables et de services aux entreprises | E160: Verkoop van niet-duurzame goederen en diensten aan bedrijven
B161: CE-1612 | C161: Verkoop van niet-duurzame goederen en diensten aan vzw's ten behoeve van de gezinnen en aan gezinnen | D161: Ventes de biens non durables et de services aux ASBL au service des ménages et aux ménages | E161: Verkoop van niet-duurzame goederen en diensten aan vzw's ten behoeve van de gezinnen en aan gezinnen
B162: CE-1613 | C162: Verkoop van niet-duurzame goederen en diensten aan het buitenland | D162: Ventes de biens non durables et de services à l'étranger | E162: Verkoop van niet-duurzame goederen en diensten aan het buitenland
B163: CE-1620 | C163: Verkoop van niet-duurzame goederen en diensten binnen de overheidssector | D163: Ventes de biens non durables et de services à l'intérieur du secteur des administrations publiques | E163: Verkoop van niet-duurzame goederen en diensten binnen de overheidssector
B164: CE-1700 | C164: Verkoop van duurzame militaire goederen die niet behoren tot de bruto-investeringen in vaste activa (oorlogswapens en gelijkaardige) | D164: Ventes de biens militaires durables ne participant pas à la formation brute de capital fixe (armes de guerre et assimilées) | E164: Verkoop van duurzame militaire goederen die niet behoren tot de bruto-investeringen in vaste activa (oorlogswapens en gelijkaardige)
B165: CE-1810 | C165: Ontvangsten van andere sectoren dan de overheidssector | D165: Recettes d'autres secteurs que le secteur des administrations publiques | E165: Ontvangsten van andere sectoren dan de overheidssector
B166: CE-1820 | C166: Ontvangsten binnen de overheidssector | D166: Recettes à l'intérieur du secteur des administrations publiques | E166: Ontvangsten binnen de overheidssector
B167: CE-1900 | C167: Productie van investeringsgoederen in eigen beheer | D167: Production de biens d'investissement en régie propre | E167: Productie van investeringsgoederen in eigen beheer
B168: CE-2110 | C168: Interestlasten op overheidsschuld in euro | D168: Charges d'intérêt de la dette publique en euros | E168: Interestlasten op overheidsschuld in euro
B169: CE-2120 | C169: Interestlasten op overheidsschuld in vreemde valuta | D169: Charges d'intérêt de la dette publique en monnaies étrangères | E169: Interestlasten op overheidsschuld in vreemde valuta
B170: CE-2130 | C170: Interestlasten op schuld binnen de overheidssector | D170: Charges d'intérêt de la dette à l'intérieur du secteur des administrations publiques | E170: Interestlasten op schuld binnen de overheidssector
B171: CE-2140 | C171: Rente op commerciële schuld | D171: Intérêts de la dette commerciale | E171: Rente op commerciële schuld
B172: CE-2150 | C172: Rente op financiële leasings | D172: Intérêts sur leasings financiers | E172: Rente op financiële leasings
B173: CE-2160 | C173: Andere rente | D173: Autres intérêts | E173: Andere rente
B174: CE-2200 | C174: Niet gebruikt | D174: Non utilisé | E174: Niet gebruikt
B175: CE-2410 | C175: Betalingen aan andere sectoren dan de overheidssector | D175: Paiements à d'autres secteurs que le secteur des administrations publiques | E175: Betalingen aan andere sectoren dan de overheidssector
B176: CE-2420 | C176: Betalingen binnen de overheidssector | D176: Paiements à l'intérieur du secteur des administrations publiques | E176: Betalingen binnen de overheidssector
B177: CE-2500 | C177: Uitbetaalde dividenden | D177: Dividendes distribués | E177: Uitbetaalde dividenden
B178: CE-2610 | C178: Rente-ontvangsten van andere sectoren dan de overheidssector | D178: Perception d'intérêts d'autres secteurs que le secteur des administrations publiques | E178: Rente-ontvangsten van andere sectoren dan de overheidssector
B179: CE-2620 | C179: Rente-ontvangsten binnen de overheidssector | D179: Perception d'intérêts à l'intérieur du secteur des administrations publiques | E179: Rente-ontvangsten binnen de overheidssector
B180: CE-2710 | C180: Niet-financiële overheidsbedrijven met rechtspersoonlijkheid | D180: Entreprises publiques non financières ayant la personnalité juridique | E180: Niet-financiële overheidsbedrijven met rechtspersoonlijkheid
B181: CE-2720 | C181: Niet-financiële overheidsbedrijven zonder rechtspersoonlijkheid | D181: Entreprises publiques non financières sans personnalité juridique | E181: Niet-financiële overheidsbedrijven zonder rechtspersoonlijkheid
B182: CE-2730 | C182: Overheidskredietinstellingen met rechtspersoonlijkheid | D182: Institutions publiques de crédit ayant la personnalité juridique | E182: Overheidskredietinstellingen met rechtspersoonlijkheid
B183: CE-2740 | C183: Overheidskredietinstellingen zonder rechtspersoonlijkheid | D183: Institutions publiques de crédit sans personnalité juridique | E183: Overheidskredietinstellingen zonder rechtspersoonlijkheid
B184: CE-2750 | C184: Overheidsverzekeringsmaatschappijen | D184: Sociétés publiques d'assurance | E184: Overheidsverzekeringsmaatschappijen
B185: CE-2810 | C185: Concessies | D185: Concessions | E185: Concessies
B186: CE-2820 | C186: Ontvangen dividenden | D186: Dividendes reçus | E186: Ontvangen dividenden
B187: CE-2830 | C187: Huurgelden van gronden | D187: Locations de terres | E187: Huurgelden van gronden
B188: CE-3111 | C188: Rentesubsidies aan overheidsbedrijven | D188: Subventions réduisant les intérêts aux entreprises publiques | E188: Rentesubsidies aan overheidsbedrijven
B189: CE-3112 | C189: Rentesubsidies aan andere bedrijven | D189: Subventions réduisant les intérêts aux autres entreprises | E189: Rentesubsidies aan andere bedrijven
B190: CE-3121 | C190: Prijssubsidies aan overheidsbedrijven | D190: Subventions en matière de prix aux entreprises publiques | E190: Prijssubsidies aan overheidsbedrijven
B191: CE-3122 | C191: Overige exploitatiesubsidies aan overheidsbedrijven | D191: Autres subventions d'exploitation aux entreprises publiques | E191: Overige exploitatiesubsidies aan overheidsbedrijven
B192: CE-3131 | C192: Prijssubsidies aan andere producenten dan overheidsbedrijven | D192: Subventions en matière de prix à des producteurs autres que les entreprises publiques | E192: Prijssubsidies aan andere producenten dan overheidsbedrijven
B193: CE-3132 | C193: Overige exploitatiesubsidies aan andere producenten dan overheidsbedrijven | D193: Autres subventions d'exploitation à des producteurs autres que les entreprises publiques | E193: Overige exploitatiesubsidies aan andere producenten dan overheidsbedrijven
B194: CE-3140 | C194: Vermindering van werkgeversbijdragen voor bepaalde doelgroepen | D194: Réduction de cotisations patronales ciblées | E194: Vermindering van werkgeversbijdragen voor bepaalde doelgroepen
B195: CE-3200 | C195: Inkomensoverdrachten, die geen exploitatiesubsidies zijn, aan bedrijven en financiële instellingen | D195: Transferts de revenus, autres que des subventions d'exploitation, aux entreprises et institutions financières | E195: Inkomensoverdrachten, die geen exploitatiesubsidies zijn, aan bedrijven en financiële instellingen
B196: CE-3300 | C196: Inkomensoverdrachten aan vzw's ten behoeve van de gezinnen | D196: Transferts de revenus aux ASBL au service des ménages | E196: Inkomensoverdrachten aan vzw's ten behoeve van de gezinnen
B197: CE-3410 | C197: Weduwen- en wezenpensioenen van het overheidspersoneel | D197: Pensions de veuves et orphelins du personnel des administrations publiques | E197: Weduwen- en wezenpensioenen van het overheidspersoneel
B198: CE-3420 | C198: Oorlogspensioenen | D198: Pensions de guerre | E198: Oorlogspensioenen
B199: CE-3431 | C199: Overige sociale uitkeringen in geld | D199: Autres prestations sociales en espèces | E199: Overige sociale uitkeringen in geld
B200: CE-3432 | C200: Overige sociale uitkeringen in natura | D200: Autres prestations sociales en nature | E200: Overige sociale uitkeringen in natura
... 711 more rows

Sheet Warning
B2: Pour accéder aux données, veuillez activer les macros et le contenu de ce fichier. Om toegang te hebben tot de gegevens, gelieve de macros en de inhoud van dit bestand in te schakelen. To get access to the data, please activate the macros and the content of this file.

Sheet Read me (hidden)
B2: Regroupements économiques et fonctionnels
B3: Base documentaire générale
B4: Economische en functionele hergroeperingen
B5: Algemene Gegevensbank
B7: La Base documentaire générale (BDG), créée par l'Accord de Coopération du 1er octobre 1991 et associant le pouvoir fédéral, les régions, les communautés et les commissions communautaires, a pour mission de gérer et veiller à l'uniformité des statistiques relatives aux finances publiques de ces entités. Elle publie notamment les regroupements économiques et fonctionnels de ces entités et est responsable de la mise à jour des classifications économique et fonctionnelle sur base desquelles ces regroupements sont réalisés. Son secrétariat est assuré par la Direction Générale Budget et Évaluation de la Politique (DG BEP) du SPF Stratégie et Appui.
B9: Le regroupement économique est une synthèse, selon leur nature économique, des opérations budgétaires des entités fédérale et fédérées ainsi que des unités publiques appartenant au périmètre de consolidation de ces entités selon la liste des unités du secteur public publiée par l’Institut des Comptes nationaux (ICN). Ce regroupement sert de base à l'ICN pour l'établissement des comptes nationaux de la Belgique. Le regroupement fonctionnel est une synthèse, selon leur affectation fonctionnelle, des dépenses de ces mêmes entités selon le même périmètre de consolidation.
B11: Il y a quatre regroupements économiques par année budgétaire : le budget initial, la clôture provisoire, la clôture et les réalisations. Quant aux regroupements fonctionnels, il y en a deux : la clôture et les réalisations. Ce fichier contient une base des données de tous ces regroupements depuis 2016. Il contient trois onglets : les onglets Eco (EXP) et Eco (INC) affichent respectivement les dépenses et les recettes du regroupement économique, tandis que l'onglet Fct (EXP) contient les dépenses du regroupement fonctionnel.
B13: Pour choisir le regroupement à consulter, allez dans l'onglet Parameters, sélectionnez un cycle et une année budgétaire puis cliquez sur le bouton Refresh.
B14: De Algemene Gegevensbank (AGB), opgericht bij het Samenwerkingsakkoord van 1 oktober 1991 en betrekking hebbend op de federale overheid, de Gewesten, de Gemeenschappen en de Gemeenschapscommissies, heeft als taak de statistieken in verband met de overheidsfinanciën van deze overheden te beheren en toe te zien op de eenvormigheid ervan. Ze publiceert onder andere de economische en functionele hergroeperingen van deze overheden en is verantwoordelijk voor het bijwerken van de economische en functionele classificaties, op basis waarvan deze hergroeperingen worden opgesteld. Het secretariaat van de AGB wordt verzekerd door het Directoraat-Generaal Begroting en Beleidsevaluatie (DG BB) van de FOD Beleid en Ondersteuning.
B16: De economische hergroepering is een synthese, volgens hun economische aard, van de begrotingsverrichtingen van de federale overheid en de deelstaten, alsook van de openbare eenheden die behoren tot de consolidatieperimeter van deze overheden volgens de lijst van de eenheden van de overheidssector gepubliceerd door het Instituut voor de Nationale Rekeningen (INR).De economische hergroepering dient voor het INR als basis voor de opmaak van de nationale rekeningen van België. De functionele hergroepering is een synthese, volgens hun functionele toewijzing, van de uitgaven van deze overheden volgens dezelfde consolidatieperimeter.
B18: Er worden per begrotingsjaar vier economische hergroeperingen opgemaakt: de initiële begroting, de voorlopige afsluiting, de afsluiting en de verwezenlijkingen. Wat betreft de functionele hergroeperingen zijn er twee: de afsluiting en de verwezenlijkingen. Dit bestand bevat een databank van alle hergroeperingen sinds 2016. Het bevat drie tabbladen: de tabbladen Eco (EXP) en Eco (INC) geven respectievelijk de uitgaven en de ontvangsten van de economische hergroepering weer, terwijl het tabblad Fct (EXP) de uitgaven van de functionele hergroepering bevat.
B20: Om een hergroepering te kiezen, gaat u in de ribbon Parameters, selecteert u een cyclus en een begrotingsjaar en klikt u op de knop Refresh.

Sheet Eco (EXP) (hidden)
D2: =VLOOKUP("d-001",rngTranslations,2,FALSE)&" III.3 - "&UPPER(VLOOKUP("d-002",rngTranslations,2,FALSE)&" - "&VLOOKUP(rngInstanceID,ListInstances,rngLanguageIndex+1,FALSE)&" - "&VLOOKUP("d-003",rngTranslations,2,FALSE)) -> Tabel III.3 - ECONOMISCHE HERGROEPERING - AFSLUITING 2021 - UITGAVEN
D3: =VLOOKUP("d-005",rngTranslations,2,FALSE) -> (duizend EUR)
C5: =VLOOKUP("d-007",rngTranslations,2,FALSE) -> Eco. code | D5: =VLOOKUP("d-006",rngTranslations,2,FALSE) -> Libellé | E5: =VLOOKUP(E6,Translations!$B:$C,2,FALSE) -> Federale overheid | F5: =VLOOKUP(F6,Translations!$B:$C,2,FALSE) -> Vlaamse Gemeenschap | G5: =VLOOKUP(G6,Translations!$B:$C,2,FALSE) -> Franse Gemeenschap | H5: =VLOOKUP(H6,Translations!$B:$C,2,FALSE) -> Duitstalige Gemeenschap | I5: =VLOOKUP(I6,Translations!$B:$C,2,FALSE) -> Waals Gewest | J5: =VLOOKUP(J6,Translations!$B:$C,2,FALSE) -> Brussels Hoofdstedelijk Gewest | K5: =VLOOKUP(K6,Translations!$B:$C,2,FALSE) -> Franse Gemeenschaps- commissie | L5: =VLOOKUP(L6,Translations!$B:$C,2,FALSE) -> Vlaamse Gemeenschaps- commissie | M5: =VLOOKUP(M6,Translations!$B:$C,2,FALSE) -> Gemeenschappelijke Gemeenschaps- commissie | N5: =VLOOKUP("d-008",rngTranslations,2,FALSE) -> Totaal
D6: EXP | E6: CS | F6: FlC | G6: FrC | H6: GC | I6: WR | J6: BCR | K6: FrCC | L6: FlCC | M6: CCC
B8: =IF(LEN(C8)>=4,"H_"&LEFT(C8,2),IF(LEN(C8)=2,"H_"&LEFT(C8,1),IF(LEN(C8)=1,"H_",""))) -> H_ | C8: 0 | D8: =IF(LEN($C8)>=2,VLOOKUP("CE-"&$C8,rngTranslationsCE,2,FALSE),IF(LEN($C8)=1,VLOOKUP("CE-"&$C8&$D$6,rngTranslationsCE,2,FALSE),"")) -> NIET-VERDEELDE UITGAVEN | E8: =_xlfn.IFNA(IF(LEN($C8)>=4,VLOOKUP(E$6&"-"&$C8,rngDataP3aEXP,rngVLK3aEXP,FALSE),SUMIF($B:$B,"H_"&$C8,E:E)),0) -> 0 | F8: 1097.464422 | G8: 33373 | H8: 0 | I8: 26229.94876 | J8: 0 | K8: 12432 | L8: 0 | M8: 12 | N8: =IF(D8<>"",SUM($E8:$M8),"") -> 73144.41318
B9: H_0 | C9: 01 | D9: Uitgaven te verdelen over de hoofdgroepen 1 tot en met 9 | E9: 0 | F9: 1097.464422 | G9: 33373 | H9: 0 | I9: 26229.94876 | J9: 0 | K9: 12432 | L9: 0 | M9: 12 | N9: 73144.41318
B10: H_01 | C10: 0100 | D10: Uitgaven te verdelen over de hoofdgroepen 1 tot en met 9 | E10: 0 | F10: 1097.464422 | G10: 33373 | H10: 0 | I10: 26229.94876 | J10: 0 | K10: 12432 | L10: 0 | M10: 12 | N10: 73144.41318
B11: H_0 | C11: 02 | D11: Niet gebruikt | E11: 0 | F11: 0 | G11: 0 | H11: 0 | I11: 0 | J11: 0 | K11: 0 | L11: 0 | M11: 0 | N11: 0
B12: H_02 | C12: 0200 | D12: Niet gebruikt | E12: 0 | F12: 0 | G12: 0 | H12: 0 | I12: 0 | J12: 0 | K12: 0 | L12: 0 | M12: 0 | N12: 0
B13: H_0 | C13: 04 | D13: Annuïteiten met betrekking tot financiële leasings | E13: 0 | F13: 0 | G13: 0 | H13: 0 | I13: 0 | J13: 0 | K13: 0 | L13: 0 | M13: 0 | N13: 0
B14: H_04 | C14: 0400 | D14: Annuïteiten met betrekking tot financiële leasings | E14: 0 | F14: 0 | G14: 0 | H14: 0 | I14: 0 | J14: 0 | K14: 0 | L14: 0 | M14: 0 | N14: 0
B16: H_ | C16: 1 | D16: LOPENDE UITGAVEN VOOR GOEDEREN EN DIENSTEN | E16: =_xlfn.IFNA(IF(LEN($C16)>=4,VLOOKUP(E$6&"-"&$C16,rngDataP3aEXP,rngVLK3aEXP,FALSE),SUMIF($B:$B,"H_"&$C16,E:E)),0) -> 12817452.57 | F16: 10660118.27 | G16: 4662221.148 | H16: 138973.1971 | I16: 2917882.859 | J16: 2310121.397 | K16: 165038 | L16: 84912.01796 | M16: 111985 | N16: 33868704.46
B17: H_1 | C17: 11 | D17: Lonen en sociale lasten | E17: 8219102.569 | F17: 5943626.681 | G17: 3626557.273 | H17: 99310.91675 | I17: 1672684.237 | J17: 1513467.613 | K17: 123193 | L17: 68456.06868 | M17: 33888 | N17: 21300286.36
B18: H_11 | C18: 1111 | D18: Bezoldiging volgens weddeschalen | E18: 5819301.569 | F18: 4031382.892 | G18: 2883998.191 | H18: 72996.64887 | I18: 1111009.826 | J18: 1033392.642 | K18: 113279 | L18: 46666.89233 | M18: 19699 | N18: 15131726.66
B19: H_11 | C19: 1112 | D19: Overige bezoldigingselementen | E19: 1450258 | F19: 695439.8372 | G19: 237461.7148 | H19: 5049.7817 | I19: 162752.9048 | J19: 66105.52297 | K19: 0 | L19: 4667.93073 | M19: 4047 | N19: 2625782.692
B20: H_11 | C20: 1120 | D20: Sociale bijdragen ten laste van de werkgevers, afgedragen aan instellingen of fondsen | E20: 844503 | F20: 1022887.369 | G20: 469472.6683 | H20: 20569.5128 | I20: 336124.9511 | J20: 316107.1186 | K20: 9914 | L20: 17062.43749 | M20: 9311 | N20: 3045952.057
B21: H_11 | C21: 1131 | D21: Directe toelagen | E21: 36618 | F21: 7949.52493 | G21: 4587.70382 | H21: 63.35887 | I21: 7509.998483 | J21: 874.77337 | K21: 0 | L21: 0 | M21: 0 | N21: 57603.35947
B22: H_11 | C22: 1132 | D22: Doorbetaling van loon | E22: 18318 | F22: 3544.99477 | G22: 1665.84409 | H22: 0 | I22: 1639.82174 | J22: 147.62973 | K22: 0 | L22: 0 | M22: 0 | N22: 25316.29033
B23: H_11 | C23: 1133 | D23: Pensioenen van het overheidspersoneel | E23: 276 | F23: 131421.3419 | G23: 6368.63947 | H23: 0 | I23: 35173.87364 | J23: 55717.80575 | K23: 0 | L23: 58.80813 | M23: 0 | N23: 229016.4689
B24: H_11 | C24: 1140 | D24: Lonen in natura | E24: 49828 | F24: 51000.72054 | G24: 23002.51157 | H24: 631.61451 | I24: 18472.86168 | J24: 41122.12052 | K24: 0 | L24: 0 | M24: 831 | N24: 184888.8288
B25: H_1 | C25: 12 | D25: Aankoop van niet-duurzame goederen en diensten | E25: 4598350 | F25: 4294267.528 | G25: 1035663.874 | H25: 39662.28034 | I25: 994905.5429 | J25: 721109.8813 | K25: 41845 | L25: 16455.94928 | M25: 78097 | N25: 11820357.06
B26: H_12 | C26: 1211 | D26: Algemene werkingskosten vergoed aan andere sectoren dan de overheidssector | E26: =_xlfn.IFNA(IF(LEN($C26)>=4,VLOOKUP(E$6&"-"&$C26,rngDataP3aEXP,rngVLK3aEXP,FALSE),SUMIF($B:$B,"H_"&$C26,E:E)),0) -> 3705207 | F26: 3774743.929 | G26: 957070.211 | H26: 37841.7429 | I26: 919625.7502 | J26: 587796.4259 | K26: 37667 | L26: 13473.68662 | M26: 76075 | N26: 10109500.75
B27: H_12 | C27: 1212 | D27: Huurgelden van gebouwen vergoed aan andere sectoren dan de overheidssector | E27: 514037 | F27: 172224.9707 | G27: 32769.80871 | H27: 1415.38461 | I27: 38900.01294 | J27: 45401.05393 | K27: 3501 | L27: 2860.14636 | M27: 0 | N27: 811109.3772
B28: H_12 | C28: 1221 | D28: Algemene werkingskosten vergoed binnen de overheidssector | E28: 231787 | F28: 256657.7625 | G28: 32986.29174 | H28: 333.8968 | I28: 9621.9302 | J28: 55187.806 | K28: 0 | L28: 122.1163 | M28: 1378 | N28: 588074.8036
B29: H_12 | C29: 1222 | D29: Huurgelden van gebouwen vergoed binnen de overheidssector | E29: 4702 | F29: 4581.1745 | G29: 2701.54348 | H29: 56.29855 | I29: 1555.6816 | J29: 970.34817 | K29: 0 | L29: 0 | M29: 370 | N29: 14937.0463
B30: H_12 | C30: 1250 | D30: Belastingen betaald aan subsectoren van de overheidssector | E30: 142617 | F30: 86059.69055 | G30: 10136.01956 | H30: 14.95748 | I30: 25202.16795 | J30: 31754.2473 | K30: 677 | L30: 0 | M30: 274 | N30: 296735.0828
B31: H_1 | C31: 13 | D31: Aankoop van duurzame militaire goederen die niet behoren tot de bruto-investeringen in vaste activa (oorlogswapens en gelijkaardige) | E31: 0 | F31: 0 | G31: 0 | H31: 0 | I31: 0 | J31: 0 | K31: 0 | L31: 0 | M31: 0 | N31: 0
B32: H_13 | C32: 1300 | D32: Aankoop van duurzame militaire goederen die niet behoren tot de bruto-investeringen in vaste activa (oorlogswapens en gelijkaardige) | E32: 0 | F32: 0 | G32: 0 | H32: 0 | I32: 0 | J32: 0 | K32: 0 | L32: 0 | M32: 0 | N32: 0
B33: H_1 | C33: 14 | D33: Herstel en niet-waardevermeerderend onderhoud van wegen- en waterbouwkundige werken | E33: 0 | F33: 422224.0625 | G33: 0 | H33: 0 | I33: 250293.0793 | J33: 75543.90296 | K33: 0 | L33: 0 | M33: 0 | N33: 748061.0447
B34: H_14 | C34: 1410 | D34: Kosten vergoed aan andere sectoren dan de overheidssector | E34: 0 | F34: 413569.2782 | G34: 0 | H34: 0 | I34: 249732.0372 | J34: 75543.90296 | K34: 0 | L34: 0 | M34: 0 | N34: 738845.2183
B35: H_14 | C35: 1420 | D35: Kosten vergoed binnen de overheidssector | E35: 0 | F35: 8654.78434 | G35: 0 | H35: 0 | I35: 561.0421 | J35: 0 | K35: 0 | L35: 0 | M35: 0 | N35: 9215.82644
B37: H_ | C37: 2 | D37: RENTEN | E37: =_xlfn.IFNA(IF(LEN($C37)>=4,VLOOKUP(E$6&"-"&$C37,rngDataP3aEXP,rngVLK3aEXP,FALSE),SUMIF($B:$B,"H_"&$C37,E:E)),0) -> 7422556 | F37: 547650.9116 | G37: 194528.0565 | H37: 7958.74468 | I37: 566620.0875 | J37: 187968.9417 | K37: 581 | L37: 6287.58806 | M37: 95 | N37: 8934246.33
B38: H_2 | C38: 21 | D38: Interestlasten | E38: 7417281 | F38: 504599.126 | G38: 194528.0565 | H38: 7958.74468 | I38: 562143.42 | J38: 187958.0816 | K38: 581 | L38: 6287.58806 | M38: 95 | N38: 8881432.017
B39: H_21 | C39: 2110 | D39: Interestlasten op overheidsschuld in euro | E39: 7266912 | F39: 175348.3032 | G39: 194118.8764 | H39: 1971.72222 | I39: 516715.6795 | J39: 184979.5396 | K39: 567 | L39: 6286.3592 | M39: 0 | N39: 8346899.48
B40: H_21 | C40: 2120 | D40: =IF(LEN($C40)>=2,VLOOKUP("CE-"&$C40,rngTranslationsCE,2,FALSE),IF(LEN($C40)=1,VLOOKUP("CE-"&$C40&$D$6,rngTranslationsCE,2,FALSE),"")) -> Interestlasten op overheidsschuld in vreemde valuta | E40: 121106 | F40: 0 | G40: 0 | H40: 0 | I40: 0.15596 | J40: 0 | K40: 0 | L40: 0 | M40: 0 | N40: 121106.156
B41: H_21 | C41: 2130 | D41: Interestlasten op schuld binnen de overheidssector | E41: 1019 | F41: 53653.34134 | G41: 15.75088 | H41: 26.7214 | I41: 43604.6571 | J41: 2412.14767 | K41: 0 | L41: 0 | M41: 0 | N41: 100731.6184
B42: H_21 | C42: 2140 | D42: Rente op commerciële schuld | E42: 957 | F42: 259443.1574 | G42: 3.38104 | H42: 0 | I42: 401.59004 | J42: 193.93788 | K42: 0 | L42: 0 | M42: 0 | N42: 260999.0664
B43: H_21 | C43: 2150 | D43: Rente op financiële leasings | E43: 634 | F43: 10094.97031 | G43: 83.31662 | H43: 409.88175 | I43: 497.04273 | J43: 240.563 | K43: 13 | L43: 0 | M43: 0 | N43: 11972.77441
B44: H_21 | C44: 2160 | D44: Andere rente | E44: 26653 | F44: 6059.3537 | G44: 306.73161 | H44: 5550.41931 | I44: 924.29468 | J44: 131.89349 | K44: 1 | L44: 1.22886 | M44: 95 | N44: 39722.92165
B45: H_2 | C45: 22 | D45: Niet gebruikt | E45: 0 | F45: 0 | G45: 0 | H45: 0 | I45: 0 | J45: 0 | K45: 0 | L45: 0 | M45: 0 | N45: 0
B46: H_22 | C46: 2200 | D46: Niet gebruikt | E46: 0 | F46: 0 | G46: 0 | H46: 0 | I46: 0 | J46: 0 | K46: 0 | L46: 0 | M46: 0 | N46: 0
B47: H_2 | C47: 24 | D47: Huurgelden van gronden | E47: 1032 | F47: 2068.78566 | G47: 0 | H47: 0 | I47: 47.50806 | J47: 10.8601 | K47: 0 | L47: 0 | M47: 0 | N47: 3159.15382
B48: H_24 | C48: 2410 | D48: Betalingen aan andere sectoren dan de overheidssector | E48: 1005 | F48: 1760.98606 | G48: 0 | H48: 0 | I48: 0 | J48: 10.69992 | K48: 0 | L48: 0 | M48: 0 | N48: 2776.68598
B49: H_24 | C49: 2420 | D49: Betalingen binnen de overheidssector | E49: 27 | F49: 307.7996 | G49: 0 | H49: 0 | I49: 47.50806 | J49: 0.16018 | K49: 0 | L49: 0 | M49: 0 | N49: 382.46784
B50: H_2 | C50: 25 | D50: Uitbetaalde dividenden | E50: 4243 | F50: 40983 | G50: 0 | H50: 0 | I50: 4429.15939 | J50: 0 | K50: 0 | L50: 0 | M50: 0 | N50: 49655.15939
B51: H_25 | C51: 2500 | D51: Uitbetaalde dividenden | E51: 4243 | F51: 40983 | G51: 0 | H51: 0 | I51: 4429.15939 | J51: 0 | K51: 0 | L51: 0 | M51: 0 | N51: 49655.15939
B53: H_ | C53: 3 | D53: INKOMENSOVERDRACHTEN AAN ANDERE SECTOREN | E53: =_xlfn.IFNA(IF(LEN($C53)>=4,VLOOKUP(E$6&"-"&$C53,rngDataP3aEXP,rngVLK3aEXP,FALSE),SUMIF($B:$B,"H_"&$C53,E:E)),0) -> 13442242 | F53: 20262606.51 | G53: 1160220.056 | H53: 113836.4295 | I53: 8431445.882 | J53: 1172757.613 | K53: 357547 | L53: 41232.38577 | M53: 1367948 | N53: 46349835.88
B54: H_3 | C54: 31 | D54: Exploitatiesubsidies | E54: 2172946 | F54: 4044731.867 | G54: 73665.15773 | H54: 1888.66047 | I54: 2985254.611 | J54: 694196.5908 | K54: 9925 | L54: 0 | M54: 7690 | N54: 9990297.887
B55: H_31 | C55: 3111 | D55: Rentesubsidies aan overheidsbedrijven | E55: 0 | F55: 155379.1943 | G55: 0 | H55: 0 | I55: 2862.13936 | J55: 0 | K55: 0 | L55: 0 | M55: 0 | N55: 158241.3337
B56: H_31 | C56: 3112 | D56: Rentesubsidies aan andere bedrijven | E56: 14141 | F56: 130361 | G56: 0 | H56: 0 | I56: 0 | J56: 4201.35651 | K56: 535 | L56: 0 | M56: 0 | N56: 149238.3565
B57: H_31 | C57: 3121 | D57: Prijssubsidies aan overheidsbedrijven | E57: 58848 | F57: 9485.17594 | G57: 0 | H57: 0 | I57: 0 | J57: 0 | K57: 0 | L57: 0 | M57: 0 | N57: 68333.17594
B58: H_31 | C58: 3122 | D58: Overige exploitatiesubsidies aan overheidsbedrijven | E58: 1453661 | F58: 317397.1903 | G58: 28688.6651 | H58: 1060 | I58: 48397.70662 | J58: 70701.11073 | K58: 0 | L58: 0 | M58: 1800 | N58: 1921705.673
B59: H_31 | C59: 3131 | D59: Prijssubsidies aan andere producenten dan overheidsbedrijven | E59: 288372 | F59: 92601.30268 | G59: 0 | H59: 0 | I59: 3354.22198 | J59: 234108.9155 | K59: 0 | L59: 0 | M59: 0 | N59: 618436.4401
B60: H_31 | C60: 3132 | D60: Overige exploitatiesubsidies aan andere producenten dan overheidsbedrijven | E60: 357924 | F60: 2784162.872 | G60: 44976.49263 | H60: 828.66047 | I60: 2324036.693 | J60: 385185.2081 | K60: 9390 | L60: 0 | M60: 5890 | N60: 5912393.926
B61: H_31 | C61: 3140 | D61: Vermindering van werkgeversbijdragen voor bepaalde doelgroepen | E61: 0 | F61: 555345.1324 | G61: 0 | H61: 0 | I61: 606603.85 | J61: 0 | K61: 0 | L61: 0 | M61: 0 | N61: 1161948.982
B62: H_3 | C62: 32 | D62: Inkomensoverdrachten, die geen exploitatiesubsidies zijn, aan bedrijven en financiële instellingen | E62: 58439 | F62: 713597.1537 | G62: 21373.42013 | H62: 4639.0066 | I62: 36405.58858 | J62: 40259.0704 | K62: 2043 | L62: 0 | M62: 0 | N62: 876756.2394
B63: H_32 | C63: 3200 | D63: Inkomensoverdrachten, die geen exploitatiesubsidies zijn, aan bedrijven en financiële instellingen | E63: =_xlfn.IFNA(IF(LEN($C63)>=4,VLOOKUP(E$6&"-"&$C63,rngDataP3aEXP,rngVLK3aEXP,FALSE),SUMIF($B:$B,"H_"&$C63,E:E)),0) -> 58439 | F63: 713597.1537 | G63: 21373.42013 | H63: 4639.0066 | I63: 36405.58858 | J63: 40259.0704 | K63: 2043 | L63: 0 | M63: 0 | N63: 876756.2394
B64: H_3 | C64: 33 | D64: Inkomensoverdrachten aan vzw's ten behoeve van de gezinnen | E64: 375979 | F64: 2569745.544 | G64: 938470.7114 | H64: 64670.9275 | I64: 1290081.247 | J64: 264119.0266 | K64: 335376 | L64: 41232.38577 | M64: 55990 | N64: 5935664.843
B65: H_33 | C65: 3300 | D65: Inkomensoverdrachten aan vzw's ten behoeve van de gezinnen | E65: 375979 | F65: 2569745.544 | G65: 938470.7114 | H65: 64670.9275 | I65: 1290081.247 | J65: 264119.0266 | K65: 335376 | L65: 41232.38577 | M65: 55990 | N65: 5935664.843
B66: H_3 | C66: 34 | D66: Inkomensoverdrachten aan gezinnen | E66: 4259982 | F66: 12884095.47 | G66: 124727.0009 | H66: 42032.94037 | I66: 4106217.594 | J66: 171837.1447 | K66: 10203 | L66: 0 | M66: 1304259 | N66: 22903354.15
B67: H_34 | C67: 3410 | D67: Weduwen- en wezenpensioenen van het overheidspersoneel | E67: 0 | F67: 0 | G67: 0 | H67: 0 | I67: 0 | J67: 0 | K67: 0 | L67: 0 | M67: 0 | N67: 0
B68: H_34 | C68: 3420 | D68: Oorlogspensioenen | E68: 0 | F68: 0 | G68: 0 | H68: 0 | I68: 0 | J68: 0 | K68: 0 | L68: 0 | M68: 0 | N68: 0
B69: H_34 | C69: 3431 | D69: Overige sociale uitkeringen in geld | E69: 2947895 | F69: 6255154.731 | G69: 110663.8242 | H69: 40965.98531 | I69: 3691500.663 | J69: 40100.28641 | K69: 0 | L69: 0 | M69: 894235 | N69: 13980515.49
B70: =IF(LEN(C70)>=4,"H_"&LEFT(C70,2),IF(LEN(C70)=2,"H_"&LEFT(C70,1),IF(LEN(C70)=1,"H_",""))) -> H_34 | C70: 3432 | D70: Overige sociale uitkeringen in natura | E70: 1074840 | F70: 4982012.516 | G70: 3525.30154 | H70: 536.07272 | I70: 182201.9961 | J70: 99439.17935 | K70: 10203 | L70: 0 | M70: 410024 | N70: =IF(D70<>"",SUM($E70:$M70),"") -> 6762782.066
B71: H_34 | C71: 3441 | D71: Overige uitkeringen in geld aan gezinnen als verbruikers | E71: 237247 | F71: 1543336.948 | G71: 4109.74424 | H71: 521.12264 | I71: 53573.00836 | J71: 5881.86933 | K71: 0 | L71: 0 | M71: 0 | N71: 1844669.692
B72: H_34 | C72: 3442 | D72: =IF(LEN($C72)>=2,VLOOKUP("CE-"&$C72,rngTranslationsCE,2,FALSE),IF(LEN($C72)=1,VLOOKUP("CE-"&$C72&$D$6,rngTranslationsCE,2,FALSE),"")) -> Overige uitkeringen in natura aan gezinnen als verbruikers | E72: 0 | F72: 3065.80118 | G72: 5980.64656 | H72: 9.7597 | I72: 119.2028 | J72: 423.23935 | K72: 0 | L72: 0 | M72: 0 | N72: 9598.64959
B73: H_34 | C73: 3450 | D73: Overige uitkeringen aan gezinnen als producenten | E73: =_xlfn.IFNA(IF(LEN($C73)>=4,VLOOKUP(E$6&"-"&$C73,rngDataP3aEXP,rngVLK3aEXP,FALSE),SUMIF($B:$B,"H_"&$C73,E:E)),0) -> 0 | F73: 100525.477 | G73: 447.48444 | H73: 0 | I73: 178822.7237 | J73: 25992.57027 | K73: 0 | L73: 0 | M73: 0 | N73: 305788.2554
B74: H_3 | C74: 35 | D74: Inkomensoverdrachten aan het buitenland | E74: 6574896 | F74: 50436.47005 | G74: 1983.76603 | H74: 604.89456 | I74: 13486.8416 | J74: 2345.78046 | K74: 0 | L74: 0 | M74: 9 | N74: 6643762.753
B75: H_35 | C75: 3510 | D75: Aan EU-instellingen | E75: 5170332 | F75: 288.13125 | G75: 37.84303 | H75: 0 | I75: 9.24 | J75: 3.47918 | K75: 0 | L75: 0 | M75: 0 | N75: 5170670.693
B76: H_35 | C76: 3520 | D76: Aan lidstaten van de EU (overheden) | E76: 77831 | F76: 4555.93582 | G76: 0 | H76: 0 | I76: 0 | J76: 0 | K76: 0 | L76: 0 | M76: 0 | N76: 82386.93582
B77: H_35 | C77: 3530 | D77: Aan lidstaten van de EU (niet-overheden) | E77: 1324 | F77: 10883.89763 | G77: 118.61566 | H77: 539.87888 | I77: 24 | J77: 16 | K77: 0 | L77: 0 | M77: 0 | N77: 12906.39217
B78: H_35 | C78: 3540 | D78: Aan internationale instellingen andere dan de EU-instellingen | E78: 720928 | F78: 19225.85629 | G78: 837.968 | H78: 65.01568 | I78: 13207.26346 | J78: 2326.71096 | K78: 0 | L78: 0 | M78: 9 | N78: 756599.8144
B79: H_35 | C79: 3550 | D79: Aan landen andere dan de lidstaten van de EU (overheden) | E79: 206279 | F79: 11097.41557 | G79: 959.34734 | H79: 0 | I79: 0 | J79: 0 | K79: 0 | L79: 0 | M79: 0 | N79: 218335.7629
B80: H_35 | C80: 3560 | D80: Aan landen andere dan de lidstaten van de EU (niet-overheden) | E80: 398202 | F80: 4385.23349 | G80: 29.992 | H80: 0 | I80: 246.33814 | J80: -0.40968 | K80: 0 | L80: 0 | M80: 0 | N80: 402863.154
B82: H_ | C82: 4 | D82: INKOMENSOVERDRACHTEN BINNEN DE OVERHEIDSSECTOR | E82: =_xlfn.IFNA(IF(LEN($C82)>=4,VLOOKUP(E$6&"-"&$C82,rngDataP3aEXP,rngVLK3aEXP,FALSE),SUMIF($B:$B,"H_"&$C82,E:E)),0) -> 106534051 | F82: 15077430.43 | G82: 10224687.01 | H82: 171275.3544 | I82: 3077599.891 | J82: 1689843.062 | K82: 3113 | L82: 4998.83799 | M82: 1453296 | N82: 138236294.6
B83: H_4 | C83: 41 | D83: Inkomensoverdrachten binnen een institutionele groep | E83: 0 | F83: 14728.40842 | G83: 179341.3695 | H83: 45333.20633 | I83: 0 | J83: 0 | K83: 0 | L83: 0 | M83: 1375647 | N83: 1615049.984
B84: H_41 | C84: 4110 | D84: Aan de institutionele overheid | E84: 0 | F84: 0 | G84: 955.73086 | H84: 1118.945 | I84: 0 | J84: 0 | K84: 0 | L84: 0 | M84: 0 | N84: 2074.67586
B85: H_41 | C85: 4120 | D85: Aan niet-organieke begrotingsfondsen | E85: 0 | F85: 0 | G85: 1730.03663 | H85: 11.58096 | I85: 0 | J85: 0 | K85: 0 | L85: 0 | M85: 0 | N85: 1741.61759
B86: H_41 | C86: 4130 | D86: Aan administratieve diensten met boekhoudkundige autonomie (ADBA) | E86: 0 | F86: 0 | G86: 2161.1103 | H86: 172 | I86: 0 | J86: 0 | K86: 0 | L86: 0 | M86: 0 | N86: 2333.1103
B87: H_41 | C87: 4140 | D87: Aan administratieve openbare instellingen (AOI) | E87: 0 | F87: 1725 | G87: 4045.36956 | H87: 42653.20244 | I87: 0 | J87: 0 | K87: 0 | L87: 0 | M87: 1334495 | N87: 1382918.572
B88: H_41 | C88: 4150 | D88: Aan onderwijsinstellingen van de institutionele overheid | E88: 0 | F88: 0 | G88: 166470.5094 | H88: 1377.47793 | I88: 0 | J88: 0 | K88: 0 | L88: 0 | M88: 0 | N88: 167847.9873
B89: H_41 | C89: 4160 | D89: Aan vzw's van de overheid | E89: 0 | F89: 9944 | G89: 3465.77377 | H89: 0 | I89: 0 | J89: 0 | K89: 0 | L89: 0 | M89: 41152 | N89: 54561.77377
B90: H_41 | C90: 4170 | D90: Aan andere eenheden van de overheid | E90: 0 | F90: 3059.40842 | G90: 512.839 | H90: 0 | I90: 0 | J90: 0 | K90: 0 | L90: 0 | M90: 0 | N90: 3572.24742
B91: H_4 | C91: 42 | D91: Inkomensoverdrachten aan de socialezekerheidsinstellingen | E91: 45700581 | F91: 77097.90842 | G91: 0 | H91: 8468.97225 | I91: 2662.08874 | J91: 6.7378 | K91: 0 | L91: 0 | M91: 262 | N91: 45789078.71
B92: H_42 | C92: 4210 | D92: Ouderdom, overlijden, nabestaanden | E92: =_xlfn.IFNA(IF(LEN($C92)>=4,VLOOKUP(E$6&"-"&$C92,rngDataP3aEXP,rngVLK3aEXP,FALSE),SUMIF($B:$B,"H_"&$C92,E:E)),0) -> 12635495 | F92: 0 | G92: 0 | H92: 0 | I92: 0 | J92: 0 | K92: 0 | L92: 0 | M92: 0 | N92: 12635495
B93: H_42 | C93: 4220 | D93: Ziekte | E93: 1759569 | F93: 0 | G93: 0 | H93: 4474.29125 | I93: 975.26566 | J93: 0 | K93: 0 | L93: 0 | M93: 262 | N93: 1765280.557
B94: H_42 | C94: 4230 | D94: Invaliditeit en handicap | E94: 0 | F94: 0 | G94: 0 | H94: 0 | I94: 0 | J94: 0 | K94: 0 | L94: 0 | M94: 0 | N94: 0
B95: H_42 | C95: 4240 | D95: Werkloosheid | E95: 118788 | F95: 0 | G95: 0 | H95: 432.987 | I95: 0 | J95: 0 | K95: 0 | L95: 0 | M95: 0 | N95: 119220.987
B96: H_42 | C96: 4250 | D96: Gezinslasten | E96: 0 | F96: 0 | G96: 0 | H96: 0 | I96: 0 | J96: 0 | K96: 0 | L96: 0 | M96: 0 | N96: 0
B97: H_42 | C97: 4260 | D97: Arbeidsongevallen en beroepsziekten | E97: 16847 | F97: 0 | G97: 0 | H97: 0 | I97: 0 | J97: 0 | K97: 0 | L97: 0 | M97: 0 | N97: 16847
B98: H_42 | C98: 4270 | D98: Beroepsopleiding voor volwassenen | E98: 0 | F98: 0 | G98: 0 | H98: 0 | I98: 0 | J98: 0 | K98: 0 | L98: 0 | M98: 0 | N98: 0
B99: H_42 | C99: 4280 | D99: Globale rijkstoelage aan de sociale zekerheid | E99: 10962326 | F99: 0 | G99: 0 | H99: 3561.694 | I99: 0 | J99: 0 | K99: 0 | L99: 0 | M99: 0 | N99: 10965887.69
B100: H_42 | C100: 4290 | D100: Overige inkomensoverdrachten aan de socialezekerheidsinstellingen | E100: 20207556 | F100: 77097.90842 | G100: 0 | H100: 0 | I100: 1686.82308 | J100: 6.7378 | K100: 0 | L100: 0 | M100: 0 | N100: 20286347.47
B101: H_4 | C101: 43 | D101: Inkomensoverdrachten aan lokale overheden | E101: 3356020 | F101: 6304738.399 | G101: 2464121.918 | H101: 92182.07084 | I101: 2696669.832 | J101: 859259.6369 | K101: 2116 | L101: 36.4952 | M101: 76888 | N101: 15852032.35
B102: H_43 | C102: 4311 | D102: Aan provincies: algemene bijdragen | E102: =_xlfn.IFNA(IF(LEN($C102)>=4,VLOOKUP(E$6&"-"&$C102,rngDataP3aEXP,rngVLK3aEXP,FALSE),SUMIF($B:$B,"H_"&$C102,E:E)),0) -> 0 | F102: 8434.18441 | G102: 0 | H102: 0 | I102: 133002.9376 | J102: 0 | K102: 0 | L102: 0 | M102: 0 | N102: 141437.122
B103: H_43 | C103: 4312 | D103: Aan provincies: specifieke bijdragen | E103: 24046 | F103: 24909.2265 | G103: 9681.36182 | H103: 0 | I103: 75831.34321 | J103: 0 | K103: 0 | L103: 0 | M103: 0 | N103: 134467.9315
B104: H_43 | C104: 4313 | D104: =IF(LEN($C104)>=2,VLOOKUP("CE-"&$C104,rngTranslationsCE,2,FALSE),IF(LEN($C104)=1,VLOOKUP("CE-"&$C104&$D$6,rngTranslationsCE,2,FALSE),"")) -> Aan provincies: bijdragen voor rentelasten | E104: 0 | F104: 0 | G104: 50.36143 | H104: 0 | I104: 0 | J104: 0 | K104: 0 | L104: 0 | M104: 0 | N104: 50.36143
B105: H_43 | C105: 4314 | D105: Aan provincies: bijdragen voor lonen van het onderwijzend personeel | E105: 0 | F105: 214641.9681 | G105: 475399.9401 | H105: 0 | I105: 0 | J105: 0 | K105: 0 | L105: 0 | M105: 0 | N105: 690041.9082
B106: H_43 | C106: 4315 | D106: Aan provincies: bijdragen voor rustpensioenen van het onderwijzend personeel | E106: 0 | F106: 0 | G106: 0 | H106: 0 | I106: 0 | J106: 0 | K106: 0 | L106: 0 | M106: 0 | N106: 0
B107: H_43 | C107: 4316 | D107: Aan provincies: bijdragen voor overige werkingskosten van het onderwijs | E107: 0 | F107: 21307.33017 | G107: 69584.69203 | H107: 4169.8518 | I107: 0 | J107: 0 | K107: 0 | L107: 0 | M107: 0 | N107: 95061.874
B108: H_43 | C108: 4321 | D108: Aan gemeenten: algemene bijdragen | E108: 134999 | F108: 1010349.005 | G108: 0 | H108: 28847.47898 | I108: 1298940.158 | J108: 529195.2657 | K108: 2116 | L108: 0 | M108: 0 | N108: 3004446.908
B109: H_43 | C109: 4322 | D109: Aan gemeenten: specifieke bijdragen | E109: 246949 | F109: 2782475.123 | G109: 180084.6743 | H109: 5715.02707 | I109: 685938.6822 | J109: 175110.0709 | K109: 0 | L109: 0 | M109: 24013 | N109: 4100285.578
B110: H_43 | C110: 4323 | D110: Aan gemeenten: bijdragen voor rentelasten | E110: 0 | F110: 35 | G110: 393.80045 | H110: 2436.61008 | I110: 0 | J110: 216.09779 | K110: 0 | L110: 0 | M110: 0 | N110: 3081.50832
B111: H_43 | C111: 4324 | D111: Aan gemeenten: bijdragen voor lonen van het onderwijzend personeel | E111: 0 | F111: 1338932.78 | G111: 1515789.292 | H111: 34897.63598 | I111: 0 | J111: 0 | K111: 0 | L111: 0 | M111: 0 | N111: 2889619.708
B112: H_43 | C112: 4325 | D112: Aan gemeenten: bijdragen voor rustpensioenen van het onderwijzend personeel | E112: =_xlfn.IFNA(IF(LEN($C112)>=4,VLOOKUP(E$6&"-"&$C112,rngDataP3aEXP,rngVLK3aEXP,FALSE),SUMIF($B:$B,"H_"&$C112,E:E)),0) -> 0 | F112: 0 | G112: 0 | H112: 472 | I112: 0 | J112: 0 | K112: 0 | L112: 0 | M112: 0 | N112: 472
B113: H_43 | C113: 4326 | D113: Aan gemeenten: bijdragen voor overige werkingskosten van het onderwijs | E113: 0 | F113: 209588.8671 | G113: 193029.851 | H113: 2393.1478 | I113: 0.2 | J113: 28.51095 | K113: 0 | L113: 0 | M113: 0 | N113: 405040.5768
B114: H_43 | C114: 4331 | D114: Aan provincies en gemeenten (niet verdeeld): algemene bijdragen | E114: 0 | F114: 0 | G114: 0 | H114: 0 | I114: 0 | J114: 0 | K114: 0 | L114: 0 | M114: 0 | N114: 0
B115: H_43 | C115: 4332 | D115: Aan provincies en gemeenten (niet verdeeld): specifieke bijdragen | E115: 0 | F115: 0 | G115: 0 | H115: 0 | I115: 0 | J115: 0 | K115: 0 | L115: 0 | M115: 0 | N115: 0
B116: H_43 | C116: 4333 | D116: Aan provincies en gemeenten (niet verdeeld): bijdragen voor rentelasten | E116: 0 | F116: 0 | G116: 0 | H116: 0 | I116: 0 | J116: 0 | K116: 0 | L116: 0 | M116: 0 | N116: 0
B117: H_43 | C117: 4334 | D117: Aan provincies en gemeenten (niet verdeeld): bijdragen voor lonen van het onderwijzend personeel | E117: 0 | F117: 0 | G117: 0 | H117: 0 | I117: 0 | J117: 0 | K117: 0 | L117: 0 | M117: 0 | N117: 0
B118: H_43 | C118: 4335 | D118: Aan provincies en gemeenten (niet verdeeld): bijdragen voor rustpensioenen van het onderwijzend personeel | E118: 0 | F118: 0 | G118: 0 | H118: 0 | I118: 0 | J118: 0 | K118: 0 | L118: 0 | M118: 0 | N118: 0
B119: H_43 | C119: 4336 | D119: Aan provincies en gemeenten (niet verdeeld): bijdragen voor overige werkingskosten van het onderwijs | E119: 0 | F119: 0 | G119: 0 | H119: 0 | I119: 0 | J119: 0 | K119: 0 | L119: 0 | M119: 0 | N119: 0
B120: H_43 | C120: 4340 | D120: Aan vzw's van de lokale overheden | E120: 0 | F120: 53989.47336 | G120: 15977.58409 | H120: 0 | I120: 93000.80088 | J120: 23599.62591 | K120: 0 | L120: 36.4952 | M120: 8813 | N120: 195416.9794
B121: H_43 | C121: 4351 (old) | D121: Aan overige lokale overheden: algemene bijdragen | E121: 0 | F121: 0 | G121: 0 | H121: 0 | I121: 0 | J121: 0 | K121: 0 | L121: 0 | M121: 0 | N121: 0
B122: H_43 | C122: 4351 | D122: Politiezones | E122: =_xlfn.IFNA(IF(LEN($C122)>=4,VLOOKUP(E$6&"-"&$C122,rngDataP3aEXP,rngVLK3aEXP,FALSE),SUMIF($B:$B,"H_"&$C122,E:E)),0) -> 957517 | F122: 3172.2532 | G122: 0 | H122: 46.61372 | I122: 0 | J122: 38893.22188 | K122: 0 | L122: 0 | M122: 0 | N122: 999629.0888
B123: H_43 | C123: 4352 (old) | D123: Aan overige lokale overheden: specifieke bijdragen | E123: 0 | F123: 0 | G123: 0 | H123: 0 | I123: 0 | J123: 0 | K123: 0 | L123: 0 | M123: 0 | N123: 0
B124: H_43 | C124: 4352 | D124: OCMW's | E124: 1765114 | F124: 554253.4739 | G124: 2059.7531 | H124: 4685.12798 | I124: 397856.1881 | J124: 58186.52011 | K124: 0 | L124: 0 | M124: 44062 | N124: 2826217.063
B125: H_43 | C125: 4353 | D125: Intercommunales van de sector S.1313 | E125: 0 | F125: 18343.01218 | G125: 1542.10087 | H125: 8518.57743 | I125: 11127.16467 | J125: 9792.2 | K125: 0 | L125: 0 | M125: 0 | N125: 49323.05515
B126: H_43 | C126: 4354 | D126: Hulpverleningszones | E126: 227395 | F126: 3610.99508 | G126: 0 | H126: 0 | I126: 0 | J126: 0 | K126: 0 | L126: 0 | M126: 0 | N126: 231005.9951
B127: H_43 | C127: 4359 | D127: Overige lokale overheden | E127: 0 | F127: 60695.7058 | G127: 528.50729 | H127: 0 | I127: 972.35827 | J127: 24238.12365 | K127: 0 | L127: 0 | M127: 0 | N127: 86434.69501
B128: H_4 | C128: 44 | D128: Inkomensoverdrachten aan het gesubsidieerd autonoom onderwijs | E128: 18 | F128: 8518294.094 | G128: 3114940.973 | H128: 24689.95244 | I128: 40152.91575 | J128: 13841.51675 | K128: 0 | L128: 0 | M128: 0 | N128: 11711937.45
B129: H_44 | C129: 4410 | D129: Bijdragen voor lonen van het onderwijzend personeel | E129: 0 | F129: 7300234.793 | G129: 2734068.494 | H129: 22105.43789 | I129: 26960.0672 | J129: 0 | K129: 0 | L129: 0 | M129: 0 | N129: 10083368.79
B130: H_44 | C130: 4420 | D130: Bijdragen voor rustpensioenen van het onderwijzend personeel | E130: 0 | F130: 79.14121 | G130: 0 | H130: 0 | I130: 0 | J130: 0 | K130: 0 | L130: 0 | M130: 0 | N130: 79.14121
B131: H_44 | C131: 4430 | D131: Bijdragen voor overige werkingskosten van het onderwijs | E131: 18 | F131: 1217980.16 | G131: 379684.2354 | H131: 2584.51455 | I131: 13192.84855 | J131: 13841.51675 | K131: 0 | L131: 0 | M131: 0 | N131: 1627301.275
B132: H_44 | C132: 4440 | D132: Bijdragen voor rentelasten van het onderwijs | E132: =_xlfn.IFNA(IF(LEN($C132)>=4,VLOOKUP(E$6&"-"&$C132,rngDataP3aEXP,rngVLK3aEXP,FALSE),SUMIF($B:$B,"H_"&$C132,E:E)),0) -> 0 | F132: 0 | G132: 1188.24366 | H132: 0 | I132: 0 | J132: 0 | K132: 0 | L132: 0 | M132: 0 | N132: 1188.24366
B133: H_4 | C133: 45 | D133: Inkomensoverdrachten aan andere institutionele groepen (federale overheid, gemeenschappen, gewesten, gemeenschapscommissies) | E133: 57477432 | F133: 162571.6234 | G133: 4466282.75 | H133: 601.15258 | I133: 338115.0544 | J133: 816735.1706 | K133: 997 | L133: 4962.34279 | M133: 499 | N133: 63268196.09
B134: =IF(LEN(C134)>=4,"H_"&LEFT(C134,2),IF(LEN(C134)=2,"H_"&LEFT(C134,1),IF(LEN(C134)=1,"H_",""))) -> H_45 | C134: 4500 | D134: Inkomensoverdrachten aan andere institutionele groepen | E134: 0 | F134: 0 | G134: 0 | H134: 0 | I134: 0 | J134: 0 | K134: 0 | L134: 0 | M134: 0 | N134: =IF(D134<>"",SUM($E134:$M134),"") -> 0
B135: H_45 | C135: 4510 | D135: Inkomensoverdrachten aan de gemeenschapscommissies | E135: 0 | F135: 0 | G135: 0 | H135: 0 | I135: 0 | J135: 0 | K135: 0 | L135: 0 | M135: 0 | N135: 0
B136: H_45 | C136: 4511 | D136: =IF(LEN($C136)>=2,VLOOKUP("CE-"&$C136,rngTranslationsCE,2,FALSE),IF(LEN($C136)=1,VLOOKUP("CE-"&$C136&$D$6,rngTranslationsCE,2,FALSE),"")) -> Franse Gemeenschapscommissie | E136: 73140 | F136: 7 | G136: 197352.1411 | H136: 0 | I136: 0 | J136: 294883.395 | K136: 0 | L136: 0 | M136: 0 | N136: 565382.5361
B137: H_45 | C137: 4512 | D137: Vlaamse Gemeenschapscommissie | E137: 18365 | F137: 75770.91055 | G137: 0 | H137: 0 | I137: 0 | J137: 76225.223 | K137: 0 | L137: 4800 | M137: 0 | N137: 175161.1336
B138: H_45 | C138: 4513 | D138: Gemeenschappelijke Gemeenschapscommissie | E138: 1374768 | F138: 0 | G138: 1189 | H138: 0 | I138: 0 | J138: 377854.2459 | K138: 0 | L138: 0 | M138: 0 | N138: 1753811.246
B139: H_45 | C139: 4521 | D139: Inkomensoverdrachten aan de gemeenschappen: dotaties | E139: 0 | F139: 0 | G139: 0 | H139: 0 | I139: 0 | J139: 0 | K139: 0 | L139: 0 | M139: 0 | N139: 0
B140: H_45 | C140: 4522 | D140: Inkomensoverdrachten aan de gemeenschappen: toegewezen gedeelten van belastingen en heffingen | E140: 0 | F140: 0 | G140: 0 | H140: 0 | I140: 0 | J140: 0 | K140: 0 | L140: 0 | M140: 0 | N140: 0
B141: H_45 | C141: 4523 | D141: Overige inkomensoverdrachten aan de gemeenschappen | E141: 0 | F141: 0 | G141: 0 | H141: 0 | I141: 0 | J141: 0 | K141: 0 | L141: 0 | M141: 0 | N141: 0
B142: H_45 | C142: 4524 | D142: Franse Gemeenschap | E142: =_xlfn.IFNA(IF(LEN($C142)>=4,VLOOKUP(E$6&"-"&$C142,rngDataP3aEXP,rngVLK3aEXP,FALSE),SUMIF($B:$B,"H_"&$C142,E:E)),0) -> 14426444 | F142: 145 | G142: 0 | H142: 0 | I142: 164751.1674 | J142: 47393.7571 | K142: 763 | L142: 0 | M142: 0 | N142: 14639496.92
B143: H_45 | C143: 4525 | D143: Vlaamse Gemeenschap | E143: 33331006 | F143: 0 | G143: 0 | H143: 0 | I143: 0 | J143: 14903.49065 | K143: 0 | L143: 162.34279 | M143: 46 | N143: 33346117.83
B144: H_45 | C144: 4526 | D144: Duitstalige Gemeenschap | E144: 268767 | F144: 0 | G144: 204.04922 | H144: 0 | I144: 76268.92786 | J144: 0 | K144: 0 | L144: 0 | M144: 0 | N144: 345239.9771
B145: H_45 | C145: 4530 | D145: Inkomensoverdrachten aan de gewesten: niet verdeeld | E145: 0 | F145: 0 | G145: 0 | H145: 0 | I145: 0 | J145: 0 | K145: 0 | L145: 0 | M145: 0 | N145: 0
B146: H_45 | C146: 4531 | D146: Inkomensoverdrachten aan de gewesten: dotaties | E146: 0 | F146: 0 | G146: 0 | H146: 0 | I146: 0 | J146: 0 | K146: 0 | L146: 0 | M146: 0 | N146: 0
B147: H_45 | C147: 4532 | D147: Inkomensoverdrachten aan de gewesten: toegewezen gedeelten van belastingen en heffingen | E147: 0 | F147: 0 | G147: 0 | H147: 0 | I147: 0 | J147: 0 | K147: 0 | L147: 0 | M147: 0 | N147: 0
B148: H_45 | C148: 4533 | D148: Overige inkomensoverdrachten aan de gewesten | E148: 0 | F148: 0 | G148: 0 | H148: 0 | I148: 0 | J148: 0 | K148: 0 | L148: 0 | M148: 0 | N148: 0
B149: H_45 | C149: 4534 | D149: Waals Gewest | E149: 5564769 | F149: 97 | G149: 4262383.785 | H149: 0 | I149: 6.582 | J149: 90 | K149: 0 | L149: 0 | M149: 0 | N149: 9827346.367
B150: H_45 | C150: 4535 | D150: Brussels Hoofdstedelijk Gewest | E150: 2416358 | F150: 0 | G150: 0 | H150: 0 | I150: 209.60876 | J150: 0 | K150: 0 | L150: 0 | M150: 0 | N150: 2416567.609
B151: H_45 | C151: 4540 | D151: Federale overheid | E151: 0 | F151: 9394.52024 | G151: 674.4673 | H151: 0 | I151: 45503.8629 | J151: 1482.45564 | K151: 0 | L151: 0 | M151: 261 | N151: 57316.30608
B152: H_45 | C152: 4550 | D152: =IF(LEN($C152)>=2,VLOOKUP("CE-"&$C152,rngTranslationsCE,2,FALSE),IF(LEN($C152)=1,VLOOKUP("CE-"&$C152&"EXP",rngTranslationsCE,2,FALSE),"")) -> Interregionale eenheden | E152: 3815 | F152: 77157.1926 | G152: 4479.30752 | H152: 601.15258 | I152: 51374.9055 | J152: 3902.60326 | K152: 234 | L152: 0 | M152: 192 | N152: 141756.1615
D153: =UPPER(VLOOKUP("d-009",rngTranslations,2,FALSE))&" "&VLOOKUP("d-015",rngTranslations,2,FALSE) -> TOTAAL VAN DE LOPENDE UITGAVEN (groepen 1-4) | E153: =SUMIF($B:$B,"H_4",E:E)+SUMIF($B:$B,"H_3",E:E)+SUMIF($B:$B,"H_2",E:E)+SUMIF($B:$B,"H_1",E:E) -> 140216301.6 | F153: 46547806.13 | G153: 16241656.27 | H153: 432043.7257 | I153: 14993548.72 | J153: 5360691.014 | K153: 526279 | L153: 137430.8298 | M153: 2933324 | N153: 227389081.3
B155: H_ | C155: 5 | D155: =IF(LEN($C155)>=2,VLOOKUP("CE-"&$C155,rngTranslationsCE,2,FALSE),IF(LEN($C155)=1,VLOOKUP("CE-"&$C155&$D$6,rngTranslationsCE,2,FALSE),"")) -> KAPITAALOVERDRACHTEN AAN ANDERE SECTOREN | E155: =_xlfn.IFNA(IF(LEN($C155)>=4,VLOOKUP(E$6&"-"&$C155,rngDataP3aEXP,rngVLK3aEXP,FALSE),SUMIF($B:$B,"H_"&$C155,E:E)),0) -> 1204092 | F155: 1244085.265 | G155: 6780.67813 | H155: 5159.43082 | I155: 575606.9482 | J155: 238847.7032 | K155: 4804 | L155: 1457.94969 | M155: 18121 | N155: 3298954.975
B156: H_5 | C156: 51 | D156: Kapitaaloverdrachten aan bedrijven en financiële instellingen | E156: 848070 | F156: 788215.6443 | G156: 3044 | H156: 0 | I156: 498398.5774 | J156: 204087.2012 | K156: 3969 | L156: 0 | M156: 18121 | N156: 2363905.423
B157: H_51 | C157: 5111 | D157: Investeringsbijdragen aan overheidsbedrijven | E157: 689519 | F157: 327086.6608 | G157: 0 | H157: 0 | I157: 326939.9873 | J157: 116802.6637 | K157: 0 | L157: 0 | M157: 0 | N157: 1460348.312
B158: H_51 | C158: 5112 | D158: Investeringsbijdragen aan privébedrijven | E158: 124596 | F158: 371031.4448 | G158: 747 | H158: 0 | I158: 168835.0278 | J158: 82908.24848 | K158: 3969 | L158: 0 | M158: 813 | N158: 752899.721
B159: H_51 | C159: 5121 | D159: Overige kapitaaloverdrachten aan overheidsbedrijven | E159: 30 | F159: 23165.89869 | G159: 2297 | H159: 0 | I159: 421.40228 | J159: 1126.982 | K159: 0 | L159: 0 | M159: 10320 | N159: 37361.28297
B160: H_51 | C160: 5122 | D160: Overige kapitaaloverdrachten aan privébedrijven | E160: 11977 | F160: 41944.25272 | G160: 0 | H160: 0 | I160: 530.23225 | J160: 2012.82305 | K160: 0 | L160: 0 | M160: 6988 | N160: 63452.30802
B161: H_51 | C161: 5130 | D161: Overige kapitaaloverdrachten aan kredietinstellingen | E161: 4522 | F161: 24669.17838 | G161: 0 | H161: 0 | I161: 1671.92788 | J161: 1236.48401 | K161: 0 | L161: 0 | M161: 0 | N161: 32099.59027
B162: H_51 | C162: 5140 | D162: Overige kapitaaloverdrachten aan verzekeringsmaatschappijen | E162: 17426 | F162: 318.20892 | G162: 0 | H162: 0 | I162: 0 | J162: 0 | K162: 0 | L162: 0 | M162: 0 | N162: 17744.20892
B163: H_5 | C163: 52 | D163: Kapitaaloverdrachten aan vzw's ten behoeve van de gezinnen | E163: 168 | F163: 207523.6489 | G163: 3679.48316 | H163: 4052.52213 | I163: 30096.97145 | J163: 3095.87188 | K163: 835 | L163: 1457.94969 | M163: 0 | N163: 250909.4472
B164: H_52 | C164: 5210 | D164: Investeringsbijdragen aan vzw's ten behoeve van de gezinnen | E164: 72 | F164: 189300.897 | G164: 3679.48316 | H164: 3938.56649 | I164: 30026.15406 | J164: 3095.87188 | K164: 498 | L164: 1457.94969 | M164: 0 | N164: 232068.9223
B165: H_52 | C165: 5220 | D165: Overige kapitaaloverdrachten aan vzw's ten behoeve van de gezinnen | E165: =_xlfn.IFNA(IF(LEN($C165)>=4,VLOOKUP(E$6&"-"&$C165,rngDataP3aEXP,rngVLK3aEXP,FALSE),SUMIF($B:$B,"H_"&$C165,E:E)),0) -> 96 | F165: 18222.75195 | G165: 0 | H165: 113.95564 | I165: 70.81739 | J165: 0 | K165: 337 | L165: 0 | M165: 0 | N165: 18840.52498
B166: H_5 | C166: 53 | D166: Kapitaaloverdrachten aan gezinnen | E166: 32174 | F166: 205973.459 | G166: 0 | H166: 1106.90869 | I166: 45111.39927 | J166: 31664.63011 | K166: 0 | L166: 0 | M166: 0 | N166: 316030.3971
B167: H_53 | C167: 5310 | D167: Investeringsbijdragen aan gezinnen | E167: 0 | F167: 198150.8734 | G167: 0 | H167: 606.90869 | I167: 34576.84022 | J167: 30998.21484 | K167: 0 | L167: 0 | M167: 0 | N167: 264332.8372
B168: H_53 | C168: 5320 | D168: Overige kapitaaloverdrachten aan gezinnen | E168: 32174 | F168: 7822.58559 | G168: 0 | H168: 500 | I168: 10534.55905 | J168: 666.41527 | K168: 0 | L168: 0 | M168: 0 | N168: 51697.55991
B169: H_5 | C169: 54 | D169: Kapitaaloverdrachten aan het buitenland | E169: 323680 | F169: 42372.51233 | G169: 57.19497 | H169: 0 | I169: 2000 | J169: 0 | K169: 0 | L169: 0 | M169: 0 | N169: 368109.7073
B170: H_54 | C170: 5411 | D170: Aan EU-instellingen: investeringsbijdragen | E170: 900 | F170: 17 | G170: 0 | H170: 0 | I170: 0 | J170: 0 | K170: 0 | L170: 0 | M170: 0 | N170: 917
B171: H_54 | C171: 5412 | D171: Aan EU-instellingen: overige kapitaaloverdrachten | E171: 9997 | F171: 0 | G171: 0 | H171: 0 | I171: 0 | J171: 0 | K171: 0 | L171: 0 | M171: 0 | N171: 9997
B172: H_54 | C172: 5421 | D172: Aan lidstaten van de EU (overheden): investeringsbijdragen | E172: 0 | F172: 37785.25646 | G172: 0 | H172: 0 | I172: 2000 | J172: 0 | K172: 0 | L172: 0 | M172: 0 | N172: 39785.25646
B173: H_54 | C173: 5422 | D173: Aan lidstaten van de EU (overheden): overige kapitaaloverdrachten | E173: 0 | F173: 31.543 | G173: 0 | H173: 0 | I173: 0 | J173: 0 | K173: 0 | L173: 0 | M173: 0 | N173: 31.543
B174: H_54 | C174: 5431 | D174: Aan lidstaten van de EU (niet-overheden): investeringsbijdragen | E174: 0 | F174: 122.0285 | G174: 0 | H174: 0 | I174: 0 | J174: 0 | K174: 0 | L174: 0 | M174: 0 | N174: 122.0285
B175: H_54 | C175: 5432 | D175: Aan lidstaten van de EU (niet-overheden): overige kapitaaloverdrachten | E175: =_xlfn.IFNA(IF(LEN($C175)>=4,VLOOKUP(E$6&"-"&$C175,rngDataP3aEXP,rngVLK3aEXP,FALSE),SUMIF($B:$B,"H_"&$C175,E:E)),0) -> 744 | F175: 3401.60348 | G175: 0 | H175: 0 | I175: 0 | J175: 0 | K175: 0 | L175: 0 | M175: 0 | N175: 4145.60348
B176: H_54 | C176: 5441 | D176: Aan internationale instellingen andere dan de EU-instellingen: investeringsbijdragen | E176: 31371 | F176: 904.6169 | G176: 0 | H176: 0 | I176: 0 | J176: 0 | K176: 0 | L176: 0 | M176: 0 | N176: 32275.6169
B177: H_54 | C177: 5442 | D177: Aan internationale instellingen andere dan de EU-instellingen: overige kapitaaloverdrachten | E177: 131023 | F177: 7.544 | G177: 0 | H177: 0 | I177: 0 | J177: 0 | K177: 0 | L177: 0 | M177: 0 | N177: 131030.544
B178: H_54 | C178: 5451 | D178: Aan landen andere dan de lidstaten van de EU (overheden): investeringsbijdragen | E178: 122512 | F178: 0 | G178: 57.19497 | H178: 0 | I178: 0 | J178: 0 | K178: 0 | L178: 0 | M178: 0 | N178: 122569.195
B179: H_54 | C179: 5452 | D179: Aan landen andere dan de lidstaten van de EU (overheden): overige kapitaaloverdrachten | E179: 6106 | F179: 0 | G179: 0 | H179: 0 | I179: 0 | J179: 0 | K179: 0 | L179: 0 | M179: 0 | N179: 6106
B180: H_54 | C180: 5461 | D180: Aan landen andere dan de lidstaten van de EU (niet-overheden): investeringsbijdragen | E180: 0 | F180: 0 | G180: 0 | H180: 0 | I180: 0 | J180: 0 | K180: 0 | L180: 0 | M180: 0 | N180: 0
B181: H_54 | C181: 5462 | D181: Aan landen andere dan de lidstaten van de EU (niet-overheden): overige kapitaaloverdrachten | E181: 21027 | F181: 102.91999 | G181: 0 | H181: 0 | I181: 0 | J181: 0 | K181: 0 | L181: 0 | M181: 0 | N181: 21129.91999
B183: H_ | C183: 6 | D183: KAPITAALOVERDRACHTEN BINNEN DE OVERHEIDSSECTOR | E183: =_xlfn.IFNA(IF(LEN($C183)>=4,VLOOKUP(E$6&"-"&$C183,rngDataP3aEXP,rngVLK3aEXP,FALSE),SUMIF($B:$B,"H_"&$C183,E:E)),0) -> 79157 | F183: 511187.9544 | G183: 38283.08524 | H183: 5677.04484 | I183: 411244.706 | J183: 132148.2598 | K183: 3081 | L183: 1570 | M183: 4018 | N183: 1186367.05
B184: H_6 | C184: 61 | D184: Kapitaaloverdrachten binnen een institutionele groep | E184: 0 | F184: 0 | G184: 1474.80713 | H184: 2360.86766 | I184: 0 | J184: 0 | K184: 0 | L184: 0 | M184: 1847 | N184: 5682.67479
B185: H_61 | C185: 6111 | D185: Investeringsbijdragen aan de institutionele overheid | E185: 0 | F185: 0 | G185: 0 | H185: 0 | I185: 0 | J185: 0 | K185: 0 | L185: 0 | M185: 0 | N185: 0
B186: H_61 | C186: 6112 | D186: Overige kapitaaloverdrachten aan de institutionele overheid | E186: 0 | F186: 0 | G186: 0 | H186: 0 | I186: 0 | J186: 0 | K186: 0 | L186: 0 | M186: 0 | N186: 0
B187: H_61 | C187: 6121 | D187: =IF(LEN($C187)>=2,VLOOKUP("CE-"&$C187,rngTranslationsCE,2,FALSE),IF(LEN($C187)=1,VLOOKUP("CE-"&$C187&$D$6,rngTranslationsCE,2,FALSE),"")) -> Investeringsbijdragen aan niet-organieke begrotingsfondsen | E187: 0 | F187: 0 | G187: 0 | H187: 0 | I187: 0 | J187: 0 | K187: 0 | L187: 0 | M187: 0 | N187: 0
B188: H_61 | C188: 6122 | D188: Overige kapitaaloverdrachten aan niet-organieke begrotingsfondsen | E188: 0 | F188: 0 | G188: 0 | H188: 0 | I188: 0 | J188: 0 | K188: 0 | L188: 0 | M188: 0 | N188: 0
B189: H_61 | C189: 6131 | D189: Investeringsbijdragen aan administratieve diensten met boekhoudkundige autonomie (ADBA) | E189: 0 | F189: 0 | G189: 449.95924 | H189: 0 | I189: 0 | J189: 0 | K189: 0 | L189: 0 | M189: 0 | N189: 449.95924
B190: H_61 | C190: 6132 | D190: Overige kapitaaloverdrachten aan administratieve diensten met boekhoudkundige autonomie (ADBA) | E190: 0 | F190: 0 | G190: 0 | H190: 0 | I190: 0 | J190: 0 | K190: 0 | L190: 0 | M190: 0 | N190: 0
B191: H_61 | C191: 6141 | D191: Investeringsbijdragen aan administratieve openbare instellingen (AOI) | E191: 0 | F191: 0 | G191: 0 | H191: 1577.2842 | I191: 0 | J191: 0 | K191: 0 | L191: 0 | M191: 1847 | N191: 3424.2842
B192: H_61 | C192: 6142 | D192: Overige kapitaaloverdrachten aan administratieve openbare instellingen (AOI) | E192: 0 | F192: 0 | G192: 0 | H192: 765 | I192: 0 | J192: 0 | K192: 0 | L192: 0 | M192: 0 | N192: 765
B193: H_61 | C193: 6151 | D193: Investeringsbijdragen aan onderwijsinstellingen van de institutionele overheid | E193: =_xlfn.IFNA(IF(LEN($C193)>=4,VLOOKUP(E$6&"-"&$C193,rngDataP3aEXP,rngVLK3aEXP,FALSE),SUMIF($B:$B,"H_"&$C193,E:E)),0) -> 0 | F193: 0 | G193: 1024.84789 | H193: 0 | I193: 0 | J193: 0 | K193: 0 | L193: 0 | M193: 0 | N193: 1024.84789
B194: H_61 | C194: 6152 | D194: Overige kapitaaloverdrachten aan onderwijsinstellingen van de institutionele overheid | E194: 0 | F194: 0 | G194: 0 | H194: 0 | I194: 0 | J194: 0 | K194: 0 | L194: 0 | M194: 0 | N194: 0
B195: H_61 | C195: 6161 | D195: Investeringsbijdragen aan vzw's van de overheid | E195: 0 | F195: 0 | G195: 0 | H195: 0 | I195: 0 | J195: 0 | K195: 0 | L195: 0 | M195: 0 | N195: 0
B196: H_61 | C196: 6162 | D196: Overige kapitaaloverdrachten aan vzw's van de overheid | E196: 0 | F196: 0 | G196: 0 | H196: 0 | I196: 0 | J196: 0 | K196: 0 | L196: 0 | M196: 0 | N196: 0
B197: H_61 | C197: 6171 | D197: Investeringsbijdragen aan andere eenheden van de overheid | E197: 0 | F197: 0 | G197: 0 | H197: 18.58346 | I197: 0 | J197: 0 | K197: 0 | L197: 0 | M197: 0 | N197: 18.58346
B198: =IF(LEN(C198)>=4,"H_"&LEFT(C198,2),IF(LEN(C198)=2,"H_"&LEFT(C198,1),IF(LEN(C198)=1,"H_",""))) -> H_61 | C198: 6172 | D198: Overige kapitaaloverdrachten aan andere eenheden van de overheid | E198: 0 | F198: 0 | G198: 0 | H198: 0 | I198: 0 | J198: 0 | K198: 0 | L198: 0 | M198: 0 | N198: =IF(D198<>"",SUM($E198:$M198),"") -> 0
B199: H_6 | C199: 62 | D199: Kapitaaloverdrachten aan de socialezekerheidsinstellingen | E199: 0 | F199: 2323 | G199: 0 | H199: 0 | I199: 0 | J199: 0 | K199: 0 | L199: 0 | M199: 0 | N199: 2323
B200: H_62 | C200: 6210 | D200: Investeringsbijdragen | E200: 0 | F200: 2323 | G200: 0 | H200: 0 | I200: 0 | J200: 0 | K200: 0 | L200: 0 | M200: 0 | N200: 2323
B201: H_62 | C201: 6220 | D201: Overige kapitaaloverdrachten | E201: 0 | F201: 0 | G201: 0 | H201: 0 | I201: 0 | J201: 0 | K201: 0 | L201: 0 | M201: 0 | N201: 0
B202: H_6 | C202: 63 | D202: Kapitaaloverdrachten aan lokale overheden | E202: 18747 | F202: 226939.1581 | G202: 30149.28846 | H202: 2631.27586 | I202: 402446.3385 | J202: 130512.9899 | K202: 3081 | L202: 0 | M202: 2171 | N202: 816678.0508
B203: H_63 | C203: 6300 | D203: Kapitaaloverdrachten aan lokale overheden | E203: =_xlfn.IFNA(IF(LEN($C203)>=4,VLOOKUP(E$6&"-"&$C203,rngDataP3aEXP,rngVLK3aEXP,FALSE),SUMIF($B:$B,"H_"&$C203,E:E)),0) -> 0 | F203: 0 | G203: 0 | H203: 0 | I203: 0 | J203: 0 | K203: 0 | L203: 0 | M203: 0 | N203: 0
B204: H_63 | C204: 6311 | D204: Investeringsbijdragen aan provincies | E204: 0 | F204: 19803.37119 | G204: 1019.24696 | H204: 0 | I204: 8098.52882 | J204: 0 | K204: 2543 | L204: 0 | M204: 0 | N204: 31464.14697
B205: H_63 | C205: 6312 | D205: Overige kapitaaloverdrachten aan provincies | E205: 0 | F205: 492.11008 | G205: 0 | H205: 0 | I205: 61.99029 | J205: 0 | K205: 0 | L205: 0 | M205: 0 | N205: 554.10037
B206: H_63 | C206: 6321 | D206: Investeringsbijdragen aan gemeenten | E206: 17364 | F206: 111553.5915 | G206: 29100.70717 | H206: 2504.52147 | I206: 330152.3223 | J206: 85432.87857 | K206: 538 | L206: 0 | M206: 2171 | N206: 578817.021
B207: H_63 | C207: 6322 | D207: Overige kapitaaloverdrachten aan gemeenten | E207: 0 | F207: 32263.76905 | G207: 0 | H207: 8.55246 | I207: 2619.98107 | J207: 36187.11613 | K207: 0 | L207: 0 | M207: 0 | N207: 71079.41871
B208: H_63 | C208: 6331 | D208: Investeringsbijdragen aan provincies en gemeenten - niet verdeeld | E208: 0 | F208: 0 | G208: 0 | H208: 0 | I208: 0 | J208: 0 | K208: 0 | L208: 0 | M208: 0 | N208: 0
B209: H_63 | C209: 6332 | D209: Overige kapitaaloverdrachten aan provincies en gemeenten - niet verdeeld | E209: 0 | F209: 0 | G209: 0 | H209: 0 | I209: 0 | J209: 0 | K209: 0 | L209: 0 | M209: 0 | N209: 0
... 142 more rows

Sheet AllData_P3E_EXP (hidden)
B1: CODE_VLOOKUP | C1: ENTITY | D1: CODE_ECO1 | E1: CODE_ECO2 | F1: CODE_ECO3 | G1: CODE_ECO4 | H1: INI2010 | I1: PCLO2010 | J1: CLO2010 | K1: REA2010 | L1: INI2011 | M1: PCLO2011 | N1: CLO2011 | O1: REA2011 | P1: INI2012 | Q1: PCLO2012 | R1: CLO2012 | S1: REA2012 | T1: INI2013 | U1: PCLO2013 | V1: CLO2013 | W1: REA2013 | X1: INI2014 | Y1: PCLO2014 | Z1: CLO2014 | AA1: REA2014 | AB1: INI2015 | AC1: PCLO2015 | AD1: CLO2015 | AE1: REA2015 | AF1: INI2016 | AG1: PCLO2016 | AH1: CLO2016 | AI1: REA2016 | AJ1: INI2017 | AK1: PCLO2017 | AL1: CLO2017 | AM1: REA2017 | AN1: INI2018 | AO1: PCLO2018 | AP1: CLO2018 | AQ1: REA2018 | AR1: INI2019 | AS1: PCLO2019 | AT1: CLO2019 | AU1: REA2019 | AV1: INI2020 | AW1: PCLO2020 | AX1: CLO2020 | AY1: REA2020 | AZ1: INI2021 | BA1: PCLO2021 | BB1: CLO2021 | BC1: REA2021 | BD1: INI2022 | BE1: PCLO2022 | BF1: CLO2022 | BG1: REA2022 | BH1: INI2023 | BI1: PCLO2023 | BJ1: CLO2023 | BK1: REA2023 | BL1: INI2024 | BM1: PCLO2024 | BN1: CLO2024 | BO1: REA2024 | BP1: INI2025 | BQ1: PCLO2025 | BR1: CLO2025 | BS1: REA2025
A2: 0 | B2: =A2+1 -> 1 | C2: =B2+1 -> 2 | D2: =C2+1 -> 3 | E2: =D2+1 -> 4 | F2: =E2+1 -> 5 | G2: 6 | H2: 7 | I2: 8 | J2: 9 | K2: 10 | L2: 11 | M2: 12 | N2: 13 | O2: 14 | P2: 15 | Q2: 16 | R2: 17 | S2: 18 | T2: 19 | U2: 20 | V2: 21 | W2: 22 | X2: 23 | Y2: 24 | Z2: 25 | AA2: 26 | AB2: 27 | AC2: 28 | AD2: 29 | AE2: 30 | AF2: 31 | AG2: 32 | AH2: 33 | AI2: 34 | AJ2: 35 | AK2: 36 | AL2: 37 | AM2: 38 | AN2: 39 | AO2: 40 | AP2: 41 | AQ2: 42 | AR2: 43 | AS2: 44 | AT2: 45 | AU2: 46 | AV2: 47 | AW2: 48 | AX2: 49 | AY2: 50 | AZ2: 51 | BA2: 52 | BB2: 53 | BC2: 54 | BD2: 55 | BE2: 56 | BF2: 57 | BG2: 58 | BH2: 59 | BI2: 60 | BJ2: 61 | BK2: 62 | BL2: 63 | BM2: 64 | BN2: 65 | BO2: 66 | BP2: 67 | BQ2: 68 | BR2: 69 | BS2: 70
A3: 4 | B3: =C3&"-"&G3 -> CS-0100 | C3: CS | D3: =LEFT($G3,1) -> 0 | E3: =LEFT($G3,2) -> 01 | F3: =LEFT($G3,3) -> 010 | G3: 0100 | H3: 388950 | J3: 2008 | K3: 2008 | L3: 388950 | N3: 1921 | O3: 698 | P3: 425044 | R3: 309 | S3: 331 | T3: 404017 | V3: -18 | W3: -148 | X3: 159473 | Z3: -478 | AA3: -478 | AB3: 312897 | AD3: 2204 | AE3: 2204 | AF3: 1062798 | AG3: 2300 | AH3: 2481 | AI3: 2481 | AJ3: 740144 | AK3: 2020 | AL3: 2020 | AM3: 2020 | AN3: 874130 | AO3: 1467 | AP3: 1467 | AQ3: 1467 | AR3: 0 | AS3: 1401 | AT3: 1401 | AU3: 1401 | AV3: 0 | AW3: 0 | AX3: 0 | AY3: 0 | AZ3: 2272941 | BA3: 0 | BB3: =VLOOKUP(G3,[1]Dépenses!$1:$1048576,6,FALSE) -> 0 | BD3: 518971
A4: 4 | B4: CS-0200 | C4: CS | D4: 0 | E4: 02 | F4: 020 | G4: 0200 | H4: 0 | J4: 0 | K4: 0 | L4: 0 | N4: 0 | O4: 0 | P4: 0 | R4: 0 | S4: 0 | T4: 0 | V4: 0 | W4: 0 | X4: 0 | Z4: 0 | AA4: 0 | AB4: 0 | AD4: 0 | AE4: 0 | AF4: 0 | AG4: 0 | AH4: 0 | AI4: 0 | AJ4: 0 | AK4: 0 | AL4: 0 | AM4: 0 | AN4: 0 | AO4: 0 | AP4: 0 | AQ4: 0 | AR4: 0 | AS4: 0 | AT4: 0 | AV4: 0 | AW4: 0
A5: 4 | B5: CS-0400 | C5: CS | D5: 0 | E5: 04 | F5: 040 | G5: 0400 | H5: 509 | J5: 989 | K5: 989 | L5: 509 | N5: 0 | O5: 0 | P5: 539 | R5: 567 | S5: 567 | T5: 3030 | V5: 2277 | W5: 2277 | X5: 22179 | Z5: 19496 | AA5: 19496 | AB5: 28127 | AD5: 26441 | AE5: 26441 | AF5: 27966 | AG5: 0 | AH5: 0 | AI5: 0 | AJ5: 26957 | AK5: 0 | AL5: 0 | AM5: 0 | AN5: 0 | AO5: 0 | AP5: 0 | AQ5: 0 | AR5: 0 | AS5: 0 | AT5: 0 | AU5: 0 | AV5: 0 | AW5: 0 | AX5: 0 | AY5: 0 | AZ5: 0 | BA5: 0 | BB5: =VLOOKUP(G5,[1]Dépenses!$1:$1048576,6,FALSE) -> 0 | BD5: 0
A6: 4 | B6: CS-1111 | C6: CS | D6: 1 | E6: 11 | F6: 111 | G6: 1111 | H6: 5122151 | J6: 5115745 | K6: 5115224 | L6: 5122151 | N6: 5212948 | O6: 5219764 | P6: 5356513 | R6: 5207419 | S6: 5207722 | T6: 5523292 | V6: 5383790 | W6: 5395679 | X6: 5529483 | Z6: 5365444 | AA6: 5363138 | AB6: 5202781 | AD6: 5108366.863 | AE6: 4854335 | AF6: 5193509 | AG6: 4927376 | AH6: 5009547.23 | AI6: 5017044 | AJ6: 5232599.2 | AK6: 4989802 | AL6: 4938457 | AM6: 4900304 | AN6: 5038369 | AO6: 4871838 | AP6: 4867654 | AQ6: 5361352 | AR6: 0 | AS6: 5457101 | AT6: 5449323 | AU6: 5454672 | AV6: 0 | AW6: 5725666 | AX6: 5695822 | AY6: 5695822 | AZ6: 6069594 | BA6: 5832871.569 | BB6: =VLOOKUP(G6,[1]Dépenses!$1:$1048576,6,FALSE) -> 5819301.569 | BD6: 6211590.221
A7: 4 | B7: CS-1112 | C7: CS | D7: 1 | E7: 11 | F7: 111 | G7: 1112 | H7: 1115368 | J7: 1129754 | K7: 1128885 | L7: 1115368 | N7: 1190020 | O7: 1186693 | P7: 1130159 | R7: 1302651 | S7: 1302589 | T7: 1144056 | V7: 1121800 | W7: 1118273 | X7: 1145050 | Z7: 1115104 | AA7: 1116481 | AB7: 1059338 | AD7: 1064910 | AE7: 1402992 | AF7: 1020713 | AG7: 1546277 | AH7: 1381341.75 | AI7: 1397495 | AJ7: 1068140.3 | AK7: 1564353 | AL7: 1457614 | AM7: 1457614 | AN7: 1581228 | AO7: 1433245 | AP7: 1432545 | AQ7: 1517752 | AR7: 0 | AS7: 1538028 | AT7: 1538028 | AU7: 1538028 | AV7: 0 | AW7: 1354659 | AX7: 1355581 | AY7: 1345308 | AZ7: 1469437 | BA7: 1450258 | BB7: =VLOOKUP(G7,[1]Dépenses!$1:$1048576,6,FALSE) -> 1450258 | BD7: 1599549.545
A8: 4 | B8: CS-1120 | C8: CS | D8: 1 | E8: 11 | F8: 112 | G8: 1120 | H8: 469648 | J8: 457765 | K8: 457745 | L8: 469648 | N8: 462159 | O8: 462216 | P8: 490054 | R8: 480226 | S8: 479707 | T8: 459859 | V8: 481523 | W8: 480218 | X8: 490279 | Z8: 477249 | AA8: 476568 | AB8: 470834 | AD8: 491299.067 | AE8: 560519 | AF8: 496442 | AG8: 460573 | AH8: 535485.566 | AI8: 535485.566 | AJ8: 469437 | AK8: 468276 | AL8: 611577 | AM8: 611577 | AN8: 470721 | AO8: 614146 | AP8: 612945 | AQ8: 759054 | AR8: 0 | AS8: 837788 | AT8: 837788 | AU8: 837788 | AV8: 0 | AW8: 835509 | AX8: 835509 | AY8: 835509 | AZ8: 776766 | BA8: 844503 | BB8: =VLOOKUP(G8,[1]Dépenses!$1:$1048576,6,FALSE) -> 844503 | BD8: 866663.293
A9: 4 | B9: CS-1131 | C9: CS | D9: 1 | E9: 11 | F9: 113 | G9: 1131 | H9: 233768 | J9: 232634 | K9: 232562 | L9: 233768 | N9: 232777 | O9: 231779 | P9: 238172 | R9: 203087 | S9: 203525 | T9: 243421 | V9: 239495 | W9: 240483 | X9: 246958 | Z9: 233585 | AA9: 233627 | AB9: 183445 | AD9: 182470.843 | AE9: 12434 | AF9: 178595 | AG9: 8115 | AH9: 12201.628 | AI9: 12201.628 | AJ9: 170290.6 | AK9: 8209 | AL9: 10098 | AM9: 10098 | AN9: 8299 | AO9: 10062 | AP9: 10043 | AQ9: 12341 | AR9: 0 | AS9: 12694 | AT9: 12694 | AU9: 12694 | AV9: 0 | AW9: 25893 | AX9: 25931 | AY9: 25931 | AZ9: 28993 | BA9: 36618 | BB9: =VLOOKUP(G9,[1]Dépenses!$1:$1048576,6,FALSE) -> 36618 | BD9: 33432.549
A10: 4 | B10: CS-1132 | C10: CS | D10: 1 | E10: 11 | F10: 113 | G10: 1132 | H10: 92465 | J10: 89060 | K10: 89060 | L10: 92465 | N10: 91498 | O10: 91498 | P10: 94902 | R10: 95652 | S10: 95652 | T10: 97526 | V10: 95569 | W10: 95569 | X10: 99906 | Z10: 94818 | AA10: 94818 | AB10: 100413 | AD10: 95070 | AE10: 96092 | AF10: 98322 | AG10: 1423 | AH10: 1217.438 | AI10: 1217.438 | AJ10: 0 | AK10: 1440 | AL10: 1616 | AM10: 1616 | AN10: 1455 | AO10: 1604 | AP10: 1602 | AQ10: 1887 | AR10: 0 | AS10: 1933 | AT10: 1933 | AU10: 1933 | AV10: 0 | AW10: 18335 | AX10: 18362 | AY10: 18362 | AZ10: 20807 | BA10: 18318 | BB10: =VLOOKUP(G10,[1]Dépenses!$1:$1048576,6,FALSE) -> 18318 | BD10: 21265.647
A11: 4 | B11: CS-1133 | C11: CS | D11: 1 | E11: 11 | F11: 113 | G11: 1133 | H11: 3487517 | J11: 3460842 | K11: 3460842 | L11: 3487517 | N11: 3643972 | O11: 3643957 | P11: 3833251 | R11: 3814376 | S11: 3814376 | T11: 4003298 | V11: 4016792 | W11: 4016793 | X11: 4168162 | Z11: 4142418 | AA11: 4142418 | AB11: 4286030 | AD11: 4303613 | AE11: 4303613 | AF11: 4411457 | AG11: 0 | AH11: 186 | AI11: 186 | AJ11: 150 | AK11: 0 | AL11: 245 | AM11: 245 | AN11: 0 | AO11: 254 | AP11: 380 | AQ11: 438 | AR11: 0 | AS11: 462 | AT11: 462 | AU11: 462 | AV11: 0 | AW11: 325 | AX11: 325 | AY11: 325 | AZ11: 264 | BA11: 276 | BB11: =VLOOKUP(G11,[1]Dépenses!$1:$1048576,6,FALSE) -> 276 | BD11: 215
A12: 4 | B12: CS-1140 | C12: CS | D12: 1 | E12: 11 | F12: 114 | G12: 1140 | H12: 19176 | J12: 18913 | K12: 18915 | L12: 19176 | N12: 18124 | O12: 18047 | P12: 20124 | R12: 37719 | S12: 37719 | T12: 20114 | V12: 18530 | W12: 10739 | X12: 25729 | Z12: 24277 | AA12: 24277 | AB12: 25093 | AD12: 22525 | AE12: 38186 | AF12: 24826 | AG12: 35966 | AH12: 39623.388 | AI12: 39623.388 | AJ12: 26056.8 | AK12: 36386 | AL12: 49620 | AM12: 49620 | AN12: 36778 | AO12: 49643 | AP12: 49529 | AQ12: 63383 | AR12: 0 | AS12: 65440 | AT12: 65440 | AU12: 65440 | AV12: 0 | AW12: 44394 | AX12: 44395 | AY12: 44395 | AZ12: 40457 | BA12: 49828 | BB12: =VLOOKUP(G12,[1]Dépenses!$1:$1048576,6,FALSE) -> 49828 | BD12: 49740.745
A13: 4 | B13: CS-1211 | C13: CS | D13: 1 | E13: 12 | F13: 121 | G13: 1211 | H13: 2335801 | J13: 2254242 | K13: 2253548 | L13: 2335801 | N13: 2312787 | O13: 2320141 | P13: 2440395 | R13: 2197982 | S13: 2186174 | T13: 2415632 | V13: 2108924 | W13: 2114362 | X13: 2357220 | Z13: 2097335 | AA13: 2093125 | AB13: 2065410 | AD13: 2240957.987 | AE13: 2241289 | AF13: 2189463 | AG13: 2407986 | AH13: 2200658 | AI13: 2144821 | AJ13: 2248372 | AK13: 2192665 | AL13: 2186388 | AM13: 2147637 | AN13: 2396371 | AO13: 2308249 | AP13: 2251555 | AQ13: 3045117 | AR13: 0 | AS13: 3296460 | AT13: 3257991 | AU13: 3263433 | AV13: 0 | AW13: 3474624 | AX13: 3459377 | AY13: 3457589 | AZ13: 3917049 | BA13: 3766370 | BB13: =VLOOKUP(G13,[1]Dépenses!$1:$1048576,6,FALSE) -> 3705207 | BD13: 4326879
A14: 4 | B14: CS-1212 | C14: CS | D14: 1 | E14: 12 | F14: 121 | G14: 1212 | H14: 467770 | J14: 469146 | K14: 469146 | L14: 467770 | N14: 489916 | O14: 489668 | P14: 534332 | R14: 535876 | S14: 536044 | T14: 566502 | V14: 562132 | W14: 561106 | X14: 570643 | Z14: 561912 | AA14: 561890 | AB14: 536236 | AD14: 613270.782 | AE14: 613270 | AF14: 620951 | AG14: 526320 | AH14: 619109 | AI14: 619109 | AJ14: 579193 | AK14: 578233 | AL14: 573603 | AM14: 573603 | AN14: 592646 | AO14: 585725 | AP14: 580952 | AQ14: 613085 | AR14: 0 | AS14: 615723 | AT14: 605129 | AU14: 605407 | AV14: 0 | AW14: 625187 | AX14: 617532 | AY14: 617397 | AZ14: 594994 | BA14: 576556 | BB14: =VLOOKUP(G14,[1]Dépenses!$1:$1048576,6,FALSE) -> 514037 | BD14: 508939
A15: 4 | B15: CS-1221 | C15: CS | D15: 1 | E15: 12 | F15: 122 | G15: 1221 | H15: 51602 | J15: 43635 | K15: 43635 | L15: 51602 | N15: 44127 | O15: 45580 | P15: 69087 | R15: 80640 | S15: 80552 | T15: 69150 | V15: 71538 | W15: 71538 | X15: 70490 | Z15: 74098 | AA15: 72785 | AB15: 58967 | AD15: 95806 | AE15: 95806 | AF15: 75941 | AG15: 56025 | AH15: 142511 | AI15: 182195 | AJ15: 118597 | AK15: 218805 | AL15: 210238 | AM15: 210238 | AN15: 263894 | AO15: 241333 | AP15: 253180 | AQ15: 253180 | AR15: 0 | AS15: 261523 | AT15: 259655 | AU15: 259655 | AV15: 0 | AW15: 251110 | AX15: 239169 | AY15: 239169 | AZ15: 251056 | BA15: 246036 | BB15: =VLOOKUP(G15,[1]Dépenses!$1:$1048576,6,FALSE) -> 231787 | BD15: 281345
A16: 4 | B16: CS-1222 | C16: CS | D16: 1 | E16: 12 | F16: 122 | G16: 1222 | H16: 207 | J16: 977 | K16: 977 | L16: 207 | N16: 872 | O16: 872 | P16: 1091 | R16: 883 | S16: 883 | T16: 1093 | V16: 851 | W16: 851 | X16: 1055 | Z16: 926 | AA16: 926 | AB16: 888 | AD16: 3413 | AE16: 3413 | AF16: 2210 | AG16: 378 | AH16: 8332 | AI16: 8332 | AJ16: 6908 | AK16: 4974 | AL16: 5053 | AM16: 5053 | AN16: 7627 | AO16: 7291.6 | AP16: 7056 | AQ16: 7056 | AR16: 0 | AS16: 6736 | AT16: 5735 | AU16: 5735 | AV16: 0 | AW16: 7017 | AX16: 6424 | AY16: 6424 | AZ16: 19510 | BA16: 18038 | BB16: =VLOOKUP(G16,[1]Dépenses!$1:$1048576,6,FALSE) -> 4702 | BD16: 16184
A17: 4 | B17: CS-1250 | C17: CS | D17: 1 | E17: 12 | F17: 125 | G17: 1250 | H17: 6312 | J17: 4422 | K17: 4422 | L17: 6312 | N17: 6417 | O17: 6466 | P17: 6234 | R17: 5919 | S17: 7725 | T17: 6160 | V17: 9825 | W17: 9829 | X17: 6893 | Z17: 6302 | AA17: 6302 | AB17: 3826 | AD17: 7637.659 | AE17: 7638 | AF17: 7192 | AG17: 835 | AH17: 8229 | AI17: 31229 | AJ17: 7206 | AK17: 61563 | AL17: 63266 | AM17: 63231 | AN17: 62399 | AO17: 61199.8 | AP17: 61228 | AQ17: 65082 | AR17: 0 | AS17: 60619 | AT17: 62652 | AU17: 62664 | AV17: 0 | AW17: 56583 | AX17: 57018 | AY17: 56238 | AZ17: 67682 | BA17: 80298 | BB17: =VLOOKUP(G17,[1]Dépenses!$1:$1048576,6,FALSE) -> 142617 | BD17: 141521
A18: 4 | B18: CS-1300 | C18: CS | D18: 1 | E18: 13 | F18: 130 | G18: 1300 | H18: 189111 | J18: 187925 | K18: 187925 | L18: 189111 | N18: 158201 | O18: 158201 | P18: 102094 | R18: 50786 | S18: 50786 | T18: 41757 | V18: 31523 | W18: 31523 | X18: 91133 | Z18: 60106 | AA18: 60106 | AB18: 0 | AD18: 0 | AE18: 0 | AF18: 0 | AG18: 0 | AH18: 0 | AI18: 0 | AJ18: 0 | AK18: 0 | AL18: 0 | AM18: 0 | AN18: 0 | AO18: 0 | AP18: 0 | AQ18: 0 | AR18: 0 | AS18: 0 | AT18: 0 | AV18: 0 | AW18: 0
A19: 4 | B19: CS-1410 | C19: CS | D19: 1 | E19: 14 | F19: 141 | G19: 1410 | H19: 2065 | J19: 13 | K19: 13 | L19: 2065 | N19: 3 | O19: 3 | P19: 426 | R19: 0 | S19: 0 | T19: 0 | V19: 0 | W19: 0 | X19: 300 | Z19: 0 | AA19: 0 | AB19: 0 | AD19: 0 | AE19: 0 | AF19: 65 | AG19: -52 | AH19: 0 | AI19: 0 | AJ19: 0 | AK19: 0 | AL19: 0 | AM19: 0 | AN19: 362 | AO19: 0 | AP19: 0 | AQ19: 0 | AR19: 0 | AS19: 0 | AT19: 0 | AU19: 0 | AV19: 0 | AW19: 0 | AX19: 0 | AY19: 0 | AZ19: 1461 | BA19: 0 | BB19: =VLOOKUP(G19,[1]Dépenses!$1:$1048576,6,FALSE) -> 0 | BD19: 126
A20: 4 | B20: CS-1420 | C20: CS | D20: 1 | E20: 14 | F20: 142 | G20: 1420 | H20: 0 | J20: 0 | K20: 0 | L20: 0 | N20: 0 | O20: 0 | P20: 0 | R20: 0 | S20: 0 | T20: 0 | V20: 0 | W20: 0 | X20: 0 | Z20: 0 | AA20: 0 | AB20: 0 | AD20: 0 | AE20: 0 | AF20: 0 | AG20: 0 | AH20: 0 | AI20: 0 | AJ20: 0 | AK20: 0 | AL20: 0 | AM20: 0 | AN20: 0 | AO20: 0 | AP20: 0 | AQ20: 0 | AR20: 0 | AS20: 0 | AT20: 0 | AU20: 0 | AV20: 0 | AW20: 0 | AX20: 0 | AY20: 0 | AZ20: 0 | BA20: 0 | BB20: =VLOOKUP(G20,[1]Dépenses!$1:$1048576,6,FALSE) -> 0 | BD20: 0
A21: 4 | B21: CS-2110 | C21: CS | D21: 2 | E21: 21 | F21: 211 | G21: 2110 | H21: 11580058 | J21: 11049478 | K21: 11049478 | L21: 11580058 | N21: 11377825 | O21: 11378334 | P21: 12625428 | R21: 12132739 | S21: 12132693 | T21: 11723188 | V21: 11462483 | W21: 11462493 | X21: 11568826 | Z21: 11501077 | AA21: 11501076 | AB21: 10844044 | AD21: 10560750 | AE21: 10560763 | AF21: 10228920 | AG21: 10090983 | AH21: 10084096 | AI21: 10084096 | AJ21: 9059971 | AK21: 9211290 | AL21: 9213248 | AM21: 9213248 | AN21: 8773405 | AO21: 8506209.5 | AP21: 8506505 | AQ21: 8539984 | AR21: 0 | AS21: 8284152 | AT21: 8282768 | AU21: 8282768 | AV21: 0 | AW21: 7898976 | AX21: 7897052 | AY21: 7897043 | AZ21: 7272529 | BA21: 7204987 | BB21: =VLOOKUP(G21,[1]Dépenses!$1:$1048576,6,FALSE) -> 7266912 | BD21: 6267862
A22: 4 | B22: CS-2120 | C22: CS | D22: 2 | E22: 21 | F22: 212 | G22: 2120 | H22: 13802 | J22: 13954 | K22: 13954 | L22: 13802 | N22: 775 | O22: -524 | P22: 18585 | R22: -2343 | S22: -2343 | T22: 8071 | V22: -2083 | W22: -2083 | X22: 11850 | Z22: -1988 | AA22: -1988 | AB22: 130740 | AD22: 180880 | AE22: 180880 | AF22: 160591 | AG22: 165302 | AH22: 165302 | AI22: 165302 | AJ22: 184586 | AK22: 234816 | AL22: 234816 | AM22: 234816 | AN22: 202884 | AO22: 237685 | AP22: 237685 | AQ22: 258518 | AR22: 0 | AS22: 215113 | AT22: 215113 | AU22: 215113 | AV22: 0 | AW22: 131433 | AX22: 132338 | AY22: 132338 | AZ22: 138446 | BA22: 121106 | BB22: =VLOOKUP(G22,[1]Dépenses!$1:$1048576,6,FALSE) -> 121106 | BD22: 143218
A23: 4 | B23: CS-2130 | C23: CS | D23: 2 | E23: 21 | F23: 213 | G23: 2130 | H23: 0 | J23: 0 | K23: 0 | L23: 0 | N23: 0 | O23: 0 | P23: 0 | R23: 45666 | S23: 45666 | T23: 0 | V23: 0 | W23: 0 | X23: 0 | Z23: 18 | AA23: 18 | AB23: 0 | AD23: 0 | AE23: 63 | AF23: 0 | AG23: 0 | AH23: 112 | AI23: 112 | AJ23: 733 | AK23: 120 | AL23: 120 | AM23: 120 | AN23: 862 | AO23: 80 | AP23: 80 | AQ23: 80 | AR23: 0 | AS23: 80 | AT23: 80 | AU23: 80 | AV23: 0 | AW23: 229 | AX23: 229 | AY23: 229 | AZ23: 833 | BA23: 1019 | BB23: =VLOOKUP(G23,[1]Dépenses!$1:$1048576,6,FALSE) -> 1019 | BD23: 1668
A24: 4 | B24: CS-2140 | C24: CS | D24: 2 | E24: 21 | F24: 214 | G24: 2140 | H24: 2255 | J24: 1835 | K24: 1835 | L24: 2255 | N24: 736 | O24: 736 | P24: 1626 | R24: 807 | S24: 807 | T24: 1124 | V24: 539 | W24: 539 | X24: 895 | Z24: 477 | AA24: 477 | AB24: 742 | AD24: 613 | AE24: 613 | AF24: 667 | AG24: 404 | AH24: 1570 | AI24: 1570 | AJ24: 986 | AK24: 350 | AL24: 855 | AM24: 855 | AN24: 926 | AO24: 1110.9 | AP24: 1994 | AQ24: 2729 | AR24: 0 | AS24: 2415 | AT24: 1947 | AU24: 1947 | AV24: 0 | AW24: 2960 | AX24: 2448 | AY24: 2448 | AZ24: 1660 | BA24: 1402 | BB24: =VLOOKUP(G24,[1]Dépenses!$1:$1048576,6,FALSE) -> 957 | BD24: 1647
A25: 4 | B25: CS-2150 | C25: CS | D25: 2 | E25: 21 | F25: 215 | G25: 2150 | H25: 12018 | J25: 12141 | K25: 12141 | L25: 12018 | N25: 11192 | O25: 11192 | P25: 10048 | R25: 10039 | S25: 10039 | T25: 11638 | V25: 8191 | W25: 8191 | X25: 10364 | Z25: 5113 | AA25: 5113 | AB25: 4737 | AD25: 4739 | AE25: 4739 | AF25: 4665 | AG25: 0 | AH25: 752 | AI25: 752 | AJ25: 604 | AK25: 730 | AL25: 651 | AM25: 651 | AN25: 655 | AO25: 650.5 | AP25: 595 | AQ25: 1030 | AR25: 0 | AS25: 1336 | AT25: 1111 | AU25: 1111 | AV25: 0 | AW25: 641 | AX25: 546 | AY25: 546 | AZ25: 577 | BA25: 595 | BB25: =VLOOKUP(G25,[1]Dépenses!$1:$1048576,6,FALSE) -> 634 | BD25: 431
A26: 4 | B26: CS-2160 | C26: CS | D26: 2 | E26: 21 | F26: 216 | G26: 2160 | H26: 0 | J26: 0 | K26: 0 | L26: 0 | N26: 0 | O26: 0 | P26: 0 | R26: 0 | S26: 0 | T26: 0 | V26: 0 | W26: 0 | X26: 0 | Z26: 0 | AA26: 0 | AB26: 0 | AD26: 377 | AE26: 377 | AF26: 0 | AG26: 9320 | AH26: 15170 | AI26: 15170 | AJ26: 170 | AK26: 6946 | AL26: 6943 | AM26: 6943 | AN26: 534 | AO26: 3378.7 | AP26: 3446 | AQ26: 3737 | AR26: 0 | AS26: 5477 | AT26: 6083 | AU26: 6083 | AV26: 0 | AW26: 9749 | AX26: 9666 | AY26: 9666 | AZ26: 4549 | BA26: 26630 | BB26: =VLOOKUP(G26,[1]Dépenses!$1:$1048576,6,FALSE) -> 26653 | BD26: 4532
A27: 4 | B27: CS-2200 | C27: CS | D27: 2 | E27: 22 | F27: 220 | G27: 2200 | H27: 0 | J27: 0 | K27: 0 | L27: 0 | N27: 0 | O27: 0 | P27: 0 | R27: 0 | S27: 0 | T27: 0 | V27: 0 | W27: 0 | X27: 0 | Z27: 0 | AA27: 0 | AB27: 0 | AD27: 0 | AE27: 0 | AF27: 0 | AG27: 0 | AH27: 0 | AI27: 0 | AJ27: 0 | AK27: 0 | AL27: 0 | AM27: 0 | AN27: 0 | AO27: 0 | AP27: 0 | AQ27: 0 | AR27: 0 | AS27: 0 | AT27: 0 | AV27: 0 | AW27: 0
A28: 4 | B28: CS-2410 | C28: CS | D28: 2 | E28: 24 | F28: 241 | G28: 2410 | H28: 0 | J28: 0 | K28: 0 | L28: 0 | N28: 0 | O28: 0 | P28: 0 | R28: 0 | S28: 0 | T28: 0 | V28: 0 | W28: 0 | X28: 0 | Z28: 0 | AA28: 0 | AB28: 0 | AD28: 0 | AE28: 0 | AF28: 0 | AG28: 1224 | AH28: 0 | AI28: 0 | AJ28: 0 | AK28: 1425 | AL28: 0 | AM28: 0 | AN28: 0 | AO28: 1545.8 | AP28: 1545 | AQ28: 1728 | AR28: 0 | AS28: 277 | AT28: 277 | AU28: 277 | AV28: 0 | AW28: 739 | AX28: 776 | AY28: 776 | AZ28: 271 | BA28: 445 | BB28: =VLOOKUP(G28,[1]Dépenses!$1:$1048576,6,FALSE) -> 1005 | BD28: 276
A29: 4 | B29: CS-2420 | C29: CS | D29: 2 | E29: 24 | F29: 242 | G29: 2420 | H29: 0 | J29: 0 | K29: 0 | L29: 0 | N29: 0 | O29: 0 | P29: 0 | R29: 0 | S29: 0 | T29: 0 | V29: 0 | W29: 0 | X29: 0 | Z29: 0 | AA29: 0 | AB29: 0 | AD29: 0 | AE29: 0 | AF29: 0 | AG29: 0 | AH29: 2110 | AI29: 2110 | AJ29: 1109 | AK29: 1124 | AL29: 1124 | AM29: 1124 | AN29: 1145 | AO29: 575 | AP29: 574 | AQ29: 574 | AR29: 0 | AS29: 1157 | AT29: 635 | AU29: 635 | AV29: 0 | AW29: 641 | AX29: 638 | AY29: 638 | AZ29: 638 | BA29: 638 | BB29: =VLOOKUP(G29,[1]Dépenses!$1:$1048576,6,FALSE) -> 27 | BD29: 604
A30: 4 | B30: CS-2500 | C30: CS | D30: 2 | E30: 25 | F30: 250 | G30: 2500 | H30: 0 | J30: 0 | K30: 0 | L30: 0 | N30: 0 | O30: 0 | P30: 0 | R30: 0 | S30: 0 | T30: 0 | V30: 0 | W30: 0 | X30: 0 | Z30: 0 | AA30: 0 | AB30: 0 | AD30: 7567.194 | AE30: 7567.194 | AF30: 0 | AG30: 0 | AH30: 6249 | AI30: 6249 | AJ30: 3920 | AK30: 24477 | AL30: 24477 | AM30: 24477 | AN30: 24756 | AO30: 33727.1 | AP30: 33727.1 | AQ30: 33727.1 | AR30: 0 | AS30: 37449 | AT30: 37449 | AU30: 37449 | AV30: 0 | AW30: 13695 | AX30: 13695 | AY30: 13695 | AZ30: 0 | BA30: 4243 | BB30: =VLOOKUP(G30,[1]Dépenses!$1:$1048576,6,FALSE) -> 4243 | BD30: 23205
A31: 4 | B31: CS-3111 | C31: CS | D31: 3 | E31: 31 | F31: 311 | G31: 3111 | H31: 0 | J31: 0 | K31: 0 | L31: 0 | N31: 0 | O31: 0 | P31: 0 | R31: 0 | S31: 0 | T31: 0 | V31: 0 | W31: 0 | X31: 0 | Z31: 0 | AA31: 0 | AB31: 0 | AD31: 0 | AE31: 0 | AF31: 0 | AG31: 0 | AH31: 0 | AI31: 0 | AJ31: 0 | AK31: 0 | AL31: 0 | AM31: 0 | AN31: 0 | AO31: 0 | AP31: 0 | AQ31: 0 | AR31: 0 | AS31: 0 | AT31: 0 | AU31: 0 | AV31: 0 | AW31: 0 | AX31: 0 | AY31: 0 | AZ31: 0 | BA31: 0 | BB31: =VLOOKUP(G31,[1]Dépenses!$1:$1048576,6,FALSE) -> 0 | BD31: 0
A32: 4 | B32: CS-3112 | C32: CS | D32: 3 | E32: 31 | F32: 311 | G32: 3112 | H32: 36838 | J32: 16633 | K32: 16633 | L32: 36838 | N32: 23826 | O32: 23826 | P32: 26329 | R32: 26427 | S32: 26427 | T32: 24647 | V32: 18603 | W32: 18603 | X32: 24957 | Z32: 42576 | AA32: 42576 | AB32: 32887 | AD32: 28166 | AE32: 28166 | AF32: 37214 | AG32: 28396 | AH32: 28374 | AI32: 28374 | AJ32: 36292 | AK32: 35989 | AL32: 34890 | AM32: 34890 | AN32: 36123 | AO32: 37380.1 | AP32: 37847 | AQ32: 37847 | AR32: 0 | AS32: 31839 | AT32: 31340 | AU32: 31340 | AV32: 0 | AW32: 10620 | AX32: 10620 | AY32: 10620 | AZ32: 37343 | BA32: 14141 | BB32: =VLOOKUP(G32,[1]Dépenses!$1:$1048576,6,FALSE) -> 14141 | BD32: 16874
A33: 4 | B33: CS-3121 | C33: CS | D33: 3 | E33: 31 | F33: 312 | G33: 3121 | H33: 901404 | J33: 940567 | K33: 940567 | L33: 901404 | N33: 27497 | O33: 27497 | P33: 34720 | R33: 31538 | S33: 31538 | T33: 34720 | V33: 32208 | W33: 32208 | X33: 34780 | Z33: 33357 | AA33: 33357 | AB33: 32890 | AD33: 52683 | AE33: 52683 | AF33: 28700 | AG33: 55253 | AH33: 55253 | AI33: 55253 | AJ33: 48717 | AK33: 52797 | AL33: 52797 | AM33: 52797 | AN33: 51113 | AO33: 56146 | AP33: 56146 | AQ33: 56146 | AR33: 0 | AS33: 57179 | AT33: 57179 | AU33: 57179 | AV33: 0 | AW33: 59393 | AX33: 59393 | AY33: 59393 | AZ33: 59661 | BA33: 58848 | BB33: =VLOOKUP(G33,[1]Dépenses!$1:$1048576,6,FALSE) -> 58848 | BD33: 63737
A34: 4 | B34: CS-3122 | C34: CS | D34: 3 | E34: 31 | F34: 312 | G34: 3122 | H34: 906804 | J34: 943989 | K34: 943919 | L34: 906804 | N34: 1911160 | O34: 1911160 | P34: 1981077 | R34: 1932978 | S34: 1932978 | T34: 2011108 | V34: 1863990 | W34: 1863990 | X34: 1923921 | Z34: 1901015 | AA34: 1901015 | AB34: 1905485 | AD34: 1840705 | AE34: 1840705 | AF34: 1806838 | AG34: 1715633 | AH34: 1715651 | AI34: 1715651 | AJ34: 1795419 | AK34: 1569388 | AL34: 1569388 | AM34: 1569388 | AN34: 1667512 | AO34: 1718682 | AP34: 1718682 | AQ34: 1533501 | AR34: 0 | AS34: 1582466 | AT34: 1582466 | AU34: 1582466 | AV34: 0 | AW34: 2498710 | AX34: 2498710 | AY34: 2506710 | AZ34: 1291120 | BA34: 1453661 | BB34: =VLOOKUP(G34,[1]Dépenses!$1:$1048576,6,FALSE) -> 1453661 | BD34: 1407813
A35: 4 | B35: CS-3131 | C35: CS | D35: =LEFT($G35,1) -> 3 | E35: =LEFT($G35,2) -> 31 | F35: =LEFT($G35,3) -> 313 | G35: 3131 | H35: 0 | J35: 0 | K35: 0 | L35: 0 | N35: 0 | O35: 0 | P35: 0 | R35: 0 | S35: 0 | T35: 0 | V35: 0 | W35: 0 | X35: 0 | Z35: 0 | AA35: 0 | AB35: 0 | AD35: 0 | AE35: 0 | AF35: 0 | AG35: 0 | AH35: 0 | AI35: 0 | AJ35: 0 | AK35: 0 | AL35: 0 | AM35: 122543 | AN35: 0 | AO35: 0 | AP35: 147328 | AQ35: 147328 | AR35: 0 | AS35: 176032 | AT35: 176032 | AU35: 176032 | AV35: 0 | AW35: 218654 | AX35: 218654 | AY35: 218654 | AZ35: 279279 | BA35: 290418 | BB35: =VLOOKUP(G35,[1]Dépenses!$1:$1048576,6,FALSE) -> 288372 | BD35: 73345
A36: 4 | B36: CS-3132 | C36: CS | D36: 3 | E36: 31 | F36: 313 | G36: 3132 | H36: 23554 | J36: 22137 | K36: 22137 | L36: 23554 | N36: 12619 | O36: 12619 | P36: 16497 | R36: 14645 | S36: 14645 | T36: 15575 | V36: 14048 | W36: 14048 | X36: 18683 | Z36: 32907 | AA36: 32907 | AB36: 10200 | AD36: 7854 | AE36: 7854 | AF36: 9989 | AG36: 6252 | AH36: 7116 | AI36: 7116 | AJ36: 8255 | AK36: 7512 | AL36: 8072 | AM36: 8072 | AN36: 27853 | AO36: 17969 | AP36: 17803 | AQ36: 17803 | AR36: 0 | AS36: 66678 | AT36: 66194 | AU36: 66194 | AV36: 0 | AW36: 274694 | AX36: 272805 | AY36: 300404 | AZ36: 27756 | BA36: 357930 | BB36: =VLOOKUP(G36,[1]Dépenses!$1:$1048576,6,FALSE) -> 357924 | BD36: 262132
A37: 4 | B37: CS-3140 | C37: CS | D37: 3 | E37: 31 | F37: 314 | G37: 3140 | H37: 0 | J37: 0 | K37: 0 | L37: 0 | N37: 0 | O37: 0 | P37: 0 | R37: 0 | S37: 0 | T37: 0 | V37: 0 | W37: 0 | X37: 0 | Z37: 0 | AA37: 0 | AB37: 0 | AD37: 0 | AE37: 0 | AF37: 0 | AG37: 0 | AH37: 0 | AI37: 0 | AJ37: 0 | AK37: 0 | AL37: 0 | AM37: 0 | AN37: 0 | AO37: 0 | AP37: 0 | AQ37: 0 | AR37: 0 | AS37: 0 | AT37: 0 | AU37: 0 | AV37: 0 | AW37: 0 | AX37: 0 | AY37: 0 | AZ37: 0 | BA37: 0 | BB37: =VLOOKUP(G37,[1]Dépenses!$1:$1048576,6,FALSE) -> 0 | BD37: 0
A38: 4 | B38: CS-3200 | C38: CS | D38: 3 | E38: 32 | F38: 320 | G38: 3200 | H38: 3908 | J38: 7116 | K38: 7116 | L38: 3908 | N38: 3731 | O38: 3731 | P38: 5218 | R38: 6796 | S38: 6796 | T38: 4283 | V38: 9123 | W38: 9123 | X38: 3672 | Z38: 5679 | AA38: 5679 | AB38: 1439 | AD38: 38526 | AE38: 38526 | AF38: 1312 | AG38: 14225 | AH38: 12135 | AI38: 12135 | AJ38: 746 | AK38: 10966 | AL38: 9879 | AM38: 9879 | AN38: 480 | AO38: 33046.5 | AP38: 33319 | AQ38: 36751 | AR38: 0 | AS38: 33380 | AT38: 32945 | AU38: 32945 | AV38: 0 | AW38: 16603 | AX38: 28237 | AY38: 28340 | AZ38: 5583 | BA38: 39119 | BB38: =VLOOKUP(G38,[1]Dépenses!$1:$1048576,6,FALSE) -> 58439 | BD38: 13946
A39: 4 | B39: CS-3300 | C39: CS | D39: 3 | E39: 33 | F39: 330 | G39: 3300 | H39: 271264 | J39: 261073 | K39: 257961 | L39: 271264 | N39: 309053 | O39: 308108 | P39: 269011 | R39: 294497 | S39: 294561 | T39: 304906 | V39: 273622 | W39: 268708 | X39: 286314 | Z39: 242184 | AA39: 242184 | AB39: 247160 | AD39: 264443 | AE39: 264443 | AF39: 206711 | AG39: 378180 | AH39: 356613 | AI39: 356613 | AJ39: 237835 | AK39: 310759 | AL39: 311513 | AM39: 318531 | AN39: 248549 | AO39: 328041.8 | AP39: 338604 | AQ39: 338604 | AR39: 0 | AS39: 316643 | AT39: 331205 | AU39: 331205 | AV39: 0 | AW39: 358603 | AX39: 356381 | AY39: 357347 | AZ39: 332525 | BA39: 374038 | BB39: =VLOOKUP(G39,[1]Dépenses!$1:$1048576,6,FALSE) -> 375979 | BD39: 358010
A40: 4 | B40: CS-3410 | C40: CS | D40: 3 | E40: 34 | F40: 341 | G40: 3410 | H40: 1094831 | J40: 1085225 | K40: 1085225 | L40: 1094831 | N40: 1115672 | O40: 1115672 | P40: 1149795 | R40: 1141740 | S40: 1141740 | T40: 1171910 | V40: 1151161 | W40: 1151161 | X40: 1156135 | Z40: 1156414 | AA40: 1156414 | AB40: 1165461 | AD40: 1156897 | AE40: 1156897 | AF40: 1169754 | AG40: 0 | AH40: 0 | AI40: 0 | AJ40: 0 | AK40: 0 | AL40: 0 | AM40: 0 | AN40: 0 | AO40: 0 | AP40: 0 | AQ40: 0 | AR40: 0 | AS40: 0 | AT40: 0 | AU40: 0 | AV40: 0 | AW40: 0 | AX40: 0 | AY40: 0 | AZ40: 0 | BA40: 0 | BB40: =VLOOKUP(G40,[1]Dépenses!$1:$1048576,6,FALSE) -> 0 | BD40: 0
A41: 4 | B41: CS-3420 | C41: CS | D41: 3 | E41: 34 | F41: 342 | G41: 3420 | H41: 129774 | J41: 126882 | K41: 126988 | L41: 129774 | N41: 115848 | O41: 115847 | P41: 106470 | R41: 104850 | S41: 104850 | T41: 97923 | V41: 93694 | W41: 93694 | X41: 86975 | Z41: 82496 | AA41: 82496 | AB41: 75382 | AD41: 66006 | AE41: 66006 | AF41: 64783 | AG41: 21699 | AH41: 21699 | AI41: 21699 | AJ41: 22867 | AK41: 22865 | AL41: 22865 | AM41: 22865 | AN41: 29456 | AO41: 25254 | AP41: 0 | AQ41: 0 | AR41: 0 | AS41: 0 | AT41: 0 | AU41: 0 | AV41: 0 | AW41: 0 | AX41: 0 | AY41: 0 | AZ41: 0 | BA41: 0 | BB41: =VLOOKUP(G41,[1]Dépenses!$1:$1048576,6,FALSE) -> 0 | BD41: 0
A42: 4 | B42: CS-3431 | C42: CS | D42: 3 | E42: 34 | F42: 343 | G42: 3431 | H42: 4579280 | J42: 4620339 | K42: 4625117 | L42: 4579280 | N42: 4815077 | O42: 4813289 | P42: 5139687 | R42: 4803140 | S42: 4803158 | T42: 4812120 | V42: 5052651 | W42: 5052651 | X42: 5149522 | Z42: 5143336.922 | AA42: 5143337 | AB42: 5291807 | AD42: 4737816 | AE42: 4737816 | AF42: 4879182 | AG42: 2050082 | AH42: 2055381 | AI42: 2055381 | AJ42: 2135044 | AK42: 2138431 | AL42: 2138131 | AM42: 2138131 | AN42: 2262145 | AO42: 2266581.3 | AP42: 2266125 | AQ42: 2266125 | AR42: 0 | AS42: 2403756 | AT42: 2403619 | AU42: 2403619 | AV42: 0 | AW42: 2619366 | AX42: 2619304 | AY42: 2619304 | AZ42: 2710886 | BA42: 2947921 | BB42: =VLOOKUP(G42,[1]Dépenses!$1:$1048576,6,FALSE) -> 2947895 | BD42: 2927271
A43: 4 | B43: CS-3432 | C43: CS | D43: 3 | E43: 34 | F43: 343 | G43: 3432 | H43: 191355 | J43: 103347 | K43: 103347 | L43: 191355 | N43: 401450 | O43: 401450 | P43: 387172 | R43: 397371 | S43: 397408 | T43: 275630 | V43: 316423 | W43: 316423 | X43: 191312 | Z43: 288858 | AA43: 288858 | AB43: 336648 | AD43: 351704 | AE43: 351704 | AF43: 376129 | AG43: 444518 | AH43: 433880 | AI43: 433880 | AJ43: 417111 | AK43: 413850 | AL43: 412801 | AM43: 279049 | AN43: 428443 | AO43: 426522.8 | AP43: 279078 | AQ43: 279078 | AR43: 0 | AS43: 308728 | AT43: 307439 | AU43: 307439 | AV43: 0 | AW43: 360348 | AX43: 355836 | AY43: 355836 | AZ43: 456242 | BA43: 1075287 | BB43: =VLOOKUP(G43,[1]Dépenses!$1:$1048576,6,FALSE) -> 1074840 | BD43: 745712
A44: 4 | B44: CS-3441 | C44: CS | D44: 3 | E44: 34 | F44: 344 | G44: 3441 | H44: 204652 | J44: 340977 | K44: 340977 | L44: 204652 | N44: 439386 | O44: 444172 | P44: 112904 | R44: 250729 | S44: 250729 | T44: 121238 | V44: 173961 | W44: 173961 | X44: 126255 | Z44: 148915 | AA44: 148915 | AB44: 89951 | AD44: 136935 | AE44: 136935 | AF44: 117635 | AG44: 140285 | AH44: 140534 | AI44: 140534 | AJ44: 132170 | AK44: 131287 | AL44: 131287 | AM44: 131287 | AN44: 149140 | AO44: 136198.3 | AP44: 136201 | AQ44: 136201 | AR44: 0 | AS44: 140878 | AT44: 140869 | AU44: 140867 | AV44: 0 | AW44: 152494 | AX44: 152494 | AY44: 152494 | AZ44: 136689 | BA44: 237246 | BB44: =VLOOKUP(G44,[1]Dépenses!$1:$1048576,6,FALSE) -> 237247 | BD44: 246450
A45: 4 | B45: CS-3442 | C45: CS | D45: 3 | E45: 34 | F45: 344 | G45: 3442 | H45: 531 | J45: 531 | K45: 531 | L45: 531 | N45: 540 | O45: 540 | P45: 545 | R45: 512 | S45: 289 | T45: 522 | V45: 289 | W45: 289 | X45: 292 | Z45: 0 | AA45: 0 | AB45: 296 | AD45: 503 | AE45: 503 | AF45: 255 | AG45: 0 | AH45: 0 | AI45: 0 | AJ45: 0 | AK45: 0 | AL45: 0 | AM45: 0 | AN45: 0 | AO45: 0 | AP45: 0 | AQ45: 0 | AR45: 0 | AS45: 0 | AT45: 0 | AU45: 0 | AV45: 0 | AW45: 141800 | AX45: 141800 | AY45: 141800 | AZ45: 0 | BA45: 0 | BB45: =VLOOKUP(G45,[1]Dépenses!$1:$1048576,6,FALSE) -> 0 | BD45: 0
A46: 4 | B46: CS-3450 | C46: CS | D46: 3 | E46: 34 | F46: 345 | G46: 3450 | H46: 1008 | J46: 1008 | K46: 1008 | L46: 1008 | N46: 2405 | O46: 2405 | P46: 1029 | R46: 1029 | S46: 1029 | T46: 1049 | V46: 1039 | W46: 1039 | X46: 1053 | Z46: 1053 | AA46: 1053 | AB46: 0 | AD46: 0 | AE46: 0 | AF46: 10 | AG46: 10 | AH46: 10 | AI46: 10 | AJ46: 6 | AK46: 6 | AL46: 6 | AM46: 6 | AN46: 2 | AO46: 0 | AP46: 0 | AQ46: 0 | AR46: 0 | AS46: 2 | AT46: 2 | AU46: 2 | AV46: 0 | AW46: 0 | AX46: 0 | AY46: 0 | AZ46: 2 | BA46: 0 | BB46: =VLOOKUP(G46,[1]Dépenses!$1:$1048576,6,FALSE) -> 0 | BD46: 2
A47: 4 | B47: CS-3510 | C47: CS | D47: 3 | E47: 35 | F47: 351 | G47: 3510 | H47: 2975552 | J47: 2891558 | K47: 2891558 | L47: 2975552 | N47: 2973453 | O47: 2973453 | P47: 3201053 | R47: 3125374 | S47: 3125374 | T47: 3392183 | V47: 3637901 | W47: 3637901 | X47: 3252280 | Z47: 3275576 | AA47: 3275576 | AB47: 3904710 | AD47: 4111354 | AE47: 4111354 | AF47: 4445088 | AG47: 4100921 | AH47: 4101588 | AI47: 4101588 | AJ47: 3701815 | AK47: 3219722 | AL47: 3219722 | AM47: 3219722 | AN47: 3896930 | AO47: 3628685 | AP47: 3628685 | AQ47: 3628685 | AR47: 0 | AS47: 4119394 | AT47: 4119394 | AU47: 4119394 | AV47: 0 | AW47: 4724751 | AX47: 4724751 | AY47: 4808651 | AZ47: 5151898 | BA47: 5170332 | BB47: =VLOOKUP(G47,[1]Dépenses!$1:$1048576,6,FALSE) -> 5170332 | BD47: 4800087
A48: 4 | B48: CS-3520 | C48: CS | D48: 3 | E48: 35 | F48: 352 | G48: 3520 | H48: 9 | J48: 8 | K48: 8 | L48: 9 | N48: 8 | O48: 8 | P48: 378 | R48: 205 | S48: 205 | T48: 24327 | V48: 129542 | W48: 129542 | X48: 89230 | Z48: 89162 | AA48: 89162 | AB48: 74168 | AD48: 444 | AE48: 444 | AF48: 68241 | AG48: 10 | AH48: 10 | AI48: 10 | AJ48: 66254 | AK48: 124 | AL48: 153 | AM48: 153 | AN48: 68296 | AO48: 4708.4 | AP48: 4734 | AQ48: 4734 | AR48: 0 | AS48: 43730 | AT48: 43776 | AU48: 53676 | AV48: 0 | AW48: 57790 | AX48: 57680 | AY48: 57680 | AZ48: 58731 | BA48: 78119 | BB48: =VLOOKUP(G48,[1]Dépenses!$1:$1048576,6,FALSE) -> 77831 | BD48: 55551
A49: 4 | B49: CS-3530 | C49: CS | D49: 3 | E49: 35 | F49: 353 | G49: 3530 | H49: 725 | J49: 799 | K49: 799 | L49: 725 | N49: 929 | O49: 929 | P49: 1070 | R49: 988 | S49: 972 | T49: 1072 | V49: 783 | W49: 783 | X49: 1092 | Z49: 526 | AA49: 526 | AB49: 571 | AD49: 933 | AE49: 933 | AF49: 439 | AG49: 343 | AH49: 403 | AI49: 403 | AJ49: 1533 | AK49: 982 | AL49: 982 | AM49: 982 | AN49: 1460 | AO49: 1531.3 | AP49: 1526 | AQ49: 1526 | AR49: 0 | AS49: 940 | AT49: 940 | AU49: 940 | AV49: 0 | AW49: 770 | AX49: 771 | AY49: 771 | AZ49: 1993 | BA49: 1325 | BB49: =VLOOKUP(G49,[1]Dépenses!$1:$1048576,6,FALSE) -> 1324 | BD49: 1484
A50: 4 | B50: CS-3540 | C50: CS | D50: 3 | E50: 35 | F50: 354 | G50: 3540 | H50: 620708 | J50: 614924 | K50: 615034 | L50: 620708 | N50: 653085 | O50: 653072 | P50: 653791 | R50: 586027 | S50: 586027 | T50: 640913 | V50: 606811 | W50: 606811 | X50: 639887 | Z50: 667137 | AA50: 667137 | AB50: 622835 | AD50: 640999 | AE50: 640999 | AF50: 701076 | AG50: 672490 | AH50: 671259 | AI50: 671259 | AJ50: 687684 | AK50: 618510 | AL50: 617844 | AM50: 617844 | AN50: 671800 | AO50: 617667.3 | AP50: 619192 | AQ50: 619192 | AR50: 0 | AS50: 648370 | AT50: 648822 | AU50: 648822 | AV50: 0 | AW50: 719986 | AX50: 719458 | AY50: 721585 | AZ50: 730056 | BA50: 722970 | BB50: =VLOOKUP(G50,[1]Dépenses!$1:$1048576,6,FALSE) -> 720928 | BD50: 770647
A51: 4 | B51: CS-3550 | C51: CS | D51: 3 | E51: 35 | F51: 355 | G51: 3550 | H51: 7469 | J51: 4946 | K51: 4946 | L51: 7469 | N51: 1516 | O51: 1516 | P51: 1724 | R51: 834 | S51: 834 | T51: 1575 | V51: 1143 | W51: 1143 | X51: 1567 | Z51: 880 | AA51: 880 | AB51: 1272 | AD51: 22439 | AE51: 22439 | AF51: 1262 | AG51: 24465 | AH51: 23183 | AI51: 23183 | AJ51: 20696 | AK51: 24612 | AL51: 23640 | AM51: 57640 | AN51: 22692 | AO51: 57058.7 | AP51: 54976 | AQ51: 54976 | AR51: 0 | AS51: 82389 | AT51: 83553 | AU51: 83553 | AV51: 0 | AW51: 100641 | AX51: 100641 | AY51: 93611 | AZ51: 110728 | BA51: 208851 | BB51: =VLOOKUP(G51,[1]Dépenses!$1:$1048576,6,FALSE) -> 206279 | BD51: 127103
A52: 4 | B52: CS-3560 | C52: CS | D52: 3 | E52: 35 | F52: 356 | G52: 3560 | H52: 324972 | J52: 285160 | K52: 285160 | L52: 324972 | N52: 316337 | O52: 316592 | P52: 339193 | R52: 224045 | S52: 223615 | T52: 336202 | V52: 273068 | W52: 273068 | X52: 355547 | Z52: 282342 | AA52: 282342 | AB52: 359535 | AD52: 293376.918 | AE52: 293377 | AF52: 385136 | AG52: 410351 | AH52: 406308 | AI52: 406308 | AJ52: 373604 | AK52: 333430 | AL52: 334377 | AM52: 334377 | AN52: 353514 | AO52: 336887.1 | AP52: 335672 | AQ52: 335672 | AR52: 0 | AS52: 339901 | AT52: 341418 | AU52: 341418 | AV52: 0 | AW52: 376270 | AX52: 376270 | AY52: 378318 | AZ52: 371560 | BA52: 387452 | BB52: =VLOOKUP(G52,[1]Dépenses!$1:$1048576,6,FALSE) -> 398202 | BD52: 366834
A53: 4 | B53: CS-4110 | C53: CS | D53: 4 | E53: 41 | F53: 411 | G53: 4110 | H53: 0 | J53: 0 | K53: 0 | L53: 0 | N53: 0 | O53: 0 | P53: 0 | R53: 0 | S53: 0 | T53: 0 | V53: 0 | W53: 0 | X53: 0 | Z53: 0 | AA53: 0 | AB53: 0 | AD53: 0 | AE53: 0 | AF53: 0 | AG53: 0 | AH53: 0 | AI53: 0 | AJ53: 0 | AK53: 0 | AL53: 0 | AM53: 0 | AN53: 0 | AO53: 0 | AP53: 0 | AQ53: 0 | AR53: 0 | AS53: 0 | AT53: 0 | AU53: 0 | AV53: 0 | AW53: 0 | AX53: 0 | AY53: 0 | AZ53: 0 | BA53: 0 | BB53: =VLOOKUP(G53,[1]Dépenses!$1:$1048576,6,FALSE) -> 0 | BD53: 0
A54: 4 | B54: CS-4120 | C54: CS | D54: 4 | E54: 41 | F54: 412 | G54: 4120 | H54: 0 | J54: 0 | K54: 0 | L54: 0 | N54: 0 | O54: 0 | P54: 0 | R54: 0 | S54: 0 | T54: 0 | V54: 0 | W54: 0 | X54: 0 | Z54: 0 | AA54: 0 | AB54: 0 | AD54: 0 | AE54: 0 | AF54: 0 | AG54: 0 | AH54: 0 | AI54: 0 | AJ54: 0 | AK54: 0 | AL54: 0 | AM54: 0 | AN54: 0 | AO54: 0 | AP54: 0 | AQ54: 0 | AR54: 0 | AS54: 0 | AT54: 0 | AU54: 0 | AV54: 0 | AW54: 0 | AX54: 0 | AY54: 0 | AZ54: 0 | BA54: 0 | BB54: =VLOOKUP(G54,[1]Dépenses!$1:$1048576,6,FALSE) -> 0 | BD54: 0
A55: 4 | B55: CS-4130 | C55: CS | D55: 4 | E55: 41 | F55: 413 | G55: 4130 | H55: 0 | J55: 0 | K55: 0 | L55: 0 | N55: 0 | O55: 0 | P55: 0 | R55: 0 | S55: 0 | T55: 0 | V55: 0 | W55: 0 | X55: 0 | Z55: 0 | AA55: 0 | AB55: 0 | AD55: 0 | AE55: 0 | AF55: 0 | AG55: 0 | AH55: 0 | AI55: 0 | AJ55: 0 | AK55: 0 | AL55: 0 | AM55: 0 | AN55: 0 | AO55: 0 | AP55: 0 | AQ55: 0 | AR55: 0 | AS55: 0 | AT55: 0 | AU55: 0 | AV55: 0 | AW55: 0 | AX55: 0 | AY55: 0 | AZ55: 0 | BA55: 0 | BB55: =VLOOKUP(G55,[1]Dépenses!$1:$1048576,6,FALSE) -> 0 | BD55: 0
A56: 4 | B56: CS-4140 | C56: CS | D56: 4 | E56: 41 | F56: 414 | G56: 4140 | H56: 0 | J56: 0 | K56: 0 | L56: 0 | N56: 0 | O56: 0 | P56: 0 | R56: 0 | S56: 0 | T56: 0 | V56: 0 | W56: 0 | X56: 0 | Z56: 0 | AA56: 0 | AB56: 0 | AD56: 0 | AE56: 0 | AF56: 0 | AG56: 0 | AH56: 0 | AI56: 0 | AJ56: 0 | AK56: 0 | AL56: 0 | AM56: 0 | AN56: 0 | AO56: 0 | AP56: 0 | AQ56: 0 | AR56: 0 | AS56: 0 | AT56: 0 | AU56: 0 | AV56: 0 | AW56: 0 | AX56: 0 | AY56: 0 | AZ56: 0 | BA56: 0 | BB56: =VLOOKUP(G56,[1]Dépenses!$1:$1048576,6,FALSE) -> 0 | BD56: 0
A57: 4 | B57: CS-4150 | C57: CS | D57: 4 | E57: 41 | F57: 415 | G57: 4150 | H57: 0 | J57: 0 | K57: 0 | L57: 0 | N57: 0 | O57: 0 | P57: 0 | R57: 0 | S57: 0 | T57: 0 | V57: 0 | W57: 0 | X57: 0 | Z57: 0 | AA57: 0 | AB57: 0 | AD57: 0 | AE57: 0 | AF57: 0 | AG57: 0 | AH57: 0 | AI57: 0 | AJ57: 0 | AK57: 0 | AL57: 0 | AM57: 0 | AN57: 0 | AO57: 0 | AP57: 0 | AQ57: 0 | AR57: 0 | AS57: 0 | AT57: 0 | AU57: 0 | AV57: 0 | AW57: 0 | AX57: 0 | AY57: 0 | AZ57: 0 | BA57: 0 | BB57: =VLOOKUP(G57,[1]Dépenses!$1:$1048576,6,FALSE) -> 0 | BD57: 0
A58: 4 | B58: CS-4160 | C58: CS | D58: 4 | E58: 41 | F58: 416 | G58: 4160 | H58: 0 | J58: 0 | K58: 0 | L58: 0 | N58: 0 | O58: 0 | P58: 0 | R58: 0 | S58: 0 | T58: 0 | V58: 0 | W58: 0 | X58: 0 | Z58: 0 | AA58: 0 | AB58: 0 | AD58: 0 | AE58: 0 | AF58: 0 | AG58: 0 | AH58: 0 | AI58: 0 | AJ58: 0 | AK58: 0 | AL58: 0 | AM58: 0 | AN58: 0 | AO58: 0 | AP58: 0 | AQ58: 0 | AR58: 0 | AS58: 0 | AT58: 0 | AU58: 0 | AV58: 0 | AW58: 0 | AX58: 0 | AY58: 0 | AZ58: 0 | BA58: 0 | BB58: =VLOOKUP(G58,[1]Dépenses!$1:$1048576,6,FALSE) -> 0 | BD58: 0
A59: 4 | B59: CS-4170 | C59: CS | D59: 4 | E59: 41 | F59: 417 | G59: 4170 | H59: 0 | J59: 0 | K59: 0 | L59: 0 | N59: 0 | O59: 0 | P59: 0 | R59: 0 | S59: 0 | T59: 0 | V59: 0 | W59: 0 | X59: 0 | Z59: 0 | AA59: 0 | AB59: 0 | AD59: 0 | AE59: 0 | AF59: 0 | AG59: 0 | AH59: 0 | AI59: 0 | AJ59: 0 | AK59: 0 | AL59: 0 | AM59: 0 | AN59: 0 | AO59: 0 | AP59: 0 | AQ59: 0 | AR59: 0 | AS59: 0 | AT59: 0 | AU59: 0 | AV59: 0 | AW59: 0 | AX59: 0 | AY59: 0 | AZ59: 0 | BA59: 0 | BB59: =VLOOKUP(G59,[1]Dépenses!$1:$1048576,6,FALSE) -> 0 | BD59: 0
A60: 4 | B60: CS-4210 | C60: CS | D60: 4 | E60: 42 | F60: 421 | G60: 4210 | H60: 385705 | J60: 390266 | K60: 390266 | L60: 385705 | N60: 350247 | O60: 350247 | P60: 387723 | R60: 333807 | S60: 333807 | T60: 338842 | V60: 327918 | W60: 327918 | X60: 328791 | Z60: 326150 | AA60: 326150 | AB60: 324622 | AD60: 329025 | AE60: 329025 | AF60: 320992 | AG60: 11064019 | AH60: 11063633 | AI60: 11063633 | AJ60: 11438853 | AK60: 11555254 | AL60: 11555254 | AM60: 11555254 | AN60: 11820199 | AO60: 11852568 | AP60: 11877822 | AQ60: 11877822 | AR60: 0 | AS60: 12156524 | AT60: 12156524 | AU60: 12156524 | AV60: 0 | AW60: 12593388 | AX60: 12593388 | AY60: 12593388 | AZ60: 12832342 | BA60: 12635495 | BB60: =VLOOKUP(G60,[1]Dépenses!$1:$1048576,6,FALSE) -> 12635495 | BD60: 13024247
A61: 4 | B61: CS-4220 | C61: CS | D61: 4 | E61: 42 | F61: 422 | G61: 4220 | H61: 7218 | J61: 6138 | K61: 7216 | L61: 7218 | N61: 7071 | O61: 7071 | P61: 7562 | R61: 7363 | S61: 7363 | T61: 7680 | V61: 16044 | W61: 16044 | X61: 10200 | Z61: 14512 | AA61: 14512 | AB61: 18533 | AD61: 11515 | AE61: 11755 | AF61: 9079 | AG61: 7604 | AH61: 7990 | AI61: 7990 | AJ61: 7722 | AK61: 14262 | AL61: 14280 | AM61: 25489 | AN61: 25826 | AO61: 25500.5 | AP61: 25452 | AQ61: 25452 | AR61: 0 | AS61: 22787 | AT61: 23000 | AU61: 23000 | AV61: 0 | AW61: 1591152 | AX61: 1591152 | AY61: 1591152 | AZ61: 15379 | BA61: 1759569 | BB61: =VLOOKUP(G61,[1]Dépenses!$1:$1048576,6,FALSE) -> 1759569 | BD61: 420857
A62: 4 | B62: CS-4230 | C62: CS | D62: 4 | E62: 42 | F62: 423 | G62: 4230 | H62: 5229 | J62: 4971 | K62: 4971 | L62: 5229 | N62: 4735 | O62: 4735 | P62: 4450 | R62: 4349 | S62: 4349 | T62: 3726 | V62: 3726 | W62: 3726 | X62: 3285 | Z62: 3030 | AA62: 3030 | AB62: 2816 | AD62: 2663 | AE62: 2663 | AF62: 2319 | AG62: 2290 | AH62: 2290 | AI62: 2290 | AJ62: 548 | AK62: 514 | AL62: 514 | AM62: 514 | AN62: 516 | AO62: 498 | AP62: 498 | AQ62: 498 | AR62: 0 | AS62: 498 | AT62: 498 | AU62: 498 | AV62: 0 | AW62: 498 | AX62: 498 | AY62: 498 | AZ62: 0 | BA62: 0 | BB62: =VLOOKUP(G62,[1]Dépenses!$1:$1048576,6,FALSE) -> 0 | BD62: 0
A63: 4 | B63: CS-4240 | C63: CS | D63: 4 | E63: 42 | F63: 424 | G63: 4240 | H63: 5376 | J63: 5339 | K63: 3183 | L63: 5376 | N63: 4559 | O63: 4559 | P63: 4299 | R63: 4320 | S63: 4320 | T63: 3399 | V63: 3384 | W63: 3384 | X63: 2684 | Z63: 2087 | AA63: 2087 | AB63: 2187 | AD63: 7346 | AE63: 7346 | AF63: 2008 | AG63: 6896 | AH63: 6896 | AI63: 6896 | AJ63: 144955 | AK63: 141075 | AL63: 141075 | AM63: 141075 | AN63: 135312 | AO63: 128621 | AP63: 128621 | AQ63: 128621 | AR63: 0 | AS63: 125014 | AT63: 125014 | AU63: 125014 | AV63: 0 | AW63: 163186 | AX63: 163186 | AY63: 163186 | AZ63: 136789 | BA63: 118788 | BB63: =VLOOKUP(G63,[1]Dépenses!$1:$1048576,6,FALSE) -> 118788 | BD63: 139482
A64: 4 | B64: CS-4250 | C64: CS | D64: 4 | E64: 42 | F64: 425 | G64: 4250 | H64: 660 | J64: 671 | K64: 671 | L64: 660 | N64: 623 | O64: 623 | P64: 680 | R64: 573 | S64: 573 | T64: 640 | V64: 588 | W64: 588 | X64: 610 | Z64: 980 | AA64: 980 | AB64: 0 | AD64: 0 | AE64: 0 | AF64: 0 | AG64: 0 | AH64: 0 | AI64: 0 | AJ64: 0 | AK64: 0 | AL64: 0 | AM64: 0 | AN64: 0 | AO64: 0 | AP64: 0 | AQ64: 0 | AR64: 0 | AS64: 0 | AT64: 0 | AU64: 0 | AV64: 0 | AW64: 0 | AX64: 0 | AY64: 0 | AZ64: 0 | BA64: 0 | BB64: =VLOOKUP(G64,[1]Dépenses!$1:$1048576,6,FALSE) -> 0 | BD64: 10
A65: 4 | B65: CS-4260 | C65: CS | D65: 4 | E65: 42 | F65: 426 | G65: 4260 | H65: 7 | J65: 9 | K65: 9 | L65: 7 | N65: 3 | O65: 3 | P65: 6 | R65: 3 | S65: 3 | T65: 4 | V65: 3 | W65: 3 | X65: 4 | Z65: 3 | AA65: 3 | AB65: 4 | AD65: 1 | AE65: 1 | AF65: 1 | AG65: 1 | AH65: 1 | AI65: 1 | AJ65: 10001 | AK65: 8076 | AL65: 8076 | AM65: 8076 | AN65: 10226 | AO65: 10086 | AP65: 10086 | AQ65: 10086 | AR65: 0 | AS65: 12886 | AT65: 12886 | AU65: 12886 | AV65: 0 | AW65: 13094 | AX65: 13094 | AY65: 13094 | AZ65: 10989 | BA65: 16847 | BB65: =VLOOKUP(G65,[1]Dépenses!$1:$1048576,6,FALSE) -> 16847 | BD65: 10885
A66: 4 | B66: CS-4270 | C66: CS | D66: 4 | E66: 42 | F66: 427 | G66: 4270 | H66: 0 | J66: 0 | K66: 0 | L66: 0 | N66: 0 | O66: 0 | P66: 0 | R66: 0 | S66: 0 | T66: 0 | V66: 0 | W66: 0 | X66: 0 | Z66: 0 | AA66: 0 | AB66: 0 | AD66: 0 | AE66: 0 | AF66: 0 | AG66: 0 | AH66: 0 | AI66: 0 | AJ66: 0 | AK66: 0 | AL66: 0 | AM66: 0 | AN66: 0 | AO66: 0 | AP66: 0 | AQ66: 0 | AR66: 0 | AS66: 0 | AT66: 0 | AU66: 0 | AV66: 0 | AW66: 0 | AX66: 0 | AY66: 0 | AZ66: 0 | BA66: 0 | BB66: =VLOOKUP(G66,[1]Dépenses!$1:$1048576,6,FALSE) -> 0 | BD66: 0
A67: 4 | B67: =C67&"-"&G67 -> CS-4280 | C67: CS | D67: =LEFT($G67,1) -> 4 | E67: =LEFT($G67,2) -> 42 | F67: =LEFT($G67,3) -> 428 | G67: 4280 | H67: 9615618 | J67: 9612610 | K67: 9612610 | L67: 9615618 | N67: 8480136 | O67: 8480136 | P67: 11109462 | R67: 11552479 | S67: 11552479 | T67: 12580896 | V67: 12953748 | W67: 12953748 | X67: 13934550 | Z67: 13861308 | AA67: 13861308 | AB67: 7798463 | AD67: 7695435 | AE67: 7695195 | AF67: 7845255 | AG67: 7859423 | AH67: 7859423 | AI67: 7859423 | AJ67: 4936220 | AK67: 5525080 | AL67: 5525080 | AM67: 5525080 | AN67: 4570140 | AO67: 4543477 | AP67: 4543477 | AQ67: 4543477 | AR67: 0 | AS67: 5541985 | AT67: 5541985 | AU67: 5541985 | AV67: 0 | AW67: 16612080 | AX67: 16612080 | AY67: 16612080 | AZ67: 10249778 | BA67: 10962326 | BB67: =VLOOKUP(G67,[1]Dépenses!$1:$1048576,6,FALSE) -> 10962326 | BD67: 8827949
A68: 4 | B68: CS-4290 | C68: CS | D68: 4 | E68: 42 | F68: 429 | G68: 4290 | H68: 14001000 | J68: 14339811 | K68: 14339811 | L68: 14001000 | N68: 17096100 | O68: 17096100 | P68: 15637700 | R68: 15377416 | S68: 15385609 | T68: 15960700 | V68: 15636525 | W68: 15636525 | X68: 17411000 | Z68: 16135961 | AA68: 16135961 | AB68: 8885700 | AD68: 9518856 | AE68: 9518856 | AF68: 10099800 | AG68: 10127631 | AH68: 10127631 | AI68: 10127631 | AJ68: 14318300 | AK68: 13893619 | AL68: 13893619 | AM68: 13893619 | AN68: 15298700 | AO68: 15055195 | AP68: 15055195 | AQ68: 15055195 | AR68: 0 | AS68: 16029080 | AT68: 16029080 | AU68: 16029080 | AV68: 0 | AW68: 17051708 | AX68: 17051708 | AY68: 17051708 | AZ68: 20437462 | BA68: 20197636 | BB68: =VLOOKUP(G68,[1]Dépenses!$1:$1048576,6,FALSE) -> 20207556 | BD68: 19859450
A69: 4 | B69: CS-4311 | C69: CS | D69: 4 | E69: 43 | F69: 431 | G69: 4311 | H69: 0 | J69: 0 | K69: 0 | L69: 0 | N69: 0 | O69: 0 | P69: 0 | R69: 0 | S69: 0 | T69: 0 | V69: 0 | W69: 0 | X69: 0 | Z69: 0 | AA69: 0 | AB69: 16 | AD69: 46 | AE69: 46 | AF69: 16 | AG69: 26 | AH69: 26 | AI69: 26 | AJ69: 16 | AK69: 15 | AL69: 15 | AM69: 15 | AN69: 0 | AO69: 11 | AP69: 11 | AQ69: 11 | AR69: 0 | AS69: 1359 | AT69: 1412 | AU69: 1412 | AV69: 0 | AW69: 0 | AX69: 0 | AY69: 0 | AZ69: 0 | BA69: 0 | BB69: =VLOOKUP(G69,[1]Dépenses!$1:$1048576,6,FALSE) -> 0 | BD69: 0
A70: 4 | B70: CS-4312 | C70: CS | D70: 4 | E70: 43 | F70: 431 | G70: 4312 | H70: 4203 | J70: 4178 | K70: 4178 | L70: 4203 | N70: 9169 | O70: 9169 | P70: 20676 | R70: 18225 | S70: 18225 | T70: 20607 | V70: 16035 | W70: 16035 | X70: 22342 | Z70: 25500 | AA70: 25500 | AB70: 24380 | AD70: 20682 | AE70: 20682 | AF70: 30439 | AG70: 16092 | AH70: 16366 | AI70: 16366 | AJ70: 29026 | AK70: 19654 | AL70: 19654 | AM70: 19654 | AN70: 27375 | AO70: 26465.5 | AP70: 26465 | AQ70: 26465 | AR70: 0 | AS70: 26636 | AT70: 26636 | AU70: 26636 | AV70: 0 | AW70: 24023 | AX70: 24023 | AY70: 24023 | AZ70: 33438 | BA70: 24046 | BB70: =VLOOKUP(G70,[1]Dépenses!$1:$1048576,6,FALSE) -> 24046 | BD70: 30132
A71: 4 | B71: CS-4313 | C71: CS | D71: 4 | E71: 43 | F71: 431 | G71: 4313 | H71: 508 | J71: 49 | K71: 49 | L71: 508 | N71: 147 | O71: 147 | P71: 240 | R71: 160 | S71: 160 | T71: 240 | V71: 40 | W71: 40 | X71: 79 | Z71: 47 | AA71: 47 | AB71: 79 | AD71: 28 | AE71: 28 | AF71: 48 | AG71: 0 | AH71: 32 | AI71: 32 | AJ71: 40 | AK71: 30 | AL71: 30 | AM71: 30 | AN71: 40 | AO71: 28 | AP71: 28 | AQ71: 28 | AR71: 0 | AS71: 26 | AT71: 26 | AU71: 26 | AV71: 0 | AW71: 14 | AX71: 14 | AY71: 14 | AZ71: 8 | BA71: 0 | BB71: =VLOOKUP(G71,[1]Dépenses!$1:$1048576,6,FALSE) -> 0 | BD71: 0
A72: 4 | B72: CS-4314 | C72: CS | D72: 4 | E72: 43 | F72: 431 | G72: 4314 | H72: 0 | J72: 0 | K72: 0 | L72: 0 | N72: 0 | O72: 0 | P72: 0 | R72: 0 | S72: 0 | T72: 0 | V72: 0 | W72: 0 | X72: 0 | Z72: 0 | AA72: 0 | AB72: 0 | AD72: 0 | AE72: 0 | AF72: 0 | AG72: 0 | AH72: 0 | AI72: 0 | AJ72: 0 | AK72: 0 | AL72: 0 | AM72: 0 | AN72: 0 | AO72: 0 | AP72: 0 | AQ72: 0 | AR72: 0 | AS72: 0 | AT72: 0 | AU72: 0 | AV72: 0 | AW72: 0 | AX72: 0 | AY72: 0 | AZ72: 0 | BA72: 0 | BB72: =VLOOKUP(G72,[1]Dépenses!$1:$1048576,6,FALSE) -> 0 | BD72: 0
A73: 4 | B73: CS-4315 | C73: CS | D73: 4 | E73: 43 | F73: 431 | G73: 4315 | H73: 109367 | J73: 107855 | K73: 107855 | L73: 109367 | N73: 171805 | O73: 171805 | P73: 122627 | R73: 121567 | S73: 121567 | T73: 128958 | V73: 129458 | W73: 129458 | X73: 134220 | Z73: 132269 | AA73: 132269 | AB73: 136935 | AD73: 134766 | AE73: 134766 | AF73: 139260 | AG73: 0 | AH73: 0 | AI73: 0 | AJ73: 0 | AK73: 0 | AL73: 0 | AM73: 0 | AN73: 0 | AO73: 0 | AP73: 0 | AQ73: 0 | AR73: 0 | AS73: 0 | AT73: 0 | AU73: 0 | AV73: 0 | AW73: 0 | AX73: 0 | AY73: 0 | AZ73: 0 | BA73: 0 | BB73: =VLOOKUP(G73,[1]Dépenses!$1:$1048576,6,FALSE) -> 0 | BD73: 0
A74: 4 | B74: CS-4316 | C74: CS | D74: 4 | E74: 43 | F74: 431 | G74: 4316 | H74: 0 | J74: 0 | K74: 0 | L74: 0 | N74: 0 | O74: 0 | P74: 0 | R74: 0 | S74: 0 | T74: 0 | V74: 0 | W74: 0 | X74: 0 | Z74: 0 | AA74: 0 | AB74: 0 | AD74: 0 | AE74: 0 | AF74: 0 | AG74: 0 | AH74: 0 | AI74: 0 | AJ74: 0 | AK74: 0 | AL74: 0 | AM74: 0 | AN74: 0 | AO74: 0 | AP74: 0 | AQ74: 0 | AR74: 0 | AS74: 0 | AT74: 0 | AU74: 0 | AV74: 0 | AW74: 0 | AX74: 0 | AY74: 0 | AZ74: 0 | BA74: 0 | BB74: =VLOOKUP(G74,[1]Dépenses!$1:$1048576,6,FALSE) -> 0 | BD74: 0
A75: 4 | B75: CS-4321 | C75: CS | D75: 4 | E75: 43 | F75: 432 | G75: 4321 | H75: 110768 | J75: 112778 | K75: 112778 | L75: 110768 | N75: 118150 | O75: 118150 | P75: 113536 | R75: 113477 | S75: 113477 | T75: 116441 | V75: 116717 | W75: 116717 | X75: 123703 | Z75: 122426 | AA75: 122426 | AB75: 123670 | AD75: 122117 | AE75: 122117 | AF75: 124616 | AG75: 124441 | AH75: 124441 | AI75: 124441 | AJ75: 127111 | AK75: 128103 | AL75: 128103 | AM75: 128103 | AN75: 128437 | AO75: 128870 | AP75: 128870 | AQ75: 128870 | AR75: 0 | AS75: 132139 | AT75: 132139 | AU75: 132139 | AV75: 0 | AW75: 133726 | AX75: 133726 | AY75: 133726 | AZ75: 133855 | BA75: 134999 | BB75: =VLOOKUP(G75,[1]Dépenses!$1:$1048576,6,FALSE) -> 134999 | BD75: 138391
A76: 4 | B76: CS-4322 | C76: CS | D76: 4 | E76: 43 | F76: 432 | G76: 4322 | H76: 377683 | J76: 376402 | K76: 376307 | L76: 377683 | N76: 354216 | O76: 354216 | P76: 469121 | R76: 224412 | S76: 224412 | T76: 440944 | V76: 474646 | W76: 474646 | X76: 493405 | Z76: 390984 | AA76: 390984 | AB76: 480687 | AD76: 402224 | AE76: 258979 | AF76: 442099 | AG76: 390286 | AH76: 261912 | AI76: 261912 | AJ76: 315118 | AK76: 238745 | AL76: 238706 | AM76: 238706 | AN76: 310503 | AO76: 240282.2 | AP76: 240282.2 | AQ76: 240282.2 | AR76: 0 | AS76: 193446 | AT76: 193750 | AU76: 193750 | AV76: 0 | AW76: 270234 | AX76: 270488 | AY76: 270488 | AZ76: 258153 | BA76: 247000 | BB76: =VLOOKUP(G76,[1]Dépenses!$1:$1048576,6,FALSE) -> 246949 | BD76: 261829
A77: 4 | B77: CS-4323 | C77: CS | D77: 4 | E77: 43 | F77: 432 | G77: 4323 | H77: 2031 | J77: 198 | K77: 198 | L77: 2031 | N77: 588 | O77: 588 | P77: 959 | R77: 638 | S77: 638 | T77: 959 | V77: 160 | W77: 160 | X77: 317 | Z77: 186 | AA77: 186 | AB77: 317 | AD77: 113 | AE77: 113 | AF77: 190 | AG77: 0 | AH77: 127 | AI77: 127 | AJ77: 158 | AK77: 120 | AL77: 120 | AM77: 120 | AN77: 158 | AO77: 111 | AP77: 111 | AQ77: 111 | AR77: 0 | AS77: 105 | AT77: 105 | AU77: 105 | AV77: 0 | AW77: 55 | AX77: 55 | AY77: 55 | AZ77: 32 | BA77: 0 | BB77: =VLOOKUP(G77,[1]Dépenses!$1:$1048576,6,FALSE) -> 0 | BD77: 0
A78: 4 | B78: CS-4324 | C78: CS | D78: 4 | E78: 43 | F78: 432 | G78: 4324 | H78: 0 | J78: 0 | K78: 0 | L78: 0 | N78: 0 | O78: 0 | P78: 0 | R78: 0 | S78: 0 | T78: 0 | V78: 0 | W78: 0 | X78: 0 | Z78: 0 | AA78: 0 | AB78: 0 | AD78: 0 | AE78: 0 | AF78: 0 | AG78: 0 | AH78: 0 | AI78: 0 | AJ78: 0 | AK78: 0 | AL78: 0 | AM78: 0 | AN78: 0 | AO78: 0 | AP78: 0 | AQ78: 0 | AR78: 0 | AS78: 0 | AT78: 0 | AU78: 0 | AV78: 0 | AW78: 0 | AX78: 0 | AY78: 0 | AZ78: 0 | BA78: 0 | BB78: =VLOOKUP(G78,[1]Dépenses!$1:$1048576,6,FALSE) -> 0 | BD78: 0
A79: 4 | B79: CS-4325 | C79: CS | D79: 4 | E79: 43 | F79: 432 | G79: 4325 | H79: 884848 | J79: 872609 | K79: 872609 | L79: 884848 | N79: 871966 | O79: 871966 | P79: 992166 | R79: 983591 | S79: 983591 | T79: 1043391 | V79: 1047434 | W79: 1047434 | X79: 1085960 | Z79: 1070174 | AA79: 1070174 | AB79: 1107925 | AD79: 1090382 | AE79: 1090382 | AF79: 1126740 | AG79: 0 | AH79: 0 | AI79: 0 | AJ79: 0 | AK79: 0 | AL79: 0 | AM79: 0 | AN79: 0 | AO79: 0 | AP79: 0 | AQ79: 0 | AR79: 0 | AS79: 0 | AT79: 0 | AU79: 0 | AV79: 0 | AW79: 0 | AX79: 0 | AY79: 0 | AZ79: 0 | BA79: 0 | BB79: =VLOOKUP(G79,[1]Dépenses!$1:$1048576,6,FALSE) -> 0 | BD79: 0
A80: 4 | B80: CS-4326 | C80: CS | D80: 4 | E80: 43 | F80: 432 | G80: 4326 | H80: 0 | J80: 0 | K80: 0 | L80: 0 | N80: 0 | O80: 0 | P80: 0 | R80: 0 | S80: 0 | T80: 0 | V80: 0 | W80: 0 | X80: 0 | Z80: 0 | AA80: 0 | AB80: 0 | AD80: 0 | AE80: 0 | AF80: 0 | AG80: 0 | AH80: 0 | AI80: 0 | AJ80: 0 | AK80: 0 | AL80: 0 | AM80: 0 | AN80: 0 | AO80: 0 | AP80: 0 | AQ80: 0 | AR80: 0 | AS80: 0 | AT80: 0 | AU80: 0 | AV80: 0 | AW80: 0 | AX80: 0 | AY80: 0 | AZ80: 0 | BA80: 0 | BB80: =VLOOKUP(G80,[1]Dépenses!$1:$1048576,6,FALSE) -> 0 | BD80: 0
A81: 4 | B81: CS-4331 | C81: CS | D81: 4 | E81: 43 | F81: 433 | G81: 4331 | H81: 0 | J81: 0 | K81: 0 | L81: 0 | N81: 0 | O81: 0 | P81: 0 | R81: 0 | S81: 0 | T81: 0 | V81: 0 | W81: 0 | X81: 0 | Z81: 0 | AA81: 0 | AB81: 0 | AD81: 0 | AE81: 0 | AF81: 0 | AG81: 0 | AH81: 0 | AI81: 0 | AJ81: 0 | AK81: 0 | AL81: 0 | AM81: 0 | AN81: 0 | AO81: 0 | AP81: 0 | AQ81: 0 | AR81: 0 | AS81: 0 | AT81: 0 | AV81: 0 | AW81: 0
A82: 4 | B82: CS-4332 | C82: CS | D82: 4 | E82: 43 | F82: 433 | G82: 4332 | H82: 0 | J82: 0 | K82: 0 | L82: 0 | N82: 0 | O82: 0 | P82: 0 | R82: 0 | S82: 0 | T82: 0 | V82: 0 | W82: 0 | X82: 0 | Z82: 0 | AA82: 0 | AB82: 0 | AD82: 0 | AE82: 0 | AF82: 0 | AG82: 0 | AH82: 0 | AI82: 0 | AJ82: 0 | AK82: 0 | AL82: 0 | AM82: 0 | AN82: 0 | AO82: 0 | AP82: 0 | AQ82: 0 | AR82: 0 | AS82: 0 | AT82: 0 | AV82: 0 | AW82: 0
A83: 4 | B83: CS-4333 | C83: CS | D83: 4 | E83: 43 | F83: 433 | G83: 4333 | H83: 0 | J83: 0 | K83: 0 | L83: 0 | N83: 0 | O83: 0 | P83: 0 | R83: 0 | S83: 0 | T83: 0 | V83: 0 | W83: 0 | X83: 0 | Z83: 0 | AA83: 0 | AB83: 0 | AD83: 0 | AE83: 0 | AF83: 0 | AG83: 0 | AH83: 0 | AI83: 0 | AJ83: 0 | AK83: 0 | AL83: 0 | AM83: 0 | AN83: 0 | AO83: 0 | AP83: 0 | AQ83: 0 | AR83: 0 | AS83: 0 | AT83: 0 | AV83: 0 | AW83: 0
A84: 4 | B84: CS-4334 | C84: CS | D84: 4 | E84: 43 | F84: 433 | G84: 4334 | H84: 0 | J84: 0 | K84: 0 | L84: 0 | N84: 0 | O84: 0 | P84: 0 | R84: 0 | S84: 0 | T84: 0 | V84: 0 | W84: 0 | X84: 0 | Z84: 0 | AA84: 0 | AB84: 0 | AD84: 0 | AE84: 0 | AF84: 0 | AG84: 0 | AH84: 0 | AI84: 0 | AJ84: 0 | AK84: 0 | AL84: 0 | AM84: 0 | AN84: 0 | AO84: 0 | AP84: 0 | AQ84: 0 | AR84: 0 | AS84: 0 | AT84: 0 | AV84: 0 | AW84: 0
A85: 4 | B85: CS-4335 | C85: CS | D85: 4 | E85: 43 | F85: 433 | G85: 4335 | H85: 0 | J85: 0 | K85: 0 | L85: 0 | N85: 0 | O85: 0 | P85: 0 | R85: 0 | S85: 0 | T85: 0 | V85: 0 | W85: 0 | X85: 0 | Z85: 0 | AA85: 0 | AB85: 0 | AD85: 0 | AE85: 0 | AF85: 0 | AG85: 0 | AH85: 0 | AI85: 0 | AJ85: 0 | AK85: 0 | AL85: 0 | AM85: 0 | AN85: 0 | AO85: 0 | AP85: 0 | AQ85: 0 | AR85: 0 | AS85: 0 | AT85: 0 | AV85: 0 | AW85: 0
A86: 4 | B86: CS-4336 | C86: CS | D86: 4 | E86: 43 | F86: 433 | G86: 4336 | H86: 0 | J86: 0 | K86: 0 | L86: 0 | N86: 0 | O86: 0 | P86: 0 | R86: 0 | S86: 0 | T86: 0 | V86: 0 | W86: 0 | X86: 0 | Z86: 0 | AA86: 0 | AB86: 0 | AD86: 0 | AE86: 0 | AF86: 0 | AG86: 0 | AH86: 0 | AI86: 0 | AJ86: 0 | AK86: 0 | AL86: 0 | AM86: 0 | AN86: 0 | AO86: 0 | AP86: 0 | AQ86: 0 | AR86: 0 | AS86: 0 | AT86: 0 | AV86: 0 | AW86: 0
A87: 4 | B87: CS-4340 | C87: CS | D87: 4 | E87: 43 | F87: 434 | G87: 4340 | H87: 0 | J87: 0 | K87: 0 | L87: 0 | N87: 0 | O87: 0 | P87: 0 | R87: 0 | S87: 0 | T87: 0 | V87: 0 | W87: 0 | X87: 0 | Z87: 0 | AA87: 0 | AB87: 0 | AD87: 0 | AE87: 0 | AF87: 0 | AG87: 0 | AH87: 0 | AI87: 0 | AJ87: 0 | AK87: 0 | AL87: 0 | AM87: 0 | AN87: 0 | AO87: 0 | AP87: 0 | AQ87: 0 | AR87: 0 | AS87: 0 | AT87: 0 | AU87: 0 | AV87: 0 | AW87: 0 | AX87: 0 | AY87: 0 | AZ87: 0 | BA87: 0 | BB87: =VLOOKUP(G87,[1]Dépenses!$1:$1048576,6,FALSE) -> 0 | BD87: 0
A88: 4 | B88: CS-4351 | C88: CS | D88: 4 | E88: 43 | F88: 435 | G88: 4351 | H88: 0 | J88: 0 | K88: 0 | L88: 0 | N88: 0 | O88: 0 | P88: 0 | R88: 0 | S88: 0 | T88: 0 | V88: 0 | W88: 0 | X88: 0 | Z88: 0 | AA88: 0 | AB88: 728086 | AD88: 713460 | AE88: 856705 | AF88: 765766 | AG88: 748156 | AH88: 880567 | AI88: 880567 | AJ88: 902475 | AK88: 916812 | AL88: 916812 | AM88: 916812 | AN88: 955745 | AO88: 966653 | AP88: 966653 | AQ88: 966653 | AR88: 0 | AS88: 988234 | AT88: 988234 | AU88: 988234 | AV88: 0 | AW88: 1030573 | AX88: 1030573 | AY88: 1030573 | AZ88: 927299 | BA88: 957517 | BB88: =VLOOKUP(G88,[1]Dépenses!$1:$1048576,6,FALSE) -> 957517 | BD88: 1003446
A89: 4 | B89: CS-4352 | C89: CS | D89: 4 | E89: 43 | F89: 435 | G89: 4352 | H89: 0 | J89: 0 | K89: 0 | L89: 0 | N89: 0 | O89: 0 | P89: 0 | R89: 0 | S89: 0 | T89: 0 | V89: 0 | W89: 0 | X89: 0 | Z89: 0 | AA89: 0 | AB89: 1129263 | AD89: 1078444 | AE89: 1078444 | AF89: 1130158 | AG89: 1232891 | AH89: 1227670 | AI89: 1227670 | AJ89: 1266884 | AK89: 1356708 | AL89: 1356072 | AM89: 1356072 | AN89: 1358625 | AO89: 1404106.9 | AP89: 1407893 | AQ89: 1407893 | AR89: 0 | AS89: 1456457 | AT89: 1458635 | AU89: 1458635 | AV89: 0 | AW89: 1729220 | AX89: 1728697 | AY89: 1728697 | AZ89: 1796868 | BA89: 1770950 | BB89: =VLOOKUP(G89,[1]Dépenses!$1:$1048576,6,FALSE) -> 1765114 | BD89: 1928069
A90: 4 | B90: CS-4353 | C90: CS | D90: =LEFT($G90,1) -> 4 | E90: =LEFT($G90,2) -> 43 | F90: =LEFT($G90,3) -> 435 | G90: 4353 | H90: 0 | J90: 0 | K90: 0 | L90: 0 | N90: 0 | O90: 0 | P90: 0 | R90: 0 | S90: 0 | T90: 0 | V90: 0 | W90: 0 | X90: 0 | Z90: 0 | AA90: 0 | AB90: 0 | AD90: 0 | AE90: 0 | AF90: 0 | AG90: 0 | AH90: 0 | AI90: 0 | AJ90: 0 | AK90: 0 | AL90: 0 | AM90: 0 | AN90: 0 | AO90: 0 | AP90: 0 | AQ90: 0 | AR90: 0 | AS90: 0 | AT90: 0 | AU90: 0 | AV90: 0 | AW90: 0 | AX90: 0 | AY90: 0 | AZ90: 0 | BA90: 0 | BB90: =VLOOKUP(G90,[1]Dépenses!$1:$1048576,6,FALSE) -> 0 | BD90: 0
A91: 4 | B91: CS-4354 | C91: CS | D91: 4 | E91: 43 | F91: 435 | G91: 4354 | H91: 0 | J91: 0 | K91: 0 | L91: 0 | N91: 0 | O91: 0 | P91: 0 | R91: 0 | S91: 0 | T91: 0 | V91: 0 | W91: 0 | X91: 0 | Z91: 0 | AA91: 0 | AB91: 96724 | AD91: 91982 | AE91: 91982 | AF91: 136731 | AG91: 137137 | AH91: 137137 | AI91: 137137 | AJ91: 143991 | AK91: 143991 | AL91: 143991 | AM91: 143991 | AN91: 147478 | AO91: 147478 | AP91: 147478 | AQ91: 147478 | AR91: 0 | AS91: 196060 | AT91: 196060 | AU91: 196060 | AV91: 0 | AW91: 206369 | AX91: 206369 | AY91: 206369 | AZ91: 201547 | BA91: 227395 | BB91: =VLOOKUP(G91,[1]Dépenses!$1:$1048576,6,FALSE) -> 227395 | BD91: 223543
A92: 4 | B92: CS-4359 | C92: CS | D92: 4 | E92: 43 | F92: 435 | G92: 4359 | H92: 0 | J92: 0 | K92: 0 | L92: 0 | N92: 0 | O92: 0 | P92: 0 | R92: 0 | S92: 0 | T92: 0 | V92: 0 | W92: 0 | X92: 0 | Z92: 0 | AA92: 0 | AB92: 4500 | AD92: 4071 | AE92: 4071 | AF92: 4659 | AG92: 0 | AH92: 0 | AI92: 0 | AJ92: 4659 | AK92: 0 | AL92: 0 | AM92: 0 | AN92: 4659 | AO92: 0 | AP92: 0 | AQ92: 0 | AR92: 0 | AS92: 0 | AT92: 0 | AU92: 0 | AV92: 0 | AW92: 0 | AX92: 0 | AY92: 0 | AZ92: 4659 | BA92: 0 | BB92: =VLOOKUP(G92,[1]Dépenses!$1:$1048576,6,FALSE) -> 0 | BD92: 4659
A93: 4 | B93: CS-4410 | C93: CS | D93: 4 | E93: 44 | F93: 441 | G93: 4410 | H93: 0 | J93: 0 | K93: 0 | L93: 0 | N93: 0 | O93: 0 | P93: 0 | R93: 0 | S93: 0 | T93: 0 | V93: 0 | W93: 0 | X93: 0 | Z93: 0 | AA93: 0 | AB93: 0 | AD93: 0 | AE93: 0 | AF93: 0 | AG93: 0 | AH93: 0 | AI93: 0 | AJ93: 0 | AK93: 0 | AL93: 0 | AM93: 0 | AN93: 0 | AO93: 0 | AP93: 0 | AQ93: 0 | AR93: 0 | AS93: 0 | AT93: 0 | AU93: 0 | AV93: 0 | AW93: 0 | AX93: 0 | AY93: 0 | AZ93: 0 | BA93: 0 | BB93: =VLOOKUP(G93,[1]Dépenses!$1:$1048576,6,FALSE) -> 0 | BD93: 0
A94: 4 | B94: CS-4420 | C94: CS | D94: 4 | E94: 44 | F94: 442 | G94: 4420 | H94: 2361943 | J94: 2350269 | K94: 2350269 | L94: 2361943 | N94: 2525174 | O94: 2525174 | P94: 2694739 | R94: 2686786 | S94: 2686786 | T94: 2862160 | V94: 2881390 | W94: 2881390 | X94: 3003020 | Z94: 3006521 | AA94: 3006521 | AB94: 3146395 | AD94: 3147742 | AE94: 3147742 | AF94: 3275220 | AG94: 0 | AH94: 0 | AI94: 0 | AJ94: 0 | AK94: 0 | AL94: 0 | AM94: 0 | AN94: 0 | AO94: 0 | AP94: 0 | AQ94: 0 | AR94: 0 | AS94: 0 | AT94: 0 | AU94: 0 | AV94: 0 | AW94: 0 | AX94: 0 | AY94: 0 | AZ94: 0 | BA94: 0 | BB94: =VLOOKUP(G94,[1]Dépenses!$1:$1048576,6,FALSE) -> 0 | BD94: 0
A95: 4 | B95: CS-4430 | C95: CS | D95: 4 | E95: 44 | F95: 443 | G95: 4430 | H95: 26694 | J95: 26692 | K95: 26692 | L95: 26694 | N95: 26991 | O95: 26991 | P95: 27684 | R95: 30959 | S95: 30959 | T95: 31716 | V95: 31628 | W95: 31628 | X95: 31713 | Z95: 31195 | AA95: 31195 | AB95: 31486 | AD95: 106 | AE95: 106 | AF95: 31484 | AG95: 5 | AH95: 5 | AI95: 5 | AJ95: 175 | AK95: 10 | AL95: 10 | AM95: 10 | AN95: 172 | AO95: 5 | AP95: 5 | AQ95: 5 | AR95: 0 | AS95: 5 | AT95: 5 | AU95: 5 | AV95: 0 | AW95: 0 | AX95: 0 | AY95: 0 | AZ95: 5 | BA95: 18 | BB95: =VLOOKUP(G95,[1]Dépenses!$1:$1048576,6,FALSE) -> 18 | BD95: 5
A96: 4 | B96: CS-4440 | C96: CS | D96: 4 | E96: 44 | F96: 444 | G96: 4440 | H96: 10282 | J96: 1152 | K96: 1152 | L96: 10282 | N96: 2979 | O96: 2979 | P96: 4856 | R96: 3230 | S96: 3230 | T96: 4856 | V96: 811 | W96: 811 | X96: 1604 | Z96: 944 | AA96: 944 | AB96: 1604 | AD96: 573 | AE96: 573 | AF96: 962 | AG96: 605 | AH96: 642 | AI96: 642 | AJ96: 802 | AK96: 609 | AL96: 609 | AM96: 609 | AN96: 802 | AO96: 562 | AP96: 562 | AQ96: 562 | AR96: 0 | AS96: 532 | AT96: 532 | AU96: 532 | AV96: 0 | AW96: 279 | AX96: 279 | AY96: 279 | AZ96: 160 | BA96: 0 | BB96: =VLOOKUP(G96,[1]Dépenses!$1:$1048576,6,FALSE) -> 0 | BD96: 0
A97: 4 | B97: CS-4500 | C97: CS | D97: 4 | E97: 45 | F97: 450 | G97: 4500 | H97: 0 | J97: 0 | K97: 0 | L97: 0 | N97: 0 | O97: 0 | P97: 0 | R97: 0 | S97: 0 | T97: 0 | V97: 0 | W97: 0 | X97: 0 | Z97: 0 | AA97: 0 | AB97: 35913 | AD97: 0 | AE97: 0 | AF97: 0 | AG97: 0 | AH97: 0 | AI97: 0 | AJ97: 0 | AK97: 0 | AL97: 0 | AM97: 0 | AN97: 0 | AO97: 0 | AP97: 0 | AQ97: 0 | AR97: 0 | AS97: 0 | AT97: 0 | AV97: 0 | AW97: 0
A98: 4 | B98: CS-4510 | C98: CS | D98: 4 | E98: 45 | F98: 451 | G98: 4510 | H98: 65781 | J98: 66051 | K98: 66051 | L98: 65781 | N98: 70909 | O98: 70909 | P98: 83559 | R98: 83239 | S98: 73239 | T98: 94659 | V98: 93697 | W98: 93697 | X98: 103625 | Z98: 102906 | AA98: 102906 | AB98: 0 | AD98: 0 | AE98: 0 | AF98: 0 | AG98: 0 | AH98: 0 | AI98: 0 | AJ98: 0 | AK98: 0 | AL98: 0 | AM98: 0 | AN98: 0 | AO98: 0 | AP98: 0 | AQ98: 0 | AR98: 0 | AS98: 0 | AT98: 0 | AV98: 0 | AW98: 0
A99: 4 | B99: CS-4511 | C99: CS | D99: 4 | E99: 45 | F99: 451 | G99: 4511 | H99: 0 | J99: 0 | K99: 0 | L99: 0 | N99: 0 | O99: 0 | P99: 0 | R99: 0 | S99: 0 | T99: 0 | V99: 0 | W99: 0 | X99: 0 | Z99: 0 | AA99: 0 | AB99: 62373 | AD99: 61101 | AE99: 61101 | AF99: 95933 | AG99: 63901 | AH99: 63901 | AI99: 63901 | AJ99: 66203 | AK99: 66325 | AL99: 66325 | AM99: 66325 | AN99: 68317 | AO99: 68743 | AP99: 68743 | AQ99: 68743 | AR99: 0 | AS99: 70422 | AT99: 70422 | AU99: 70422 | AV99: 0 | AW99: 63377 | AX99: 63377 | AY99: 63377 | AZ99: 73192 | BA99: 73140 | BB99: =VLOOKUP(G99,[1]Dépenses!$1:$1048576,6,FALSE) -> 73140 | BD99: 76480
A100: 4 | B100: CS-4512 | C100: CS | D100: 4 | E100: 45 | F100: 451 | G100: 4512 | H100: 0 | J100: 0 | K100: 0 | L100: 0 | N100: 0 | O100: 0 | P100: 0 | R100: 0 | S100: 0 | T100: 0 | V100: 0 | W100: 0 | X100: 0 | Z100: 0 | AA100: 0 | AB100: 15629 | AD100: 15307 | AE100: 15307 | AF100: 15895 | AG100: 16008 | AH100: 16008 | AI100: 16008 | AJ100: 16582 | AK100: 16622 | AL100: 16622 | AM100: 16622 | AN100: 17115 | AO100: 17226 | AP100: 17226 | AQ100: 17226 | AR100: 0 | AS100: 17656 | AT100: 17656 | AU100: 17656 | AV100: 0 | AW100: 15899 | AX100: 15899 | AY100: 15899 | AZ100: 18365 | BA100: 18365 | BB100: =VLOOKUP(G100,[1]Dépenses!$1:$1048576,6,FALSE) -> 18365 | BD100: 19272
A101: 4 | B101: CS-4513 | C101: CS | D101: 4 | E101: 45 | F101: 451 | G101: 4513 | H101: 0 | J101: 0 | K101: 0 | L101: 0 | N101: 0 | O101: 0 | P101: 0 | R101: 0 | S101: 0 | T101: 0 | V101: 0 | W101: 0 | X101: 0 | Z101: 0 | AA101: 0 | AB101: 1117387 | AD101: 1121427 | AE101: 1121427 | AF101: 1197033 | AG101: 1203590 | AH101: 1203590 | AI101: 1203590 | AJ101: 1271035 | AK101: 1257476 | AL101: 1257476 | AM101: 1259515 | AN101: 1267041 | AO101: 1272522 | AP101: 1272522 | AQ101: 1274795 | AR101: 0 | AS101: 1301469 | AT101: 1301469 | AU101: 1301469 | AV101: 0 | AW101: 1264492 | AX101: 1264492 | AY101: 1264492 | AZ101: 1343153 | BA101: 1371485 | BB101: =VLOOKUP(G101,[1]Dépenses!$1:$1048576,6,FALSE) -> 1374768 | BD101: 1396477
A102: 4 | B102: CS-4521 | C102: CS | D102: 4 | E102: 45 | F102: 452 | G102: 4521 | H102: 229725 | J102: 230683 | K102: 230683 | L102: 229725 | N102: 247714 | O102: 247714 | P102: 250801 | R102: 254849 | S102: 254849 | T102: 258954 | V102: 255660 | W102: 255660 | X102: 259747 | Z102: 257744 | AA102: 257744 | AB102: 0 | AD102: 0 | AE102: 0 | AF102: 0 | AG102: 0 | AH102: 0 | AI102: 0 | AJ102: 0 | AK102: 0 | AL102: 0 | AM102: 0 | AN102: 0 | AO102: 0 | AP102: 0 | AQ102: 0 | AR102: 0 | AS102: 0 | AT102: 0 | AV102: 0 | AW102: 0
A103: 4 | B103: CS-4522 | C103: CS | D103: 4 | E103: 45 | F103: 452 | G103: 4522 | H103: 19184301 | J103: 19417789 | K103: 19417789 | L103: 19184301 | N103: 21293500 | O103: 21293500 | P103: 22369155 | R103: 22058689 | S103: 22058689 | T103: 22527330 | V103: 22190072 | W103: 22190072 | X103: 22783245 | Z103: 22635203 | AA103: 22635203 | AB103: 0 | AD103: 0 | AE103: 0 | AF103: 0 | AG103: 0 | AH103: 0 | AI103: 0 | AJ103: 0 | AK103: 0 | AL103: 0 | AM103: 0 | AN103: 0 | AO103: 0 | AP103: 0 | AQ103: 0 | AR103: 0 | AS103: 0 | AT103: 0 | AV103: 0 | AW103: 0
A104: 4 | B104: CS-4523 | C104: CS | D104: 4 | E104: 45 | F104: 452 | G104: 4523 | H104: 169378 | J104: 164556 | K104: 164556 | L104: 169378 | N104: 171244 | O104: 171244 | P104: 175860 | R104: 171795 | S104: 171795 | T104: 172907 | V104: 163638 | W104: 163638 | X104: 183980 | Z104: 176242 | AA104: 176242 | AB104: 0 | AD104: 0 | AE104: 0 | AF104: 0 | AG104: 0 | AH104: 0 | AI104: 0 | AJ104: 0 | AK104: 0 | AL104: 0 | AM104: 0 | AN104: 0 | AO104: 0 | AP104: 0 | AQ104: 0 | AR104: 0 | AS104: 0 | AT104: 0 | AV104: 0 | AW104: 0
A105: 4 | B105: CS-4524 | C105: CS | D105: 4 | E105: 45 | F105: 452 | G105: 4524 | H105: 0 | J105: 0 | K105: 0 | L105: 0 | N105: 0 | O105: 0 | P105: 0 | R105: 0 | S105: 0 | T105: 0 | V105: 0 | W105: 0 | X105: 0 | Z105: 0 | AA105: 0 | AB105: 12914813 | AD105: 12518412 | AE105: 12518412 | AF105: 12971023 | AG105: 13137437 | AH105: 13137369 | AI105: 13137369 | AJ105: 13488378 | AK105: 13501322 | AL105: 13501322 | AM105: 13500733 | AN105: 13769391 | AO105: 13845368.9 | AP105: 13845368.9 | AQ105: 13845368.9 | AR105: 0 | AS105: 14092899 | AT105: 14092899 | AU105: 14092899 | AV105: 0 | AW105: 13089640 | AX105: 13089640 | AY105: 13089640 | AZ105: 14506469 | BA105: 14425988 | BB105: =VLOOKUP(G105,[1]Dépenses!$1:$1048576,6,FALSE) -> 14426444 | BD105: 15027461
A106: 4 | B106: CS-4525 | C106: CS | D106: 4 | E106: 45 | F106: 452 | G106: 4525 | H106: 0 | J106: 0 | K106: 0 | L106: 0 | N106: 0 | O106: 0 | P106: 0 | R106: 0 | S106: 0 | T106: 0 | V106: 0 | W106: 0 | X106: 0 | Z106: 0 | AA106: 0 | AB106: 28908991 | AD106: 28393900 | AE106: 28393900 | AF106: 28713995 | AG106: 29000210 | AH106: 29199566 | AI106: 29199566 | AJ106: 29996010 | AK106: 30051073 | AL106: 30051088 | AM106: 30085794 | AN106: 30617771 | AO106: 30832630.2 | AP106: 30832630.2 | AQ106: 30871682.2 | AR106: 0 | AS106: 31927994 | AT106: 31927994 | AU106: 31927994 | AV106: 0 | AW106: 30334380 | AX106: 30334380 | AY106: 30334342 | AZ106: 33113536 | BA106: 33330850 | BB106: =VLOOKUP(G106,[1]Dépenses!$1:$1048576,6,FALSE) -> 33331006 | BD106: 35004946
A107: 4 | B107: CS-4526 | C107: CS | D107: 4 | E107: 45 | F107: 452 | G107: 4526 | H107: 0 | J107: 0 | K107: 0 | L107: 0 | N107: 0 | O107: 0 | P107: 0 | R107: 0 | S107: 0 | T107: 0 | V107: 0 | W107: 0 | X107: 0 | Z107: 0 | AA107: 0 | AB107: 220644 | AD107: 231701 | AE107: 231701 | AF107: 232580 | AG107: 234676 | AH107: 234676 | AI107: 234676 | AJ107: 241770 | AK107: 242470 | AL107: 242470 | AM107: 242470 | AN107: 248027 | AO107: 250104.5 | AP107: 250104.5 | AQ107: 250104.5 | AR107: 0 | AS107: 256000 | AT107: 256000 | AU107: 256000 | AV107: 0 | AW107: 238309 | AX107: 238309 | AY107: 238309 | AZ107: 268274 | BA107: 268767 | BB107: =VLOOKUP(G107,[1]Dépenses!$1:$1048576,6,FALSE) -> 268767 | BD107: 281387
A108: 4 | B108: CS-4530 | C108: CS | D108: 4 | E108: 45 | F108: 453 | G108: 4530 | H108: 0 | J108: 0 | K108: 0 | L108: 0 | N108: 0 | O108: 0 | P108: 0 | R108: 0 | S108: 0 | T108: 0 | V108: 0 | W108: 0 | X108: 0 | Z108: 0 | AA108: 0 | AB108: 0 | AD108: 0 | AE108: 0 | AF108: 0 | AG108: 0 | AH108: 0 | AI108: 0 | AJ108: 11510 | AK108: 0 | AL108: 0 | AM108: 0 | AN108: 6802 | AO108: 0 | AP108: 0 | AQ108: 0 | AR108: 0 | AS108: 0 | AT108: 0 | AV108: 0 | AW108: 0 | AZ108: 30325
A109: 4 | B109: CS-4531 | C109: CS | D109: 4 | E109: 45 | F109: 453 | G109: 4531 | H109: 508790 | J109: 512788 | K109: 512788 | L109: 508790 | N109: 513520 | O109: 513520 | P109: 615745 | R109: 620571 | S109: 620571 | T109: 647854 | V109: 664794 | W109: 664794 | X109: 696422 | Z109: 733116 | AA109: 733116 | AB109: 0 | AD109: 0 | AE109: 0 | AF109: 0 | AG109: 0 | AH109: 0 | AI109: 0 | AJ109: 0 | AK109: 0 | AL109: 0 | AM109: 0 | AN109: 0 | AO109: 0 | AP109: 0 | AQ109: 0 | AR109: 0 | AS109: 0 | AT109: 0 | AV109: 0 | AW109: 0
A110: 4 | B110: CS-4532 | C110: CS | D110: 4 | E110: 45 | F110: 453 | G110: 4532 | H110: 9647352 | J110: 9765892 | K110: 9765892 | L110: 9647352 | N110: 10584060 | O110: 10584060 | P110: 11137916 | R110: 10958686 | S110: 10958686 | T110: 11242541 | V110: 11064321 | W110: 11064321 | X110: 11281592 | Z110: 11284188 | AA110: 11284188 | AB110: 0 | AD110: 0 | AE110: 0 | AF110: 0 | AG110: 0 | AH110: 0 | AI110: 0 | AJ110: 0 | AK110: 0 | AL110: 0 | AM110: 0 | AN110: 0 | AO110: 0 | AP110: 0 | AQ110: 0 | AR110: 0 | AS110: 0 | AT110: 0 | AV110: 0 | AW110: 0
A111: 4 | B111: CS-4533 | C111: CS | D111: 4 | E111: 45 | F111: 453 | G111: 4533 | H111: 4221 | J111: 3280 | K111: 3280 | L111: 4221 | N111: 18684 | O111: 18684 | P111: 19176 | R111: 19780 | S111: 19780 | T111: 20456 | V111: 19342 | W111: 19342 | X111: 26051 | Z111: 25675 | AA111: 25675 | AB111: 0 | AD111: 0 | AE111: 0 | AF111: 0 | AG111: 0 | AH111: 0 | AI111: 0 | AJ111: 0 | AK111: 0 | AL111: 0 | AM111: 0 | AN111: 0 | AO111: 0 | AP111: 0 | AQ111: 0 | AR111: 0 | AS111: 0 | AT111: 0 | AV111: 0 | AW111: 0
A112: 4 | B112: CS-4534 | C112: CS | D112: 4 | E112: 45 | F112: 453 | G112: 4534 | H112: 0 | J112: 0 | K112: 0 | L112: 0 | N112: 0 | O112: 0 | P112: 0 | R112: 0 | S112: 0 | T112: 0 | V112: 0 | W112: 0 | X112: 0 | Z112: 0 | AA112: 0 | AB112: 5357468 | AD112: 5177729 | AE112: 5177729 | AF112: 5112404 | AG112: 5225112 | AH112: 5289499 | AI112: 5289499 | AJ112: 5167681 | AK112: 5176183 | AL112: 5176183 | AM112: 5176164 | AN112: 5188136 | AO112: 5234814 | AP112: 5234814 | AQ112: 5234814 | AR112: 0 | AS112: 5390222 | AT112: 5390222 | AU112: 5390222 | AV112: 0 | AW112: 5097815 | AX112: 5097815 | AY112: 5097815 | AZ112: 7466219 | BA112: 5564767 | BB112: =VLOOKUP(G112,[1]Dépenses!$1:$1048576,6,FALSE) -> 5564769 | BD112: 5652731
A113: 4 | B113: CS-4535 | C113: CS | D113: 4 | E113: 45 | F113: 453 | G113: 4535 | H113: 0 | J113: 0 | K113: 0 | L113: 0 | N113: 0 | O113: 0 | P113: 0 | R113: 0 | S113: 0 | T113: 0 | V113: 0 | W113: 0 | X113: 0 | Z113: 0 | AA113: 0 | AB113: 2175582 | AD113: 2227749 | AE113: 2227749 | AF113: 2122807 | AG113: 2169558 | AH113: 2176333 | AI113: 2176333 | AJ113: 2161424 | AK113: 2226500 | AL113: 2226500 | AM113: 2226496 | AN113: 2170397 | AO113: 2236951 | AP113: 2236951 | AQ113: 2236951 | AR113: 0 | AS113: 2350859 | AT113: 2350859 | AU113: 2350859 | AV113: 0 | AW113: 2265148 | AX113: 2265148 | AY113: 2265148 | AZ113: 3511294 | BA113: 2416354 | BB113: =VLOOKUP(G113,[1]Dépenses!$1:$1048576,6,FALSE) -> 2416358 | BD113: 2478735
A114: 4 | B114: CS-4540 | C114: CS | D114: 4 | E114: 45 | F114: 454 | G114: 4540 | H114: 0 | J114: 0 | K114: 0 | L114: 0 | N114: 0 | O114: 0 | P114: 0 | R114: 0 | S114: 0 | T114: 0 | V114: 0 | W114: 0 | X114: 0 | Z114: 0 | AA114: 0 | AB114: 0 | AD114: 0 | AE114: 0 | AF114: 0 | AG114: 0 | AH114: 0 | AI114: 0 | AJ114: 0 | AK114: 0 | AL114: 0 | AM114: 0 | AN114: 0 | AO114: 0 | AP114: 0 | AQ114: 0 | AR114: 0 | AS114: 0 | AT114: 0 | AU114: 0 | AV114: 0 | AW114: 0 | AX114: 0 | AY114: 0 | AZ114: 0 | BA114: 0 | BB114: =VLOOKUP(G114,[1]Dépenses!$1:$1048576,6,FALSE) -> 0 | BD114: 0
A115: 4 | B115: CS-4550 | C115: CS | D115: 4 | E115: 45 | F115: 455 | G115: 4550 | H115: 0 | J115: 0 | K115: 0 | L115: 0 | N115: 0 | O115: 0 | P115: 0 | R115: 0 | S115: 0 | T115: 0 | V115: 0 | W115: 0 | X115: 0 | Z115: 0 | AA115: 0 | AB115: 0 | AD115: 0 | AE115: 0 | AF115: 3763 | AG115: 3763 | AH115: 3763 | AI115: 3763 | AJ115: 3763 | AK115: 3673 | AL115: 3673 | AM115: 3673 | AN115: 3763 | AO115: 3763 | AP115: 3763 | AQ115: 3763 | AR115: 0 | AS115: 3801 | AT115: 3801 | AU115: 3801 | AV115: 0 | AW115: 3815 | AX115: 3815 | AY115: 3815 | AZ115: 3815 | BA115: 3815 | BB115: =VLOOKUP(G115,[1]Dépenses!$1:$1048576,6,FALSE) -> 3815 | BD115: 3817
A116: 4 | B116: CS-5111 | C116: CS | D116: 5 | E116: 51 | F116: 511 | G116: 5111 | H116: 1715161 | J116: 1449971 | K116: 1449971 | L116: 1715161 | N116: 1820679 | O116: 1820679 | P116: 1612905 | R116: 1445507 | S116: 1445507 | T116: 1635146 | V116: 1496227 | W116: 1496227 | X116: 1767565 | Z116: 1742742 | AA116: 1742742 | AB116: 1624587 | AD116: 1632782 | AE116: 1632782 | AF116: 1559297 | AG116: 1557855 | AH116: 1557855 | AI116: 1557855 | AJ116: 1431576 | AK116: 1588577 | AL116: 1588577 | AM116: 1588577 | AN116: 1491188 | AO116: 1490472.1 | AP116: 1490472.1 | AQ116: 624215 | AR116: 0 | AS116: 649518 | AT116: 649518 | AU116: 649518 | AV116: 0 | AW116: 662408 | AX116: 662408 | AY116: 662408 | AZ116: 653974 | BA116: 689519 | BB116: =VLOOKUP(G116,[1]Dépenses!$1:$1048576,6,FALSE) -> 689519 | BD116: 749630
A117: 4 | B117: CS-5112 | C117: CS | D117: 5 | E117: 51 | F117: 511 | G117: 5112 | H117: -100 | J117: -2431 | K117: -2435 | L117: -100 | N117: -1556 | O117: -1870 | P117: -50 | R117: -9594 | S117: -9594 | T117: -50 | V117: -8 | W117: -8 | X117: -20 | Z117: -37 | AA117: -37 | AB117: -10 | AD117: -438 | AE117: -438 | AF117: -10 | AG117: -4 | AH117: 320 | AI117: 320 | AJ117: -5 | AK117: -5 | AL117: -5 | AM117: -5 | AN117: 0 | AO117: -5 | AP117: -5 | AQ117: -5 | AR117: 0 | AS117: -1 | AT117: -1 | AU117: -1 | AV117: 0 | AW117: 0 | AX117: 0 | AY117: 0 | AZ117: 0 | BA117: 124596 | BB117: =VLOOKUP(G117,[1]Dépenses!$1:$1048576,6,FALSE) -> 124596 | BD117: 0
A118: 4 | B118: CS-5121 | C118: CS | D118: 5 | E118: 51 | F118: 512 | G118: 5121 | H118: 0 | J118: 6 | K118: 6 | L118: 0 | N118: 0 | O118: 0 | P118: 0 | R118: 0 | S118: 0 | T118: 0 | V118: 0 | W118: 0 | X118: 0 | Z118: 0 | AA118: 0 | AB118: 0 | AD118: 0 | AE118: 0 | AF118: 0 | AG118: 0 | AH118: 0 | AI118: 0 | AJ118: 0 | AK118: 0 | AL118: 0 | AM118: 0 | AN118: 0 | AO118: 0 | AP118: 0 | AQ118: 0 | AR118: 0 | AS118: 0 | AT118: 0 | AU118: 0 | AV118: 0 | AW118: 0 | AX118: 0 | AY118: 0 | AZ118: 0 | BA118: 129 | BB118: =VLOOKUP(G118,[1]Dépenses!$1:$1048576,6,FALSE) -> 30 | BD118: 0
A119: 4 | B119: CS-5122 | C119: CS | D119: 5 | E119: 51 | F119: 512 | G119: 5122 | H119: 2776 | J119: 5943 | K119: 5943 | L119: 2776 | N119: 2529 | O119: 2529 | P119: 1621 | R119: 2855 | S119: 4067 | T119: 150 | V119: 18049 | W119: 18049 | X119: 22686 | Z119: 22239 | AA119: 22239 | AB119: 24993 | AD119: 10497 | AE119: 10497 | AF119: 21118 | AG119: 9245 | AH119: 9245 | AI119: 9245 | AJ119: 87274 | AK119: 63880 | AL119: 64575 | AM119: 64575 | AN119: 45506 | AO119: 48433.4 | AP119: 52491 | AQ119: 52491 | AR119: 0 | AS119: 21244 | AT119: 21130 | AU119: 21130 | AV119: 0 | AW119: 8063 | AX119: 7830 | AY119: 7830 | AZ119: 44923 | BA119: 9650 | BB119: =VLOOKUP(G119,[1]Dépenses!$1:$1048576,6,FALSE) -> 11977 | BD119: 45603
A120: 4 | B120: CS-5130 | C120: CS | D120: 5 | E120: 51 | F120: 513 | G120: 5130 | H120: 0 | J120: 114000 | K120: 114000 | L120: 0 | N120: 518 | O120: 518 | P120: 2823 | R120: 2847 | S120: 2847 | T120: 10000 | V120: 9830 | W120: 9830 | X120: 18749 | Z120: 17778 | AA120: 17778 | AB120: 14000 | AD120: 5435 | AE120: 5435 | AF120: 17500 | AG120: 7874 | AH120: 7874 | AI120: 7874 | AJ120: 9685 | AK120: 12213 | AL120: 12213 | AM120: 12213 | AN120: 5000 | AO120: 6073 | AP120: 6073 | AQ120: 6073 | AR120: 0 | AS120: 2099 | AT120: 2099 | AU120: 2099 | AV120: 0 | AW120: 2638 | AX120: 2638 | AY120: 2638 | AZ120: 6600 | BA120: 4522 | BB120: =VLOOKUP(G120,[1]Dépenses!$1:$1048576,6,FALSE) -> 4522 | BD120: 10000
A121: 4 | B121: CS-5140 | C121: CS | D121: 5 | E121: 51 | F121: 514 | G121: 5140 | H121: 19385 | J121: 26125 | K121: 26125 | L121: 19385 | N121: 27973 | O121: 27973 | P121: 11066 | R121: 6102 | S121: 6102 | T121: 0 | V121: 0 | W121: 0 | X121: 0 | Z121: 0 | AA121: 0 | AB121: 0 | AD121: 0 | AE121: 0 | AF121: 0 | AG121: 0 | AH121: 0 | AI121: 0 | AJ121: 0 | AK121: 0 | AL121: 0 | AM121: 0 | AN121: 0 | AO121: 0 | AP121: 0 | AQ121: 0 | AR121: 0 | AS121: 0 | AT121: 0 | AU121: 0 | AV121: 0 | AW121: 0 | AX121: 0 | AY121: 0 | AZ121: 0 | BA121: 0 | BB121: =VLOOKUP(G121,[1]Dépenses!$1:$1048576,6,FALSE) -> 17426 | BD121: 0
A122: 4 | B122: CS-5210 | C122: CS | D122: =LEFT($G122,1) -> 5 | E122: =LEFT($G122,2) -> 52 | F122: =LEFT($G122,3) -> 521 | G122: 5210 | H122: 493 | J122: 188 | K122: 188 | L122: 493 | N122: 51 | O122: 51 | P122: 331 | R122: 273 | S122: 273 | T122: 47 | V122: 164 | W122: 164 | X122: 368 | Z122: 270 | AA122: 270 | AB122: 409 | AD122: 3164 | AE122: 3164 | AF122: 230 | AG122: 1215 | AH122: 1215 | AI122: 1215 | AJ122: 520 | AK122: 173 | AL122: 173 | AM122: 173 | AN122: 205 | AO122: 279 | AP122: 279 | AQ122: 279 | AR122: 0 | AS122: 87 | AT122: 87 | AU122: 87 | AV122: 0 | AW122: 145 | AX122: 145 | AY122: 145 | AZ122: 0 | BA122: 72 | BB122: =VLOOKUP(G122,[1]Dépenses!$1:$1048576,6,FALSE) -> 72 | BD122: 0
A123: 4 | B123: CS-5220 | C123: CS | D123: 5 | E123: 52 | F123: 522 | G123: 5220 | H123: 0 | J123: 0 | K123: 0 | L123: 0 | N123: 313 | O123: 313 | P123: 994 | R123: 1005 | S123: 1005 | T123: 892 | V123: 500 | W123: 500 | X123: 1467 | Z123: 738 | AA123: 738 | AB123: 960 | AD123: 1869 | AE123: 1869 | AF123: 3631 | AG123: 934 | AH123: 934 | AI123: 934 | AJ123: 2437 | AK123: 408 | AL123: 408 | AM123: 408 | AN123: 250 | AO123: 310 | AP123: 310 | AQ123: 310 | AR123: 0 | AS123: 30 | AT123: 30 | AU123: 30 | AV123: 0 | AW123: 32 | AX123: 32 | AY123: 32 | AZ123: 3235 | BA123: 96 | BB123: =VLOOKUP(G123,[1]Dépenses!$1:$1048576,6,FALSE) -> 96 | BD123: 400
A124: 4 | B124: CS-5310 | C124: CS | D124: 5 | E124: 53 | F124: 531 | G124: 5310 | H124: 0 | J124: 0 | K124: 0 | L124: 0 | N124: 0 | O124: 0 | P124: 0 | R124: 0 | S124: 0 | T124: 0 | V124: 0 | W124: 0 | X124: 0 | Z124: 0 | AA124: 0 | AB124: 0 | AD124: 0 | AE124: 0 | AF124: 0 | AG124: 0 | AH124: 0 | AI124: 0 | AJ124: 0 | AK124: 0 | AL124: 0 | AM124: 0 | AN124: 0 | AO124: 0 | AP124: 0 | AQ124: 0 | AR124: 0 | AS124: 0 | AT124: 0 | AU124: 0 | AV124: 0 | AW124: 0 | AX124: 0 | AY124: 0 | AZ124: 0 | BA124: 0 | BB124: =VLOOKUP(G124,[1]Dépenses!$1:$1048576,6,FALSE) -> 0 | BD124: 0
A125: 4 | B125: CS-5320 | C125: CS | D125: 5 | E125: 53 | F125: 532 | G125: 5320 | H125: 18001 | J125: 23981 | K125: 23974 | L125: 18001 | N125: 29576 | O125: 29577 | P125: 40055 | R125: 49255 | S125: 49255 | T125: 35846 | V125: 39285 | W125: 39285 | X125: 40840 | Z125: 26384 | AA125: 26384 | AB125: 30092 | AD125: 27183 | AE125: 27183 | AF125: 43584 | AG125: 92760 | AH125: 92760 | AI125: 92760 | AJ125: 38140 | AK125: 34178 | AL125: 34178 | AM125: 34178 | AN125: 52317 | AO125: 27365 | AP125: 27365 | AQ125: 27365 | AR125: 0 | AS125: 29839 | AT125: 29839 | AU125: 29839 | AV125: 0 | AW125: -10221 | AX125: -10221 | AY125: -10221 | AZ125: 38229 | BA125: 32174 | BB125: =VLOOKUP(G125,[1]Dépenses!$1:$1048576,6,FALSE) -> 32174 | BD125: 42160
A126: 4 | B126: CS-5411 | C126: CS | D126: 5 | E126: 54 | F126: 541 | G126: 5411 | H126: 0 | J126: 0 | K126: 0 | L126: 0 | N126: 0 | O126: 0 | P126: 1084 | R126: 800 | S126: 800 | T126: 1070 | V126: 693 | W126: 693 | X126: 1000 | Z126: 600 | AA126: 600 | AB126: 960 | AD126: 960 | AE126: 960 | AF126: 960 | AG126: 960 | AH126: 960 | AI126: 960 | AJ126: 900 | AK126: 500 | AL126: 500 | AM126: 500 | AN126: 900 | AO126: 950 | AP126: 950 | AQ126: 950 | AR126: 0 | AS126: 650 | AT126: 650 | AU126: 650 | AV126: 0 | AW126: 715 | AX126: 715 | AY126: 715 | AZ126: 900 | BA126: 900 | BB126: =VLOOKUP(G126,[1]Dépenses!$1:$1048576,6,FALSE) -> 900 | BD126: 900
A127: 4 | B127: CS-5412 | C127: CS | D127: 5 | E127: 54 | F127: 541 | G127: 5412 | H127: 9408 | J127: 9408 | K127: 9408 | L127: 9408 | N127: 7847 | O127: 7847 | P127: 10976 | R127: 10982 | S127: 10982 | T127: 10976 | V127: 9805 | W127: 9805 | X127: 5708 | Z127: 4147 | AA127: 4147 | AB127: 7060 | AD127: 7060 | AE127: 7060 | AF127: 5295 | AG127: 3530 | AH127: 3530 | AI127: 3530 | AJ127: 7060 | AK127: 7066 | AL127: 7066 | AM127: 7066 | AN127: 8825 | AO127: 8825 | AP127: 8825 | AQ127: 8825 | AR127: 0 | AS127: 10590 | AT127: 10590 | AU127: 10590 | AV127: 0 | AW127: 10590 | AX127: 10590 | AY127: 10590 | AZ127: 9945 | BA127: 9997 | BB127: =VLOOKUP(G127,[1]Dépenses!$1:$1048576,6,FALSE) -> 9997 | BD127: 9750
A128: 4 | B128: CS-5421 | C128: CS | D128: 5 | E128: 54 | F128: 542 | G128: 5421 | H128: 0 | J128: 0 | K128: 0 | L128: 0 | N128: 0 | O128: 0 | P128: 0 | R128: 0 | S128: 0 | T128: 0 | V128: 0 | W128: 0 | X128: 0 | Z128: 0 | AA128: 0 | AB128: 0 | AD128: 32 | AE128: 32 | AF128: 0 | AG128: 0 | AH128: 0 | AI128: 0 | AJ128: 0 | AK128: 0 | AL128: 0 | AM128: 0 | AN128: 0 | AO128: 0 | AP128: 0 | AQ128: 0 | AR128: 0 | AS128: 0 | AT128: 0 | AU128: 0 | AV128: 0 | AW128: 0 | AX128: 0 | AY128: 0 | AZ128: 0 | BA128: 0 | BB128: =VLOOKUP(G128,[1]Dépenses!$1:$1048576,6,FALSE) -> 0 | BD128: 0
A129: 4 | B129: CS-5422 | C129: CS | D129: 5 | E129: 54 | F129: 542 | G129: 5422 | H129: 0 | J129: 0 | K129: 0 | L129: 0 | N129: 0 | O129: 0 | P129: 0 | R129: 25943 | S129: 25943 | T129: 0 | V129: 9834 | W129: 9834 | X129: 0 | Z129: 0 | AA129: 0 | AB129: 0 | AD129: 0 | AE129: 0 | AF129: 0 | AG129: 0 | AH129: 0 | AI129: 0 | AJ129: 0 | AK129: 0 | AL129: 0 | AM129: 0 | AN129: 0 | AO129: 0 | AP129: 0 | AQ129: 0 | AR129: 0 | AS129: 0 | AT129: 0 | AU129: 0 | AV129: 0 | AW129: 0 | AX129: 0 | AY129: 0 | AZ129: 0 | BA129: 0 | BB129: =VLOOKUP(G129,[1]Dépenses!$1:$1048576,6,FALSE) -> 0 | BD129: 0
A130: 4 | B130: CS-5431 | C130: CS | D130: 5 | E130: 54 | F130: 543 | G130: 5431 | H130: 0 | J130: 0 | K130: 0 | L130: 0 | N130: 0 | O130: 0 | P130: 0 | R130: 0 | S130: 0 | T130: 0 | V130: 0 | W130: 0 | X130: 0 | Z130: 0 | AA130: 0 | AB130: 0 | AD130: 0 | AE130: 0 | AF130: 0 | AG130: 0 | AH130: 0 | AI130: 0 | AJ130: 0 | AK130: 0 | AL130: 0 | AM130: 0 | AN130: 0 | AO130: 0 | AP130: 0 | AQ130: 0 | AR130: 0 | AS130: 0 | AT130: 0 | AU130: 0 | AV130: 0 | AW130: 0 | AX130: 0 | AY130: 0 | AZ130: 0 | BA130: 0 | BB130: =VLOOKUP(G130,[1]Dépenses!$1:$1048576,6,FALSE) -> 0 | BD130: 0
A131: 4 | B131: =C131&"-"&G131 -> CS-5432 | C131: CS | D131: 5 | E131: 54 | F131: 543 | G131: 5432 | H131: 0 | J131: 0 | K131: 0 | L131: 0 | N131: 0 | O131: 0 | P131: 0 | R131: 0 | S131: 0 | T131: 0 | V131: 0 | W131: 0 | X131: 0 | Z131: 0 | AA131: 0 | AB131: 0 | AD131: 0 | AE131: 0 | AF131: 0 | AG131: 0 | AH131: 0 | AI131: 0 | AJ131: 0 | AK131: 0 | AL131: 0 | AM131: 0 | AN131: 0 | AO131: 0 | AP131: 0 | AQ131: 0 | AR131: 0 | AS131: 0 | AT131: 3000 | AU131: 3000 | AV131: 0 | AW131: 0 | AX131: 0 | AY131: 0 | AZ131: 0 | BA131: 0 | BB131: =VLOOKUP(G131,[1]Dépenses!$1:$1048576,6,FALSE) -> 744 | BD131: 0
A132: 4 | B132: CS-5441 | C132: CS | D132: 5 | E132: 54 | F132: 544 | G132: 5441 | H132: 11320 | J132: 15989 | K132: 15989 | L132: 11320 | N132: 27187 | O132: 27187 | P132: 29189 | R132: 40342 | S132: 40342 | T132: 44533 | V132: 37450 | W132: 37450 | X132: 30504 | Z132: 22645 | AA132: 22645 | AB132: 21928 | AD132: 23646 | AE132: 23646 | AF132: 22519 | AG132: 23195 | AH132: 23195 | AI132: 23195 | AJ132: 18554 | AK132: 25594 | AL132: 25594 | AM132: 25594 | AN132: 31640 | AO132: 29454 | AP132: 29454 | AQ132: 29454 | AR132: 0 | AS132: 31975 | AT132: 31975 | AU132: 31975 | AV132: 0 | AW132: 34026 | AX132: 34026 | AY132: 34026 | AZ132: 30376 | BA132: 31371 | BB132: =VLOOKUP(G132,[1]Dépenses!$1:$1048576,6,FALSE) -> 31371 | BD132: 34233
A133: 4 | B133: CS-5442 | C133: CS | D133: 5 | E133: 54 | F133: 544 | G133: 5442 | H133: 150443 | J133: 149723 | K133: 149723 | L133: 150443 | N133: 206350 | O133: 206350 | P133: 179620 | R133: 148953 | S133: 148953 | T133: 188326 | V133: 187545 | W133: 187545 | X133: 200135 | Z133: 204227 | AA133: 204227 | AB133: 72823 | AD133: 93125 | AE133: 93125 | AF133: 66059 | AG133: 62460 | AH133: 62460 | AI133: 62460 | AJ133: 69951 | AK133: 69536 | AL133: 69536 | AM133: 69536 | AN133: 90155 | AO133: 90055 | AP133: 90055 | AQ133: 90055 | AR133: 0 | AS133: 107471 | AT133: 107471 | AU133: 107471 | AV133: 0 | AW133: 173088 | AX133: 173088 | AY133: 173088 | AZ133: 124643 | BA133: 131023 | BB133: =VLOOKUP(G133,[1]Dépenses!$1:$1048576,6,FALSE) -> 131023 | BD133: 173979
A134: 4 | B134: CS-5451 | C134: CS | D134: 5 | E134: 54 | F134: 545 | G134: 5451 | H134: 61 | J134: 0 | K134: 0 | L134: 61 | N134: 249 | O134: 249 | P134: 1103 | R134: 1002 | S134: 1002 | T134: 101 | V134: 0 | W134: 0 | X134: 0 | Z134: 0 | AA134: 0 | AB134: 0 | AD134: 99176 | AE134: 99176 | AF134: 0 | AG134: 102164 | AH134: 98636 | AI134: 98636 | AJ134: 90219 | AK134: 100099 | AL134: 92119 | AM134: 151119 | AN134: 85023 | AO134: 97158.5 | AP134: 142943 | AQ134: 142943 | AR134: 0 | AS134: 119232 | AT134: 105421 | AU134: 105421 | AV134: 0 | AW134: 111671 | AX134: 111671 | AY134: 110316 | AZ134: 146254 | BA134: 136254 | BB134: =VLOOKUP(G134,[1]Dépenses!$1:$1048576,6,FALSE) -> 122512 | BD134: 151280
A135: 4 | B135: CS-5452 | C135: CS | D135: 5 | E135: 54 | F135: 545 | G135: 5452 | H135: 341000 | J135: 328462 | K135: 328462 | L135: 341000 | N135: 299352 | O135: 301352 | P135: 334161 | R135: 237021 | S135: 237021 | T135: 309586 | V135: 229452 | W135: 229452 | X135: 288000 | Z135: 236052 | AA135: 236052 | AB135: 261700 | AD135: 9738 | AE135: 9738 | AF135: 256000 | AG135: 15095 | AH135: 15095 | AI135: 15095 | AJ135: 36740 | AK135: 14300 | AL135: 14300 | AM135: 14300 | AN135: 40524 | AO135: 43814.4 | AP135: 10248 | AQ135: 10248 | AR135: 0 | AS135: 29209 | AT135: 29209 | AU135: 29209 | AV135: 0 | AW135: 300 | AX135: 300 | AY135: 300 | AZ135: 10500 | BA135: 6106 | BB135: =VLOOKUP(G135,[1]Dépenses!$1:$1048576,6,FALSE) -> 6106 | BD135: 10500
A136: 4 | B136: CS-5461 | C136: CS | D136: 5 | E136: 54 | F136: 546 | G136: 5461 | H136: 0 | J136: 0 | K136: 0 | L136: 0 | N136: 0 | O136: 0 | P136: 0 | R136: 0 | S136: 0 | T136: 0 | V136: 0 | W136: 0 | X136: 0 | Z136: 0 | AA136: 0 | AB136: 0 | AD136: 0 | AE136: 0 | AF136: 0 | AG136: 0 | AH136: 0 | AI136: 0 | AJ136: 0 | AK136: 0 | AL136: 0 | AM136: 0 | AN136: 0 | AO136: 0 | AP136: 0 | AQ136: 0 | AR136: 0 | AS136: 0 | AT136: 0 | AU136: 0 | AV136: 0 | AW136: 0 | AX136: 0 | AY136: 0 | AZ136: 0 | BA136: 0 | BB136: =VLOOKUP(G136,[1]Dépenses!$1:$1048576,6,FALSE) -> 0 | BD136: 0
A137: 4 | B137: CS-5462 | C137: CS | D137: 5 | E137: 54 | F137: 546 | G137: 5462 | H137: 0 | J137: 0 | K137: 0 | L137: 0 | N137: 0 | O137: 0 | P137: 0 | R137: 0 | S137: 0 | T137: 0 | V137: 0 | W137: 0 | X137: 0 | Z137: 0 | AA137: 0 | AB137: 0 | AD137: 0 | AE137: 0 | AF137: 0 | AG137: 0 | AH137: 0 | AI137: 0 | AJ137: 0 | AK137: 87 | AL137: 87 | AM137: 87 | AN137: 50 | AO137: 1.1 | AP137: 1.1 | AQ137: 1.1 | AR137: 0 | AS137: 71 | AT137: 229 | AU137: 229 | AV137: 0 | AW137: 15200 | AX137: 15200 | AY137: 17695 | AZ137: 42871 | BA137: 7285 | BB137: =VLOOKUP(G137,[1]Dépenses!$1:$1048576,6,FALSE) -> 21027 | BD137: 18895
A138: 4 | B138: CS-6111 | C138: CS | D138: 6 | E138: 61 | F138: 611 | G138: 6111 | H138: 0 | J138: 0 | K138: 0 | L138: 0 | N138: 0 | O138: 0 | P138: 0 | R138: 0 | S138: 0 | T138: 0 | V138: 0 | W138: 0 | X138: 0 | Z138: 0 | AA138: 0 | AB138: 0 | AD138: 0 | AE138: 0 | AF138: 0 | AG138: 0 | AH138: 0 | AI138: 0 | AJ138: 0 | AK138: 0 | AL138: 0 | AM138: 0 | AN138: 0 | AO138: 0 | AP138: 0 | AQ138: 0 | AR138: 0 | AS138: 0 | AT138: 0 | AU138: 0 | AV138: 0 | AW138: 0 | AX138: 0 | AY138: 0 | AZ138: 0 | BA138: 0 | BB138: =VLOOKUP(G138,[1]Dépenses!$1:$1048576,6,FALSE) -> 0 | BD138: 0
A139: 4 | B139: CS-6112 | C139: CS | D139: 6 | E139: 61 | F139: 611 | G139: 6112 | H139: 0 | J139: 0 | K139: 0 | L139: 0 | N139: 0 | O139: 0 | P139: 0 | R139: 0 | S139: 0 | T139: 0 | V139: 0 | W139: 0 | X139: 0 | Z139: 0 | AA139: 0 | AB139: 0 | AD139: 0 | AE139: 0 | AF139: 0 | AG139: 0 | AH139: 0 | AI139: 0 | AJ139: 0 | AK139: 0 | AL139: 0 | AM139: 0 | AN139: 0 | AO139: 0 | AP139: 0 | AQ139: 0 | AR139: 0 | AS139: 0 | AT139: 0 | AU139: 0 | AV139: 0 | AW139: 0 | AX139: 0 | AY139: 0 | AZ139: 0 | BA139: 0 | BB139: =VLOOKUP(G139,[1]Dépenses!$1:$1048576,6,FALSE) -> 0 | BD139: 0
A140: 4 | B140: CS-6121 | C140: CS | D140: 6 | E140: 61 | F140: 612 | G140: 6121 | H140: 0 | J140: 0 | K140: 0 | L140: 0 | N140: 0 | O140: 0 | P140: 0 | R140: 0 | S140: 0 | T140: 0 | V140: 0 | W140: 0 | X140: 0 | Z140: 0 | AA140: 0 | AB140: 0 | AD140: 0 | AE140: 0 | AF140: 0 | AG140: 0 | AH140: 0 | AI140: 0 | AJ140: 0 | AK140: 0 | AL140: 0 | AM140: 0 | AN140: 0 | AO140: 0 | AP140: 0 | AQ140: 0 | AR140: 0 | AS140: 0 | AT140: 0 | AU140: 0 | AV140: 0 | AW140: 0 | AX140: 0 | AY140: 0 | AZ140: 0 | BA140: 0 | BB140: =VLOOKUP(G140,[1]Dépenses!$1:$1048576,6,FALSE) -> 0 | BD140: 0
A141: 4 | B141: CS-6122 | C141: CS | D141: 6 | E141: 61 | F141: 612 | G141: 6122 | H141: 0 | J141: 0 | K141: 0 | L141: 0 | N141: 0 | O141: 0 | P141: 0 | R141: 0 | S141: 0 | T141: 0 | V141: 0 | W141: 0 | X141: 0 | Z141: 0 | AA141: 0 | AB141: 0 | AD141: 0 | AE141: 0 | AF141: 0 | AG141: 0 | AH141: 0 | AI141: 0 | AJ141: 0 | AK141: 0 | AL141: 0 | AM141: 0 | AN141: 0 | AO141: 0 | AP141: 0 | AQ141: 0 | AR141: 0 | AS141: 0 | AT141: 0 | AU141: 0 | AV141: 0 | AW141: 0 | AX141: 0 | AY141: 0 | AZ141: 0 | BA141: 0 | BB141: =VLOOKUP(G141,[1]Dépenses!$1:$1048576,6,FALSE) -> 0 | BD141: 0
A142: 4 | B142: CS-6131 | C142: CS | D142: 6 | E142: 61 | F142: 613 | G142: 6131 | H142: 0 | J142: 0 | K142: 0 | L142: 0 | N142: 0 | O142: 0 | P142: 0 | R142: 0 | S142: 0 | T142: 0 | V142: 0 | W142: 0 | X142: 0 | Z142: 0 | AA142: 0 | AB142: 0 | AD142: 0 | AE142: 0 | AF142: 0 | AG142: 0 | AH142: 0 | AI142: 0 | AJ142: 0 | AK142: 0 | AL142: 0 | AM142: 0 | AN142: 0 | AO142: 0 | AP142: 0 | AQ142: 0 | AR142: 0 | AS142: 0 | AT142: 0 | AU142: 0 | AV142: 0 | AW142: 0 | AX142: 0 | AY142: 0 | AZ142: 0 | BA142: 0 | BB142: =VLOOKUP(G142,[1]Dépenses!$1:$1048576,6,FALSE) -> 0 | BD142: 0
A143: 4 | B143: CS-6132 | C143: CS | D143: 6 | E143: 61 | F143: 613 | G143: 6132 | H143: 0 | J143: 0 | K143: 0 | L143: 0 | N143: 0 | O143: 0 | P143: 0 | R143: 0 | S143: 0 | T143: 0 | V143: 0 | W143: 0 | X143: 0 | Z143: 0 | AA143: 0 | AB143: 0 | AD143: 0 | AE143: 0 | AF143: 0 | AG143: 0 | AH143: 0 | AI143: 0 | AJ143: 0 | AK143: 0 | AL143: 0 | AM143: 0 | AN143: 0 | AO143: 0 | AP143: 0 | AQ143: 0 | AR143: 0 | AS143: 0 | AT143: 0 | AU143: 0 | AV143: 0 | AW143: 0 | AX143: 0 | AY143: 0 | AZ143: 0 | BA143: 0 | BB143: =VLOOKUP(G143,[1]Dépenses!$1:$1048576,6,FALSE) -> 0 | BD143: 0
A144: 4 | B144: CS-6141 | C144: CS | D144: 6 | E144: 61 | F144: 614 | G144: 6141 | H144: 0 | J144: 0 | K144: 0 | L144: 0 | N144: 0 | O144: 0 | P144: 0 | R144: 0 | S144: 0 | T144: 0 | V144: 0 | W144: 0 | X144: 0 | Z144: 0 | AA144: 0 | AB144: 0 | AD144: 0 | AE144: 0 | AF144: 0 | AG144: 0 | AH144: 0 | AI144: 0 | AJ144: 0 | AK144: 0 | AL144: 0 | AM144: 0 | AN144: 0 | AO144: 0 | AP144: 0 | AQ144: 0 | AR144: 0 | AS144: 0 | AT144: 0 | AU144: 0 | AV144: 0 | AW144: 0 | AX144: 0 | AY144: 0 | AZ144: 0 | BA144: 0 | BB144: =VLOOKUP(G144,[1]Dépenses!$1:$1048576,6,FALSE) -> 0 | BD144: 0
A145: 4 | B145: CS-6142 | C145: CS | D145: 6 | E145: 61 | F145: 614 | G145: 6142 | H145: 0 | J145: 0 | K145: 0 | L145: 0 | N145: 0 | O145: 0 | P145: 0 | R145: 0 | S145: 0 | T145: 0 | V145: 0 | W145: 0 | X145: 0 | Z145: 0 | AA145: 0 | AB145: 0 | AD145: 0 | AE145: 0 | AF145: 0 | AG145: 0 | AH145: 0 | AI145: 0 | AJ145: 0 | AK145: 0 | AL145: 0 | AM145: 0 | AN145: 0 | AO145: 0 | AP145: 0 | AQ145: 0 | AR145: 0 | AS145: 0 | AT145: 0 | AU145: 0 | AV145: 0 | AW145: 0 | AX145: 0 | AY145: 0 | AZ145: 0 | BA145: 0 | BB145: =VLOOKUP(G145,[1]Dépenses!$1:$1048576,6,FALSE) -> 0 | BD145: 0
A146: 4 | B146: CS-6151 | C146: CS | D146: 6 | E146: 61 | F146: 615 | G146: 6151 | H146: 0 | J146: 0 | K146: 0 | L146: 0 | N146: 0 | O146: 0 | P146: 0 | R146: 0 | S146: 0 | T146: 0 | V146: 0 | W146: 0 | X146: 0 | Z146: 0 | AA146: 0 | AB146: 0 | AD146: 0 | AE146: 0 | AF146: 0 | AG146: 0 | AH146: 0 | AI146: 0 | AJ146: 0 | AK146: 0 | AL146: 0 | AM146: 0 | AN146: 0 | AO146: 0 | AP146: 0 | AQ146: 0 | AR146: 0 | AS146: 0 | AT146: 0 | AU146: 0 | AV146: 0 | AW146: 0 | AX146: 0 | AY146: 0 | AZ146: 0 | BA146: 0 | BB146: =VLOOKUP(G146,[1]Dépenses!$1:$1048576,6,FALSE) -> 0 | BD146: 0
A147: 4 | B147: CS-6152 | C147: CS | D147: 6 | E147: 61 | F147: 615 | G147: 6152 | H147: 0 | J147: 0 | K147: 0 | L147: 0 | N147: 0 | O147: 0 | P147: 0 | R147: 0 | S147: 0 | T147: 0 | V147: 0 | W147: 0 | X147: 0 | Z147: 0 | AA147: 0 | AB147: 0 | AD147: 0 | AE147: 0 | AF147: 0 | AG147: 0 | AH147: 0 | AI147: 0 | AJ147: 0 | AK147: 0 | AL147: 0 | AM147: 0 | AN147: 0 | AO147: 0 | AP147: 0 | AQ147: 0 | AR147: 0 | AS147: 0 | AT147: 0 | AU147: 0 | AV147: 0 | AW147: 0 | AX147: 0 | AY147: 0 | AZ147: 0 | BA147: 0 | BB147: =VLOOKUP(G147,[1]Dépenses!$1:$1048576,6,FALSE) -> 0 | BD147: 0
A148: 4 | B148: CS-6161 | C148: CS | D148: 6 | E148: 61 | F148: 616 | G148: 6161 | H148: 0 | J148: 0 | K148: 0 | L148: 0 | N148: 0 | O148: 0 | P148: 0 | R148: 0 | S148: 0 | T148: 0 | V148: 0 | W148: 0 | X148: 0 | Z148: 0 | AA148: 0 | AB148: 0 | AD148: 0 | AE148: 0 | AF148: 0 | AG148: 0 | AH148: 0 | AI148: 0 | AJ148: 0 | AK148: 0 | AL148: 0 | AM148: 0 | AN148: 0 | AO148: 0 | AP148: 0 | AQ148: 0 | AR148: 0 | AS148: 0 | AT148: 0 | AU148: 0 | AV148: 0 | AW148: 0 | AX148: 0 | AY148: 0 | AZ148: 0 | BA148: 0 | BB148: =VLOOKUP(G148,[1]Dépenses!$1:$1048576,6,FALSE) -> 0 | BD148: 0
A149: 4 | B149: CS-6162 | C149: CS | D149: 6 | E149: 61 | F149: 616 | G149: 6162 | H149: 0 | J149: 0 | K149: 0 | L149: 0 | N149: 0 | O149: 0 | P149: 0 | R149: 0 | S149: 0 | T149: 0 | V149: 0 | W149: 0 | X149: 0 | Z149: 0 | AA149: 0 | AB149: 0 | AD149: 0 | AE149: 0 | AF149: 0 | AG149: 0 | AH149: 0 | AI149: 0 | AJ149: 0 | AK149: 0 | AL149: 0 | AM149: 0 | AN149: 0 | AO149: 0 | AP149: 0 | AQ149: 0 | AR149: 0 | AS149: 0 | AT149: 0 | AU149: 0 | AV149: 0 | AW149: 0 | AX149: 0 | AY149: 0 | AZ149: 0 | BA149: 0 | BB149: =VLOOKUP(G149,[1]Dépenses!$1:$1048576,6,FALSE) -> 0 | BD149: 0
A150: 4 | B150: CS-6171 | C150: CS | D150: 6 | E150: 61 | F150: 617 | G150: 6171 | H150: 0 | J150: 0 | K150: 0 | L150: 0 | N150: 0 | O150: 0 | P150: 0 | R150: 0 | S150: 0 | T150: 0 | V150: 0 | W150: 0 | X150: 0 | Z150: 0 | AA150: 0 | AB150: 0 | AD150: 0 | AE150: 0 | AF150: 0 | AG150: 0 | AH150: 0 | AI150: 0 | AJ150: 0 | AK150: 0 | AL150: 0 | AM150: 0 | AN150: 0 | AO150: 0 | AP150: 0 | AQ150: 0 | AR150: 0 | AS150: 0 | AT150: 0 | AU150: 0 | AV150: 0 | AW150: 0 | AX150: 0 | AY150: 0 | AZ150: 0 | BA150: 0 | BB150: =VLOOKUP(G150,[1]Dépenses!$1:$1048576,6,FALSE) -> 0 | BD150: 0
A151: 4 | B151: CS-6172 | C151: CS | D151: 6 | E151: 61 | F151: 617 | G151: 6172 | H151: 0 | J151: 0 | K151: 0 | L151: 0 | N151: 0 | O151: 0 | P151: 0 | R151: 0 | S151: 0 | T151: 0 | V151: 0 | W151: 0 | X151: 0 | Z151: 0 | AA151: 0 | AB151: 0 | AD151: 0 | AE151: 0 | AF151: 0 | AG151: 0 | AH151: 0 | AI151: 0 | AJ151: 0 | AK151: 0 | AL151: 0 | AM151: 0 | AN151: 0 | AO151: 0 | AP151: 0 | AQ151: 0 | AR151: 0 | AS151: 0 | AT151: 0 | AU151: 0 | AV151: 0 | AW151: 0 | AX151: 0 | AY151: 0 | AZ151: 0 | BA151: 0 | BB151: =VLOOKUP(G151,[1]Dépenses!$1:$1048576,6,FALSE) -> 0 | BD151: 0
A152: 4 | B152: CS-6210 | C152: CS | D152: 6 | E152: 62 | F152: 621 | G152: 6210 | H152: 0 | J152: 0 | K152: 0 | L152: 0 | N152: 0 | O152: 0 | P152: 0 | R152: 0 | S152: 0 | T152: 0 | V152: 0 | W152: 0 | X152: 0 | Z152: 0 | AA152: 0 | AB152: 0 | AD152: 0 | AE152: 0 | AF152: 0 | AG152: 0 | AH152: 0 | AI152: 0 | AJ152: 0 | AK152: 0 | AL152: 0 | AM152: 0 | AN152: 0 | AO152: 0 | AP152: 0 | AQ152: 0 | AR152: 0 | AS152: 0 | AT152: 0 | AU152: 0 | AV152: 0 | AW152: 0 | AX152: 0 | AY152: 0 | AZ152: 0 | BA152: 0 | BB152: =VLOOKUP(G152,[1]Dépenses!$1:$1048576,6,FALSE) -> 0 | BD152: 0
A153: 4 | B153: CS-6220 | C153: CS | D153: 6 | E153: 62 | F153: 622 | G153: 6220 | H153: 0 | J153: 0 | K153: 0 | L153: 0 | N153: 0 | O153: 0 | P153: 0 | R153: 0 | S153: 0 | T153: 0 | V153: 0 | W153: 0 | X153: 0 | Z153: 0 | AA153: 0 | AB153: 0 | AD153: 0 | AE153: 0 | AF153: 0 | AG153: 0 | AH153: 0 | AI153: 0 | AJ153: 0 | AK153: 0 | AL153: 0 | AM153: 0 | AN153: 0 | AO153: 0 | AP153: 0 | AQ153: 0 | AR153: 0 | AS153: 0 | AT153: 0 | AU153: 0 | AV153: 0 | AW153: 0 | AX153: 0 | AY153: 0 | AZ153: 0 | BA153: 0 | BB153: =VLOOKUP(G153,[1]Dépenses!$1:$1048576,6,FALSE) -> 0 | BD153: 0
A154: 4 | B154: CS-6300 | C154: CS | D154: =LEFT($G154,1) -> 6 | E154: =LEFT($G154,2) -> 63 | F154: =LEFT($G154,3) -> 630 | G154: 6300 | H154: 0 | J154: 0 | K154: 0 | L154: 0 | N154: 0 | O154: 0 | P154: 0 | R154: 0 | S154: 0 | T154: 0 | V154: 0 | W154: 0 | X154: 0 | Z154: 0 | AA154: 0 | AB154: 35098 | AD154: 15425 | AE154: 0 | AF154: 0 | AG154: 0 | AH154: 0 | AI154: 0 | AJ154: 0 | AK154: 0 | AL154: 0 | AM154: 0 | AN154: 0 | AO154: 0 | AP154: 0 | AQ154: 0 | AR154: 0 | AS154: 0 | AT154: 0 | AV154: 0 | AW154: 0
A155: 4 | B155: CS-6311 | C155: CS | D155: 6 | E155: 63 | F155: 631 | G155: 6311 | H155: 0 | J155: 0 | K155: 0 | L155: 0 | N155: 0 | O155: 0 | P155: 0 | R155: 0 | S155: 0 | T155: 0 | V155: 0 | W155: 0 | X155: 0 | Z155: 0 | AA155: 0 | AB155: 0 | AD155: 0 | AE155: 15425 | AF155: 0 | AG155: 0 | AH155: 0 | AI155: 0 | AJ155: 0 | AK155: 0 | AL155: 0 | AM155: 0 | AN155: 0 | AO155: 0 | AP155: 0 | AQ155: 0 | AR155: 0 | AS155: 0 | AT155: 0 | AU155: 0 | AV155: 0 | AW155: 0 | AX155: 0 | AY155: 0 | AZ155: 0 | BA155: 0 | BB155: =VLOOKUP(G155,[1]Dépenses!$1:$1048576,6,FALSE) -> 0 | BD155: 0
A156: 4 | B156: CS-6312 | C156: CS | D156: 6 | E156: 63 | F156: 631 | G156: 6312 | H156: 117 | J156: 0 | K156: 0 | L156: 117 | N156: 0 | O156: 0 | P156: 119 | R156: 0 | S156: 0 | T156: 121 | V156: 0 | W156: 0 | X156: 122 | Z156: 0 | AA156: 0 | AB156: 124 | AD156: 8532 | AE156: 0 | AF156: 125 | AG156: 0 | AH156: 0 | AI156: 0 | AJ156: 0 | AK156: 0 | AL156: 0 | AM156: 0 | AN156: 0 | AO156: 0 | AP156: 0 | AQ156: 0 | AR156: 0 | AS156: 0 | AT156: 0 | AU156: 0 | AV156: 0 | AW156: 0 | AX156: 0 | AY156: 0 | AZ156: 0 | BA156: 0 | BB156: =VLOOKUP(G156,[1]Dépenses!$1:$1048576,6,FALSE) -> 0 | BD156: 0
A157: 4 | B157: CS-6321 | C157: CS | D157: 6 | E157: 63 | F157: 632 | G157: 6321 | H157: 23210 | J157: 23649 | K157: 23649 | L157: 23210 | N157: 15515 | O157: 15514 | P157: 22499 | R157: 16342 | S157: 16342 | T157: 19847 | V157: 24147 | W157: 24147 | X157: 12308 | Z157: 16252 | AA157: 16252 | AB157: 12479 | AD157: 0 | AE157: 8532 | AF157: 38574 | AG157: 20938 | AH157: 20938 | AI157: 20938 | AJ157: 22854 | AK157: 13684 | AL157: 13684 | AM157: 13684 | AN157: 35080 | AO157: 25496 | AP157: 25496 | AQ157: 25496 | AR157: 0 | AS157: 27408 | AT157: 27408 | AU157: 27408 | AV157: 0 | AW157: 19258 | AX157: 19258 | AY157: 19258 | AZ157: 36261 | BA157: 17364 | BB157: =VLOOKUP(G157,[1]Dépenses!$1:$1048576,6,FALSE) -> 17364 | BD157: 27053
A158: 4 | B158: CS-6322 | C158: CS | D158: 6 | E158: 63 | F158: 632 | G158: 6322 | H158: 0 | J158: 0 | K158: 0 | L158: 0 | N158: 0 | O158: 0 | P158: 0 | R158: 0 | S158: 0 | T158: 0 | V158: 0 | W158: 0 | X158: 0 | Z158: 0 | AA158: 0 | AB158: 0 | AD158: 0 | AE158: 0 | AF158: 0 | AG158: 0 | AH158: 0 | AI158: 0 | AJ158: 0 | AK158: 0 | AL158: 0 | AM158: 0 | AN158: 0 | AO158: 0 | AP158: 0 | AQ158: 0 | AR158: 0 | AS158: 0 | AT158: 0 | AU158: 0 | AV158: 0 | AW158: 0 | AX158: 0 | AY158: 0 | AZ158: 0 | BA158: 0 | BB158: =VLOOKUP(G158,[1]Dépenses!$1:$1048576,6,FALSE) -> 0 | BD158: 0
A159: 4 | B159: CS-6331 | C159: CS | D159: 6 | E159: 63 | F159: 633 | G159: 6331 | H159: 1494 | J159: 1006 | K159: 1006 | L159: 1494 | N159: 8339 | O159: 8339 | P159: 26336 | R159: 16469 | S159: 16469 | T159: 29153 | V159: 15934 | W159: 15934 | X159: 31789 | Z159: 16398 | AA159: 16398 | AB159: 0 | AD159: 0 | AE159: 0 | AF159: 0 | AG159: 0 | AH159: 0 | AI159: 0 | AJ159: 0 | AK159: 0 | AL159: 0 | AM159: 0 | AN159: 0 | AO159: 0 | AP159: 0 | AQ159: 0 | AR159: 0 | AS159: 0 | AT159: 0 | AV159: 0 | AW159: 0
A160: 4 | B160: CS-6332 | C160: CS | D160: 6 | E160: 63 | F160: 633 | G160: 6332 | H160: 0 | J160: 0 | K160: 0 | L160: 0 | N160: 0 | O160: 0 | P160: 0 | R160: 0 | S160: 0 | T160: 0 | V160: 0 | W160: 0 | X160: 0 | Z160: 0 | AA160: 0 | AB160: 0 | AD160: 0 | AE160: 0 | AF160: 0 | AG160: 0 | AH160: 0 | AI160: 0 | AJ160: 0 | AK160: 0 | AL160: 0 | AM160: 0 | AN160: 0 | AO160: 0 | AP160: 0 | AQ160: 0 | AR160: 0 | AS160: 0 | AT160: 0 | AV160: 0 | AW160: 0
A161: 4 | B161: CS-6341 | C161: CS | D161: 6 | E161: 63 | F161: 634 | G161: 6341 | H161: 0 | J161: 0 | K161: 0 | L161: 0 | N161: 0 | O161: 0 | P161: 0 | R161: 0 | S161: 0 | T161: 0 | V161: 0 | W161: 0 | X161: 0 | Z161: 0 | AA161: 0 | AB161: 0 | AD161: 0 | AE161: 0 | AF161: 0 | AG161: 0 | AH161: 0 | AI161: 0 | AJ161: 0 | AK161: 0 | AL161: 0 | AM161: 0 | AN161: 0 | AO161: 0 | AP161: 0 | AQ161: 0 | AR161: 0 | AS161: 0 | AT161: 0 | AU161: 0 | AV161: 0 | AW161: 0 | AX161: 0 | AY161: 0 | AZ161: 0 | BA161: 0 | BB161: =VLOOKUP(G161,[1]Dépenses!$1:$1048576,6,FALSE) -> 0 | BD161: 0
A162: 4 | B162: CS-6342 | C162: CS | D162: 6 | E162: 63 | F162: 634 | G162: 6342 | H162: 0 | J162: 0 | K162: 0 | L162: 0 | N162: 0 | O162: 0 | P162: 0 | R162: 0 | S162: 0 | T162: 0 | V162: 0 | W162: 0 | X162: 0 | Z162: 0 | AA162: 0 | AB162: 0 | AD162: 0 | AE162: 0 | AF162: 0 | AG162: 0 | AH162: 0 | AI162: 0 | AJ162: 0 | AK162: 0 | AL162: 0 | AM162: 0 | AN162: 0 | AO162: 0 | AP162: 0 | AQ162: 0 | AR162: 0 | AS162: 0 | AT162: 0 | AU162: 0 | AV162: 0 | AW162: 0 | AX162: 0 | AY162: 0 | AZ162: 0 | BA162: 0 | BB162: =VLOOKUP(G162,[1]Dépenses!$1:$1048576,6,FALSE) -> 0 | BD162: 0
A163: 4 | B163: CS-6351 | C163: CS | D163: 6 | E163: 63 | F163: 635 | G163: 6351 | H163: 0 | J163: 0 | K163: 0 | L163: 0 | N163: 0 | O163: 0 | P163: 0 | R163: 0 | S163: 0 | T163: 0 | V163: 0 | W163: 0 | X163: 0 | Z163: 0 | AA163: 0 | AB163: 0 | AD163: 0 | AE163: 0 | AF163: 0 | AG163: 183 | AH163: 183 | AI163: 183 | AJ163: 0 | AK163: 0 | AL163: 0 | AM163: 0 | AN163: 0 | AO163: 0 | AP163: 0 | AQ163: 0 | AR163: 0 | AS163: 0 | AT163: 0 | AU163: 0 | AV163: 0 | AW163: 0 | AX163: 0 | AY163: 0 | AZ163: 0 | BA163: 0 | BB163: =VLOOKUP(G163,[1]Dépenses!$1:$1048576,6,FALSE) -> 0 | BD163: 0
A164: 4 | B164: CS-6352 | C164: CS | D164: 6 | E164: 63 | F164: 635 | G164: 6352 | H164: 0 | J164: 0 | K164: 0 | L164: 0 | N164: 0 | O164: 0 | P164: 0 | R164: 0 | S164: 0 | T164: 0 | V164: 0 | W164: 0 | X164: 0 | Z164: 0 | AA164: 0 | AB164: 0 | AD164: 0 | AE164: 0 | AF164: 0 | AG164: 0 | AH164: 0 | AI164: 0 | AJ164: 0 | AK164: 0 | AL164: 0 | AM164: 0 | AN164: 0 | AO164: 0 | AP164: 0 | AQ164: 0 | AR164: 0 | AS164: 0 | AT164: 0 | AU164: 0 | AV164: 0 | AW164: 0 | AX164: 0 | AY164: 0 | AZ164: 0 | BA164: 0 | BB164: =VLOOKUP(G164,[1]Dépenses!$1:$1048576,6,FALSE) -> 0 | BD164: 0
A165: 4 | B165: CS-6353 | C165: CS | D165: =LEFT($G165,1) -> 6 | E165: =LEFT($G165,2) -> 63 | F165: =LEFT($G165,3) -> 635 | G165: 6353 | H165: 0 | J165: 0 | K165: 0 | L165: 0 | N165: 0 | O165: 0 | P165: 0 | R165: 0 | S165: 0 | T165: 0 | V165: 0 | W165: 0 | X165: 0 | Z165: 0 | AA165: 0 | AB165: 0 | AD165: 11839 | AE165: 0 | AF165: 0 | AG165: 0 | AH165: 0 | AI165: 0 | AJ165: 0 | AK165: 0 | AL165: 0 | AM165: 0 | AN165: 0 | AO165: 0 | AP165: 0 | AQ165: 0 | AR165: 0 | AS165: 0 | AT165: 0 | AU165: 0 | AV165: 0 | AW165: 0 | AX165: 0 | AY165: 0 | AZ165: 0 | BA165: 0 | BB165: =VLOOKUP(G165,[1]Dépenses!$1:$1048576,6,FALSE) -> 0 | BD165: 0
A166: 4 | B166: CS-6354 | C166: CS | D166: 6 | E166: 63 | F166: 635 | G166: 6354 | H166: 0 | J166: 0 | K166: 0 | L166: 0 | N166: 0 | O166: 0 | P166: 0 | R166: 0 | S166: 0 | T166: 0 | V166: 0 | W166: 0 | X166: 0 | Z166: 0 | AA166: 0 | AB166: -1329 | AD166: 0 | AE166: 11839 | AF166: 0 | AG166: 886 | AH166: 886 | AI166: 886 | AJ166: 0 | AK166: -2083 | AL166: -2083 | AM166: -2083 | AN166: 0 | AO166: 375 | AP166: 375 | AQ166: 375 | AR166: 0 | AS166: 238 | AT166: 238 | AU166: 238 | AV166: 0 | AW166: 2378 | AX166: 2378 | AY166: 2378 | AZ166: 0 | BA166: 1383 | BB166: =VLOOKUP(G166,[1]Dépenses!$1:$1048576,6,FALSE) -> 1383 | BD166: 0
A167: 4 | B167: CS-6359 | C167: CS | D167: 6 | E167: 63 | F167: 635 | G167: 6359 | H167: 0 | J167: 0 | K167: 0 | L167: 0 | N167: 0 | O167: 0 | P167: 0 | R167: 0 | S167: 0 | T167: 0 | V167: 0 | W167: 0 | X167: 0 | Z167: 0 | AA167: 0 | AB167: 0 | AD167: 0 | AE167: 0 | AF167: 0 | AG167: 0 | AH167: 0 | AI167: 0 | AJ167: 0 | AK167: 0 | AL167: 0 | AM167: 0 | AN167: 0 | AO167: 0 | AP167: 0 | AQ167: 0 | AR167: 0 | AS167: 0 | AT167: 0 | AU167: 0 | AV167: 0 | AW167: 0 | AX167: 0 | AY167: 0 | AZ167: 0 | BA167: 0 | BB167: =VLOOKUP(G167,[1]Dépenses!$1:$1048576,6,FALSE) -> 0 | BD167: 0
A168: 4 | B168: CS-6410 | C168: CS | D168: 6 | E168: 64 | F168: 641 | G168: 6410 | H168: 0 | J168: 0 | K168: 0 | L168: 0 | N168: 0 | O168: 0 | P168: 0 | R168: 0 | S168: 0 | T168: 0 | V168: 0 | W168: 0 | X168: 0 | Z168: 0 | AA168: 0 | AB168: 0 | AD168: 0 | AE168: 0 | AF168: 0 | AG168: 0 | AH168: 0 | AI168: 0 | AJ168: 0 | AK168: 0 | AL168: 0 | AM168: 0 | AN168: 0 | AO168: 0 | AP168: 0 | AQ168: 0 | AR168: 0 | AS168: 0 | AT168: 0 | AU168: 0 | AV168: 0 | AW168: 0 | AX168: 0 | AY168: 0 | AZ168: 0 | BA168: 0 | BB168: =VLOOKUP(G168,[1]Dépenses!$1:$1048576,6,FALSE) -> 0 | BD168: 0
A169: 4 | B169: CS-6420 | C169: CS | D169: 6 | E169: 64 | F169: 642 | G169: 6420 | H169: 0 | J169: 0 | K169: 0 | L169: 0 | N169: 0 | O169: 0 | P169: 0 | R169: 0 | S169: 0 | T169: 0 | V169: 0 | W169: 0 | X169: 0 | Z169: 0 | AA169: 0 | AB169: 0 | AD169: 0 | AE169: 0 | AF169: 0 | AG169: 0 | AH169: 0 | AI169: 0 | AJ169: 0 | AK169: 0 | AL169: 0 | AM169: 0 | AN169: -310 | AO169: -797 | AP169: -797 | AQ169: -797 | AR169: 0 | AS169: -887 | AT169: -887 | AU169: -887 | AV169: 0 | AW169: -4697 | AX169: -4697 | AY169: -4697 | AZ169: -334 | BA169: -633 | BB169: =VLOOKUP(G169,[1]Dépenses!$1:$1048576,6,FALSE) -> -633 | BD169: -355
A170: 4 | B170: CS-6510 | C170: CS | D170: 6 | E170: 65 | F170: 651 | G170: 6510 | H170: 0 | J170: 0 | K170: 0 | L170: 0 | N170: 0 | O170: 0 | P170: 0 | R170: 0 | S170: 0 | T170: 0 | V170: 0 | W170: 0 | X170: 0 | Z170: 0 | AA170: 0 | AB170: 0 | AD170: 0 | AE170: 0 | AF170: 0 | AG170: 0 | AH170: 0 | AI170: 0 | AJ170: 0 | AK170: 0 | AL170: 0 | AM170: 0 | AN170: 0 | AO170: 0 | AP170: 0 | AQ170: 0 | AR170: 0 | AS170: 0 | AT170: 0 | AV170: 0 | AW170: 0
A171: 4 | B171: CS-6511 | C171: CS | D171: 6 | E171: 65 | F171: 651 | G171: 6511 | H171: 0 | J171: 0 | K171: 0 | L171: 0 | N171: 0 | O171: 0 | P171: 0 | R171: 0 | S171: 0 | T171: 0 | V171: 0 | W171: 0 | X171: 0 | Z171: 0 | AA171: 0 | AB171: 0 | AD171: 0 | AE171: 0 | AF171: 0 | AG171: 0 | AH171: 0 | AI171: 0 | AJ171: 0 | AK171: 0 | AL171: 0 | AM171: 0 | AN171: 0 | AO171: 0 | AP171: 0 | AQ171: 0 | AR171: 0 | AS171: 0 | AT171: 0 | AU171: 0 | AV171: 0 | AW171: 0 | AX171: 0 | AY171: 0 | AZ171: 0 | BA171: 0 | BB171: =VLOOKUP(G171,[1]Dépenses!$1:$1048576,6,FALSE) -> 0 | BD171: 0
A172: 4 | B172: CS-6512 | C172: CS | D172: 6 | E172: 65 | F172: 651 | G172: 6512 | H172: 0 | J172: 0 | K172: 0 | L172: 0 | N172: 0 | O172: 0 | P172: 0 | R172: 0 | S172: 0 | T172: 0 | V172: 0 | W172: 0 | X172: 0 | Z172: 0 | AA172: 0 | AB172: 0 | AD172: 0 | AE172: 0 | AF172: 0 | AG172: 0 | AH172: 0 | AI172: 0 | AJ172: 0 | AK172: 0 | AL172: 0 | AM172: 0 | AN172: 0 | AO172: 0 | AP172: 0 | AQ172: 0 | AR172: 0 | AS172: 0 | AT172: 0 | AU172: 0 | AV172: 0 | AW172: 0 | AX172: 0 | AY172: 0 | AZ172: 0 | BA172: 0 | BB172: =VLOOKUP(G172,[1]Dépenses!$1:$1048576,6,FALSE) -> 0 | BD172: 0
A173: 4 | B173: CS-6513 | C173: CS | D173: 6 | E173: 65 | F173: 651 | G173: 6513 | H173: 0 | J173: 0 | K173: 0 | L173: 0 | N173: 0 | O173: 0 | P173: 0 | R173: 0 | S173: 0 | T173: 0 | V173: 0 | W173: 0 | X173: 0 | Z173: 0 | AA173: 0 | AB173: 0 | AD173: 0 | AE173: 0 | AF173: 0 | AG173: 0 | AH173: 0 | AI173: 0 | AJ173: 0 | AK173: 0 | AL173: 0 | AM173: 0 | AN173: 0 | AO173: 0 | AP173: 0 | AQ173: 0 | AR173: 0 | AS173: 0 | AT173: 0 | AU173: 0 | AV173: 0 | AW173: 0 | AX173: 0 | AY173: 0 | AZ173: 0 | BA173: 0 | BB173: =VLOOKUP(G173,[1]Dépenses!$1:$1048576,6,FALSE) -> 0 | BD173: 0
A174: 4 | B174: CS-6521 | C174: CS | D174: 6 | E174: 65 | F174: 652 | G174: 6521 | H174: 0 | J174: 0 | K174: 0 | L174: 0 | N174: 0 | O174: 0 | P174: 0 | R174: 0 | S174: 0 | T174: 0 | V174: 0 | W174: 0 | X174: 0 | Z174: 0 | AA174: 0 | AB174: 0 | AD174: 0 | AE174: 0 | AF174: 0 | AG174: 0 | AH174: 0 | AI174: 0 | AJ174: 0 | AK174: 0 | AL174: 0 | AM174: 0 | AN174: 0 | AO174: 0 | AP174: 0 | AQ174: 0 | AR174: 0 | AS174: 0 | AT174: 0 | AV174: 0 | AW174: 0
A175: 4 | B175: CS-6522 | C175: CS | D175: 6 | E175: 65 | F175: 652 | G175: 6522 | H175: 0 | J175: 0 | K175: 0 | L175: 0 | N175: 0 | O175: 0 | P175: 0 | R175: 0 | S175: 0 | T175: 0 | V175: 0 | W175: 0 | X175: 0 | Z175: 0 | AA175: 0 | AB175: 0 | AD175: 0 | AE175: 0 | AF175: 0 | AG175: 0 | AH175: 0 | AI175: 0 | AJ175: 0 | AK175: 0 | AL175: 0 | AM175: 0 | AN175: 0 | AO175: 0 | AP175: 0 | AQ175: 0 | AR175: 0 | AS175: 0 | AT175: 0 | AV175: 0 | AW175: 0
A176: 4 | B176: CS-6523 | C176: CS | D176: 6 | E176: 65 | F176: 652 | G176: 6523 | H176: 0 | J176: 0 | K176: 0 | L176: 0 | N176: 0 | O176: 0 | P176: 0 | R176: 0 | S176: 0 | T176: 0 | V176: 0 | W176: 0 | X176: 0 | Z176: 0 | AA176: 0 | AB176: 0 | AD176: 0 | AE176: 0 | AF176: 0 | AG176: 0 | AH176: 0 | AI176: 0 | AJ176: 0 | AK176: 0 | AL176: 0 | AM176: 0 | AN176: 0 | AO176: 0 | AP176: 0 | AQ176: 0 | AR176: 0 | AS176: 0 | AT176: 0 | AV176: 0 | AW176: 0
A177: 4 | B177: CS-6524 | C177: CS | D177: 6 | E177: 65 | F177: 652 | G177: 6524 | H177: 0 | J177: 0 | K177: 0 | L177: 0 | N177: 0 | O177: 0 | P177: 0 | R177: 0 | S177: 0 | T177: 0 | V177: 0 | W177: 0 | X177: 0 | Z177: 0 | AA177: 0 | AB177: 0 | AD177: 0 | AE177: 0 | AF177: 0 | AG177: 0 | AH177: 0 | AI177: 0 | AJ177: 0 | AK177: 0 | AL177: 0 | AM177: 0 | AN177: 0 | AO177: 0 | AP177: 0 | AQ177: 0 | AR177: 0 | AS177: 0 | AT177: 0 | AU177: 0 | AV177: 0 | AW177: 0 | AX177: 0 | AY177: 0 | AZ177: 0 | BA177: 0 | BB177: =VLOOKUP(G177,[1]Dépenses!$1:$1048576,6,FALSE) -> 0 | BD177: 0
A178: 4 | B178: CS-6525 | C178: CS | D178: 6 | E178: 65 | F178: 652 | G178: 6525 | H178: 0 | J178: 0 | K178: 0 | L178: 0 | N178: 0 | O178: 0 | P178: 0 | R178: 0 | S178: 0 | T178: 0 | V178: 0 | W178: 0 | X178: 0 | Z178: 0 | AA178: 0 | AB178: 0 | AD178: 0 | AE178: 0 | AF178: 0 | AG178: 0 | AH178: 0 | AI178: 0 | AJ178: 0 | AK178: 0 | AL178: 0 | AM178: 0 | AN178: 0 | AO178: 0 | AP178: 0 | AQ178: 0 | AR178: 0 | AS178: 0 | AT178: 0 | AU178: 0 | AV178: 0 | AW178: 0 | AX178: 0 | AY178: 0 | AZ178: 0 | BA178: 0 | BB178: =VLOOKUP(G178,[1]Dépenses!$1:$1048576,6,FALSE) -> 0 | BD178: 0
A179: 4 | B179: CS-6526 | C179: CS | D179: 6 | E179: 65 | F179: 652 | G179: 6526 | H179: 0 | J179: 0 | K179: 0 | L179: 0 | N179: 0 | O179: 0 | P179: 0 | R179: 0 | S179: 0 | T179: 0 | V179: 0 | W179: 0 | X179: 0 | Z179: 0 | AA179: 0 | AB179: 0 | AD179: 0 | AE179: 0 | AF179: 0 | AG179: 0 | AH179: 0 | AI179: 0 | AJ179: 0 | AK179: 0 | AL179: 0 | AM179: 0 | AN179: 0 | AO179: 0 | AP179: 0 | AQ179: 0 | AR179: 0 | AS179: 0 | AT179: 0 | AU179: 0 | AV179: 0 | AW179: 0 | AX179: 0 | AY179: 0 | AZ179: 0 | BA179: 0 | BB179: =VLOOKUP(G179,[1]Dépenses!$1:$1048576,6,FALSE) -> 0 | BD179: 0
A180: 4 | B180: CS-6531 | C180: CS | D180: 6 | E180: 65 | F180: 653 | G180: 6531 | H180: 0 | J180: 0 | K180: 0 | L180: 0 | N180: 0 | O180: 0 | P180: 0 | R180: 0 | S180: 0 | T180: 0 | V180: 0 | W180: 0 | X180: 0 | Z180: 0 | AA180: 0 | AB180: 0 | AD180: 0 | AE180: 0 | AF180: 0 | AG180: 0 | AH180: 0 | AI180: 0 | AJ180: 0 | AK180: 0 | AL180: 0 | AM180: 0 | AN180: 0 | AO180: 0 | AP180: 0 | AQ180: 0 | AR180: 0 | AS180: 0 | AT180: 0 | AV180: 0 | AW180: 0
A181: 4 | B181: CS-6532 | C181: CS | D181: 6 | E181: 65 | F181: 653 | G181: 6532 | H181: 0 | J181: 0 | K181: 0 | L181: 0 | N181: 0 | O181: 0 | P181: 0 | R181: 0 | S181: 0 | T181: 0 | V181: 0 | W181: 0 | X181: 0 | Z181: 0 | AA181: 0 | AB181: 0 | AD181: 0 | AE181: 0 | AF181: 0 | AG181: 0 | AH181: 0 | AI181: 0 | AJ181: 0 | AK181: 0 | AL181: 0 | AM181: 0 | AN181: 0 | AO181: 0 | AP181: 0 | AQ181: 0 | AR181: 0 | AS181: 0 | AT181: 0 | AV181: 0 | AW181: 0
A182: 4 | B182: CS-6533 | C182: CS | D182: 6 | E182: 65 | F182: 653 | G182: 6533 | H182: 119244 | J182: 127951 | K182: 127951 | L182: 119244 | N182: 117704 | O182: 117704 | P182: 82816 | R182: 85544 | S182: 85544 | T182: 74818 | V182: 56820 | W182: 56820 | X182: 46746 | Z182: 43634 | AA182: 43634 | AB182: 0 | AD182: 0 | AE182: 0 | AF182: 0 | AG182: 0 | AH182: 0 | AI182: 0 | AJ182: 0 | AK182: 0 | AL182: 0 | AM182: 0 | AN182: 0 | AO182: 0 | AP182: 0 | AQ182: 0 | AR182: 0 | AS182: 0 | AT182: 0 | AV182: 0 | AW182: 0
A183: 4 | B183: CS-6534 | C183: CS | D183: 6 | E183: 65 | F183: 653 | G183: 6534 | H183: 0 | J183: 0 | K183: 0 | L183: 0 | N183: 0 | O183: 0 | P183: 0 | R183: 0 | S183: 0 | T183: 0 | V183: 0 | W183: 0 | X183: 0 | Z183: 0 | AA183: 0 | AB183: 0 | AD183: 0 | AE183: 0 | AF183: 0 | AG183: 0 | AH183: 0 | AI183: 0 | AJ183: 0 | AK183: 0 | AL183: 0 | AM183: 0 | AN183: 0 | AO183: 0 | AP183: 0 | AQ183: 0 | AR183: 0 | AS183: 0 | AT183: 0 | AU183: 0 | AV183: 0 | AW183: 0 | AX183: 0 | AY183: 0 | AZ183: 0 | BA183: 0 | BB183: =VLOOKUP(G183,[1]Dépenses!$1:$1048576,6,FALSE) -> 0 | BD183: 0
A184: 4 | B184: CS-6535 | C184: CS | D184: 6 | E184: 65 | F184: 653 | G184: 6535 | H184: 0 | J184: 0 | K184: 0 | L184: 0 | N184: 0 | O184: 0 | P184: 0 | R184: 0 | S184: 0 | T184: 0 | V184: 0 | W184: 0 | X184: 0 | Z184: 0 | AA184: 0 | AB184: 42541 | AD184: 31959 | AE184: 31959 | AF184: 45572 | AG184: 79394 | AH184: 79394 | AI184: 79394 | AJ184: 73891 | AK184: 57132 | AL184: 57132 | AM184: 57132 | AN184: 97290 | AO184: 107170 | AP184: 107170 | AQ184: 107170 | AR184: 0 | AS184: 69592 | AT184: 69592 | AU184: 69592 | AV184: 0 | AW184: 59472 | AX184: 59472 | AY184: 59472 | AZ184: 43361 | BA184: 61043 | BB184: =VLOOKUP(G184,[1]Dépenses!$1:$1048576,6,FALSE) -> 61043 | BD184: 70887
A185: 4 | B185: CS-6540 | C185: CS | D185: 6 | E185: 65 | F185: 654 | G185: 6540 | H185: 0 | J185: 0 | K185: 0 | L185: 0 | N185: 0 | O185: 0 | P185: 0 | R185: 0 | S185: 0 | T185: 0 | V185: 0 | W185: 0 | X185: 0 | Z185: 0 | AA185: 0 | AB185: 16 | AD185: 0 | AE185: 0 | AF185: 16 | AG185: 0 | AH185: 0 | AI185: 0 | AJ185: 16 | AK185: 0 | AL185: 0 | AM185: 0 | AN185: 16 | AO185: 0 | AP185: 0 | AQ185: 0 | AR185: 0 | AS185: 0 | AT185: 0 | AU185: 0 | AV185: 0 | AW185: 0 | AX185: 0 | AY185: 0 | AZ185: 0 | BA185: 0 | BB185: =VLOOKUP(G185,[1]Dépenses!$1:$1048576,6,FALSE) -> 0 | BD185: 0
A186: 4 | B186: CS-6550 | C186: CS | D186: 6 | E186: 65 | F186: 655 | G186: 6550 | H186: 0 | J186: 0 | K186: 0 | L186: 0 | N186: 0 | O186: 0 | P186: 0 | R186: 0 | S186: 0 | T186: 0 | V186: 0 | W186: 0 | X186: 0 | Z186: 0 | AA186: 0 | AB186: 0 | AD186: 0 | AE186: 0 | AF186: 0 | AG186: 0 | AH186: 0 | AI186: 0 | AJ186: 0 | AK186: 500 | AL186: 0 | AM186: 0 | AN186: 0 | AO186: 0 | AP186: 0 | AQ186: 0 | AR186: 0 | AS186: 0 | AT186: 4000 | AU186: 4000 | AV186: 0 | AW186: 0 | AX186: 0 | AY186: 0 | AZ186: 0 | BA186: 0 | BB186: =VLOOKUP(G186,[1]Dépenses!$1:$1048576,6,FALSE) -> 0 | BD186: 0
A187: 4 | B187: CS-7111 | C187: CS | D187: 7 | E187: 71 | F187: 711 | G187: 7111 | H187: 0 | J187: 0 | K187: 0 | L187: 0 | N187: 0 | O187: 0 | P187: 0 | R187: 0 | S187: 0 | T187: 0 | V187: 0 | W187: 0 | X187: 0 | Z187: 0 | AA187: 0 | AB187: 0 | AD187: 0 | AE187: 0 | AF187: 0 | AG187: 0 | AH187: 105 | AI187: 105 | AJ187: 3500 | AK187: 1000 | AL187: 300 | AM187: 300 | AN187: 18971 | AO187: 12010 | AP187: 14385 | AQ187: 14385 | AR187: 0 | AS187: 2021 | AT187: 1953 | AU187: 1953 | AV187: 0 | AW187: 28021 | AX187: 16417 | AY187: 16417 | AZ187: 125 | BA187: 0 | BB187: =VLOOKUP(G187,[1]Dépenses!$1:$1048576,6,FALSE) -> 0 | BD187: 125
A188: 4 | B188: CS-7112 | C188: CS | D188: 7 | E188: 71 | F188: 711 | G188: 7112 | H188: 18293 | J188: 2249 | K188: 2249 | L188: 18293 | N188: 39099 | O188: 39099 | P188: 15084 | R188: 28270 | S188: 28270 | T188: 17306 | V188: 16928 | W188: 16928 | X188: 12915 | Z188: 218 | AA188: 218 | AB188: 12979 | AD188: 221 | AE188: 221 | AF188: 11321 | AG188: 3150 | AH188: 2417 | AI188: 2417 | AJ188: 571 | AK188: 2960 | AL188: 7051 | AM188: 7051 | AN188: 3678 | AO188: 8431.7 | AP188: 9041 | AQ188: 9041 | AR188: 0 | AS188: 2470 | AT188: 2633 | AU188: 2633 | AV188: 0 | AW188: 3104 | AX188: 14248 | AY188: 14248 | AZ188: 2610 | BA188: 8484 | BB188: =VLOOKUP(G188,[1]Dépenses!$1:$1048576,6,FALSE) -> 6479 | BD188: 3531
A189: 4 | B189: CS-7121 | C189: CS | D189: 7 | E189: 71 | F189: 712 | G189: 7121 | H189: 0 | J189: 0 | K189: 0 | L189: 0 | N189: 0 | O189: 0 | P189: 0 | R189: 0 | S189: 0 | T189: 0 | V189: 0 | W189: 0 | X189: 0 | Z189: 0 | AA189: 0 | AB189: 0 | AD189: 0 | AE189: 0 | AF189: 0 | AG189: 0 | AH189: 0 | AI189: 0 | AJ189: 0 | AK189: 0 | AL189: 0 | AM189: 0 | AN189: 0 | AO189: 0 | AP189: 0 | AQ189: 0 | AR189: 0 | AS189: 0 | AT189: 0 | AU189: 0 | AV189: 0 | AW189: 0 | AX189: 0 | AY189: 0 | AZ189: 0 | BA189: 0 | BB189: =VLOOKUP(G189,[1]Dépenses!$1:$1048576,6,FALSE) -> 0 | BD189: 0
A190: 4 | B190: CS-7122 | C190: CS | D190: 7 | E190: 71 | F190: 712 | G190: 7122 | H190: 0 | J190: 0 | K190: 0 | L190: 0 | N190: 0 | O190: 0 | P190: 0 | R190: 0 | S190: 0 | T190: 0 | V190: 0 | W190: 0 | X190: 0 | Z190: 0 | AA190: 0 | AB190: 0 | AD190: 0 | AE190: 0 | AF190: 0 | AG190: 0 | AH190: 0 | AI190: 0 | AJ190: 0 | AK190: 0 | AL190: 0 | AM190: 0 | AN190: 0 | AO190: 0 | AP190: 0 | AQ190: 0 | AR190: 0 | AS190: 0 | AT190: 0 | AU190: 0 | AV190: 0 | AW190: 0 | AX190: 0 | AY190: 0 | AZ190: 0 | BA190: 0 | BB190: =VLOOKUP(G190,[1]Dépenses!$1:$1048576,6,FALSE) -> 0 | BD190: 0
A191: 4 | B191: CS-7131 | C191: CS | D191: 7 | E191: 71 | F191: 713 | G191: 7131 | H191: 0 | J191: 0 | K191: 0 | L191: 0 | N191: 0 | O191: 0 | P191: 0 | R191: 0 | S191: 0 | T191: 0 | V191: 0 | W191: 0 | X191: 0 | Z191: 0 | AA191: 0 | AB191: 0 | AD191: 0 | AE191: 0 | AF191: 0 | AG191: 0 | AH191: 248 | AI191: 248 | AJ191: 0 | AK191: 1100 | AL191: 1100 | AM191: 1100 | AN191: 0 | AO191: 200 | AP191: 172 | AQ191: 172 | AR191: 0 | AS191: 1250 | AT191: 27 | AU191: 27 | AV191: 0 | AW191: 5374 | AX191: 1112 | AY191: 1112 | AZ191: 125 | BA191: 0 | BB191: =VLOOKUP(G191,[1]Dépenses!$1:$1048576,6,FALSE) -> 0 | BD191: 125
A192: 4 | B192: CS-7132 | C192: CS | D192: 7 | E192: 71 | F192: 713 | G192: 7132 | H192: 2852 | J192: 4247 | K192: 4247 | L192: 2852 | N192: 3149 | O192: 3153 | P192: 4654 | R192: 3802 | S192: 3802 | T192: 4448 | V192: 7758 | W192: 7758 | X192: 57 | Z192: 7126 | AA192: 7126 | AB192: 60 | AD192: 5313 | AE192: 5313 | AF192: 5060 | AG192: 18306 | AH192: 25337 | AI192: 25337 | AJ192: 14779 | AK192: 8119 | AL192: 8977 | AM192: 6459 | AN192: 4061 | AO192: 796 | AP192: 731 | AQ192: 731 | AR192: 0 | AS192: 6277 | AT192: 5733 | AU192: 5733 | AV192: 0 | AW192: 186 | AX192: 4926 | AY192: 4926 | AZ192: 6186 | BA192: 327337 | BB192: =VLOOKUP(G192,[1]Dépenses!$1:$1048576,6,FALSE) -> 327337 | BD192: 187
A193: 4 | B193: CS-7200 | C193: CS | D193: 7 | E193: 72 | F193: 720 | G193: 7200 | H193: 282010 | J193: 202481 | K193: 202481 | L193: 282010 | N193: 215365 | O193: 215019 | P193: 281712 | R193: 234372 | S193: 236544 | T193: 268431 | V193: 248951 | W193: 248951 | X193: 233858 | Z193: 212111 | AA193: 212111 | AB193: 194879 | AD193: 163131 | AE193: 163131 | AF193: 169289 | AG193: 177124 | AH193: 180257 | AI193: 180257 | AJ193: 189487 | AK193: 165280 | AL193: 166322 | AM193: 166322 | AN193: 251076 | AO193: 205315.4 | AP193: 202488 | AQ193: 202488 | AR193: 0 | AS193: 193578 | AT193: 181086 | AU193: 181398 | AV193: 0 | AW193: 135866 | AX193: 141823 | AY193: 141910 | AZ193: 315025 | BA193: 212296 | BB193: =VLOOKUP(G193,[1]Dépenses!$1:$1048576,6,FALSE) -> 210451 | BD193: 432829
A194: 4 | B194: CS-7290 | C194: CS | D194: 7 | E194: 72 | F194: 729 | G194: 7290 | H194: 0 | J194: 0 | K194: 0 | L194: 0 | N194: 0 | O194: 0 | P194: 0 | R194: 0 | S194: 0 | T194: 0 | V194: 0 | W194: 0 | X194: 0 | Z194: 0 | AA194: 0 | AB194: 0 | AD194: 0 | AE194: 0 | AF194: 0 | AG194: 0 | AH194: 0 | AI194: 0 | AJ194: 0 | AK194: 0 | AL194: 0 | AM194: 2518 | AN194: 0 | AO194: 5700 | AP194: 5700 | AQ194: 5700 | AR194: 0 | AS194: 39883 | AT194: 39883 | AU194: 39883 | AV194: 0 | AW194: 60081 | AX194: 60081 | AY194: 60081 | AZ194: 0 | BA194: 535 | BB194: =VLOOKUP(G194,[1]Dépenses!$1:$1048576,6,FALSE) -> 535 | BD194: 0
A195: 4 | B195: =C195&"-"&G195 -> CS-7310 | C195: CS | D195: 7 | E195: 73 | F195: 731 | G195: 7310 | H195: 0 | J195: 0 | K195: 0 | L195: 0 | N195: 0 | O195: 0 | P195: 0 | R195: 0 | S195: 0 | T195: 0 | V195: 0 | W195: 275 | X195: 0 | Z195: 2291 | AA195: 2291 | AB195: 7000 | AD195: 5939 | AE195: 5939 | AF195: 4800 | AG195: 5228 | AH195: 5228 | AI195: 5228 | AJ195: 3070 | AK195: 0 | AL195: 0 | AM195: 0 | AN195: 0 | AO195: 0 | AP195: 0 | AQ195: 0 | AR195: 0 | AS195: 0 | AT195: 0 | AU195: 0 | AV195: 0 | AW195: 0 | AX195: 0 | AY195: 0 | AZ195: 0 | BA195: 0 | BB195: =VLOOKUP(G195,[1]Dépenses!$1:$1048576,6,FALSE) -> 0 | BD195: 0
A196: 4 | B196: CS-7320 | C196: CS | D196: 7 | E196: 73 | F196: 732 | G196: 7320 | H196: 201 | J196: 0 | K196: 0 | L196: 201 | N196: 0 | O196: 0 | P196: 197 | R196: 0 | S196: 0 | T196: 2 | V196: 0 | W196: 0 | X196: 2 | Z196: 0 | AA196: 0 | AB196: 2 | AD196: 0 | AE196: 0 | AF196: 2 | AG196: 0 | AH196: 0 | AI196: 0 | AJ196: 2 | AK196: 0 | AL196: 0 | AM196: 0 | AN196: 2 | AO196: 0 | AP196: 0 | AQ196: 0 | AR196: 0 | AS196: 0 | AT196: 0 | AU196: 0 | AV196: 0 | AW196: 0 | AX196: 0 | AY196: 0 | AZ196: 2 | BA196: 0 | BB196: =VLOOKUP(G196,[1]Dépenses!$1:$1048576,6,FALSE) -> 0 | BD196: 2
A197: 4 | B197: CS-7330 | C197: CS | D197: 7 | E197: 73 | F197: 733 | G197: 7330 | H197: 0 | J197: 0 | K197: 0 | L197: 0 | N197: 0 | O197: 0 | P197: 0 | R197: 0 | S197: 0 | T197: 0 | V197: 0 | W197: 0 | X197: 0 | Z197: 0 | AA197: 0 | AB197: 0 | AD197: 0 | AE197: 0 | AF197: 0 | AG197: 0 | AH197: 0 | AI197: 0 | AJ197: 0 | AK197: 0 | AL197: 0 | AM197: 0 | AN197: 0 | AO197: 0 | AP197: 0 | AQ197: 0 | AR197: 0 | AS197: 0 | AT197: 0 | AU197: 0 | AV197: 0 | AW197: 0 | AX197: 0 | AY197: 0 | AZ197: 0 | BA197: 0 | BB197: =VLOOKUP(G197,[1]Dépenses!$1:$1048576,6,FALSE) -> 0 | BD197: 0
A198: 4 | B198: CS-7340 | C198: CS | D198: 7 | E198: 73 | F198: 734 | G198: 7340 | H198: 4695 | J198: 5229 | K198: 5229 | L198: 4695 | N198: 5159 | O198: 5154 | P198: 1212 | R198: 58 | S198: 0 | T198: 155 | V198: 0 | W198: 0 | X198: 0 | Z198: 200 | AA198: 34 | AB198: 111 | AD198: 354 | AE198: 0 | AF198: 0 | AG198: 0 | AH198: 0 | AI198: 0 | AJ198: 0 | AK198: 9791 | AL198: 9896 | AM198: 9896 | AN198: 0 | AO198: 14076.8 | AP198: 14004 | AQ198: 606798 | AR198: 0 | AS198: 585194 | AT198: 584935 | AU198: 584935 | AV198: 0 | AW198: 686527 | AX198: 677263 | AY198: 677263 | AZ198: 548246 | BA198: 814910 | BB198: =VLOOKUP(G198,[1]Dépenses!$1:$1048576,6,FALSE) -> 812817 | BD198: 521934
A199: 4 | B199: CS-7390 | C199: CS | D199: 7 | E199: 72 | F199: 729 | G199: 7390 | H199: 0 | J199: 0 | K199: 0 | L199: 0 | N199: 0 | O199: 0 | P199: 0 | R199: 0 | S199: 0 | T199: 0 | V199: 0 | W199: 0 | X199: 0 | Z199: 0 | AA199: 0 | AB199: 0 | AD199: 0 | AE199: 0 | AF199: 0 | AG199: 0 | AH199: 0 | AI199: 0 | AJ199: 0 | AK199: 0 | AL199: 0 | AM199: 0 | AN199: 0 | AO199: 0 | AP199: 0 | AQ199: 334438 | AR199: 0 | AS199: 336726 | AT199: 336726 | AU199: 336726 | AV199: 0 | AW199: 347764 | AX199: 347764 | AY199: 347764 | AZ199: 0 | BA199: 335602 | BB199: =VLOOKUP(G199,[1]Dépenses!$1:$1048576,6,FALSE) -> 335602 | BD199: 0
A200: 4 | B200: CS-7410 | C200: CS | D200: =LEFT($G200,1) -> 7 | E200: =LEFT($G200,2) -> 74 | F200: =LEFT($G200,3) -> 741 | G200: 7410 | H200: 20264 | J200: 21015 | K200: 21015 | L200: 20264 | N200: 18998 | O200: 19147 | P200: 217263 | R200: 69670 | S200: 69522 | T200: 252233 | V200: 153306 | W200: 153306 | X200: 163223 | Z200: 167450 | AA200: 167450 | AB200: 30246 | AD200: 101956 | AE200: 101956 | AF200: -49963 | AG200: 15324 | AH200: 15882 | AI200: 15882 | AJ200: 38495 | AK200: 33764 | AL200: 33640 | AM200: 33640 | AN200: 97799 | AO200: 57644.4 | AP200: 57422 | AQ200: 57422 | AR200: 0 | AS200: 206260 | AT200: 193518 | AU200: 193492 | AV200: 0 | AW200: 440350 | AX200: 440208 | AY200: 440296 | AZ200: 697089 | BA200: 607018 | BB200: =VLOOKUP(G200,[1]Dépenses!$1:$1048576,6,FALSE) -> 606801 | BD200: 354656
... 925 more rows

Sheet AllData_P3E_INC (hidden)
B1: CODE_VLOOKUP | C1: ENTITY | D1: CODE_ECO1 | E1: CODE_ECO2 | F1: CODE_ECO3 | G1: CODE_ECO4 | H1: INI2010 | I1: PCLO2010 | J1: CLO2010 | K1: REA2010 | L1: INI2011 | M1: PCLO2011 | N1: CLO2011 | O1: REA2011 | P1: INI2012 | Q1: PCLO2012 | R1: CLO2012 | S1: REA2012 | T1: INI2013 | U1: PCLO2013 | V1: CLO2013 | W1: REA2013 | X1: INI2014 | Y1: PCLO2014 | Z1: CLO2014 | AA1: REA2014 | AB1: INI2015 | AC1: PCLO2015 | AD1: CLO2015 | AE1: REA2015 | AF1: INI2016 | AG1: PCLO2016 | AH1: CLO2016 | AI1: REA2016 | AJ1: INI2017 | AK1: PCLO2017 | AL1: CLO2017 | AM1: REA2017 | AN1: INI2018 | AO1: PCLO2018 | AP1: CLO2018 | AQ1: REA2018 | AR1: INI2019 | AS1: PCLO2019 | AT1: CLO2019 | AU1: REA2019 | AV1: INI2020 | AW1: PCLO2020 | AX1: CLO2020 | AY1: REA2020 | AZ1: INI2021 | BA1: PCLO2021 | BB1: CLO2021 | BC1: REA2021 | BD1: INI2022 | BE1: PCLO2022 | BF1: CLO2022 | BG1: REA2022 | BH1: INI2023 | BI1: PCLO2023 | BJ1: CLO2023 | BK1: REA2023 | BL1: INI2024 | BM1: PCLO2024 | BN1: CLO2024 | BO1: REA2024 | BP1: INI2025 | BQ1: PCLO2025 | BR1: CLO2025 | BS1: REA2025
A2: 0 | B2: =A2+1 -> 1 | C2: =B2+1 -> 2 | D2: 3 | E2: 4 | F2: 5 | G2: 6 | H2: 7 | I2: 8 | J2: 9 | K2: 10 | L2: 11 | M2: 12 | N2: 13 | O2: 14 | P2: 15 | Q2: 16 | R2: 17 | S2: 18 | T2: 19 | U2: 20 | V2: 21 | W2: 22 | X2: 23 | Y2: 24 | Z2: 25 | AA2: 26 | AB2: 27 | AC2: 28 | AD2: 29 | AE2: 30 | AF2: 31 | AG2: 32 | AH2: 33 | AI2: 34 | AJ2: 35 | AK2: 36 | AL2: 37 | AM2: 38 | AN2: 39 | AO2: 40 | AP2: 41 | AQ2: 42 | AR2: 43 | AS2: 44 | AT2: 45 | AU2: 46 | AV2: 47 | AW2: 48 | AX2: 49 | AY2: 50 | AZ2: 51 | BA2: 52 | BB2: 53 | BC2: 54 | BD2: 55 | BE2: 56 | BF2: 57 | BG2: 58 | BH2: 59 | BI2: 60 | BJ2: 61 | BK2: 62 | BL2: 63 | BM2: 64 | BN2: 65 | BO2: 66 | BP2: 67 | BQ2: 68 | BR2: 69 | BS2: 70
A3: 4 | B3: =C3&"-"&G3 -> CS-0600 | C3: CS | D3: =LEFT($G3,1) -> 0 | E3: =LEFT($G3,2) -> 06 | F3: =LEFT($G3,3) -> 060 | G3: 0600 | H3: 12096 | J3: 14612 | K3: 14955 | L3: 12096 | N3: 18137 | O3: 17510 | P3: 15584 | R3: 15568 | S3: 14905 | T3: 9680 | V3: 12788 | W3: 12784 | X3: 5793 | Z3: 3386 | AA3: 3386 | AB3: 1584 | AD3: 3874 | AE3: 3858 | AF3: 45403 | AG3: 10982 | AH3: 14614 | AI3: 14614 | AJ3: 6677 | AK3: 4021 | AL3: 4021 | AM3: 4021 | AN3: 944 | AO3: 4113 | AP3: 4114 | AQ3: 4114 | AR3: 0 | AS3: 2917 | AT3: 2917 | AU3: 2917 | AV3: 0 | AW3: 2088 | AX3: 2088 | AY3: 2088 | AZ3: 1660 | BA3: 1303 | BB3: 1303 | BD3: 1425
A4: 4 | B4: CS-0700 | C4: CS | D4: 0 | E4: 07 | F4: 070 | G4: 0700 | H4: 0 | J4: 0 | K4: 0 | L4: 0 | N4: 0 | O4: 0 | P4: 0 | R4: 0 | S4: 0 | T4: 0 | V4: 0 | W4: 0 | X4: 0 | Z4: 0 | AA4: 0 | AB4: 0 | AD4: 0 | AE4: 0 | AF4: 0 | AG4: 0 | AH4: 0 | AI4: 0 | AJ4: 0 | AK4: 0 | AL4: 0 | AM4: 0 | AN4: 0 | AO4: 0 | AP4: 0 | AQ4: 0 | AR4: 0 | AS4: 0 | AT4: 0 | AV4: 0 | AW4: 0
A5: 4 | B5: CS-1611 | C5: CS | D5: 1 | E5: 16 | F5: 161 | G5: 1611 | H5: 1375401 | J5: 1157816 | K5: 1162821 | L5: 1375401 | N5: 1676434 | O5: 1673745 | P5: 2318054 | R5: 2165922 | S5: 2169832 | T5: 1546657 | V5: 1467248 | W5: 277611 | X5: 1124039 | Z5: 354480 | AA5: 349969 | AB5: 316300 | AD5: 316356.17 | AE5: 316370 | AF5: 352427 | AG5: 696532 | AH5: 441877 | AI5: 370310 | AJ5: 343736 | AK5: 352420 | AL5: 343157 | AM5: 342830 | AN5: 244086 | AO5: 308796 | AP5: 283785 | AQ5: 1257254 | AR5: 0 | AS5: 1319573 | AT5: 1288760 | AU5: 1298915 | AV5: 0 | AW5: 1307418 | AX5: 1239508 | AY5: 1239340 | AZ5: 1188341 | BA5: 1037301 | BB5: 978853 | BD5: 1093601
A6: 4 | B6: CS-1612 | C6: CS | D6: 1 | E6: 16 | F6: 161 | G6: 1612 | H6: 192458 | J6: 225102 | K6: 229364 | L6: 192458 | N6: 229127 | O6: 231851 | P6: 192617 | R6: 210143 | S6: 198364 | T6: 195297 | V6: 218439 | W6: 229298 | X6: 219496 | Z6: 200629 | AA6: 200683 | AB6: 232383 | AD6: 226454 | AE6: 226454 | AF6: 257459 | AG6: 250821 | AH6: 290556 | AI6: 290556 | AJ6: 353469 | AK6: 371347 | AL6: 372077 | AM6: 371597 | AN6: 478620 | AO6: 399916.1 | AP6: 400537 | AQ6: 402494 | AR6: 0 | AS6: 416832 | AT6: 414672 | AU6: 415915 | AV6: 0 | AW6: 354781 | AX6: 348289 | AY6: 348289 | AZ6: 390575 | BA6: 371773 | BB6: 380078 | BD6: 409371
A7: 4 | B7: CS-1613 | C7: CS | D7: 1 | E7: 16 | F7: 161 | G7: 1613 | H7: 498855 | J7: 529621 | K7: 496545 | L7: 498855 | N7: 536289 | O7: 528929 | P7: 544514 | R7: 556318 | S7: 547896 | T7: 571913 | V7: 521477 | W7: 521477 | X7: 445074 | Z7: 538530 | AA7: 538530 | AB7: 523019 | AD7: 601405 | AE7: 601405 | AF7: 547980 | AG7: 590317 | AH7: 617953 | AI7: 617953 | AJ7: 554409 | AK7: 558429 | AL7: 558847 | AM7: 558847 | AN7: 579406 | AO7: 559704.5 | AP7: 555796 | AQ7: 555796 | AR7: 0 | AS7: 604325 | AT7: 597777 | AU7: 601570 | AV7: 0 | AW7: 576020 | AX7: 582709 | AY7: 579357 | AZ7: 843011 | BA7: 693314 | BB7: 674615 | BD7: 853136
A8: 4 | B8: CS-1620 | C8: CS | D8: 1 | E8: 16 | F8: 162 | G8: 1620 | H8: 63855 | J8: 67914 | K8: 67805 | L8: 63855 | N8: 81088 | O8: 80524 | P8: 84448 | R8: 98322 | S8: 96842 | T8: 92342 | V8: 124721 | W8: 124721 | X8: 175997 | Z8: 162977 | AA8: 162987 | AB8: 168896 | AD8: 205929 | AE8: 205929 | AF8: 177900 | AG8: 61621 | AH8: 229282 | AI8: 295174 | AJ8: 183861 | AK8: 361833 | AL8: 360852 | AM8: 360852 | AN8: 367374 | AO8: 386144.4 | AP8: 407860 | AQ8: 547935 | AR8: 0 | AS8: 575656 | AT8: 570695 | AU8: 571460 | AV8: 0 | AW8: 532825 | AX8: 522622 | AY8: 522081 | AZ8: 577354 | BA8: 624882 | BB8: 593924 | BD8: 659021
A9: 4 | B9: CS-1700 | C9: CS | D9: 1 | E9: 17 | F9: 170 | G9: 1700 | H9: 29320 | J9: 6778 | K9: 6864 | L9: 29320 | N9: 37097 | O9: 37096 | P9: 2400 | R9: 0 | S9: 0 | T9: 0 | V9: 3184 | W9: 3184 | X9: 3474 | Z9: 8867 | AA9: 8867 | AB9: 0 | AD9: 0 | AE9: 0 | AF9: 0 | AG9: 0 | AH9: 0 | AI9: 0 | AJ9: 0 | AK9: 0 | AL9: 0 | AM9: 0 | AN9: 0 | AO9: 0 | AP9: 0 | AQ9: 0 | AR9: 0 | AS9: 0 | AT9: 0 | AV9: 0 | AW9: 0
A10: 4 | B10: CS-1810 | C10: CS | D10: 1 | E10: 18 | F10: 181 | G10: 1810 | H10: 0 | J10: 0 | K10: 0 | L10: 0 | N10: 0 | O10: 0 | P10: 0 | R10: 0 | S10: 0 | T10: 0 | V10: 0 | W10: 0 | X10: 0 | Z10: 0 | AA10: 0 | AB10: 0 | AD10: 0 | AE10: 0 | AF10: 0 | AG10: 227 | AH10: 0 | AI10: 0 | AJ10: 0 | AK10: 0 | AL10: 0 | AM10: 0 | AN10: 0 | AO10: 0 | AP10: 0 | AQ10: 0 | AR10: 0 | AS10: 0 | AT10: 0 | AU10: 0 | AV10: 0 | AW10: 0 | AX10: 0 | AY10: 0 | AZ10: 0 | BA10: 0 | BB10: 0 | BD10: 0
A11: 4 | B11: CS-1820 | C11: CS | D11: 1 | E11: 18 | F11: 182 | G11: 1820 | H11: 0 | J11: 0 | K11: 0 | L11: 0 | N11: 0 | O11: 0 | P11: 0 | R11: 0 | S11: 0 | T11: 0 | V11: 0 | W11: 0 | X11: 0 | Z11: 0 | AA11: 0 | AB11: 0 | AD11: 0 | AE11: 0 | AF11: 0 | AG11: 0 | AH11: 228 | AI11: 228 | AJ11: 0 | AK11: 0 | AL11: 0 | AM11: 0 | AN11: 0 | AO11: 0 | AP11: 0 | AQ11: 0 | AR11: 0 | AS11: 0 | AT11: 0 | AU11: 0 | AV11: 0 | AW11: 0 | AX11: 0 | AY11: 0 | AZ11: 0 | BA11: 0 | BB11: 0 | BD11: 0
A12: 4 | B12: CS-1900 | C12: CS | D12: 1 | E12: 19 | F12: 190 | G12: 1900 | H12: 0 | J12: 0 | K12: 0 | L12: 0 | N12: 0 | O12: 0 | P12: 0 | R12: 0 | S12: 0 | T12: 0 | V12: 0 | W12: 0 | X12: 0 | Z12: 0 | AA12: 0 | AB12: 0 | AD12: 0 | AE12: 0 | AF12: 0 | AG12: 0 | AH12: 0 | AI12: 0 | AJ12: 0 | AK12: 0 | AL12: 0 | AM12: 24887 | AN12: 0 | AO12: 22049 | AP12: 22049 | AQ12: 356487 | AR12: 0 | AS12: 379921 | AT12: 379921 | AU12: 379921 | AV12: 0 | AW12: 409282 | AX12: 409282 | AY12: 409282 | AZ12: 0 | BA12: 387798 | BB12: 387798 | BD12: 0
A13: 4 | B13: CS-2610 | C13: CS | D13: 2 | E13: 26 | F13: 261 | G13: 2610 | H13: 37713 | J13: 76604 | K13: 76339 | L13: 37713 | N13: 468882 | O13: 474033 | P13: 499644 | R13: 524563 | S13: 524366 | T13: 476729 | V13: 448041 | W13: 448041 | X13: 210137 | Z13: 3484 | AA13: -72 | AB13: 196236 | AD13: 122347.802 | AE13: 122348 | AF13: 188417 | AG13: -5918 | AH13: -47100 | AI13: -47100 | AJ13: 172596 | AK13: 129261 | AL13: 138668 | AM13: 138668 | AN13: 185948 | AO13: 157359.3 | AP13: 163852 | AQ13: 182197 | AR13: 0 | AS13: 174048 | AT13: 184804 | AU13: 184804 | AV13: 0 | AW13: 235435 | AX13: 239840 | AY13: 241577 | AZ13: 195585 | BA13: 231856 | BB13: 239812 | BD13: 227373
A14: 4 | B14: CS-2620 | C14: CS | D14: 2 | E14: 26 | F14: 262 | G14: 2620 | H14: 146655 | J14: 146185 | K14: 159465 | L14: 146655 | N14: 168747 | O14: 176480 | P14: 167541 | R14: 180305 | S14: 175747 | T14: 175387 | V14: 160768 | W14: 160759 | X14: 155433 | Z14: 140874 | AA14: 140874 | AB14: 133153 | AD14: 156094.695 | AE14: 156094 | AF14: 120702 | AG14: 76059 | AH14: 125869 | AI14: 125869 | AJ14: 121691 | AK14: 115847 | AL14: 116582 | AM14: 116582 | AN14: 78900 | AO14: 65114.5 | AP14: 65001 | AQ14: 68256 | AR14: 0 | AS14: 78505 | AT14: 78915 | AU14: 78915 | AV14: 0 | AW14: 5950 | AX14: 5808 | AY14: 5629 | AZ14: 3044 | BA14: 4585 | BB14: 5052 | BD14: 5004
A15: 4 | B15: CS-2710 | C15: CS | D15: 2 | E15: 27 | F15: 271 | G15: 2710 | H15: 335325 | J15: 427985 | K15: 427985 | L15: 335325 | N15: 439158 | O15: 439157 | P15: 539212 | R15: 491356 | S15: 491356 | T15: 527087 | V15: 446023 | W15: 446023 | X15: 444147 | Z15: 448914 | AA15: 448914 | AB15: 0 | AD15: 0 | AE15: 0 | AF15: 0 | AG15: 0 | AH15: 0 | AI15: 0 | AJ15: 0 | AK15: 0 | AL15: 0 | AM15: 0 | AN15: 0 | AO15: 0 | AP15: 0 | AQ15: 0 | AR15: 0 | AS15: 0 | AT15: 0 | AV15: 0 | AW15: 0
A16: 4 | B16: CS-2720 | C16: CS | D16: 2 | E16: 27 | F16: 272 | G16: 2720 | H16: 1000 | J16: 1200 | K16: 300 | L16: 1000 | N16: 0 | O16: 0 | P16: 8854 | R16: 19423 | S16: 19423 | T16: 8479 | V16: 9159 | W16: 9159 | X16: 8604 | Z16: 8646 | AA16: 8646 | AB16: 0 | AD16: 0 | AE16: 0 | AF16: 0 | AG16: 0 | AH16: 0 | AI16: 0 | AJ16: 0 | AK16: 0 | AL16: 0 | AM16: 0 | AN16: 0 | AO16: 0 | AP16: 0 | AQ16: 0 | AR16: 0 | AS16: 0 | AT16: 0 | AV16: 0 | AW16: 0
A17: 4 | B17: CS-2730 | C17: CS | D17: 2 | E17: 27 | F17: 273 | G17: 2730 | H17: 454000 | J17: 723323 | K17: 710802 | L17: 454000 | N17: 777698 | O17: 777698 | P17: 845000 | R17: 706587 | S17: 706587 | T17: 704890 | V17: 1027958 | W17: 1027958 | X17: 724383 | Z17: 726618 | AA17: 726618 | AB17: 0 | AD17: 0 | AE17: 0 | AF17: 0 | AG17: 0 | AH17: 0 | AI17: 0 | AJ17: 0 | AK17: 0 | AL17: 0 | AM17: 0 | AN17: 0 | AO17: 0 | AP17: 0 | AQ17: 0 | AR17: 0 | AS17: 0 | AT17: 0 | AV17: 0 | AW17: 0
A18: 4 | B18: CS-2740 | C18: CS | D18: 2 | E18: 27 | F18: 274 | G18: 2740 | H18: 0 | J18: 0 | K18: 0 | L18: 0 | N18: 0 | O18: 0 | P18: 0 | R18: 0 | S18: 0 | T18: 0 | V18: 0 | W18: 0 | X18: 0 | Z18: 0 | AA18: 0 | AB18: 0 | AD18: 0 | AE18: 0 | AF18: 0 | AG18: 0 | AH18: 0 | AI18: 0 | AJ18: 0 | AK18: 0 | AL18: 0 | AM18: 0 | AN18: 0 | AO18: 0 | AP18: 0 | AQ18: 0 | AR18: 0 | AS18: 0 | AT18: 0 | AV18: 0 | AW18: 0
A19: 4 | B19: CS-2750 | C19: CS | D19: 2 | E19: 27 | F19: 275 | G19: 2750 | H19: 0 | J19: 0 | K19: 0 | L19: 0 | N19: 0 | O19: 0 | P19: 0 | R19: 0 | S19: 0 | T19: 0 | V19: 0 | W19: 0 | X19: 0 | Z19: 0 | AA19: 0 | AB19: 0 | AD19: 0 | AE19: 0 | AF19: 0 | AG19: 0 | AH19: 0 | AI19: 0 | AJ19: 0 | AK19: 0 | AL19: 0 | AM19: 0 | AN19: 0 | AO19: 0 | AP19: 0 | AQ19: 0 | AR19: 0 | AS19: 0 | AT19: 0 | AV19: 0 | AW19: 0
A20: 4 | B20: CS-2810 | C20: CS | D20: 2 | E20: 28 | F20: 281 | G20: 2810 | H20: 744 | J20: 611 | K20: 610 | L20: 744 | N20: 896 | O20: 896 | P20: 725 | R20: 1003 | S20: 1003 | T20: 725 | V20: 873 | W20: 873 | X20: 1050 | Z20: 1353 | AA20: 1353 | AB20: 1100 | AD20: 1511 | AE20: 1511 | AF20: 1120 | AG20: 1041 | AH20: 2746 | AI20: 2746 | AJ20: 1296 | AK20: 1742 | AL20: 1979 | AM20: 1979 | AN20: 2196 | AO20: 2471.4 | AP20: 2479 | AQ20: 2479 | AR20: 0 | AS20: 3061 | AT20: 3079 | AU20: 3079 | AV20: 0 | AW20: 3833 | AX20: 4103 | AY20: 4103 | AZ20: 3712 | BA20: 3666 | BB20: 1661 | BD20: 3762
A21: 4 | B21: CS-2820 | C21: CS | D21: 2 | E21: 28 | F21: 282 | G21: 2820 | H21: 5548 | J21: 5647 | K21: 5647 | L21: 5548 | N21: 360028 | O21: 370026 | P21: 237361 | R21: 214800 | S21: 209553 | T21: 216300 | V21: 543672 | W21: 543672 | X21: 253035 | Z21: 199323 | AA21: 199323 | AB21: 1191904 | AD21: 974805.325 | AE21: 974805 | AF21: 972946 | AG21: 1182770 | AH21: 1184572 | AI21: 1184572 | AJ21: 1194178 | AK21: 1375327 | AL21: 1371222 | AM21: 1371222 | AN21: 1374952 | AO21: 1507474.3 | AP21: 1507751 | AQ21: 1507751 | AR21: 0 | AS21: 1444917 | AT21: 1445567 | AU21: 1445567 | AV21: 0 | AW21: 705475 | AX21: 705475 | AY21: 704539 | AZ21: 893629 | BA21: 1099227 | BB21: 1098297 | BD21: 1608772
A22: 4 | B22: CS-2830 | C22: CS | D22: 2 | E22: 28 | F22: 283 | G22: 2830 | H22: 1880 | J22: 3082 | K22: 3082 | L22: 1880 | N22: 2626 | O22: 2626 | P22: 2700 | R22: 1584 | S22: 1584 | T22: 2800 | V22: 2371 | W22: 2371 | X22: 2700 | Z22: 2638 | AA22: 2638 | AB22: 2500 | AD22: 2738 | AE22: 2738 | AF22: 2600 | AG22: 3288 | AH22: 3375 | AI22: 3375 | AJ22: 2661 | AK22: 1572 | AL22: 1571 | AM22: 1571 | AN22: 3431 | AO22: 1482 | AP22: 1482 | AQ22: 4943 | AR22: 0 | AS22: 4762 | AT22: 4763 | AU22: 4763 | AV22: 0 | AW22: 5195 | AX22: 5333 | AY22: 5332 | AZ22: 5140 | BA22: 4586 | BB22: 4516 | BD22: 5295
A23: 4 | B23: CS-3610 | C23: CS | D23: 3 | E23: 36 | F23: 361 | G23: 3610 | H23: 0 | J23: 0 | K23: 0 | L23: 0 | N23: 0 | O23: 0 | P23: 0 | R23: 0 | S23: 0 | T23: 126000 | V23: 0 | W23: 0 | X23: 0 | Z23: 0 | AA23: 0 | AB23: 0 | AD23: 0 | AE23: 0 | AF23: 0 | AG23: 0 | AH23: 0 | AI23: 0 | AJ23: 0 | AK23: 0 | AL23: 0 | AM23: 0 | AN23: 0 | AO23: 0 | AP23: 0 | AQ23: 0 | AR23: 0 | AS23: 0 | AT23: 0 | AU23: 0 | AV23: 0 | AW23: 0 | AX23: 0 | AY23: 0 | AZ23: 20000 | BA23: 0 | BB23: 0 | BD23: 28938
A24: 4 | B24: CS-3620 | C24: CS | D24: 3 | E24: 36 | F24: 362 | G24: 3620 | H24: 7496244 | J24: 7893671 | K24: 7893678 | L24: 7496244 | N24: 7600265 | O24: 7600003 | P24: 7971520 | R24: 7911392 | S24: 7911392 | T24: 8019917 | V24: 7851422 | W24: 7850727 | X24: 8101610 | Z24: 8088939 | AA24: 8088939 | AB24: 8096628 | AD24: 8509445 | AE24: 8509445 | AF24: 8928071 | AG24: 24589218 | AH24: 8982022 | AI24: 8982022 | AJ24: 9406146 | AK24: 9270779 | AL24: 9270206 | AM24: 9270206 | AN24: 9638384 | AO24: 9840550.8 | AP24: 9845780 | AQ24: 9845780 | AR24: 0 | AS24: 9795306 | AT24: 9797013 | AU24: 9797013 | AV24: 0 | AW24: 8789133 | AX24: 8789150 | AY24: 8789150 | AZ24: 11547408 | BA24: 11639492 | BB24: 11646616 | BD24: 11827382
A25: 4 | B25: CS-3630 | C25: CS | D25: 3 | E25: 36 | F25: 363 | G25: 3630 | H25: 25527744 | J25: 26200954 | K25: 26208411 | L25: 25527744 | N25: 27271565 | O25: 27270405 | P25: 29269365 | R25: 28235175 | S25: 28235175 | T25: 29087406 | V25: 28010345 | W25: 28011131 | X25: 29886624 | Z25: 28746561 | AA25: 28746561 | AB25: 30543242 | AD25: 28990492 | AE25: 28990492 | AF25: 31520650 | AG25: 14627939 | AH25: 30245665 | AI25: 30268665 | AJ25: 33035249 | AK25: 32255229 | AL25: 32255229 | AM25: 32255229 | AN25: 33910871 | AO25: 33536090 | AP25: 33536090 | AQ25: 33536090 | AR25: 0 | AS25: 33940476 | AT25: 33940476 | AU25: 33940476 | AV25: 0 | AW25: 29535412 | AX25: 29535412 | AY25: 29535412 | AZ25: 35149110 | BA25: 32845176 | BB25: 32874539 | BD25: 33785708
A26: 4 | B26: CS-3640 | C26: CS | D26: 3 | E26: 36 | F26: 364 | G26: 3640 | H26: 95063 | J26: 86740 | K26: 86740 | L26: 95063 | N26: 93545 | O26: 93545 | P26: 100400 | R26: 87918 | S26: 87918 | T26: 93867 | V26: 103616 | W26: 103334 | X26: 252491 | Z26: 126556 | AA26: 126556 | AB26: 156667 | AD26: 136654 | AE26: 136654 | AF26: 133611 | AG26: 161541 | AH26: 161541 | AI26: 161541 | AJ26: 199075 | AK26: 144078 | AL26: 144078 | AM26: 144078 | AN26: 188422 | AO26: 133125 | AP26: 133125 | AQ26: 133125 | AR26: 0 | AS26: 156059 | AT26: 156059 | AU26: 156059 | AV26: 0 | AW26: 143153 | AX26: 143153 | AY26: 143153 | AZ26: 155820 | BA26: 143239 | BB26: 143239 | BD26: 156257
A27: 4 | B27: CS-3650 | C27: CS | D27: 3 | E27: 36 | F27: 365 | G27: 3650 | H27: 299048 | J27: 323310 | K27: 321451 | L27: 299048 | N27: 311750 | O27: 311750 | P27: 362397 | R27: 356397 | S27: 356397 | T27: 343047 | V27: 339086 | W27: 339086 | X27: 338387 | Z27: 307377 | AA27: 307377 | AB27: 292842 | AD27: 292422 | AE27: 292422 | AF27: 186632 | AG27: 319847 | AH27: 299648 | AI27: 299648 | AJ27: 283850 | AK27: 279800 | AL27: 279800 | AM27: 279800 | AN27: 279800 | AO27: 279800.4 | AP27: 279800.4 | AQ27: 279800.4 | AR27: 0 | AS27: 279800 | AT27: 279800 | AU27: 279800 | AV27: 0 | AW27: 279800 | AX27: 279800 | AY27: 279800 | AZ27: 279799 | BA27: 279799 | BB27: 279799 | BD27: 289799
A28: 4 | B28: CS-3660 | C28: CS | D28: 3 | E28: 36 | F28: 366 | G28: 3660 | H28: 0 | J28: 5163 | K28: 5163 | L28: 0 | N28: 410 | O28: 1702 | P28: 400 | R28: 1549 | S28: 1549 | T28: 400 | V28: 1193 | W28: 1193 | X28: 200 | Z28: 135 | AA28: 135 | AB28: 0 | AD28: 104 | AE28: 104 | AF28: 0 | AG28: 99 | AH28: 99 | AI28: 99 | AJ28: 25 | AK28: 84 | AL28: 84 | AM28: 84 | AN28: 20 | AO28: 79 | AP28: 79 | AQ28: 79 | AR28: 0 | AS28: 74 | AT28: 74 | AU28: 74 | AV28: 0 | AW28: 3 | AX28: 3 | AY28: 3 | AZ28: 5 | BA28: 1 | BB28: 1 | BD28: 5
A29: 4 | B29: CS-3670 | C29: CS | D29: 3 | E29: 36 | F29: 367 | G29: 3670 | H29: 0 | J29: 0 | K29: 0 | L29: 0 | N29: 0 | O29: 0 | P29: 0 | R29: 0 | S29: 0 | T29: 0 | V29: 0 | W29: 0 | X29: 0 | Z29: 0 | AA29: 0 | AB29: 0 | AD29: 0 | AE29: 0 | AF29: 0 | AG29: 0 | AH29: 0 | AI29: 0 | AJ29: 0 | AK29: 0 | AL29: 0 | AM29: 0 | AN29: 0 | AO29: 0 | AP29: 0 | AQ29: 0 | AR29: 0 | AS29: 0 | AT29: 0 | AU29: 0 | AV29: 0 | AW29: 0 | AX29: 0 | AY29: 0 | AZ29: 0 | BA29: 0 | BB29: 0 | BD29: 0
A30: 4 | B30: CS-3680 | C30: CS | D30: 3 | E30: 36 | F30: 368 | G30: 3680 | H30: 0 | J30: 0 | K30: 0 | L30: 0 | N30: 0 | O30: 0 | P30: 0 | R30: 0 | S30: 0 | T30: 0 | V30: 0 | W30: 0 | X30: 0 | Z30: 0 | AA30: 0 | AB30: 0 | AD30: 0 | AE30: 0 | AF30: 0 | AG30: 0 | AH30: 0 | AI30: 0 | AJ30: 0 | AK30: 0 | AL30: 0 | AM30: 0 | AN30: 0 | AO30: 0 | AP30: 0 | AQ30: 0 | AR30: 0 | AS30: 0 | AT30: 0 | AU30: 0 | AV30: 0 | AW30: 0 | AX30: 0 | AY30: 0 | AZ30: 0 | BA30: 0 | BB30: 0 | BD30: 0
A31: 4 | B31: CS-3690 | C31: CS | D31: 3 | E31: 36 | F31: 369 | G31: 3690 | H31: 612187 | J31: 617959 | K31: 610022 | L31: 612187 | N31: 524027 | O31: 517132 | P31: 312745 | R31: 1110837 | S31: 1110852 | T31: 858847 | V31: 789455 | W31: 1936589 | X31: 855768 | Z31: 1910570 | AA31: 1910573 | AB31: 2476499 | AD31: 2352556 | AE31: 2361699 | AF31: 2374000 | AG31: 2324269 | AH31: 2197360 | AI31: 2203035 | AJ31: 2065960 | AK31: 1812355 | AL31: 1816321 | AM31: 1816321 | AN31: 1895785 | AO31: 1973101 | AP31: 1981995 | AQ31: 1981975 | AR31: 0 | AS31: 1912240 | AT31: 1916973 | AU31: 1916969 | AV31: 0 | AW31: 1835642 | AX31: 1837042 | AY31: 1837042 | AZ31: 2670926 | BA31: 2679017 | BB31: 2677681 | BD31: 2839207
A32: 4 | B32: CS-3710 | C32: CS | D32: 3 | E32: 37 | F32: 371 | G32: 3710 | H32: 10104936 | J32: 9933794 | K32: 9933794 | L32: 10104936 | N32: 10653480 | O32: 10653515 | P32: 11804740 | R32: 13481886 | S32: 13481886 | T32: 13273496 | V32: 13811668 | W32: 13290607 | X32: 14456343 | Z32: 11990146 | AA32: 12101776 | AB32: 15320907 | AD32: 14832966 | AE32: 14832966 | AF32: 15721724 | AG32: 14321994 | AH32: 14324558 | AI32: 14324558 | AJ32: 15633957 | AK32: 20187904 | AL32: 20187904 | AM32: 20187904 | AN32: 19082106 | AO32: 20933699 | AP32: 20933699 | AQ32: 20933699 | AR32: 0 | AS32: 20094922 | AT32: 20094922 | AU32: 20094922 | AV32: 0 | AW32: 14229370 | AX32: 14229350 | AY32: 14229350 | AZ32: 16322189 | BA32: 20588936 | BB32: 20582421 | BD32: 18797289
A33: 4 | B33: CS-3720 | C33: CS | D33: 3 | E33: 37 | F33: 372 | G33: 3720 | H33: 36810037 | J33: 36750059 | K33: 36705572 | L33: 36810037 | N33: 38450196 | O33: 38446233 | P33: 42735555 | R33: 40108937 | S33: 40098937 | T33: 42995997 | V33: 42335677 | W33: 42335677 | X33: 45429460 | Z33: 43397266 | AA33: 43285636 | AB33: 43465265 | AD33: 44005758 | AE33: 44005758 | AF33: 44024733 | AG33: 42621314 | AH33: 42891637 | AI33: 42891637 | AJ33: 45507218 | AK33: 44656320 | AL33: 44656320 | AM33: 44656189 | AN33: 44918506 | AO33: 45859487 | AP33: 45859487 | AQ33: 45859487 | AR33: 0 | AS33: 44954919 | AT33: 44954919 | AU33: 44954919 | AV33: 0 | AW33: 45581281 | AX33: 45581281 | AY33: 45581281 | AZ33: 49579829 | BA33: 46235801 | BB33: 46226735 | BD33: 49806334
A34: 4 | B34: CS-3730 | C34: CS | D34: 3 | E34: 37 | F34: 373 | G34: 3730 | H34: 615475 | J34: 656049 | K34: 656049 | L34: 615475 | N34: 620851 | O34: 620855 | P34: 789758 | R34: 532055 | S34: 532055 | T34: 473967 | V34: 497493 | W34: 497493 | X34: 621837 | Z34: 498232 | AA34: 498232 | AB34: 483560 | AD34: 471231 | AE34: 471231 | AF34: 482319 | AG34: 0 | AH34: 0 | AI34: 0 | AJ34: 0 | AK34: 0 | AL34: 0 | AM34: 0 | AN34: 0 | AO34: 0 | AP34: 0 | AQ34: 0 | AR34: 0 | AS34: 0 | AT34: 0 | AU34: 0 | AV34: 0 | AW34: 0 | AX34: 0 | AY34: 0 | AZ34: 0 | BA34: 0 | BB34: 0 | BD34: 0
A35: 4 | B35: CS-3740 | C35: CS | D35: =LEFT($G35,1) -> 3 | E35: =LEFT($G35,2) -> 37 | F35: =LEFT($G35,3) -> 374 | G35: 3740 | H35: 231988 | J35: 225602 | K35: 225602 | L35: 231988 | N35: 226298 | O35: 226298 | P35: 227259 | R35: 217254 | S35: 217254 | T35: 224475 | V35: 215766 | W35: 215766 | X35: 213775 | Z35: 204180 | AA35: 204180 | AB35: 278309 | AD35: 254669 | AE35: 254669 | AF35: 253479 | AG35: 70553 | AH35: 70553 | AI35: 70553 | AJ35: 68024 | AK35: 67446 | AL35: 67446 | AM35: 67446 | AN35: 65541 | AO35: 66381 | AP35: 66381 | AQ35: 66381 | AR35: 0 | AS35: 64873 | AT35: 64873 | AU35: 64873 | AV35: 0 | AW35: 61475 | AX35: 61475 | AY35: 61475 | AZ35: 61041 | BA35: 60336 | BB35: 60336 | BD35: 58484
A36: 4 | B36: CS-3750 | C36: CS | D36: 3 | E36: 37 | F36: 375 | G36: 3750 | H36: 445412 | J36: 445704 | K36: 445704 | L36: 445412 | N36: 445272 | O36: 445269 | P36: 465193 | R36: 396036 | S36: 396036 | T36: 344595 | V36: 389515 | W36: 389515 | X36: 395317 | Z36: 398782 | AA36: 398782 | AB36: 394250 | AD36: 393505 | AE36: 393505 | AF36: 392641 | AG36: 0 | AH36: 0 | AI36: 0 | AJ36: 0 | AK36: 0 | AL36: 0 | AM36: 0 | AN36: 0 | AO36: 0 | AP36: 0 | AQ36: 1694 | AR36: 0 | AS36: 0 | AT36: 0 | AU36: 0 | AV36: 0 | AW36: 0 | AX36: 0 | AY36: 0 | AZ36: 0 | BA36: 0 | BB36: 0 | BD36: 0
A37: 4 | B37: CS-3760 | C37: CS | D37: 3 | E37: 37 | F37: 376 | G37: 3760 | H37: 1137933 | J37: 1140980 | K37: 1140980 | L37: 1137933 | N37: 1174789 | O37: 1174789 | P37: 1197781 | R37: 1208218 | S37: 1208218 | T37: 1228421 | V37: 1233004 | W37: 1233004 | X37: 1238035 | Z37: 1223681 | AA37: 1223681 | AB37: 1223320 | AD37: 1227382 | AE37: 1227382 | AF37: 1216470 | AG37: 0 | AH37: 0 | AI37: 0 | AJ37: 0 | AK37: 0 | AL37: 0 | AM37: 0 | AN37: 0 | AO37: 0 | AP37: 0 | AQ37: 0 | AR37: 0 | AS37: 0 | AT37: 0 | AU37: 0 | AV37: 0 | AW37: 0 | AX37: 0 | AY37: 0 | AZ37: 0 | BA37: 0 | BB37: 0 | BD37: 0
A38: 4 | B38: CS-3770 | C38: CS | D38: 3 | E38: 37 | F38: 377 | G38: 3770 | H38: 117816 | J38: -108877 | K38: -108877 | L38: 117816 | N38: 5298 | O38: 6250 | P38: 550000 | R38: 0 | S38: 0 | T38: 6250 | V38: 0 | W38: 0 | X38: 6706 | Z38: 0 | AA38: 0 | AB38: 6250 | AD38: 0 | AE38: 0 | AF38: 19626 | AG38: 120092 | AH38: 120092 | AI38: 120092 | AJ38: -374 | AK38: 0 | AL38: 0 | AM38: 0 | AN38: 0 | AO38: 0 | AP38: 0 | AQ38: 0 | AR38: 0 | AS38: 0 | AT38: 0 | AU38: 0 | AV38: 0 | AW38: 0 | AX38: 0 | AY38: 0 | AZ38: 0 | BA38: 0 | BB38: 0 | BD38: 0
A39: 4 | B39: CS-3810 | C39: CS | D39: 3 | E39: 38 | F39: 381 | G39: 3810 | H39: 103120 | J39: 94161 | K39: 103675 | L39: 103120 | N39: 100088 | O39: 101059 | P39: 149926 | R39: 110238 | S39: 110040 | T39: 109829 | V39: 165379 | W39: 156106 | X39: 128817 | Z39: 174656.255 | AA39: 174733 | AB39: 153804 | AD39: 331815 | AE39: 331815 | AF39: 149194 | AG39: 158157 | AH39: 156880 | AI39: 156880 | AJ39: 163020 | AK39: 173112 | AL39: 171527 | AM39: 171164 | AN39: 166256 | AO39: 146933.1 | AP39: 148125 | AQ39: 152343 | AR39: 0 | AS39: 169752 | AT39: 170069 | AU39: 170069 | AV39: 0 | AW39: 195384 | AX39: 193563 | AY39: 193563 | AZ39: 223226 | BA39: 220354 | BB39: 219201 | BD39: 186391
A40: 4 | B40: CS-3820 | C40: CS | D40: 3 | E40: 38 | F40: 382 | G40: 3820 | H40: 7600 | J40: 7633 | K40: 9630 | L40: 7600 | N40: 6752 | O40: 6752 | P40: 6200 | R40: 7073 | S40: 7073 | T40: 6800 | V40: 7269 | W40: 588039 | X40: 7330 | Z40: 383715.708 | AA40: 383715.708 | AB40: 30791 | AD40: 63002 | AE40: 63002 | AF40: 19347 | AG40: 25258 | AH40: 25258 | AI40: 25258 | AJ40: 24295 | AK40: 26042 | AL40: 26042 | AM40: 26042 | AN40: 25043 | AO40: 24772 | AP40: 17586 | AQ40: 17586 | AR40: 0 | AS40: 17298 | AT40: 17298 | AU40: 17298 | AV40: 0 | AW40: 15379 | AX40: 15379 | AY40: 15379 | AZ40: 15673 | BA40: 13701 | BB40: 13701 | BD40: 13003
A41: 4 | B41: CS-3830 | C41: CS | D41: 3 | E41: 38 | F41: 383 | G41: 3830 | H41: 28 | J41: 40 | K41: 36 | L41: 28 | N41: 34 | O41: 33 | P41: 38 | R41: 262 | S41: 262 | T41: 41 | V41: 343 | W41: 366 | X41: 42 | Z41: 404.742 | AA41: 404.742 | AB41: 331 | AD41: 331 | AE41: 331 | AF41: 193 | AG41: 5 | AH41: 243 | AI41: 243 | AJ41: 201 | AK41: 176 | AL41: 178 | AM41: 178 | AN41: 367 | AO41: 692.2 | AP41: 860 | AQ41: 10394 | AR41: 0 | AS41: 6513 | AT41: 5963 | AU41: 5963 | AV41: 0 | AW41: 2447 | AX41: -770 | AY41: -770 | AZ41: 1391 | BA41: 2318 | BB41: 3240 | BD41: 1405
A42: 4 | B42: CS-3840 | C42: CS | D42: 3 | E42: 38 | F42: 384 | G42: 3840 | H42: 33 | J42: 30 | K42: 25 | L42: 33 | N42: 0 | O42: 0 | P42: 531 | R42: 27 | S42: 57 | T42: 530 | V42: 328 | W42: 328 | X42: 536 | Z42: 9 | AA42: 9 | AB42: 539 | AD42: 289 | AE42: 289 | AF42: 277 | AG42: 30 | AH42: 826 | AI42: 826 | AJ42: 556 | AK42: 1168 | AL42: 1393 | AM42: 1393 | AN42: 682 | AO42: 753.7 | AP42: 939 | AQ42: 952 | AR42: 0 | AS42: 1092 | AT42: 892 | AU42: 892 | AV42: 0 | AW42: 1094 | AX42: 207 | AY42: 207 | AZ42: 257 | BA42: 2219 | BB42: 936 | BD42: 269
A43: 4 | B43: CS-3850 | C43: CS | D43: 3 | E43: 38 | F43: 385 | G43: 3850 | H43: 390738 | J43: 409882 | K43: 409881 | L43: 390738 | N43: 440744 | O43: 440730 | P43: 554697 | R43: 435092 | S43: 434770 | T43: 526717 | V43: 489183 | W43: 489183 | X43: 544562 | Z43: 498169 | AA43: 498169 | AB43: 363166 | AD43: 500873 | AE43: 500873 | AF43: 321946 | AG43: 320742 | AH43: 321236 | AI43: 321236 | AJ43: 335134 | AK43: 361764 | AL43: 361823 | AM43: 361823 | AN43: 541745 | AO43: 475242.1 | AP43: 475251 | AQ43: 475251 | AR43: 0 | AS43: 695940 | AT43: 695943 | AU43: 695943 | AV43: 0 | AW43: 387940 | AX43: 387833 | AY43: 387833 | AZ43: 480056 | BA43: 460226 | BB43: 460090 | BD43: 456924
A44: 4 | B44: CS-3860 | C44: CS | D44: 3 | E44: 38 | F44: 386 | G44: 3860 | H44: 0 | J44: 0 | K44: 0 | L44: 0 | N44: 0 | O44: 0 | P44: 0 | R44: 0 | S44: 0 | T44: 0 | V44: 0 | W44: 0 | X44: 0 | Z44: 0 | AA44: 0 | AB44: 0 | AD44: 0 | AE44: 0 | AF44: 0 | AG44: 0 | AH44: 0 | AI44: 0 | AJ44: 0 | AK44: 0 | AL44: 0 | AM44: 363 | AN44: 0 | AO44: 2062 | AP44: 422 | AQ44: 437 | AR44: 0 | AS44: 8351 | AT44: 8143 | AU44: 8828 | AV44: 0 | AW44: 10466 | AX44: 10094 | AY44: 10095 | AZ44: 9712 | BA44: 12260 | BB44: 13187 | BD44: 13492
A45: 4 | B45: CS-3910 | C45: CS | D45: 3 | E45: 39 | F45: 391 | G45: 3910 | H45: 29256 | J45: 25464 | K45: 17978 | L45: 29256 | N45: 33332 | O45: 33973 | P45: 27157 | R45: 9660 | S45: 13286 | T45: 28614 | V45: 20182 | W45: 18309 | X45: 28308 | Z45: 41418 | AA45: 41616 | AB45: 42348 | AD45: 33439 | AE45: 37751 | AF45: 57742 | AG45: 66077 | AH45: 53813 | AI45: 53813 | AJ45: 102122 | AK45: 63278 | AL45: 62505 | AM45: 62505 | AN45: 88312 | AO45: 70521.1 | AP45: 74600 | AQ45: 74600 | AR45: 0 | AS45: 63231 | AT45: 59254 | AU45: 50490 | AV45: 0 | AW45: 57851 | AX45: 54966 | AY45: 54966 | AZ45: 96623 | BA45: 132824 | BB45: 123278 | BD45: 109513
A46: 4 | B46: CS-3920 | C46: CS | D46: 3 | E46: 39 | F46: 392 | G46: 3920 | H46: 0 | J46: 13 | K46: 13 | L46: 0 | N46: 0 | O46: 0 | P46: 0 | R46: 429 | S46: 429 | T46: 103 | V46: 783 | W46: 783 | X46: 618 | Z46: 744 | AA46: 744 | AB46: 289 | AD46: 582 | AE46: 582 | AF46: 310 | AG46: 284 | AH46: 293 | AI46: 293 | AJ46: 300 | AK46: 530 | AL46: 856 | AM46: 856 | AN46: 516 | AO46: 639.3 | AP46: 694 | AQ46: 694 | AR46: 0 | AS46: 190 | AT46: 920 | AU46: 920 | AV46: 0 | AW46: 962 | AX46: 598 | AY46: 598 | AZ46: 128 | BA46: 415 | BB46: -53 | BD46: 788
A47: 4 | B47: CS-3930 | C47: CS | D47: 3 | E47: 39 | F47: 393 | G47: 3930 | H47: 0 | J47: 0 | K47: 0 | L47: 0 | N47: 0 | O47: 0 | P47: 0 | R47: 0 | S47: 0 | T47: 0 | V47: 0 | W47: 0 | X47: 130 | Z47: 405 | AA47: 405 | AB47: 0 | AD47: 509 | AE47: 509 | AF47: 0 | AG47: 0 | AH47: 10 | AI47: 10 | AJ47: 0 | AK47: 63 | AL47: 103 | AM47: 103 | AN47: 56 | AO47: 73.3 | AP47: 266 | AQ47: 266 | AR47: 0 | AS47: 504 | AT47: 445 | AU47: 445 | AV47: 0 | AW47: 353 | AX47: 216 | AY47: 216 | AZ47: 640 | BA47: 380 | BB47: 163 | BD47: 306
A48: 4 | B48: CS-3940 | C48: CS | D48: 3 | E48: 39 | F48: 394 | G48: 3940 | H48: 40 | J48: 225 | K48: 225 | L48: 40 | N48: 219 | O48: 219 | P48: 30 | R48: 218 | S48: 218 | T48: 30 | V48: 355 | W48: 355 | X48: 2615 | Z48: 10397 | AA48: 10397 | AB48: 4599 | AD48: 7962 | AE48: 7962 | AF48: 4176 | AG48: 0 | AH48: 0 | AI48: 0 | AJ48: 5679 | AK48: 10218 | AL48: 7462 | AM48: 7462 | AN48: 9071 | AO48: 9467.1 | AP48: 13843 | AQ48: 13843 | AR48: 0 | AS48: 8680 | AT48: 9168 | AU48: 9168 | AV48: 0 | AW48: 10733 | AX48: 6570 | AY48: 6570 | AZ48: 11014 | BA48: 16915 | BB48: 14319 | BD48: 9939
A49: 4 | B49: CS-3950 | C49: CS | D49: 3 | E49: 39 | F49: 395 | G49: 3950 | H49: 0 | J49: 0 | K49: 0 | L49: 0 | N49: 0 | O49: 0 | P49: 0 | R49: 0 | S49: 0 | T49: 0 | V49: 0 | W49: 0 | X49: 0 | Z49: 2 | AA49: 2 | AB49: 0 | AD49: 21 | AE49: 21 | AF49: 0 | AG49: 0 | AH49: 23 | AI49: 23 | AJ49: 0 | AK49: 18 | AL49: 28 | AM49: 28 | AN49: 0 | AO49: 350 | AP49: 6 | AQ49: 6 | AR49: 0 | AS49: 2011 | AT49: 2011 | AU49: 2011 | AV49: 0 | AW49: 11 | AX49: 11 | AY49: 11 | AZ49: 1000 | BA49: 43 | BB49: 36 | BD49: 500
A50: 4 | B50: CS-3960 | C50: CS | D50: 3 | E50: 39 | F50: 396 | G50: 3960 | H50: 0 | J50: 0 | K50: 0 | L50: 0 | N50: 0 | O50: 0 | P50: 0 | R50: 0 | S50: 0 | T50: 0 | V50: 0 | W50: 0 | X50: 0 | Z50: 333 | AA50: 333 | AB50: 0 | AD50: 239 | AE50: 239 | AF50: 0 | AG50: 0 | AH50: 0 | AI50: 0 | AJ50: 20 | AK50: 110 | AL50: 110 | AM50: 110 | AN50: 139 | AO50: 2.1 | AP50: 0 | AQ50: 0 | AR50: 0 | AS50: 1323 | AT50: 1323 | AU50: 1323 | AV50: 0 | AW50: -658 | AX50: -658 | AY50: -658 | AZ50: 5000 | BA50: 299 | BB50: 274 | BD50: 5000
A51: 4 | B51: CS-4610 | C51: CS | D51: 4 | E51: 46 | F51: 461 | G51: 4610 | H51: 0 | J51: 0 | K51: 0 | L51: 0 | N51: 0 | O51: 0 | P51: 0 | R51: 0 | S51: 0 | T51: 0 | V51: 0 | W51: 0 | X51: 0 | Z51: 0 | AA51: 0 | AB51: 0 | AD51: 0 | AE51: 0 | AF51: 0 | AG51: 0 | AH51: 0 | AI51: 0 | AJ51: 0 | AK51: 0 | AL51: 0 | AM51: 0 | AN51: 0 | AO51: 0 | AP51: 0 | AQ51: 0 | AR51: 0 | AS51: 0 | AT51: 0 | AU51: 0 | AV51: 0 | AW51: 0 | AX51: 0 | AY51: 0 | AZ51: 0 | BA51: 0 | BB51: 0 | BD51: 0
A52: 4 | B52: CS-4620 | C52: CS | D52: 4 | E52: 46 | F52: 462 | G52: 4620 | H52: 0 | J52: 0 | K52: 0 | L52: 0 | N52: 0 | O52: 0 | P52: 0 | R52: 0 | S52: 0 | T52: 0 | V52: 0 | W52: 0 | X52: 0 | Z52: 0 | AA52: 0 | AB52: 0 | AD52: 0 | AE52: 0 | AF52: 0 | AG52: 0 | AH52: 0 | AI52: 0 | AJ52: 0 | AK52: 0 | AL52: 0 | AM52: 0 | AN52: 0 | AO52: 0 | AP52: 0 | AQ52: 0 | AR52: 0 | AS52: 0 | AT52: 0 | AU52: 0 | AV52: 0 | AW52: 0 | AX52: 0 | AY52: 0 | AZ52: 0 | BA52: 0 | BB52: 0 | BD52: 0
A53: 4 | B53: CS-4630 | C53: CS | D53: 4 | E53: 46 | F53: 463 | G53: 4630 | H53: 0 | J53: 0 | K53: 0 | L53: 0 | N53: 0 | O53: 0 | P53: 0 | R53: 0 | S53: 0 | T53: 0 | V53: 0 | W53: 0 | X53: 0 | Z53: 0 | AA53: 0 | AB53: 0 | AD53: 0 | AE53: 0 | AF53: 0 | AG53: 0 | AH53: 0 | AI53: 0 | AJ53: 0 | AK53: 0 | AL53: 0 | AM53: 0 | AN53: 0 | AO53: 0 | AP53: 0 | AQ53: 0 | AR53: 0 | AS53: 0 | AT53: 0 | AU53: 0 | AV53: 0 | AW53: 0 | AX53: 0 | AY53: 0 | AZ53: 0 | BA53: 0 | BB53: 0 | BD53: 0
A54: 4 | B54: CS-4640 | C54: CS | D54: 4 | E54: 46 | F54: 464 | G54: 4640 | H54: 0 | J54: 0 | K54: 0 | L54: 0 | N54: 0 | O54: 0 | P54: 0 | R54: 0 | S54: 0 | T54: 0 | V54: 0 | W54: 0 | X54: 0 | Z54: 0 | AA54: 0 | AB54: 0 | AD54: 0 | AE54: 0 | AF54: 0 | AG54: 0 | AH54: 0 | AI54: 0 | AJ54: 0 | AK54: 0 | AL54: 0 | AM54: 0 | AN54: 0 | AO54: 0 | AP54: 0 | AQ54: 0 | AR54: 0 | AS54: 0 | AT54: 0 | AU54: 0 | AV54: 0 | AW54: 0 | AX54: 0 | AY54: 0 | AZ54: 0 | BA54: 0 | BB54: 0 | BD54: 0
A55: 4 | B55: CS-4650 | C55: CS | D55: 4 | E55: 46 | F55: 465 | G55: 4650 | H55: 0 | J55: 0 | K55: 0 | L55: 0 | N55: 0 | O55: 0 | P55: 0 | R55: 0 | S55: 0 | T55: 0 | V55: 0 | W55: 0 | X55: 0 | Z55: 0 | AA55: 0 | AB55: 0 | AD55: 0 | AE55: 0 | AF55: 0 | AG55: 0 | AH55: 0 | AI55: 0 | AJ55: 0 | AK55: 0 | AL55: 0 | AM55: 0 | AN55: 0 | AO55: 0 | AP55: 0 | AQ55: 0 | AR55: 0 | AS55: 0 | AT55: 0 | AU55: 0 | AV55: 0 | AW55: 0 | AX55: 0 | AY55: 0 | AZ55: 0 | BA55: 0 | BB55: 0 | BD55: 0
A56: 4 | B56: CS-4660 | C56: CS | D56: 4 | E56: 46 | F56: 466 | G56: 4660 | H56: 0 | J56: 0 | K56: 0 | L56: 0 | N56: 0 | O56: 0 | P56: 0 | R56: 0 | S56: 0 | T56: 0 | V56: 0 | W56: 0 | X56: 0 | Z56: 0 | AA56: 0 | AB56: 0 | AD56: 0 | AE56: 0 | AF56: 0 | AG56: 0 | AH56: 0 | AI56: 0 | AJ56: 0 | AK56: 0 | AL56: 0 | AM56: 0 | AN56: 0 | AO56: 0 | AP56: 0 | AQ56: 0 | AR56: 0 | AS56: 0 | AT56: 0 | AU56: 0 | AV56: 0 | AW56: 0 | AX56: 0 | AY56: 0 | AZ56: 0 | BA56: 0 | BB56: 0 | BD56: 0
A57: 4 | B57: CS-4670 | C57: CS | D57: 4 | E57: 46 | F57: 467 | G57: 4670 | H57: 0 | J57: 0 | K57: 0 | L57: 0 | N57: 0 | O57: 0 | P57: 0 | R57: 0 | S57: 0 | T57: 0 | V57: 0 | W57: 0 | X57: 0 | Z57: 0 | AA57: 0 | AB57: 0 | AD57: 0 | AE57: 0 | AF57: 0 | AG57: 0 | AH57: 0 | AI57: 0 | AJ57: 0 | AK57: 0 | AL57: 0 | AM57: 0 | AN57: 0 | AO57: 0 | AP57: 0 | AQ57: 0 | AR57: 0 | AS57: 0 | AT57: 0 | AU57: 0 | AV57: 0 | AW57: 0 | AX57: 0 | AY57: 0 | AZ57: 0 | BA57: 0 | BB57: 0 | BD57: 0
A58: 4 | B58: CS-4710 | C58: CS | D58: 4 | E58: 47 | F58: 471 | G58: 4710 | H58: 61600 | J58: 57876 | K58: 57876 | L58: 61600 | N58: 61255 | O58: 61255 | P58: 62250 | R58: 66904 | S58: 66904 | T58: 60750 | V58: 79532 | W58: 79532 | X58: 65150 | Z58: 103384.901 | AA58: 103384.901 | AB58: 79022 | AD58: 120931 | AE58: 120931 | AF58: 109893 | AG58: 90901 | AH58: 90901 | AI58: 90901 | AJ58: 35600 | AK58: 99976 | AL58: 99976 | AM58: 99976 | AN58: 38020 | AO58: 125606 | AP58: 125606 | AQ58: 125606 | AR58: 0 | AS58: 62701 | AT58: 62701 | AU58: 168701 | AV58: 0 | AW58: 161065 | AX58: 55065 | AY58: 55065 | AZ58: 171 | BA58: 178410 | BB58: 178410 | BD58: 1
A59: 4 | B59: CS-4720 | C59: CS | D59: 4 | E59: 47 | F59: 472 | G59: 4720 | H59: 500 | J59: 493 | K59: 493 | L59: 500 | N59: 100 | O59: 100 | P59: 500 | R59: 510 | S59: 510 | T59: 520 | V59: 92 | W59: 92 | X59: 520 | Z59: 320 | AA59: 320 | AB59: 500 | AD59: 0 | AE59: 0 | AF59: 730 | AG59: 0 | AH59: 670 | AI59: 670 | AJ59: 1171 | AK59: 2118 | AL59: 2118 | AM59: 2118 | AN59: 3494 | AO59: 3746.4 | AP59: 3746.4 | AQ59: 3746.4 | AR59: 0 | AS59: 3585 | AT59: 3585 | AU59: 11317 | AV59: 0 | AW59: 11174 | AX59: 11322 | AY59: 11322 | AZ59: 10918 | BA59: 10944 | BB59: 10944 | BD59: 11400
A60: 4 | B60: CS-4730 | C60: CS | D60: 4 | E60: 47 | F60: 473 | G60: 4730 | H60: 0 | J60: 0 | K60: 0 | L60: 0 | N60: 0 | O60: 0 | P60: 0 | R60: 0 | S60: 0 | T60: 0 | V60: 0 | W60: 0 | X60: 0 | Z60: 0 | AA60: 0 | AB60: 0 | AD60: 0 | AE60: 0 | AF60: 0 | AG60: 0 | AH60: 0 | AI60: 0 | AJ60: 0 | AK60: 0 | AL60: 0 | AM60: 0 | AN60: 0 | AO60: 0 | AP60: 0 | AQ60: 0 | AR60: 0 | AS60: 0 | AT60: 0 | AU60: 0 | AV60: 0 | AW60: 0 | AX60: 0 | AY60: 0 | AZ60: 0 | BA60: 0 | BB60: 0 | BD60: 0
A61: 4 | B61: CS-4740 | C61: CS | D61: 4 | E61: 47 | F61: 474 | G61: 4740 | H61: 1018 | J61: 1077 | K61: 1077 | L61: 1018 | N61: 1223 | O61: 1223 | P61: 1435 | R61: 335 | S61: 335 | T61: 418 | V61: 302 | W61: 302 | X61: 413 | Z61: 251 | AA61: 251 | AB61: 300 | AD61: 1446 | AE61: 1446 | AF61: 187 | AG61: 85 | AH61: 252 | AI61: 252 | AJ61: 201 | AK61: 1313 | AL61: 1313 | AM61: 1313 | AN61: 140 | AO61: 112 | AP61: 112 | AQ61: 112 | AR61: 0 | AS61: 220 | AT61: 220 | AU61: 220 | AV61: 0 | AW61: 154 | AX61: 154 | AY61: 154 | AZ61: 0 | BA61: 9546 | BB61: 9546 | BD61: 250
A62: 4 | B62: CS-4750 | C62: CS | D62: 4 | E62: 47 | F62: 475 | G62: 4750 | H62: 0 | J62: 0 | K62: 0 | L62: 0 | N62: 0 | O62: 0 | P62: 0 | R62: 0 | S62: 0 | T62: 0 | V62: 0 | W62: 0 | X62: 0 | Z62: 0 | AA62: 0 | AB62: 0 | AD62: 0 | AE62: 0 | AF62: 0 | AG62: 0 | AH62: 0 | AI62: 0 | AJ62: 0 | AK62: 0 | AL62: 0 | AM62: 0 | AN62: 0 | AO62: 0 | AP62: 0 | AQ62: 0 | AR62: 0 | AS62: 0 | AT62: 0 | AU62: 0 | AV62: 0 | AW62: 0 | AX62: 0 | AY62: 0 | AZ62: 0 | BA62: 0 | BB62: 0 | BD62: 0
A63: 4 | B63: CS-4760 | C63: CS | D63: 4 | E63: 47 | F63: 476 | G63: 4760 | H63: 0 | J63: 0 | K63: 0 | L63: 0 | N63: 0 | O63: 0 | P63: 0 | R63: 0 | S63: 0 | T63: 0 | V63: 0 | W63: 0 | X63: 0 | Z63: 0 | AA63: 0 | AB63: 0 | AD63: 0 | AE63: 0 | AF63: 0 | AG63: 0 | AH63: 0 | AI63: 0 | AJ63: 0 | AK63: 0 | AL63: 0 | AM63: 0 | AN63: 0 | AO63: 0 | AP63: 0 | AQ63: 0 | AR63: 0 | AS63: 0 | AT63: 0 | AU63: 0 | AV63: 0 | AW63: 0 | AX63: 0 | AY63: 0 | AZ63: 0 | BA63: 0 | BB63: 0 | BD63: 0
A64: 4 | B64: CS-4770 | C64: CS | D64: 4 | E64: 47 | F64: 477 | G64: 4770 | H64: 0 | J64: 0 | K64: 0 | L64: 0 | N64: 0 | O64: 0 | P64: 0 | R64: 0 | S64: 0 | T64: 0 | V64: 0 | W64: 0 | X64: 0 | Z64: 0 | AA64: 0 | AB64: 0 | AD64: 0 | AE64: 0 | AF64: 0 | AG64: 0 | AH64: 0 | AI64: 0 | AJ64: 0 | AK64: 0 | AL64: 0 | AM64: 0 | AN64: 0 | AO64: 0 | AP64: 0 | AQ64: 0 | AR64: 0 | AS64: 0 | AT64: 0 | AU64: 0 | AV64: 0 | AW64: 0 | AX64: 0 | AY64: 0 | AZ64: 0 | BA64: 0 | BB64: 0 | BD64: 0
A65: 4 | B65: CS-4780 | C65: CS | D65: 4 | E65: 47 | F65: 478 | G65: 4780 | H65: 6688 | J65: 6330 | K65: 6330 | L65: 6688 | N65: 6273 | O65: 6273 | P65: 6839 | R65: 7257 | S65: 7257 | T65: 7462 | V65: 7986 | W65: 7986 | X65: 7202 | Z65: 7854 | AA65: 7854 | AB65: 3685 | AD65: 3737 | AE65: 3737 | AF65: 3698 | AG65: 5067 | AH65: 3141 | AI65: 3141 | AJ65: 50 | AK65: 607 | AL65: 607 | AM65: 607 | AN65: 819 | AO65: 407 | AP65: 407 | AQ65: 407 | AR65: 0 | AS65: 816 | AT65: 816 | AU65: 816 | AV65: 0 | AW65: 828 | AX65: 828 | AY65: 828 | AZ65: 921 | BA65: 25690 | BB65: 25690 | BD65: 921
A66: 4 | B66: CS-4811 | C66: CS | D66: 4 | E66: 48 | F66: 481 | G66: 4811 | H66: 0 | J66: 0 | K66: 0 | L66: 0 | N66: 0 | O66: 0 | P66: 0 | R66: 0 | S66: 0 | T66: 0 | V66: 0 | W66: 0 | X66: 0 | Z66: 6076.107 | AA66: 6076 | AB66: 5955 | AD66: 3033 | AE66: 3033 | AF66: 0 | AG66: 60 | AH66: 0 | AI66: 0 | AJ66: 108 | AK66: 0 | AL66: 0 | AM66: 0 | AN66: 0 | AO66: 0 | AP66: 0 | AQ66: 0 | AR66: 0 | AS66: 0 | AT66: 0 | AU66: 0 | AV66: 0 | AW66: 0 | AX66: 0 | AY66: 0 | AZ66: 0 | BA66: 0 | BB66: 0 | BD66: 0
A67: 4 | B67: =C67&"-"&G67 -> CS-4812 | C67: CS | D67: 4 | E67: 48 | F67: 481 | G67: 4812 | H67: 2 | J67: 0 | K67: 0 | L67: 2 | N67: 2 | O67: 2 | P67: 2 | R67: 1 | S67: 1 | T67: 2 | V67: 1 | W67: 1 | X67: 2 | Z67: 0 | AA67: 0 | AB67: 0 | AD67: 3 | AE67: 3 | AF67: 0 | AG67: 0 | AH67: 0 | AI67: 0 | AJ67: 2 | AK67: 0 | AL67: 0 | AM67: 0 | AN67: 0 | AO67: 0 | AP67: 0 | AQ67: 0 | AR67: 0 | AS67: 3 | AT67: 3 | AU67: 3 | AV67: 0 | AW67: 0 | AX67: 22 | AY67: 22 | AZ67: 0 | BA67: 0 | BB67: 13 | BD67: 30
A68: 4 | B68: CS-4821 | C68: CS | D68: 4 | E68: 48 | F68: 482 | G68: 4821 | H68: 0 | J68: 0 | K68: 0 | L68: 0 | N68: 0 | O68: 0 | P68: 0 | R68: 0 | S68: 0 | T68: 0 | V68: 0 | W68: 0 | X68: 0 | Z68: 1460.764 | AA68: 1460.764 | AB68: 1431 | AD68: 5421 | AE68: 5421 | AF68: 0 | AG68: 0 | AH68: 0 | AI68: 0 | AJ68: 3 | AK68: 60 | AL68: 20 | AM68: 20 | AN68: 111 | AO68: 59.5 | AP68: 98 | AQ68: 98 | AR68: 0 | AS68: 58 | AT68: 58 | AU68: 58 | AV68: 0 | AW68: 105 | AX68: 105 | AY68: 105 | AZ68: 58 | BA68: 58 | BB68: 58 | BD68: 60
A69: 4 | B69: CS-4822 | C69: CS | D69: 4 | E69: 48 | F69: 482 | G69: 4822 | H69: 1145 | J69: 6872 | K69: 6872 | L69: 1145 | N69: 2122 | O69: 2122 | P69: 102 | R69: 428 | S69: 428 | T69: 167 | V69: 2341 | W69: 2365 | X69: 152 | Z69: 2292 | AA69: 2292 | AB69: 153 | AD69: 2237 | AE69: 2237 | AF69: 151 | AG69: 1349 | AH69: 1350 | AI69: 1350 | AJ69: 114 | AK69: 3166 | AL69: 3166 | AM69: 3166 | AN69: 56 | AO69: 4947.9 | AP69: 4888 | AQ69: 4888 | AR69: 0 | AS69: 2578 | AT69: 2598 | AU69: 2598 | AV69: 0 | AW69: 2941 | AX69: 2898 | AY69: 2898 | AZ69: 50 | BA69: 394 | BB69: 394 | BD69: 50
A70: 4 | B70: CS-4830 | C70: CS | D70: 4 | E70: 48 | F70: 483 | G70: 4830 | H70: 31000 | J70: 32336 | K70: 32336 | L70: 31000 | N70: 39178 | O70: 39178 | P70: 30000 | R70: 50839 | S70: 50839 | T70: 38000 | V70: 42584 | W70: 42584 | X70: 46000 | Z70: 8.004 | AA70: 8.004 | AB70: 0 | AD70: 0 | AE70: 0 | AF70: 0 | AG70: 0 | AH70: 0 | AI70: 0 | AJ70: 0 | AK70: 0 | AL70: 0 | AM70: 0 | AN70: 0 | AO70: 0 | AP70: 0 | AQ70: 0 | AR70: 0 | AS70: 0 | AT70: 0 | AV70: 0 | AW70: 0
A71: 4 | B71: CS-4840 | C71: CS | D71: 4 | E71: 48 | F71: 484 | G71: 4840 | H71: 0 | J71: 0 | K71: 0 | L71: 0 | N71: 0 | O71: 0 | P71: 0 | R71: 0 | S71: 0 | T71: 0 | V71: 0 | W71: 0 | X71: 0 | Z71: 46 | AA71: 46 | AB71: 0 | AD71: 0 | AE71: 0 | AF71: 0 | AG71: 0 | AH71: 0 | AI71: 0 | AJ71: 0 | AK71: 0 | AL71: 0 | AM71: 0 | AN71: 0 | AO71: 0 | AP71: 0 | AQ71: 0 | AR71: 0 | AS71: 0 | AT71: 0 | AU71: 0 | AV71: 0 | AW71: 0 | AX71: 0 | AY71: 0 | AZ71: 0 | BA71: 0 | BB71: 0 | BD71: 0
A72: 4 | B72: CS-4851 | C72: CS | D72: 4 | E72: 48 | F72: 485 | G72: 4851 | H72: 0 | J72: 0 | K72: 0 | L72: 0 | N72: 0 | O72: 0 | P72: 0 | R72: 0 | S72: 0 | T72: 0 | V72: 0 | W72: 0 | X72: 0 | Z72: 0 | AA72: 0 | AB72: 0 | AD72: 0 | AE72: 0 | AF72: 0 | AG72: 0 | AH72: 0 | AI72: 0 | AJ72: 0 | AK72: 0 | AL72: 0 | AM72: 0 | AN72: 0 | AO72: 0 | AP72: 0 | AQ72: 0 | AR72: 0 | AS72: 9 | AT72: 9 | AU72: 9 | AV72: 0 | AW72: 0 | AX72: 0 | AY72: 0 | AZ72: 0 | BA72: 0 | BB72: 0 | BD72: 0
A73: 4 | B73: CS-4852 | C73: CS | D73: 4 | E73: 48 | F73: 485 | G73: 4852 | H73: 0 | J73: 0 | K73: 0 | L73: 0 | N73: 0 | O73: 0 | P73: 0 | R73: 0 | S73: 0 | T73: 0 | V73: 0 | W73: 0 | X73: 0 | Z73: 0 | AA73: 0 | AB73: 437 | AD73: 513 | AE73: 513 | AF73: 0 | AG73: 0 | AH73: 0 | AI73: 0 | AJ73: 0 | AK73: 0 | AL73: 0 | AM73: 0 | AN73: 0 | AO73: 0 | AP73: 0 | AQ73: 0 | AR73: 0 | AS73: 1056 | AT73: 1053 | AU73: 1053 | AV73: 0 | AW73: 172 | AX73: 230 | AY73: 230 | AZ73: 20 | BA73: 1122 | BB73: 1107 | BD73: 20
A74: 4 | B74: CS-4853 | C74: CS | D74: =LEFT($G74,1) -> 4 | E74: =LEFT($G74,2) -> 48 | F74: =LEFT($G74,3) -> 485 | G74: 4853 | H74: 0 | J74: 0 | K74: 0 | L74: 0 | N74: 0 | O74: 0 | P74: 0 | R74: 0 | S74: 0 | T74: 0 | V74: 0 | W74: 0 | X74: 0 | Z74: 0 | AA74: 0 | AB74: 0 | AD74: 0 | AE74: 0 | AF74: 0 | AG74: 0 | AH74: 0 | AI74: 0 | AJ74: 0 | AK74: 0 | AL74: 0 | AM74: 0 | AN74: 0 | AO74: 0 | AP74: 0 | AQ74: 0 | AR74: 0 | AS74: 0 | AT74: 0 | AV74: 0 | AW74: 0
A75: 4 | B75: CS-4854 | C75: CS | D75: 4 | E75: 48 | F75: 485 | G75: 4854 | H75: 0 | J75: 0 | K75: 0 | L75: 0 | N75: 0 | O75: 0 | P75: 0 | R75: 0 | S75: 0 | T75: 0 | V75: 0 | W75: 0 | X75: 0 | Z75: 0 | AA75: 0 | AB75: 0 | AD75: 0 | AE75: 0 | AF75: 0 | AG75: 0 | AH75: 0 | AI75: 0 | AJ75: 0 | AK75: 0 | AL75: 0 | AM75: 0 | AN75: 0 | AO75: 0 | AP75: 0 | AQ75: 0 | AR75: 0 | AS75: 0 | AT75: 0 | AU75: 0 | AV75: 0 | AW75: 0 | AX75: 0 | AY75: 0 | AZ75: 0 | BA75: 0 | BB75: 0 | BD75: 0
A76: 4 | B76: CS-4859 | C76: CS | D76: 4 | E76: 48 | F76: 485 | G76: 4859 | H76: 0 | J76: 0 | K76: 0 | L76: 0 | N76: 0 | O76: 0 | P76: 0 | R76: 0 | S76: 0 | T76: 0 | V76: 0 | W76: 0 | X76: 0 | Z76: 0 | AA76: 0 | AB76: 0 | AD76: 0 | AE76: 0 | AF76: 0 | AG76: 0 | AH76: 0 | AI76: 0 | AJ76: 0 | AK76: 0 | AL76: 0 | AM76: 0 | AN76: 0 | AO76: 0 | AP76: 0 | AQ76: 0 | AR76: 0 | AS76: 0 | AT76: 0 | AU76: 0 | AV76: 0 | AW76: 0 | AX76: 0 | AY76: 0 | AZ76: 0 | BA76: 0 | BB76: 0 | BD76: 0
A77: 4 | B77: CS-4900 | C77: CS | D77: 4 | E77: 49 | F77: 490 | G77: 4900 | H77: 0 | J77: 0 | K77: 0 | L77: 0 | N77: 0 | O77: 0 | P77: 0 | R77: 0 | S77: 0 | T77: 0 | V77: 0 | W77: 0 | X77: 0 | Z77: 0 | AA77: 0 | AB77: 4345 | AD77: 0 | AE77: 0 | AF77: 0 | AG77: 0 | AH77: 0 | AI77: 0 | AJ77: 0 | AK77: 0 | AL77: 0 | AM77: 0 | AN77: 0 | AO77: 0 | AP77: 0 | AQ77: 0 | AR77: 0 | AS77: 0 | AT77: 0 | AV77: 0 | AW77: 0
A78: 4 | B78: CS-4910 | C78: CS | D78: 4 | E78: 49 | F78: 491 | G78: 4910 | H78: 205 | J78: 204 | K78: 204 | L78: 205 | N78: 214 | O78: 215 | P78: 207 | R78: 206 | S78: 206 | T78: 214 | V78: 184 | W78: 187 | X78: 182 | Z78: 1952.607 | AA78: 1952.607 | AB78: 0 | AD78: 0 | AE78: 0 | AF78: 0 | AG78: 0 | AH78: 133 | AI78: 0 | AJ78: 131 | AK78: 0 | AL78: 0 | AM78: 0 | AN78: 0 | AO78: 0 | AP78: 0 | AQ78: 0 | AR78: 0 | AS78: 0 | AT78: 0 | AV78: 0 | AW78: 0
A79: 4 | B79: CS-4911 | C79: CS | D79: 4 | E79: 49 | F79: 491 | G79: 4911 | H79: 0 | J79: 0 | K79: 0 | L79: 0 | N79: 0 | O79: 0 | P79: 0 | R79: 0 | S79: 0 | T79: 0 | V79: 0 | W79: 0 | X79: 0 | Z79: 0 | AA79: 0 | AB79: 1169 | AD79: 1262 | AE79: 1262 | AF79: 286 | AG79: 0 | AH79: 111 | AI79: 133 | AJ79: 45 | AK79: 115 | AL79: 115 | AM79: 115 | AN79: 115 | AO79: 110 | AP79: 141 | AQ79: 141 | AR79: 0 | AS79: 104 | AT79: 122 | AU79: 122 | AV79: 0 | AW79: 109 | AX79: 113 | AY79: 113 | AZ79: 114 | BA79: 98 | BB79: 119 | BD79: 130
A80: 4 | B80: CS-4912 | C80: CS | D80: 4 | E80: 49 | F80: 491 | G80: 4912 | H80: 0 | J80: 0 | K80: 0 | L80: 0 | N80: 0 | O80: 0 | P80: 0 | R80: 0 | S80: 0 | T80: 0 | V80: 0 | W80: 0 | X80: 0 | Z80: 0 | AA80: 0 | AB80: 572 | AD80: 1797 | AE80: 1797 | AF80: 0 | AG80: 0 | AH80: 0 | AI80: 111 | AJ80: 111 | AK80: 173 | AL80: 173 | AM80: 173 | AN80: 215 | AO80: 117 | AP80: 117 | AQ80: 117 | AR80: 0 | AS80: 117 | AT80: 117 | AU80: 117 | AV80: 0 | AW80: 37 | AX80: 37 | AY80: 37 | AZ80: 166 | BA80: 27 | BB80: 25 | BD80: 117
A81: 4 | B81: CS-4913 | C81: CS | D81: 4 | E81: 49 | F81: 491 | G81: 4913 | H81: 0 | J81: 0 | K81: 0 | L81: 0 | N81: 0 | O81: 0 | P81: 0 | R81: 0 | S81: 0 | T81: 0 | V81: 0 | W81: 0 | X81: 0 | Z81: 0 | AA81: 0 | AB81: 0 | AD81: 0 | AE81: 0 | AF81: 0 | AG81: 0 | AH81: 0 | AI81: 0 | AJ81: 0 | AK81: 0 | AL81: 0 | AM81: 0 | AN81: 0 | AO81: 0 | AP81: 0 | AQ81: 0 | AR81: 0 | AS81: 0 | AT81: 0 | AU81: 0 | AV81: 0 | AW81: 0 | AX81: 0 | AY81: 0 | AZ81: 0 | BA81: 0 | BB81: 0 | BD81: 0
A82: 4 | B82: CS-4920 | C82: CS | D82: 4 | E82: 49 | F82: 492 | G82: 4920 | H82: 1865 | J82: 1978 | K82: 1952 | L82: 1865 | N82: 1628 | O82: 1470 | P82: 3715 | R82: 1532 | S82: 1532 | T82: 1882 | V82: 1318 | W82: 1260 | X82: 2227 | Z82: 10938.555 | AA82: 10939 | AB82: 0 | AD82: 0 | AE82: 0 | AF82: 0 | AG82: 0 | AH82: 0 | AI82: 0 | AJ82: 1873 | AK82: 0 | AL82: 0 | AM82: 0 | AN82: 0 | AO82: 0 | AP82: 0 | AQ82: 0 | AR82: 0 | AS82: 0 | AT82: 0 | AV82: 0 | AW82: 0
A83: 4 | B83: CS-4924 | C83: CS | D83: 4 | E83: 49 | F83: 492 | G83: 4924 | H83: 0 | J83: 0 | K83: 0 | L83: 0 | N83: 0 | O83: 0 | P83: 0 | R83: 0 | S83: 0 | T83: 0 | V83: 0 | W83: 0 | X83: 0 | Z83: 0 | AA83: 0 | AB83: 74 | AD83: 2757 | AE83: 2757 | AF83: 4327 | AG83: 4367.2 | AH83: 2675 | AI83: 2675 | AJ83: 615 | AK83: 692 | AL83: 773 | AM83: 773 | AN83: 625 | AO83: 1560.1 | AP83: 1508 | AQ83: 1508 | AR83: 0 | AS83: 1443 | AT83: 1473 | AU83: 1473 | AV83: 0 | AW83: 1335 | AX83: 1392 | AY83: 1392 | AZ83: 1445 | BA83: 1047 | BB83: 1010 | BD83: 1359
A84: 4 | B84: CS-4925 | C84: CS | D84: 4 | E84: 49 | F84: 492 | G84: 4925 | H84: 0 | J84: 0 | K84: 0 | L84: 0 | N84: 0 | O84: 0 | P84: 0 | R84: 0 | S84: 0 | T84: 0 | V84: 0 | W84: 0 | X84: 0 | Z84: 0 | AA84: 0 | AB84: 8975 | AD84: 22956 | AE84: 22956 | AF84: 1010 | AG84: 6550.8 | AH84: 2378 | AI84: 2378 | AJ84: 3115 | AK84: 3731 | AL84: 3708 | AM84: 3708 | AN84: 4530 | AO84: 3908.6 | AP84: 4027 | AQ84: 4027 | AR84: 0 | AS84: 17887 | AT84: 18270 | AU84: 18270 | AV84: 0 | AW84: 5932 | AX84: 5296 | AY84: 5296 | AZ84: 17898 | BA84: 24343 | BB84: 17552 | BD84: 27342
A85: 4 | B85: CS-4926 | C85: CS | D85: 4 | E85: 49 | F85: 492 | G85: 4926 | H85: 0 | J85: 0 | K85: 0 | L85: 0 | N85: 0 | O85: 0 | P85: 0 | R85: 0 | S85: 0 | T85: 0 | V85: 0 | W85: 0 | X85: 0 | Z85: 0 | AA85: 0 | AB85: 0 | AD85: 1 | AE85: 1 | AF85: 0 | AG85: 0 | AH85: 3 | AI85: 3 | AJ85: 15 | AK85: 32 | AL85: 32 | AM85: 32 | AN85: 27 | AO85: 80.1 | AP85: 45 | AQ85: 45 | AR85: 0 | AS85: 35 | AT85: 57 | AU85: 57 | AV85: 0 | AW85: 47 | AX85: 47 | AY85: 47 | AZ85: 46 | BA85: 26 | BB85: 26 | BD85: 31
A86: 4 | B86: CS-4930 | C86: CS | D86: 4 | E86: 49 | F86: 493 | G86: 4930 | H86: 3604 | J86: 3647 | K86: 3647 | L86: 3604 | N86: 3005 | O86: 3176 | P86: 2963 | R86: 3320 | S86: 3320 | T86: 3163 | V86: 3211 | W86: 3211 | X86: 4804 | Z86: 20586.38 | AA86: 20586.38 | AB86: 0 | AD86: 0 | AE86: 0 | AF86: 0 | AG86: 0 | AH86: 0 | AI86: 0 | AJ86: 0 | AK86: 0 | AL86: 0 | AM86: 0 | AN86: 0 | AO86: 0 | AP86: 0 | AQ86: 0 | AR86: 0 | AS86: 0 | AT86: 0 | AV86: 0 | AW86: 0
A87: 4 | B87: CS-4934 | C87: CS | D87: 4 | E87: 49 | F87: 493 | G87: 4934 | H87: 0 | J87: 0 | K87: 0 | L87: 0 | N87: 0 | O87: 0 | P87: 0 | R87: 0 | S87: 0 | T87: 0 | V87: 0 | W87: 0 | X87: 0 | Z87: 0 | AA87: 0 | AB87: 3018 | AD87: 27189 | AE87: 27189 | AF87: 1764 | AG87: 0 | AH87: 2366 | AI87: 2366 | AJ87: 1032 | AK87: 2033 | AL87: 2098 | AM87: 2098 | AN87: 2190 | AO87: 2642.4 | AP87: 2710 | AQ87: 2710 | AR87: 0 | AS87: 4044 | AT87: 3950 | AU87: 3950 | AV87: 0 | AW87: 3466 | AX87: 3407 | AY87: 3407 | AZ87: 2739 | BA87: 4307 | BB87: 4720 | BD87: 3800
A88: 4 | B88: CS-4935 | C88: CS | D88: 4 | E88: 49 | F88: 493 | G88: 4935 | H88: 0 | J88: 0 | K88: 0 | L88: 0 | N88: 0 | O88: 0 | P88: 0 | R88: 0 | S88: 0 | T88: 0 | V88: 0 | W88: 0 | X88: 0 | Z88: 0 | AA88: 0 | AB88: 2345 | AD88: 4519 | AE88: 4519 | AF88: 142 | AG88: 0 | AH88: 2108 | AI88: 2108 | AJ88: 965 | AK88: 1535 | AL88: 1873 | AM88: 1873 | AN88: 1662 | AO88: 2005.1 | AP88: 1661 | AQ88: 1661 | AR88: 0 | AS88: 1528 | AT88: 1764 | AU88: 1764 | AV88: 0 | AW88: 1679 | AX88: 1501 | AY88: 1501 | AZ88: 1148 | BA88: 1423 | BB88: 1024 | BD88: 1058
A89: 4 | B89: CS-4940 | C89: CS | D89: 4 | E89: 49 | F89: 494 | G89: 4940 | H89: 0 | J89: 0 | K89: 0 | L89: 0 | N89: 0 | O89: 0 | P89: 0 | R89: 0 | S89: 0 | T89: 0 | V89: 0 | W89: 0 | X89: 0 | Z89: 0 | AA89: 0 | AB89: 5 | AD89: 479 | AE89: 0 | AF89: 2148 | AG89: 0 | AH89: 0 | AI89: 0 | AJ89: 143 | AK89: 0 | AL89: 47 | AM89: 47 | AN89: 0 | AO89: 52 | AP89: 43 | AQ89: 43 | AR89: 0 | AS89: 0 | AT89: 0 | AU89: 0 | AV89: 0 | AW89: 0 | AX89: 0 | AY89: 0 | AZ89: 0 | BA89: 0 | BB89: 0 | BD89: 0
A90: 4 | B90: CS-4941 | C90: CS | D90: 4 | E90: 49 | F90: 494 | G90: 4941 | H90: 0 | J90: 0 | K90: 0 | L90: 0 | N90: 0 | O90: 0 | P90: 0 | R90: 0 | S90: 0 | T90: 0 | V90: 0 | W90: 0 | X90: 0 | Z90: 0 | AA90: 0 | AB90: 0 | AD90: 0 | AE90: 0 | AF90: 0 | AG90: 0 | AH90: 0 | AI90: 0 | AJ90: 0 | AK90: 0 | AL90: 0 | AM90: 0 | AN90: 0 | AO90: 0 | AP90: 0 | AQ90: 0 | AR90: 0 | AS90: 0 | AT90: 0 | AV90: 0 | AW90: 0
A91: 4 | B91: CS-4942 | C91: CS | D91: 4 | E91: 49 | F91: 494 | G91: 4942 | H91: 0 | J91: 0 | K91: 0 | L91: 0 | N91: 0 | O91: 0 | P91: 0 | R91: 0 | S91: 0 | T91: 0 | V91: 0 | W91: 0 | X91: 0 | Z91: 0 | AA91: 0 | AB91: 0 | AD91: 0 | AE91: 0 | AF91: 0 | AG91: 0 | AH91: 0 | AI91: 0 | AJ91: 0 | AK91: 0 | AL91: 0 | AM91: 0 | AN91: 0 | AO91: 0 | AP91: 0 | AQ91: 0 | AR91: 0 | AS91: 0 | AT91: 0 | AV91: 0 | AW91: 0
A92: 4 | B92: CS-4943 | C92: CS | D92: 4 | E92: 49 | F92: 494 | G92: 4943 | H92: 4901 | J92: 3566 | K92: 3566 | L92: 4901 | N92: 1711 | O92: 1707 | P92: 150 | R92: 1623 | S92: 1623 | T92: 1750 | V92: 1478 | W92: 942 | X92: 1170 | Z92: 1268.408 | AA92: 1268.408 | AB92: 0 | AD92: 0 | AE92: 0 | AF92: 0 | AG92: 0 | AH92: 0 | AI92: 0 | AJ92: 0 | AK92: 0 | AL92: 0 | AM92: 0 | AN92: 0 | AO92: 0 | AP92: 0 | AQ92: 0 | AR92: 0 | AS92: 0 | AT92: 0 | AV92: 0 | AW92: 0
A93: 4 | B93: CS-4950 | C93: CS | D93: 4 | E93: 49 | F93: 495 | G93: 4950 | H93: 0 | J93: 0 | K93: 0 | L93: 0 | N93: 0 | O93: 0 | P93: 0 | R93: 0 | S93: 0 | T93: 0 | V93: 0 | W93: 0 | X93: 0 | Z93: 0 | AA93: 0 | AB93: 0 | AD93: 108 | AE93: 108 | AF93: 0 | AG93: 0 | AH93: 0 | AI93: 0 | AJ93: 0 | AK93: 0 | AL93: 0 | AM93: 0 | AN93: 0 | AO93: 0 | AP93: 0 | AQ93: 0 | AR93: 0 | AS93: 0 | AT93: 0 | AU93: 0 | AV93: 0 | AW93: 0 | AX93: 0 | AY93: 0 | AZ93: 0 | BA93: 0 | BB93: 0 | BD93: 0
A94: 4 | B94: CS-5610 | C94: CS | D94: 5 | E94: 56 | F94: 561 | G94: 5610 | H94: 0 | J94: 0 | K94: 0 | L94: 0 | N94: 0 | O94: 0 | P94: 0 | R94: 0 | S94: 0 | T94: 0 | V94: 0 | W94: 0 | X94: 0 | Z94: 0 | AA94: 0 | AB94: 0 | AD94: 0 | AE94: 0 | AF94: 0 | AG94: 0 | AH94: 0 | AI94: 0 | AJ94: 0 | AK94: 0 | AL94: 0 | AM94: 0 | AN94: 0 | AO94: 0 | AP94: 0 | AQ94: 0 | AR94: 0 | AS94: 0 | AT94: 0 | AU94: 0 | AV94: 0 | AW94: 0 | AX94: 0 | AY94: 0 | AZ94: 0 | BA94: 0 | BB94: 0 | BD94: 0
A95: 4 | B95: CS-5620 | C95: CS | D95: 5 | E95: 56 | F95: 562 | G95: 5620 | H95: 1549 | J95: 342 | K95: 342 | L95: 1549 | N95: 0 | O95: 0 | P95: 0 | R95: 0 | S95: 0 | T95: 0 | V95: 0 | W95: 0 | X95: 0 | Z95: 0 | AA95: 0 | AB95: 0 | AD95: 0 | AE95: 0 | AF95: 0 | AG95: 0 | AH95: 0 | AI95: 0 | AJ95: 0 | AK95: 0 | AL95: 0 | AM95: 0 | AN95: 0 | AO95: 0 | AP95: 0 | AQ95: 0 | AR95: 0 | AS95: 0 | AT95: 0 | AU95: 0 | AV95: 0 | AW95: 0 | AX95: 0 | AY95: 0 | AZ95: 0 | BA95: 0 | BB95: 0 | BD95: 0
A96: 4 | B96: CS-5630 | C96: CS | D96: 5 | E96: 56 | F96: 563 | G96: 5630 | H96: 0 | J96: 0 | K96: 0 | L96: 0 | N96: 0 | O96: 0 | P96: 0 | R96: 0 | S96: 0 | T96: 0 | V96: 0 | W96: 0 | X96: 0 | Z96: 0 | AA96: 0 | AB96: 0 | AD96: 0 | AE96: 0 | AF96: 0 | AG96: 0 | AH96: 0 | AI96: 0 | AJ96: 0 | AK96: 0 | AL96: 0 | AM96: 0 | AN96: 0 | AO96: 0 | AP96: 0 | AQ96: 0 | AR96: 0 | AS96: 0 | AT96: 0 | AU96: 0 | AV96: 0 | AW96: 0 | AX96: 0 | AY96: 0 | AZ96: 0 | BA96: 0 | BB96: 0 | BD96: 0
A97: 4 | B97: CS-5640 | C97: CS | D97: 5 | E97: 56 | F97: 564 | G97: 5640 | H97: 0 | J97: 0 | K97: 0 | L97: 0 | N97: 0 | O97: 0 | P97: 0 | R97: 0 | S97: 0 | T97: 0 | V97: 0 | W97: 0 | X97: 0 | Z97: 0 | AA97: 0 | AB97: 0 | AD97: 0 | AE97: 0 | AF97: 0 | AG97: 0 | AH97: 0 | AI97: 0 | AJ97: 0 | AK97: 0 | AL97: 0 | AM97: 0 | AN97: 0 | AO97: 0 | AP97: 0 | AQ97: 0 | AR97: 0 | AS97: 0 | AT97: 0 | AU97: 0 | AV97: 0 | AW97: 0 | AX97: 0 | AY97: 0 | AZ97: 0 | BA97: 0 | BB97: 0 | BD97: 0
A98: 4 | B98: CS-5650 | C98: CS | D98: 5 | E98: 56 | F98: 565 | G98: 5650 | H98: 0 | J98: 0 | K98: 0 | L98: 0 | N98: 0 | O98: 0 | P98: 0 | R98: 0 | S98: 0 | T98: 0 | V98: 0 | W98: 0 | X98: 0 | Z98: 0 | AA98: 387904 | AB98: 0 | AD98: 83263 | AE98: 83263 | AF98: 0 | AG98: 12375 | AH98: 18000 | AI98: 18000 | AJ98: 0 | AK98: 107893 | AL98: 107893 | AM98: 107893 | AN98: 200000 | AO98: 149320 | AP98: 149320 | AQ98: 149320 | AR98: 0 | AS98: 83343 | AT98: 83343 | AU98: 83343 | AV98: 0 | AW98: 91583 | AX98: 91583 | AY98: 91583 | AZ98: 412950 | BA98: 380216 | BB98: 380216 | BD98: 341578
A99: 4 | B99: CS-5710 | C99: CS | D99: 5 | E99: 57 | F99: 571 | G99: 5710 | H99: 0 | J99: 0 | K99: 0 | L99: 0 | N99: 0 | O99: 0 | P99: 0 | R99: 0 | S99: 0 | T99: 0 | V99: 0 | W99: 0 | X99: 0 | Z99: 0 | AA99: 0 | AB99: 0 | AD99: 0 | AE99: 0 | AF99: 0 | AG99: 0 | AH99: 0 | AI99: 0 | AJ99: 0 | AK99: 0 | AL99: 0 | AM99: 0 | AN99: 0 | AO99: 0 | AP99: 0 | AQ99: 0 | AR99: 0 | AS99: 0 | AT99: 0 | AV99: 0 | AW99: 0
A100: 4 | B100: CS-5720 | C100: CS | D100: 5 | E100: 57 | F100: 572 | G100: 5720 | H100: 0 | J100: 0 | K100: 0 | L100: 0 | N100: 0 | O100: 0 | P100: 0 | R100: 300792 | S100: 300792 | T100: 128200 | V100: 34190 | W100: 34190 | X100: 0 | Z100: 1815 | AA100: 1815 | AB100: 925 | AD100: 1076 | AE100: 1090 | AF100: 896 | AG100: 2386 | AH100: 2491 | AI100: 2491 | AJ100: 11071 | AK100: 5641 | AL100: 5641 | AM100: 5641 | AN100: 5433 | AO100: 8987 | AP100: 9823 | AQ100: 9823 | AR100: 0 | AS100: 5065 | AT100: 5065 | AU100: 5065 | AV100: 0 | AW100: 5800 | AX100: 5820 | AY100: 5820 | AZ100: 5051 | BA100: 3553 | BB100: 3553 | BD100: 1936
A101: 4 | B101: CS-5730 | C101: CS | D101: 5 | E101: 57 | F101: 573 | G101: 5730 | H101: 0 | J101: 0 | K101: 0 | L101: 0 | N101: 0 | O101: 0 | P101: 0 | R101: 0 | S101: 0 | T101: 0 | V101: 0 | W101: 0 | X101: 0 | Z101: 0 | AA101: 0 | AB101: 0 | AD101: 0 | AE101: 0 | AF101: 0 | AG101: 0 | AH101: 0 | AI101: 0 | AJ101: 0 | AK101: 0 | AL101: 0 | AM101: 0 | AN101: 0 | AO101: 0 | AP101: 0 | AQ101: 0 | AR101: 0 | AS101: 0 | AT101: 0 | AU101: 0 | AV101: 0 | AW101: 0 | AX101: 0 | AY101: 0 | AZ101: 0 | BA101: 0 | BB101: 0 | BD101: 0
A102: 4 | B102: CS-5740 | C102: CS | D102: 5 | E102: 57 | F102: 574 | G102: 5740 | H102: 0 | J102: 0 | K102: 0 | L102: 0 | N102: 0 | O102: 0 | P102: 0 | R102: 0 | S102: 0 | T102: 0 | V102: 0 | W102: 0 | X102: 0 | Z102: 0 | AA102: 0 | AB102: 0 | AD102: 0 | AE102: 0 | AF102: 0 | AG102: 0 | AH102: 0 | AI102: 0 | AJ102: 0 | AK102: 0 | AL102: 0 | AM102: 0 | AN102: 0 | AO102: 0 | AP102: 0 | AQ102: 0 | AR102: 0 | AS102: 0 | AT102: 0 | AU102: 0 | AV102: 0 | AW102: 0 | AX102: 0 | AY102: 0 | AZ102: 0 | BA102: 0 | BB102: 0 | BD102: 0
A103: 4 | B103: CS-5810 | C103: CS | D103: 5 | E103: 58 | F103: 581 | G103: 5810 | H103: 0 | J103: 0 | K103: 0 | L103: 0 | N103: 0 | O103: 0 | P103: 0 | R103: 0 | S103: 0 | T103: 0 | V103: 0 | W103: 0 | X103: 0 | Z103: 0 | AA103: 0 | AB103: 0 | AD103: 0 | AE103: 0 | AF103: 0 | AG103: 0 | AH103: 0 | AI103: 0 | AJ103: 0 | AK103: 0 | AL103: 0 | AM103: 0 | AN103: 0 | AO103: 0 | AP103: 0 | AQ103: 0 | AR103: 0 | AS103: 0 | AT103: 0 | AU103: 0 | AV103: 0 | AW103: 0 | AX103: 0 | AY103: 0 | AZ103: 0 | BA103: 0 | BB103: 0 | BD103: 0
A104: 4 | B104: CS-5820 | C104: CS | D104: 5 | E104: 58 | F104: 582 | G104: 5820 | H104: 19500 | J104: 31089 | K104: 31090 | L104: 19500 | N104: 75166 | O104: 75776 | P104: 30216 | R104: 51399 | S104: 51401 | T104: 547460 | V104: 44508 | W104: 38419 | X104: 151207 | Z104: 387904 | AA104: 0 | AB104: 42113 | AD104: 28720 | AE104: 28720 | AF104: 292912 | AG104: 42435 | AH104: 42435 | AI104: 42435 | AJ104: 38851 | AK104: 49106 | AL104: 49106 | AM104: 49106 | AN104: 50778 | AO104: 49294 | AP104: 49294 | AQ104: 49294 | AR104: 0 | AS104: 57329 | AT104: 57329 | AU104: 57329 | AV104: 0 | AW104: 54408 | AX104: 54408 | AY104: 54408 | AZ104: 63464 | BA104: 57107 | BB104: 57107 | BD104: 55725
A105: 4 | B105: CS-5911 | C105: CS | D105: 5 | E105: 59 | F105: 591 | G105: 5911 | H105: 35900 | J105: 37765 | K105: 37765 | L105: 35900 | N105: 4000 | O105: 0 | P105: 4000 | R105: 976 | S105: 976 | T105: 4000 | V105: 4000 | W105: 4000 | X105: 4000 | Z105: 14000 | AA105: 14000 | AB105: 0 | AD105: 0 | AE105: 0 | AF105: 0 | AG105: 0 | AH105: 0 | AI105: 0 | AJ105: 0 | AK105: 0 | AL105: 0 | AM105: 0 | AN105: 0 | AO105: 0 | AP105: 297 | AQ105: 22197 | AR105: 0 | AS105: 22313 | AT105: 23702 | AU105: 23702 | AV105: 0 | AW105: 11204 | AX105: 15722 | AY105: 15722 | AZ105: 200375 | BA105: 131471 | BB105: 152849 | BD105: 313246
A106: 4 | B106: CS-5912 | C106: CS | D106: =LEFT($G106,1) -> 5 | E106: =LEFT($G106,2) -> 59 | F106: =LEFT($G106,3) -> 591 | G106: 5912 | H106: 0 | J106: 0 | K106: 0 | L106: 0 | N106: 0 | O106: 0 | P106: 0 | R106: 0 | S106: 0 | T106: 0 | V106: 126515 | W106: 126515 | X106: 0 | Z106: 0 | AA106: 0 | AB106: 0 | AD106: 0 | AE106: 0 | AF106: 0 | AG106: 0 | AH106: 0 | AI106: 0 | AJ106: 0 | AK106: 0 | AL106: 0 | AM106: 0 | AN106: 0 | AO106: 0 | AP106: 0 | AQ106: 0 | AR106: 0 | AS106: 0 | AT106: 0 | AU106: 0 | AV106: 0 | AW106: 0 | AX106: 0 | AY106: 0 | AZ106: 0 | BA106: 0 | BB106: 0 | BD106: 0
A107: 4 | B107: CS-5921 | C107: CS | D107: 5 | E107: 59 | F107: 592 | G107: 5921 | H107: 0 | J107: 0 | K107: 0 | L107: 0 | N107: 0 | O107: 0 | P107: 0 | R107: 0 | S107: 0 | T107: 0 | V107: 0 | W107: 0 | X107: 0 | Z107: 0 | AA107: 0 | AB107: 0 | AD107: 0 | AE107: 0 | AF107: 0 | AG107: 0 | AH107: 0 | AI107: 0 | AJ107: 0 | AK107: 0 | AL107: 0 | AM107: 0 | AN107: 0 | AO107: 0 | AP107: 0 | AQ107: 0 | AR107: 0 | AS107: 0 | AT107: 0 | AU107: 0 | AV107: 0 | AW107: 0 | AX107: 0 | AY107: 0 | AZ107: 0 | BA107: 0 | BB107: 0 | BD107: 0
A108: 4 | B108: CS-5922 | C108: CS | D108: 5 | E108: 59 | F108: 592 | G108: 5922 | H108: 0 | J108: 0 | K108: 0 | L108: 0 | N108: 0 | O108: 0 | P108: 0 | R108: 0 | S108: 0 | T108: 0 | V108: 0 | W108: 0 | X108: 0 | Z108: 0 | AA108: 0 | AB108: 0 | AD108: 0 | AE108: 0 | AF108: 0 | AG108: 0 | AH108: 0 | AI108: 0 | AJ108: 0 | AK108: 0 | AL108: 0 | AM108: 0 | AN108: 0 | AO108: 0 | AP108: 0 | AQ108: 0 | AR108: 0 | AS108: 0 | AT108: 0 | AU108: 0 | AV108: 0 | AW108: 0 | AX108: 0 | AY108: 0 | AZ108: 0 | BA108: 0 | BB108: 0 | BD108: 0
A109: 4 | B109: CS-5930 | C109: CS | D109: 5 | E109: 59 | F109: 593 | G109: 5930 | H109: 0 | J109: 0 | K109: 0 | L109: 0 | N109: 0 | O109: 0 | P109: 0 | R109: 0 | S109: 0 | T109: 0 | V109: 0 | W109: 0 | X109: 0 | Z109: 0 | AA109: 0 | AB109: 0 | AD109: 0 | AE109: 0 | AF109: 0 | AG109: 0 | AH109: 0 | AI109: 0 | AJ109: 0 | AK109: 0 | AL109: 0 | AM109: 0 | AN109: 0 | AO109: 0 | AP109: 0 | AQ109: 0 | AR109: 0 | AS109: 0 | AT109: 0 | AU109: 0 | AV109: 0 | AW109: 0 | AX109: 0 | AY109: 0 | AZ109: 0 | BA109: 0 | BB109: 0 | BD109: 0
A110: 4 | B110: CS-5941 | C110: CS | D110: 5 | E110: 59 | F110: 594 | G110: 5941 | H110: 0 | J110: 0 | K110: 0 | L110: 0 | N110: 0 | O110: 0 | P110: 0 | R110: 0 | S110: 0 | T110: 0 | V110: 0 | W110: 0 | X110: 0 | Z110: 0 | AA110: 0 | AB110: 0 | AD110: 0 | AE110: 0 | AF110: 0 | AG110: 0 | AH110: 0 | AI110: 0 | AJ110: 0 | AK110: 0 | AL110: 0 | AM110: 0 | AN110: 0 | AO110: 0 | AP110: 0 | AQ110: 0 | AR110: 0 | AS110: 0 | AT110: 0 | AU110: 0 | AV110: 0 | AW110: 0 | AX110: 0 | AY110: 0 | AZ110: 0 | BA110: 0 | BB110: 0 | BD110: 0
A111: 4 | B111: CS-5942 | C111: CS | D111: 5 | E111: 59 | F111: 594 | G111: 5942 | H111: 0 | J111: 0 | K111: 0 | L111: 0 | N111: 0 | O111: 0 | P111: 0 | R111: 0 | S111: 0 | T111: 0 | V111: 1 | W111: 1 | X111: 0 | Z111: 1 | AA111: 1 | AB111: 0 | AD111: 0 | AE111: 0 | AF111: 1527 | AG111: 0 | AH111: 0 | AI111: 0 | AJ111: 0 | AK111: 0 | AL111: 0 | AM111: 0 | AN111: 0 | AO111: 2 | AP111: 2 | AQ111: 2 | AR111: 0 | AS111: 0 | AT111: 0 | AU111: 0 | AV111: 0 | AW111: 0 | AX111: 0 | AY111: 0 | AZ111: 0 | BA111: 1 | BB111: 1 | BD111: 0
A112: 4 | B112: CS-5951 | C112: CS | D112: 5 | E112: 59 | F112: 595 | G112: 5951 | H112: 0 | J112: 0 | K112: 0 | L112: 0 | N112: 0 | O112: 0 | P112: 0 | R112: 0 | S112: 0 | T112: 0 | V112: 0 | W112: 0 | X112: 0 | Z112: 0 | AA112: 0 | AB112: 0 | AD112: 0 | AE112: 0 | AF112: 0 | AG112: 0 | AH112: 0 | AI112: 0 | AJ112: 0 | AK112: 0 | AL112: 0 | AM112: 0 | AN112: 0 | AO112: 0 | AP112: 0 | AQ112: 0 | AR112: 0 | AS112: 0 | AT112: 0 | AU112: 0 | AV112: 0 | AW112: 0 | AX112: 0 | AY112: 0 | AZ112: 0 | BA112: 0 | BB112: 0 | BD112: 0
A113: 4 | B113: CS-5952 | C113: CS | D113: 5 | E113: 59 | F113: 595 | G113: 5952 | H113: 0 | J113: 0 | K113: 0 | L113: 0 | N113: 0 | O113: 0 | P113: 0 | R113: 0 | S113: 0 | T113: 0 | V113: 0 | W113: 0 | X113: 0 | Z113: 0 | AA113: 0 | AB113: 0 | AD113: 0 | AE113: 0 | AF113: 0 | AG113: 0 | AH113: 0 | AI113: 0 | AJ113: 0 | AK113: 237 | AL113: 237 | AM113: 237 | AN113: 0 | AO113: 0 | AP113: 0 | AQ113: 0 | AR113: 0 | AS113: 801 | AT113: 801 | AU113: 801 | AV113: 0 | AW113: 11 | AX113: 11 | AY113: 11 | AZ113: 0 | BA113: 6409 | BB113: 6409 | BD113: 0
A114: 4 | B114: CS-5960 | C114: CS | D114: 5 | E114: 59 | F114: 596 | G114: 5960 | H114: 0 | J114: 0 | K114: 0 | L114: 0 | N114: 0 | O114: 0 | P114: 0 | R114: 0 | S114: 0 | T114: 0 | V114: 0 | W114: 0 | X114: 0 | Z114: 0 | AA114: 0 | AB114: 0 | AD114: 0 | AE114: 0 | AF114: 0 | AG114: 0 | AH114: 0 | AI114: 0 | AJ114: 0 | AK114: 3400 | AL114: 3400 | AM114: 3400 | AN114: 3482 | AO114: 2800 | AP114: 2800 | AQ114: 2800 | AR114: 0 | AS114: 3003 | AT114: 3003 | AU114: 3003 | AV114: 0 | AW114: 2300 | AX114: 2300 | AY114: 2300 | AZ114: 0 | BA114: 1921 | BB114: 2359 | BD114: 0
A115: 4 | B115: CS-6611 | C115: CS | D115: 6 | E115: 66 | F115: 661 | G115: 6611 | H115: 0 | J115: 0 | K115: 0 | L115: 0 | N115: 0 | O115: 0 | P115: 0 | R115: 0 | S115: 0 | T115: 0 | V115: 0 | W115: 0 | X115: 0 | Z115: 0 | AA115: 0 | AB115: 0 | AD115: 0 | AE115: 0 | AF115: 0 | AG115: 0 | AH115: 0 | AI115: 0 | AJ115: 0 | AK115: 0 | AL115: 0 | AM115: 0 | AN115: 0 | AO115: 0 | AP115: 0 | AQ115: 0 | AR115: 0 | AS115: 0 | AT115: 0 | AU115: 0 | AV115: 0 | AW115: 0 | AX115: 0 | AY115: 0 | AZ115: 0 | BA115: 0 | BB115: 0 | BD115: 0
A116: 4 | B116: CS-6612 | C116: CS | D116: 6 | E116: 66 | F116: 661 | G116: 6612 | H116: 0 | J116: 0 | K116: 0 | L116: 0 | N116: 0 | O116: 0 | P116: 0 | R116: 0 | S116: 0 | T116: 0 | V116: 0 | W116: 0 | X116: 0 | Z116: 0 | AA116: 0 | AB116: 0 | AD116: 0 | AE116: 0 | AF116: 0 | AG116: 0 | AH116: 0 | AI116: 0 | AJ116: 0 | AK116: 0 | AL116: 0 | AM116: 0 | AN116: 0 | AO116: 0 | AP116: 0 | AQ116: 0 | AR116: 0 | AS116: 0 | AT116: 0 | AU116: 0 | AV116: 0 | AW116: 0 | AX116: 0 | AY116: 0 | AZ116: 0 | BA116: 0 | BB116: 0 | BD116: 0
A117: 4 | B117: CS-6621 | C117: CS | D117: 6 | E117: 66 | F117: 662 | G117: 6621 | H117: 0 | J117: 0 | K117: 0 | L117: 0 | N117: 0 | O117: 0 | P117: 0 | R117: 0 | S117: 0 | T117: 0 | V117: 0 | W117: 0 | X117: 0 | Z117: 0 | AA117: 0 | AB117: 0 | AD117: 0 | AE117: 0 | AF117: 0 | AG117: 0 | AH117: 0 | AI117: 0 | AJ117: 0 | AK117: 0 | AL117: 0 | AM117: 0 | AN117: 0 | AO117: 0 | AP117: 0 | AQ117: 0 | AR117: 0 | AS117: 0 | AT117: 0 | AU117: 0 | AV117: 0 | AW117: 0 | AX117: 0 | AY117: 0 | AZ117: 0 | BA117: 0 | BB117: 0 | BD117: 0
A118: 4 | B118: CS-6622 | C118: CS | D118: 6 | E118: 66 | F118: 662 | G118: 6622 | H118: 0 | J118: 0 | K118: 0 | L118: 0 | N118: 0 | O118: 0 | P118: 0 | R118: 0 | S118: 0 | T118: 0 | V118: 0 | W118: 0 | X118: 0 | Z118: 0 | AA118: 0 | AB118: 0 | AD118: 0 | AE118: 0 | AF118: 0 | AG118: 0 | AH118: 0 | AI118: 0 | AJ118: 0 | AK118: 0 | AL118: 0 | AM118: 0 | AN118: 0 | AO118: 0 | AP118: 0 | AQ118: 0 | AR118: 0 | AS118: 0 | AT118: 0 | AU118: 0 | AV118: 0 | AW118: 0 | AX118: 0 | AY118: 0 | AZ118: 0 | BA118: 0 | BB118: 0 | BD118: 0
A119: 4 | B119: CS-6631 | C119: CS | D119: 6 | E119: 66 | F119: 663 | G119: 6631 | H119: 0 | J119: 0 | K119: 0 | L119: 0 | N119: 0 | O119: 0 | P119: 0 | R119: 0 | S119: 0 | T119: 0 | V119: 0 | W119: 0 | X119: 0 | Z119: 0 | AA119: 0 | AB119: 0 | AD119: 0 | AE119: 0 | AF119: 0 | AG119: 0 | AH119: 0 | AI119: 0 | AJ119: 0 | AK119: 0 | AL119: 0 | AM119: 0 | AN119: 0 | AO119: 0 | AP119: 0 | AQ119: 0 | AR119: 0 | AS119: 0 | AT119: 0 | AU119: 0 | AV119: 0 | AW119: 0 | AX119: 0 | AY119: 0 | AZ119: 0 | BA119: 0 | BB119: 0 | BD119: 0
A120: 4 | B120: CS-6632 | C120: CS | D120: 6 | E120: 66 | F120: 663 | G120: 6632 | H120: 0 | J120: 0 | K120: 0 | L120: 0 | N120: 0 | O120: 0 | P120: 0 | R120: 0 | S120: 0 | T120: 0 | V120: 0 | W120: 0 | X120: 0 | Z120: 0 | AA120: 0 | AB120: 0 | AD120: 0 | AE120: 0 | AF120: 0 | AG120: 0 | AH120: 0 | AI120: 0 | AJ120: 0 | AK120: 0 | AL120: 0 | AM120: 0 | AN120: 0 | AO120: 0 | AP120: 0 | AQ120: 0 | AR120: 0 | AS120: 0 | AT120: 0 | AU120: 0 | AV120: 0 | AW120: 0 | AX120: 0 | AY120: 0 | AZ120: 0 | BA120: 0 | BB120: 0 | BD120: 0
A121: 4 | B121: CS-6641 | C121: CS | D121: 6 | E121: 66 | F121: 664 | G121: 6641 | H121: 0 | J121: 0 | K121: 0 | L121: 0 | N121: 0 | O121: 0 | P121: 0 | R121: 0 | S121: 0 | T121: 0 | V121: 0 | W121: 0 | X121: 0 | Z121: 0 | AA121: 0 | AB121: 0 | AD121: 0 | AE121: 0 | AF121: 0 | AG121: 0 | AH121: 0 | AI121: 0 | AJ121: 0 | AK121: 0 | AL121: 0 | AM121: 0 | AN121: 0 | AO121: 0 | AP121: 0 | AQ121: 0 | AR121: 0 | AS121: 0 | AT121: 0 | AU121: 0 | AV121: 0 | AW121: 0 | AX121: 0 | AY121: 0 | AZ121: 0 | BA121: 0 | BB121: 0 | BD121: 0
A122: 4 | B122: CS-6642 | C122: CS | D122: 6 | E122: 66 | F122: 664 | G122: 6642 | H122: 0 | J122: 0 | K122: 0 | L122: 0 | N122: 0 | O122: 0 | P122: 0 | R122: 0 | S122: 0 | T122: 0 | V122: 0 | W122: 0 | X122: 0 | Z122: 0 | AA122: 0 | AB122: 0 | AD122: 0 | AE122: 0 | AF122: 0 | AG122: 0 | AH122: 0 | AI122: 0 | AJ122: 0 | AK122: 0 | AL122: 0 | AM122: 0 | AN122: 0 | AO122: 0 | AP122: 0 | AQ122: 0 | AR122: 0 | AS122: 0 | AT122: 0 | AU122: 0 | AV122: 0 | AW122: 0 | AX122: 0 | AY122: 0 | AZ122: 0 | BA122: 0 | BB122: 0 | BD122: 0
A123: 4 | B123: CS-6651 | C123: CS | D123: 6 | E123: 66 | F123: 665 | G123: 6651 | H123: 0 | J123: 0 | K123: 0 | L123: 0 | N123: 0 | O123: 0 | P123: 0 | R123: 0 | S123: 0 | T123: 0 | V123: 0 | W123: 0 | X123: 0 | Z123: 0 | AA123: 0 | AB123: 0 | AD123: 0 | AE123: 0 | AF123: 0 | AG123: 0 | AH123: 0 | AI123: 0 | AJ123: 0 | AK123: 0 | AL123: 0 | AM123: 0 | AN123: 0 | AO123: 0 | AP123: 0 | AQ123: 0 | AR123: 0 | AS123: 0 | AT123: 0 | AU123: 0 | AV123: 0 | AW123: 0 | AX123: 0 | AY123: 0 | AZ123: 0 | BA123: 0 | BB123: 0 | BD123: 0
A124: 4 | B124: CS-6652 | C124: CS | D124: 6 | E124: 66 | F124: 665 | G124: 6652 | H124: 0 | J124: 0 | K124: 0 | L124: 0 | N124: 0 | O124: 0 | P124: 0 | R124: 0 | S124: 0 | T124: 0 | V124: 0 | W124: 0 | X124: 0 | Z124: 0 | AA124: 0 | AB124: 0 | AD124: 0 | AE124: 0 | AF124: 0 | AG124: 0 | AH124: 0 | AI124: 0 | AJ124: 0 | AK124: 0 | AL124: 0 | AM124: 0 | AN124: 0 | AO124: 0 | AP124: 0 | AQ124: 0 | AR124: 0 | AS124: 0 | AT124: 0 | AU124: 0 | AV124: 0 | AW124: 0 | AX124: 0 | AY124: 0 | AZ124: 0 | BA124: 0 | BB124: 0 | BD124: 0
A125: 4 | B125: CS-6661 | C125: CS | D125: 6 | E125: 66 | F125: 666 | G125: 6661 | H125: 0 | J125: 0 | K125: 0 | L125: 0 | N125: 0 | O125: 0 | P125: 0 | R125: 0 | S125: 0 | T125: 0 | V125: 0 | W125: 0 | X125: 0 | Z125: 0 | AA125: 0 | AB125: 0 | AD125: 0 | AE125: 0 | AF125: 0 | AG125: 0 | AH125: 0 | AI125: 0 | AJ125: 0 | AK125: 0 | AL125: 0 | AM125: 0 | AN125: 0 | AO125: 0 | AP125: 0 | AQ125: 0 | AR125: 0 | AS125: 0 | AT125: 0 | AU125: 0 | AV125: 0 | AW125: 0 | AX125: 0 | AY125: 0 | AZ125: 0 | BA125: 0 | BB125: 0 | BD125: 0
A126: 4 | B126: CS-6662 | C126: CS | D126: 6 | E126: 66 | F126: 666 | G126: 6662 | H126: 0 | J126: 0 | K126: 0 | L126: 0 | N126: 0 | O126: 0 | P126: 0 | R126: 0 | S126: 0 | T126: 0 | V126: 0 | W126: 0 | X126: 0 | Z126: 0 | AA126: 0 | AB126: 0 | AD126: 0 | AE126: 0 | AF126: 0 | AG126: 0 | AH126: 0 | AI126: 0 | AJ126: 0 | AK126: 0 | AL126: 0 | AM126: 0 | AN126: 0 | AO126: 0 | AP126: 0 | AQ126: 0 | AR126: 0 | AS126: 0 | AT126: 0 | AU126: 0 | AV126: 0 | AW126: 0 | AX126: 0 | AY126: 0 | AZ126: 0 | BA126: 0 | BB126: 0 | BD126: 0
A127: 4 | B127: CS-6671 | C127: CS | D127: 6 | E127: 66 | F127: 667 | G127: 6671 | H127: 0 | J127: 0 | K127: 0 | L127: 0 | N127: 0 | O127: 0 | P127: 0 | R127: 0 | S127: 0 | T127: 0 | V127: 0 | W127: 0 | X127: 0 | Z127: 0 | AA127: 0 | AB127: 0 | AD127: 0 | AE127: 0 | AF127: 0 | AG127: 0 | AH127: 0 | AI127: 0 | AJ127: 0 | AK127: 0 | AL127: 0 | AM127: 0 | AN127: 0 | AO127: 0 | AP127: 0 | AQ127: 0 | AR127: 0 | AS127: 0 | AT127: 0 | AU127: 0 | AV127: 0 | AW127: 0 | AX127: 0 | AY127: 0 | AZ127: 0 | BA127: 0 | BB127: 0 | BD127: 0
A128: 4 | B128: CS-6672 | C128: CS | D128: 6 | E128: 66 | F128: 667 | G128: 6672 | H128: 0 | J128: 0 | K128: 0 | L128: 0 | N128: 0 | O128: 0 | P128: 0 | R128: 0 | S128: 0 | T128: 0 | V128: 0 | W128: 0 | X128: 0 | Z128: 0 | AA128: 0 | AB128: 0 | AD128: 0 | AE128: 0 | AF128: 0 | AG128: 0 | AH128: 0 | AI128: 0 | AJ128: 0 | AK128: 0 | AL128: 0 | AM128: 0 | AN128: 0 | AO128: 0 | AP128: 0 | AQ128: 0 | AR128: 0 | AS128: 0 | AT128: 0 | AU128: 0 | AV128: 0 | AW128: 0 | AX128: 0 | AY128: 0 | AZ128: 0 | BA128: 0 | BB128: 0 | BD128: 0
A129: 4 | B129: CS-6700 | C129: CS | D129: 6 | E129: 67 | F129: 670 | G129: 6700 | H129: 0 | J129: 0 | K129: 0 | L129: 0 | N129: 0 | O129: 0 | P129: 0 | R129: 0 | S129: 0 | T129: 0 | V129: 0 | W129: 0 | X129: 0 | Z129: 0 | AA129: 0 | AB129: 0 | AD129: 0 | AE129: 0 | AF129: 0 | AG129: 0 | AH129: 0 | AI129: 0 | AJ129: 0 | AK129: 0 | AL129: 0 | AM129: 0 | AN129: 0 | AO129: 0 | AP129: 0 | AQ129: 0 | AR129: 0 | AS129: 0 | AT129: 0 | AU129: 0 | AV129: 0 | AW129: 0 | AX129: 0 | AY129: 0 | AZ129: 0 | BA129: 0 | BB129: 0 | BD129: 0
A130: 4 | B130: CS-6811 | C130: CS | D130: 6 | E130: 68 | F130: 681 | G130: 6811 | H130: 0 | J130: 0 | K130: 0 | L130: 0 | N130: 0 | O130: 0 | P130: 0 | R130: 0 | S130: 0 | T130: 0 | V130: 0 | W130: 0 | X130: 0 | Z130: 0 | AA130: 0 | AB130: 0 | AD130: 0 | AE130: 0 | AF130: 0 | AG130: 0 | AH130: 0 | AI130: 0 | AJ130: 0 | AK130: 0 | AL130: 0 | AM130: 0 | AN130: 0 | AO130: 0 | AP130: 0 | AQ130: 0 | AR130: 0 | AS130: 0 | AT130: 0 | AU130: 0 | AV130: 0 | AW130: 0 | AX130: 0 | AY130: 0 | AZ130: 0 | BA130: 0 | BB130: 0 | BD130: 0
A131: 4 | B131: =C131&"-"&G131 -> CS-6812 | C131: CS | D131: 6 | E131: 68 | F131: 681 | G131: 6812 | H131: 0 | J131: 0 | K131: 0 | L131: 0 | N131: 0 | O131: 0 | P131: 0 | R131: 0 | S131: 0 | T131: 0 | V131: 0 | W131: 0 | X131: 0 | Z131: 0 | AA131: 0 | AB131: 0 | AD131: 0 | AE131: 0 | AF131: 0 | AG131: 0 | AH131: 0 | AI131: 0 | AJ131: 0 | AK131: 0 | AL131: 0 | AM131: 0 | AN131: 0 | AO131: 0 | AP131: 0 | AQ131: 0 | AR131: 0 | AS131: 0 | AT131: 0 | AU131: 0 | AV131: 0 | AW131: 0 | AX131: 0 | AY131: 0 | AZ131: 0 | BA131: 0 | BB131: 0 | BD131: 0
A132: 4 | B132: CS-6821 | C132: CS | D132: 6 | E132: 68 | F132: 682 | G132: 6821 | H132: 0 | J132: 0 | K132: 0 | L132: 0 | N132: 0 | O132: 0 | P132: 0 | R132: 0 | S132: 0 | T132: 0 | V132: 0 | W132: 0 | X132: 0 | Z132: 0 | AA132: 0 | AB132: 0 | AD132: 0 | AE132: 0 | AF132: 0 | AG132: 0 | AH132: 0 | AI132: 0 | AJ132: 0 | AK132: 0 | AL132: 0 | AM132: 0 | AN132: 0 | AO132: 0 | AP132: 0 | AQ132: 0 | AR132: 0 | AS132: 0 | AT132: 0 | AU132: 0 | AV132: 0 | AW132: 0 | AX132: 0 | AY132: 0 | AZ132: 0 | BA132: 0 | BB132: 0 | BD132: 0
A133: 4 | B133: CS-6822 | C133: CS | D133: 6 | E133: 68 | F133: 682 | G133: 6822 | H133: 6047 | J133: 6073 | K133: 6073 | L133: 6047 | N133: 0 | O133: 0 | P133: 0 | R133: 0 | S133: 0 | T133: 0 | V133: 0 | W133: 0 | X133: 0 | Z133: 0 | AA133: 0 | AB133: 0 | AD133: 0 | AE133: 0 | AF133: 0 | AG133: 0 | AH133: 0 | AI133: 0 | AJ133: 0 | AK133: 0 | AL133: 0 | AM133: 0 | AN133: 0 | AO133: 0 | AP133: 0 | AQ133: 0 | AR133: 0 | AS133: 0 | AT133: 0 | AU133: 0 | AV133: 0 | AW133: 0 | AX133: 0 | AY133: 0 | AZ133: 0 | BA133: 0 | BB133: 0 | BD133: 0
A134: 4 | B134: CS-6831 | C134: CS | D134: 6 | E134: 68 | F134: 683 | G134: 6831 | H134: 0 | J134: 0 | K134: 0 | L134: 0 | N134: 0 | O134: 0 | P134: 0 | R134: 0 | S134: 0 | T134: 0 | V134: 0 | W134: 0 | X134: 0 | Z134: 0 | AA134: 0 | AB134: 0 | AD134: 0 | AE134: 0 | AF134: 0 | AG134: 0 | AH134: 0 | AI134: 0 | AJ134: 0 | AK134: 0 | AL134: 0 | AM134: 0 | AN134: 0 | AO134: 0 | AP134: 0 | AQ134: 0 | AR134: 0 | AS134: 0 | AT134: 0 | AV134: 0 | AW134: 0
A135: 4 | B135: CS-6832 | C135: CS | D135: 6 | E135: 68 | F135: 683 | G135: 6832 | H135: 0 | J135: 0 | K135: 0 | L135: 0 | N135: 0 | O135: 0 | P135: 0 | R135: 0 | S135: 0 | T135: 0 | V135: 0 | W135: 0 | X135: 0 | Z135: 0 | AA135: 0 | AB135: 0 | AD135: 0 | AE135: 0 | AF135: 0 | AG135: 0 | AH135: 0 | AI135: 0 | AJ135: 0 | AK135: 0 | AL135: 0 | AM135: 0 | AN135: 0 | AO135: 0 | AP135: 0 | AQ135: 0 | AR135: 0 | AS135: 0 | AT135: 0 | AV135: 0 | AW135: 0
A136: 4 | B136: CS-6841 | C136: CS | D136: 6 | E136: 68 | F136: 684 | G136: 6841 | H136: 0 | J136: 0 | K136: 0 | L136: 0 | N136: 0 | O136: 0 | P136: 0 | R136: 0 | S136: 0 | T136: 0 | V136: 0 | W136: 0 | X136: 0 | Z136: 0 | AA136: 0 | AB136: 0 | AD136: 0 | AE136: 0 | AF136: 0 | AG136: 0 | AH136: 0 | AI136: 0 | AJ136: 0 | AK136: 0 | AL136: 0 | AM136: 0 | AN136: 0 | AO136: 0 | AP136: 0 | AQ136: 0 | AR136: 0 | AS136: 0 | AT136: 0 | AU136: 0 | AV136: 0 | AW136: 0 | AX136: 0 | AY136: 0 | AZ136: 0 | BA136: 0 | BB136: 0 | BD136: 0
A137: 4 | B137: CS-6842 | C137: CS | D137: 6 | E137: 68 | F137: 684 | G137: 6842 | H137: 0 | J137: 0 | K137: 0 | L137: 0 | N137: 0 | O137: 0 | P137: 0 | R137: 0 | S137: 0 | T137: 0 | V137: 0 | W137: 0 | X137: 0 | Z137: 0 | AA137: 0 | AB137: 0 | AD137: 0 | AE137: 0 | AF137: 0 | AG137: 0 | AH137: 0 | AI137: 0 | AJ137: 0 | AK137: 0 | AL137: 0 | AM137: 0 | AN137: 0 | AO137: 0 | AP137: 0 | AQ137: 0 | AR137: 0 | AS137: 0 | AT137: 0 | AU137: 0 | AV137: 0 | AW137: 0 | AX137: 0 | AY137: 0 | AZ137: 0 | BA137: 0 | BB137: 0 | BD137: 0
A138: 4 | B138: CS-6851 | C138: CS | D138: 6 | E138: 68 | F138: 685 | G138: 6851 | H138: 0 | J138: 0 | K138: 0 | L138: 0 | N138: 0 | O138: 0 | P138: 0 | R138: 0 | S138: 0 | T138: 0 | V138: 0 | W138: 0 | X138: 0 | Z138: 0 | AA138: 0 | AB138: 0 | AD138: 0 | AE138: 0 | AF138: 0 | AG138: 0 | AH138: 0 | AI138: 0 | AJ138: 0 | AK138: 0 | AL138: 0 | AM138: 0 | AN138: 0 | AO138: 0 | AP138: 0 | AQ138: 0 | AR138: 0 | AS138: 0 | AT138: 0 | AU138: 0 | AV138: 0 | AW138: 0 | AX138: 0 | AY138: 0 | AZ138: 0 | BA138: 0 | BB138: 0 | BD138: 0
A139: 4 | B139: CS-6852 | C139: CS | D139: 6 | E139: 68 | F139: 685 | G139: 6852 | H139: 0 | J139: 0 | K139: 0 | L139: 0 | N139: 0 | O139: 0 | P139: 0 | R139: 0 | S139: 0 | T139: 0 | V139: 0 | W139: 0 | X139: 0 | Z139: 0 | AA139: 0 | AB139: 0 | AD139: 0 | AE139: 0 | AF139: 0 | AG139: 0 | AH139: 0 | AI139: 0 | AJ139: 0 | AK139: 0 | AL139: 0 | AM139: 0 | AN139: 0 | AO139: 0 | AP139: 0 | AQ139: 0 | AR139: 0 | AS139: 0 | AT139: 0 | AU139: 0 | AV139: 0 | AW139: 0 | AX139: 0 | AY139: 0 | AZ139: 0 | BA139: 0 | BB139: 0 | BD139: 0
A140: 4 | B140: CS-6853 | C140: CS | D140: =LEFT($G140,1) -> 6 | E140: =LEFT($G140,2) -> 68 | F140: =LEFT($G140,3) -> 685 | G140: 6853 | H140: 0 | J140: 0 | K140: 0 | L140: 0 | N140: 0 | O140: 0 | P140: 0 | R140: 0 | S140: 0 | T140: 0 | V140: 0 | W140: 0 | X140: 0 | Z140: 0 | AA140: 0 | AB140: 0 | AD140: 0 | AE140: 0 | AF140: 0 | AG140: 0 | AH140: 0 | AI140: 0 | AJ140: 0 | AK140: 0 | AL140: 0 | AM140: 0 | AN140: 0 | AO140: 0 | AP140: 0 | AQ140: 0 | AR140: 0 | AS140: 0 | AT140: 0 | AU140: 0 | AV140: 0 | AW140: 0 | AX140: 0 | AY140: 0 | AZ140: 0 | BA140: 0 | BB140: 0 | BD140: 0
A141: 4 | B141: CS-6854 | C141: CS | D141: 6 | E141: 68 | F141: 685 | G141: 6854 | H141: 0 | J141: 0 | K141: 0 | L141: 0 | N141: 0 | O141: 0 | P141: 0 | R141: 0 | S141: 0 | T141: 0 | V141: 0 | W141: 0 | X141: 0 | Z141: 0 | AA141: 0 | AB141: 0 | AD141: 0 | AE141: 0 | AF141: 0 | AG141: 0 | AH141: 0 | AI141: 0 | AJ141: 0 | AK141: 0 | AL141: 0 | AM141: 0 | AN141: 0 | AO141: 0 | AP141: 0 | AQ141: 0 | AR141: 0 | AS141: 0 | AT141: 0 | AU141: 0 | AV141: 0 | AW141: 0 | AX141: 0 | AY141: 0 | AZ141: 0 | BA141: 0 | BB141: 0 | BD141: 0
A142: 4 | B142: CS-6859 | C142: CS | D142: 6 | E142: 68 | F142: 685 | G142: 6859 | H142: 0 | J142: 0 | K142: 0 | L142: 0 | N142: 0 | O142: 0 | P142: 0 | R142: 0 | S142: 0 | T142: 0 | V142: 0 | W142: 0 | X142: 0 | Z142: 0 | AA142: 0 | AB142: 0 | AD142: 0 | AE142: 0 | AF142: 0 | AG142: 0 | AH142: 0 | AI142: 0 | AJ142: 0 | AK142: 0 | AL142: 0 | AM142: 0 | AN142: 0 | AO142: 0 | AP142: 0 | AQ142: 0 | AR142: 0 | AS142: 0 | AT142: 0 | AU142: 0 | AV142: 0 | AW142: 0 | AX142: 0 | AY142: 0 | AZ142: 0 | BA142: 0 | BB142: 0 | BD142: 0
A143: 4 | B143: CS-6910 | C143: CS | D143: 6 | E143: 69 | F143: 691 | G143: 6910 | H143: 0 | J143: 0 | K143: 0 | L143: 0 | N143: 0 | O143: 0 | P143: 0 | R143: 0 | S143: 0 | T143: 0 | V143: 0 | W143: 0 | X143: 0 | Z143: 0 | AA143: 0 | AB143: 0 | AD143: 0 | AE143: 0 | AF143: 0 | AG143: 0 | AH143: 0 | AI143: 0 | AJ143: 0 | AK143: 0 | AL143: 0 | AM143: 0 | AN143: 0 | AO143: 0 | AP143: 0 | AQ143: 0 | AR143: 0 | AS143: 0 | AT143: 0 | AV143: 0 | AW143: 0
A144: 4 | B144: CS-6911 | C144: CS | D144: 6 | E144: 69 | F144: 691 | G144: 6911 | H144: 0 | J144: 0 | K144: 0 | L144: 0 | N144: 0 | O144: 0 | P144: 0 | R144: 0 | S144: 0 | T144: 0 | V144: 0 | W144: 0 | X144: 0 | Z144: 0 | AA144: 0 | AB144: 0 | AD144: 0 | AE144: 0 | AF144: 0 | AG144: 0 | AH144: 0 | AI144: 0 | AJ144: 0 | AK144: 0 | AL144: 0 | AM144: 0 | AN144: 0 | AO144: 0 | AP144: 0 | AQ144: 0 | AR144: 0 | AS144: 0 | AT144: 0 | AU144: 0 | AV144: 0 | AW144: 0 | AX144: 0 | AY144: 0 | AZ144: 0 | BA144: 0 | BB144: 0 | BD144: 0
A145: 4 | B145: CS-6912 | C145: CS | D145: 6 | E145: 69 | F145: 691 | G145: 6912 | H145: 0 | J145: 0 | K145: 0 | L145: 0 | N145: 0 | O145: 0 | P145: 0 | R145: 0 | S145: 0 | T145: 0 | V145: 0 | W145: 0 | X145: 0 | Z145: 0 | AA145: 0 | AB145: 0 | AD145: 0 | AE145: 0 | AF145: 0 | AG145: 0 | AH145: 0 | AI145: 0 | AJ145: 0 | AK145: 0 | AL145: 0 | AM145: 0 | AN145: 0 | AO145: 0 | AP145: 0 | AQ145: 0 | AR145: 0 | AS145: 0 | AT145: 0 | AU145: 0 | AV145: 0 | AW145: 0 | AX145: 0 | AY145: 0 | AZ145: 0 | BA145: 0 | BB145: 0 | BD145: 0
A146: 4 | B146: CS-6913 | C146: CS | D146: 6 | E146: 69 | F146: 691 | G146: 6913 | H146: 0 | J146: 0 | K146: 0 | L146: 0 | N146: 0 | O146: 0 | P146: 0 | R146: 0 | S146: 0 | T146: 0 | V146: 0 | W146: 0 | X146: 0 | Z146: 0 | AA146: 0 | AB146: 0 | AD146: 0 | AE146: 0 | AF146: 0 | AG146: 0 | AH146: 0 | AI146: 0 | AJ146: 0 | AK146: 0 | AL146: 0 | AM146: 0 | AN146: 0 | AO146: 0 | AP146: 0 | AQ146: 0 | AR146: 0 | AS146: 0 | AT146: 0 | AU146: 0 | AV146: 0 | AW146: 0 | AX146: 0 | AY146: 0 | AZ146: 0 | BA146: 0 | BB146: 0 | BD146: 0
A147: 4 | B147: CS-6920 | C147: CS | D147: 6 | E147: 69 | F147: 692 | G147: 6920 | H147: 0 | J147: 0 | K147: 0 | L147: 0 | N147: 0 | O147: 0 | P147: 0 | R147: 0 | S147: 0 | T147: 0 | V147: 0 | W147: 0 | X147: 0 | Z147: 0 | AA147: 0 | AB147: 0 | AD147: 0 | AE147: 0 | AF147: 0 | AG147: 0 | AH147: 0 | AI147: 0 | AJ147: 0 | AK147: 0 | AL147: 0 | AM147: 0 | AN147: 0 | AO147: 0 | AP147: 0 | AQ147: 0 | AR147: 0 | AS147: 0 | AT147: 0 | AV147: 0 | AW147: 0
A148: 4 | B148: CS-6924 | C148: CS | D148: 6 | E148: 69 | F148: 692 | G148: 6924 | H148: 0 | J148: 0 | K148: 0 | L148: 0 | N148: 0 | O148: 0 | P148: 0 | R148: 0 | S148: 0 | T148: 0 | V148: 0 | W148: 0 | X148: 0 | Z148: 0 | AA148: 0 | AB148: 0 | AD148: 0 | AE148: 0 | AF148: 0 | AG148: 0 | AH148: 0 | AI148: 0 | AJ148: 0 | AK148: 0 | AL148: 0 | AM148: 0 | AN148: 0 | AO148: 0 | AP148: 0 | AQ148: 0 | AR148: 0 | AS148: 0 | AT148: 0 | AU148: 0 | AV148: 0 | AW148: 0 | AX148: 0 | AY148: 0 | AZ148: 0 | BA148: 0 | BB148: 0 | BD148: 0
A149: 4 | B149: CS-6925 | C149: CS | D149: 6 | E149: 69 | F149: 692 | G149: 6925 | H149: 0 | J149: 0 | K149: 0 | L149: 0 | N149: 0 | O149: 0 | P149: 0 | R149: 0 | S149: 0 | T149: 0 | V149: 0 | W149: 0 | X149: 0 | Z149: 0 | AA149: 0 | AB149: 0 | AD149: 0 | AE149: 0 | AF149: 0 | AG149: 0 | AH149: 0 | AI149: 0 | AJ149: 0 | AK149: 0 | AL149: 0 | AM149: 0 | AN149: 0 | AO149: 0 | AP149: 0 | AQ149: 0 | AR149: 0 | AS149: 0 | AT149: 0 | AU149: 0 | AV149: 0 | AW149: 0 | AX149: 0 | AY149: 0 | AZ149: 0 | BA149: 0 | BB149: 0 | BD149: 0
A150: 4 | B150: CS-6926 | C150: CS | D150: 6 | E150: 69 | F150: 692 | G150: 6926 | H150: 0 | J150: 0 | K150: 0 | L150: 0 | N150: 0 | O150: 0 | P150: 0 | R150: 0 | S150: 0 | T150: 0 | V150: 0 | W150: 0 | X150: 0 | Z150: 0 | AA150: 0 | AB150: 0 | AD150: 0 | AE150: 0 | AF150: 0 | AG150: 0 | AH150: 0 | AI150: 0 | AJ150: 0 | AK150: 0 | AL150: 0 | AM150: 0 | AN150: 0 | AO150: 0 | AP150: 0 | AQ150: 0 | AR150: 0 | AS150: 0 | AT150: 0 | AU150: 0 | AV150: 0 | AW150: 0 | AX150: 0 | AY150: 0 | AZ150: 0 | BA150: 0 | BB150: 0 | BD150: 0
A151: 4 | B151: CS-6930 | C151: CS | D151: 6 | E151: 69 | F151: 693 | G151: 6930 | H151: 0 | J151: 0 | K151: 0 | L151: 0 | N151: 0 | O151: 0 | P151: 0 | R151: 0 | S151: 0 | T151: 0 | V151: 0 | W151: 0 | X151: 0 | Z151: 0 | AA151: 0 | AB151: 0 | AD151: 0 | AE151: 0 | AF151: 0 | AG151: 0 | AH151: 0 | AI151: 0 | AJ151: 0 | AK151: 0 | AL151: 0 | AM151: 0 | AN151: 0 | AO151: 0 | AP151: 0 | AQ151: 0 | AR151: 0 | AS151: 0 | AT151: 0 | AV151: 0 | AW151: 0
A152: 4 | B152: CS-6934 | C152: CS | D152: 6 | E152: 69 | F152: 693 | G152: 6934 | H152: 0 | J152: 0 | K152: 0 | L152: 0 | N152: 0 | O152: 0 | P152: 0 | R152: 0 | S152: 0 | T152: 0 | V152: 0 | W152: 0 | X152: 0 | Z152: 0 | AA152: 0 | AB152: 0 | AD152: 0 | AE152: 0 | AF152: 0 | AG152: 0 | AH152: 0 | AI152: 0 | AJ152: 0 | AK152: 0 | AL152: 0 | AM152: 0 | AN152: 0 | AO152: 0 | AP152: 0 | AQ152: 0 | AR152: 0 | AS152: 0 | AT152: 0 | AU152: 0 | AV152: 0 | AW152: 3 | AX152: 3 | AY152: 3 | AZ152: 3 | BA152: 0 | BB152: 0 | BD152: 0
A153: 4 | B153: CS-6935 | C153: CS | D153: 6 | E153: 69 | F153: 693 | G153: 6935 | H153: 0 | J153: 0 | K153: 0 | L153: 0 | N153: 0 | O153: 0 | P153: 0 | R153: 0 | S153: 0 | T153: 0 | V153: 0 | W153: 0 | X153: 0 | Z153: 0 | AA153: 0 | AB153: 0 | AD153: 0 | AE153: 0 | AF153: 0 | AG153: 0 | AH153: 0 | AI153: 0 | AJ153: 0 | AK153: 0 | AL153: 0 | AM153: 0 | AN153: 0 | AO153: 0 | AP153: 0 | AQ153: 0 | AR153: 0 | AS153: 0 | AT153: 0 | AU153: 0 | AV153: 0 | AW153: 0 | AX153: 0 | AY153: 0 | AZ153: 0 | BA153: 0 | BB153: 0 | BD153: 0
A154: 4 | B154: CS-6940 | C154: CS | D154: 6 | E154: 69 | F154: 694 | G154: 6940 | H154: 0 | J154: 0 | K154: 0 | L154: 0 | N154: 0 | O154: 0 | P154: 0 | R154: 0 | S154: 0 | T154: 0 | V154: 0 | W154: 0 | X154: 0 | Z154: 0 | AA154: 0 | AB154: 0 | AD154: 0 | AE154: 0 | AF154: 0 | AG154: 0 | AH154: 0 | AI154: 0 | AJ154: 0 | AK154: 0 | AL154: 0 | AM154: 0 | AN154: 0 | AO154: 0 | AP154: 0 | AQ154: 0 | AR154: 0 | AS154: 0 | AT154: 0 | AU154: 0 | AV154: 0 | AW154: 0 | AX154: 0 | AY154: 0 | AZ154: 0 | BA154: 0 | BB154: 0 | BD154: 0
A155: 4 | B155: CS-6941 | C155: CS | D155: 6 | E155: 69 | F155: 694 | G155: 6941 | H155: 0 | J155: 0 | K155: 0 | L155: 0 | N155: 0 | O155: 0 | P155: 0 | R155: 0 | S155: 0 | T155: 0 | V155: 0 | W155: 0 | X155: 0 | Z155: 0 | AA155: 0 | AB155: 0 | AD155: 0 | AE155: 0 | AF155: 0 | AG155: 0 | AH155: 0 | AI155: 0 | AJ155: 0 | AK155: 0 | AL155: 0 | AM155: 0 | AN155: 0 | AO155: 0 | AP155: 0 | AQ155: 0 | AR155: 0 | AS155: 0 | AT155: 0 | AV155: 0 | AW155: 0
A156: 4 | B156: CS-6942 | C156: CS | D156: 6 | E156: 69 | F156: 694 | G156: 6942 | H156: 0 | J156: 0 | K156: 0 | L156: 0 | N156: 0 | O156: 0 | P156: 0 | R156: 0 | S156: 0 | T156: 0 | V156: 0 | W156: 0 | X156: 0 | Z156: 0 | AA156: 0 | AB156: 0 | AD156: 0 | AE156: 0 | AF156: 0 | AG156: 0 | AH156: 0 | AI156: 0 | AJ156: 0 | AK156: 0 | AL156: 0 | AM156: 0 | AN156: 0 | AO156: 0 | AP156: 0 | AQ156: 0 | AR156: 0 | AS156: 0 | AT156: 0 | AV156: 0 | AW156: 0
